Workbook

Sheet Notes
A14: Committee | B14: Veronica Montano-Pilch | C14: NP Board Treasurer
C15: MVPilch@gmail.com
C16: (505) 977-3432
B17: Martin Pilch | C17: Finance Committee Chairperson
C18: MartinPilch57@gmail.com
C19: (505) 270-2248
B20: Eric Schindwolf | C20: Member
C21: lekees@att.net
C22: ???
B23: Heidi Ruffner | C23: Member
C24: jaruffn@q.com
C25: ???
B26: Gary Clark | C26: Member
C27: gsclarkenm@q.com
C28: ???

Sheet NP Balance Sheet
A2: Effective Reserve 1/1/17
B3: Bank accounts | C3: 366412.41
B4: Accounts receivable | C4: -48822.98
B5: Other current assessts | C5: 5186.5
B6: Total liabilities | C6: -23755.52
B7: Net assets | C7: =SUM(C3:C6) -> 299020.41
B9: Management reserve | C9: -50000
B10: Plumbing fixtures | C10: -10000
B12: Effective reserve | C12: =SUM(C7:C10) -> 239020.41 | D12: =SUM(D7:D10) -> 0

Sheet RiskSwappedFuncs (hidden)
A1: 1 | B1: 258 | C1: 303 | D1: 606 | E1: 2 | F1: 2 | G1: 4
A2: ='Inputs and Results'!$L$11 -> 107 | B2: =IF([0]!GrowthAssump="ConstGrowth", [0]!MaxAvailLots,RiskValStatic(105)+_xll.RiskIntUniform([0]!MaxAvailLots-3,[0]!MaxAvailLots)) -> 107 | C2: ='Inputs and Results'!$P$11 -> 107 | D2: =IF([0]!GrowthAssump="ConstGrowth", [0]!MaxAvailLots,RiskValStatic(105)+_xll.RiskIntUniform([0]!MaxAvailLots-3,[0]!MaxAvailLots)) -> 107 | E2: ='Inputs and Results'!$T$11 -> 107 | F2: =IF([0]!GrowthAssump="ConstGrowth", [0]!MaxAvailLots,RiskValStatic(105)+_xll.RiskIntUniform([0]!MaxAvailLots-3,[0]!MaxAvailLots)) -> 107 | G2: ='Inputs and Results'!$X$11 -> 107 | H2: =IF([0]!GrowthAssump="ConstGrowth", [0]!MaxAvailLots,RiskValStatic(105)+_xll.RiskIntUniform([0]!MaxAvailLots-3,[0]!MaxAvailLots)) -> 107 | I2: ='Inputs and Results'!$AB$11 -> 107 | J2: =IF([0]!GrowthAssump="ConstGrowth", [0]!MaxAvailLots,RiskValStatic(105)+_xll.RiskIntUniform([0]!MaxAvailLots-3,[0]!MaxAvailLots)) -> 107 | K2: ='Inputs and Results'!$AF$11 -> 107 | L2: =IF([0]!GrowthAssump="ConstGrowth", [0]!MaxAvailLots,RiskValStatic(105)+_xll.RiskIntUniform([0]!MaxAvailLots-3,[0]!MaxAvailLots)) -> 107 | M2: ='Inputs and Results'!$AJ$11 -> 107 | N2: =IF([0]!GrowthAssump="ConstGrowth", [0]!MaxAvailLots,RiskValStatic(105)+_xll.RiskIntUniform([0]!MaxAvailLots-3,[0]!MaxAvailLots)) -> 107 | O2: ='Inputs and Results'!$AN$11 -> 107 | P2: =IF([0]!GrowthAssump="ConstGrowth", [0]!MaxAvailLots,RiskValStatic(105)+_xll.RiskIntUniform([0]!MaxAvailLots-3,[0]!MaxAvailLots)) -> 107 | Q2: ='Inputs and Results'!$L$12 -> 104 | R2: =IF([0]!GrowthAssump="ConstGrowth", [0]!MaxHomes,RiskValStatic(101)+_xll.RiskIntUniform([0]!CapOnLots-11,[0]!CapOnLots)) -> 104 | S2: ='Inputs and Results'!$P$12 -> 104 | T2: =IF([0]!GrowthAssump="ConstGrowth", [0]!MaxHomes,RiskValStatic(101)+_xll.RiskIntUniform([0]!CapOnLots-11,[0]!CapOnLots)) -> 104 | U2: ='Inputs and Results'!$T$12 -> 104 | V2: =IF([0]!GrowthAssump="ConstGrowth", [0]!MaxHomes,RiskValStatic(101)+_xll.RiskIntUniform([0]!CapOnLots-11,[0]!CapOnLots)) -> 104 | W2: ='Inputs and Results'!$X$12 -> 104 | X2: =IF([0]!GrowthAssump="ConstGrowth", [0]!MaxHomes,RiskValStatic(101)+_xll.RiskIntUniform([0]!CapOnLots-11,[0]!CapOnLots)) -> 104 | Y2: ='Inputs and Results'!$AB$12 -> 104 | Z2: =IF([0]!GrowthAssump="ConstGrowth", [0]!MaxHomes,RiskValStatic(101)+_xll.RiskIntUniform([0]!CapOnLots-11,[0]!CapOnLots)) -> 104 | AA2: ='Inputs and Results'!$AF$12 -> 104 | AB2: =IF([0]!GrowthAssump="ConstGrowth", [0]!MaxHomes,RiskValStatic(101)+_xll.RiskIntUniform([0]!CapOnLots-11,[0]!CapOnLots)) -> 104 | AC2: ='Inputs and Results'!$AJ$12 -> 104 | AD2: =IF([0]!GrowthAssump="ConstGrowth", [0]!MaxHomes,RiskValStatic(101)+_xll.RiskIntUniform([0]!CapOnLots-11,[0]!CapOnLots)) -> 104 | AE2: ='Inputs and Results'!$AN$12 -> 104 | AF2: =IF([0]!GrowthAssump="ConstGrowth", [0]!MaxHomes,RiskValStatic(101)+_xll.RiskIntUniform([0]!CapOnLots-11,[0]!CapOnLots)) -> 104 | AG2: ='Summary Budget'!$K$19 -> 239020.41 | AH2: =_xll.RiskOutput('Summary Budget'!K2,"Reserve",1)+[0]!InvAcct -> 239020.41 | AI2: ='Summary Budget'!$L$19 -> 212420.3712 | AJ2: =_xll.RiskOutput('Summary Budget'!L2,"Reserve",1)+'Summary Budget'!K21+'Summary Budget'!K22 -> 212420.3712 | AK2: ='Summary Budget'!$M$19 -> 260841.7689 | AL2: =_xll.RiskOutput('Summary Budget'!M2,"Reserve",1)+'Summary Budget'!L21+'Summary Budget'!L22 -> 260841.7689 | AM2: ='Summary Budget'!$N$19 -> 309223.6213 | AN2: =_xll.RiskOutput('Summary Budget'!N2,"Reserve",1)+'Summary Budget'!M21+'Summary Budget'!M22 -> 309223.6213 | AO2: ='Summary Budget'!$O$19 -> 375808.1657 | AP2: =_xll.RiskOutput('Summary Budget'!O2,"Reserve",1)+'Summary Budget'!N21+'Summary Budget'!N22 -> 375808.1657 | AQ2: ='Summary Budget'!$P$19 -> 447407.5665 | AR2: =_xll.RiskOutput('Summary Budget'!P2,"Reserve",1)+'Summary Budget'!O21+'Summary Budget'!O22 -> 447407.5665 | AS2: ='Summary Budget'!$Q$19 -> 376542.3226 | AT2: =_xll.RiskOutput('Summary Budget'!Q2,"Reserve",1)+'Summary Budget'!P21+'Summary Budget'!P22 -> 376542.3226 | AU2: ='Summary Budget'!$R$19 -> 461303.6281 | AV2: =_xll.RiskOutput('Summary Budget'!R2,"Reserve",1)+'Summary Budget'!Q21+'Summary Budget'!Q22 -> 461303.6281 | AW2: ='Summary Budget'!$S$19 -> 553402.539 | AX2: =_xll.RiskOutput('Summary Budget'!S2,"Reserve",1)+'Summary Budget'!R21+'Summary Budget'!R22 -> 553402.539 | AY2: ='Summary Budget'!$T$19 -> 602055.9227 | AZ2: =_xll.RiskOutput('Summary Budget'!T2,"Reserve",1)+'Summary Budget'!S21+'Summary Budget'!S22 -> 602055.9227 | BA2: ='Summary Budget'!$U$19 -> 680891.5923 | BB2: =_xll.RiskOutput('Summary Budget'!U2,"Reserve",1)+'Summary Budget'!T21+'Summary Budget'!T22 -> 680891.5923 | BC2: ='Summary Budget'!$V$19 -> 436656.8963 | BD2: =_xll.RiskOutput('Summary Budget'!V2,"Reserve",1)+'Summary Budget'!U21+'Summary Budget'!U22 -> 436656.8963 | BE2: ='Summary Budget'!$W$19 -> 543103.6475 | BF2: =_xll.RiskOutput('Summary Budget'!W2,"Reserve",1)+'Summary Budget'!V21+'Summary Budget'!V22 -> 543103.6475 | BG2: ='Summary Budget'!$X$19 -> 629539.2908 | BH2: =_xll.RiskOutput('Summary Budget'!X2,"Reserve",1)+'Summary Budget'!W21+'Summary Budget'!W22 -> 629539.2908 | BI2: ='Summary Budget'!$Y$19 -> 743384.9162 | BJ2: =_xll.RiskOutput('Summary Budget'!Y2,"Reserve",1)+'Summary Budget'!X21+'Summary Budget'!X22 -> 743384.9162 | BK2: ='Summary Budget'!$Z$19 -> 810976.3537 | BL2: =_xll.RiskOutput('Summary Budget'!Z2,"Reserve",1)+'Summary Budget'!Y21+'Summary Budget'!Y22 -> 810976.3537 | BM2: ='Summary Budget'!$AA$19 -> 728911.6208 | BN2: =_xll.RiskOutput('Summary Budget'!AA2,"Reserve",1)+'Summary Budget'!Z21+'Summary Budget'!Z22 -> 728911.6208 | BO2: ='Summary Budget'!$AB$19 -> 870474.5966 | BP2: =_xll.RiskOutput('Summary Budget'!AB2,"Reserve",1)+'Summary Budget'!AA21+'Summary Budget'!AA22 -> 870474.5966 | BQ2: ='Summary Budget'!$AC$19 -> 990735.5644 | BR2: =_xll.RiskOutput('Summary Budget'!AC2,"Reserve",1)+'Summary Budget'!AB21+'Summary Budget'!AB22 -> 990735.5644 | BS2: ='Summary Budget'!$AD$19 -> 1095518.625 | BT2: =_xll.RiskOutput('Summary Budget'!AD2,"Reserve",1)+'Summary Budget'!AC21+'Summary Budget'!AC22 -> 1095518.625 | BU2: ='Summary Budget'!$AE$19 -> 1269129.946 | BV2: =_xll.RiskOutput('Summary Budget'!AE2,"Reserve",1)+'Summary Budget'!AD21+'Summary Budget'!AD22 -> 1269129.946 | BW2: ='Summary Budget'!$AF$19 -> 345763.6146 | BX2: =_xll.RiskOutput('Summary Budget'!AF2,"Reserve",1)+'Summary Budget'!AE21+'Summary Budget'!AE22 -> 345763.6146 | BY2: ='Summary Budget'!$AG$19 -> 493444.0511 | BZ2: =_xll.RiskOutput('Summary Budget'!AG2,"Reserve",1)+'Summary Budget'!AF21+'Summary Budget'!AF22 -> 493444.0511 | CA2: ='Summary Budget'!$AH$19 -> 683414.0786 | CB2: =_xll.RiskOutput('Summary Budget'!AH2,"Reserve",1)+'Summary Budget'!AG21+'Summary Budget'!AG22 -> 683414.0786 | CC2: ='Summary Budget'!$AI$19 -> 799845.1748 | CD2: =_xll.RiskOutput('Summary Budget'!AI2,"Reserve",1)+'Summary Budget'!AH21+'Summary Budget'!AH22 -> 799845.1748 | CE2: ='Summary Budget'!$AJ$19 -> 966968.8692 | CF2: =_xll.RiskOutput('Summary Budget'!AJ2,"Reserve",1)+'Summary Budget'!AI21+'Summary Budget'!AI22 -> 966968.8692 | CG2: ='Summary Budget'!$AK$19 -> 1000668.036 | CH2: =_xll.RiskOutput('Summary Budget'!AK2,"Reserve",1)+'Summary Budget'!AJ21+'Summary Budget'!AJ22 -> 1000668.036 | CI2: ='Summary Budget'!$AL$19 -> 1138086.194 | CJ2: =_xll.RiskOutput('Summary Budget'!AL2,"Reserve",1)+'Summary Budget'!AK21+'Summary Budget'!AK22 -> 1138086.194 | CK2: ='Summary Budget'!$AM$19 -> 1364259.684 | CL2: =_xll.RiskOutput('Summary Budget'!AM2,"Reserve",1)+'Summary Budget'!AL21+'Summary Budget'!AL22 -> 1364259.684 | CM2: ='Summary Budget'!$AN$19 -> 1495535.488 | CN2: =_xll.RiskOutput('Summary Budget'!AN2,"Reserve",1)+'Summary Budget'!AM21+'Summary Budget'!AM22 -> 1495535.488 | CO2: ='Summary Budget'!$AO$19 -> 1742949.055 | CP2: =_xll.RiskOutput('Summary Budget'!AO2,"Reserve",1)+'Summary Budget'!AN21+'Summary Budget'!AN22 -> 1742949.055 | CQ2: ='Summary Budget'!$AP$19 -> 1310177.165 | CR2: =_xll.RiskOutput('Summary Budget'!AP2,"Reserve",1)+'Summary Budget'!AO21+'Summary Budget'!AO22 -> 1310177.165 | CS2: ='Summary Budget'!$AQ$19 -> 1503840.95 | CT2: =_xll.RiskOutput('Summary Budget'!AQ2,"Reserve",1)+'Summary Budget'!AP21+'Summary Budget'!AP22 -> 1503840.95 | CU2: ='Summary Budget'!$AR$19 -> 1737150.17 | CV2: =_xll.RiskOutput('Summary Budget'!AR2,"Reserve",1)+'Summary Budget'!AQ21+'Summary Budget'!AQ22 -> 1737150.17 | CW2: ='Summary Budget'!$AS$19 -> 1806139.102 | CX2: =_xll.RiskOutput('Summary Budget'!AS2,"Reserve",1)+'Summary Budget'!AR21+'Summary Budget'!AR22 -> 1806139.102 | CY2: ='Summary Budget'!$AT$19 -> 2104678.275 | CZ2: =_xll.RiskOutput('Summary Budget'!AT2,"Reserve",1)+'Summary Budget'!AS21+'Summary Budget'!AS22 -> 2104678.275 | DA2: ='Summary Budget'!$AU$19 -> 2115373.867 | DB2: =_xll.RiskOutput('Summary Budget'!AU2,"Reserve",1)+'Summary Budget'!AT21+'Summary Budget'!AT22 -> 2115373.867 | DC2: ='Summary Budget'!$AV$19 -> 2355647.198 | DD2: =_xll.RiskOutput('Summary Budget'!AV2,"Reserve",1)+'Summary Budget'!AU21+'Summary Budget'!AU22 -> 2355647.198 | DE2: ='Summary Budget'!$AW$19 -> 2655666.917 | DF2: =_xll.RiskOutput('Summary Budget'!AW2,"Reserve",1)+'Summary Budget'!AV21+'Summary Budget'!AV22 -> 2655666.917 | DG2: ='Summary Budget'!$AX$19 -> 2819835.08 | DH2: =_xll.RiskOutput('Summary Budget'!AX2,"Reserve",1)+'Summary Budget'!AW21+'Summary Budget'!AW22 -> 2819835.08 | DI2: ='Summary Budget'!$AY$19 -> 3136832.814 | DJ2: =_xll.RiskOutput('Summary Budget'!AY2,"Reserve",1)+'Summary Budget'!AX21+'Summary Budget'!AX22 -> 3136832.814 | DK2: ='Summary Budget'!$AZ$19 -> 2828127.806 | DL2: =_xll.RiskOutput('Summary Budget'!AZ2,"Reserve",1)+'Summary Budget'!AY21+'Summary Budget'!AY22 -> 2828127.806 | DM2: ='Summary Budget'!$BA$19 -> 3083640.76 | DN2: =_xll.RiskOutput('Summary Budget'!BA2,"Reserve",1)+'Summary Budget'!AZ21+'Summary Budget'!AZ22 -> 3083640.76 | DO2: ='Summary Budget'!$BB$19 -> 3434218.043 | DP2: =_xll.RiskOutput('Summary Budget'!BB2,"Reserve",1)+'Summary Budget'!BA21+'Summary Budget'!BA22 -> 3434218.043 | DQ2: ='Summary Budget'!$BC$19 -> 3781913.166 | DR2: =_xll.RiskOutput('Summary Budget'!BC2,"Reserve",1)+'Summary Budget'!BB21+'Summary Budget'!BB22 -> 3781913.166 | DS2: ='Summary Budget'!$BD$19 -> 4131627.425 | DT2: =_xll.RiskOutput('Summary Budget'!BD2,"Reserve",1)+'Summary Budget'!BC21+'Summary Budget'!BC22 -> 4131627.425 | DU2: ='Summary Budget'!$BE$19 -> 4387653.692 | DV2: =_xll.RiskOutput('Summary Budget'!BE2,"Reserve",1)+'Summary Budget'!BD21+'Summary Budget'!BD22 -> 4387653.692 | DW2: ='Summary Budget'!$BF$19 -> 4731748.077 | DX2: =_xll.RiskOutput('Summary Budget'!BF2,"Reserve",1)+'Summary Budget'!BE21+'Summary Budget'!BE22 -> 4731748.077 | DY2: ='Summary Budget'!$BG$19 -> 5158702.408 | DZ2: =_xll.RiskOutput('Summary Budget'!BG2,"Reserve",1)+'Summary Budget'!BF21+'Summary Budget'!BF22 -> 5158702.408 | EA2: ='Summary Budget'!$BH$19 -> 5319756.806 | EB2: =_xll.RiskOutput('Summary Budget'!BH2,"Reserve",1)+'Summary Budget'!BG21+'Summary Budget'!BG22 -> 5319756.806 | EC2: ='Summary Budget'!$D$22 -> 0 | ED2: =_xll.RiskOutput()+MAX('Summary Budget'!K22:AN22) -> 0 | EE2: ='Summary Budget'!$G$22 -> 0 | EF2: =_xll.RiskOutput()+SUM('Summary Budget'!K22:AN22) -> 0 | EG2: ='Summary Budget'!$K$22 -> 0 | EH2: =_xll.RiskOutput(,"Special Assessments",1)+IF('Summary Budget'!K21<0,ABS('Summary Budget'!K21),0) -> 0 | EI2: ='Summary Budget'!$L$22 -> 0 | EJ2: =_xll.RiskOutput(,"Special Assessments",1)+IF('Summary Budget'!L21<0,ABS('Summary Budget'!L21),0) -> 0 | EK2: ='Summary Budget'!$M$22 -> 0 | EL2: =_xll.RiskOutput(,"Special Assessments",1)+IF('Summary Budget'!M21<0,ABS('Summary Budget'!M21),0) -> 0 | EM2: ='Summary Budget'!$N$22 -> 0 | EN2: =_xll.RiskOutput(,"Special Assessments",1)+IF('Summary Budget'!N21<0,ABS('Summary Budget'!N21),0) -> 0 | EO2: ='Summary Budget'!$O$22 -> 0 | EP2: =_xll.RiskOutput(,"Special Assessments",1)+IF('Summary Budget'!O21<0,ABS('Summary Budget'!O21),0) -> 0 | EQ2: ='Summary Budget'!$P$22 -> 0 | ER2: =_xll.RiskOutput(,"Special Assessments",1)+IF('Summary Budget'!P21<0,ABS('Summary Budget'!P21),0) -> 0 | ES2: ='Summary Budget'!$Q$22 -> 0 | ET2: =_xll.RiskOutput(,"Special Assessments",1)+IF('Summary Budget'!Q21<0,ABS('Summary Budget'!Q21),0) -> 0 | EU2: ='Summary Budget'!$R$22 -> 0 | EV2: =_xll.RiskOutput(,"Special Assessments",1)+IF('Summary Budget'!R21<0,ABS('Summary Budget'!R21),0) -> 0 | EW2: ='Summary Budget'!$S$22 -> 0 | EX2: =_xll.RiskOutput(,"Special Assessments",1)+IF('Summary Budget'!S21<0,ABS('Summary Budget'!S21),0) -> 0 | EY2: ='Summary Budget'!$T$22 -> 0 | EZ2: =_xll.RiskOutput(,"Special Assessments",1)+IF('Summary Budget'!T21<0,ABS('Summary Budget'!T21),0) -> 0 | FA2: ='Summary Budget'!$U$22 -> 0 | FB2: =_xll.RiskOutput(,"Special Assessments",1)+IF('Summary Budget'!U21<0,ABS('Summary Budget'!U21),0) -> 0 | FC2: ='Summary Budget'!$V$22 -> 0 | FD2: =_xll.RiskOutput(,"Special Assessments",1)+IF('Summary Budget'!V21<0,ABS('Summary Budget'!V21),0) -> 0 | FE2: ='Summary Budget'!$W$22 -> 0 | FF2: =_xll.RiskOutput(,"Special Assessments",1)+IF('Summary Budget'!W21<0,ABS('Summary Budget'!W21),0) -> 0 | FG2: ='Summary Budget'!$X$22 -> 0 | FH2: =_xll.RiskOutput(,"Special Assessments",1)+IF('Summary Budget'!X21<0,ABS('Summary Budget'!X21),0) -> 0 | FI2: ='Summary Budget'!$Y$22 -> 0 | FJ2: =_xll.RiskOutput(,"Special Assessments",1)+IF('Summary Budget'!Y21<0,ABS('Summary Budget'!Y21),0) -> 0 | FK2: ='Summary Budget'!$Z$22 -> 0 | FL2: =_xll.RiskOutput(,"Special Assessments",1)+IF('Summary Budget'!Z21<0,ABS('Summary Budget'!Z21),0) -> 0 | FM2: ='Summary Budget'!$AA$22 -> 0 | FN2: =_xll.RiskOutput(,"Special Assessments",1)+IF('Summary Budget'!AA21<0,ABS('Summary Budget'!AA21),0) -> 0 | FO2: ='Summary Budget'!$AB$22 -> 0 | FP2: =_xll.RiskOutput(,"Special Assessments",1)+IF('Summary Budget'!AB21<0,ABS('Summary Budget'!AB21),0) -> 0 | FQ2: ='Summary Budget'!$AC$22 -> 0 | FR2: =_xll.RiskOutput(,"Special Assessments",1)+IF('Summary Budget'!AC21<0,ABS('Summary Budget'!AC21),0) -> 0 | FS2: ='Summary Budget'!$AD$22 -> 0 | FT2: =_xll.RiskOutput(,"Special Assessments",1)+IF('Summary Budget'!AD21<0,ABS('Summary Budget'!AD21),0) -> 0 | FU2: ='Summary Budget'!$AE$22 -> 0 | FV2: =_xll.RiskOutput(,"Special Assessments",1)+IF('Summary Budget'!AE21<0,ABS('Summary Budget'!AE21),0) -> 0 | FW2: ='Summary Budget'!$AF$22 -> 0 | FX2: =_xll.RiskOutput(,"Special Assessments",1)+IF('Summary Budget'!AF21<0,ABS('Summary Budget'!AF21),0) -> 0 | FY2: ='Summary Budget'!$AG$22 -> 0 | FZ2: =_xll.RiskOutput(,"Special Assessments",1)+IF('Summary Budget'!AG21<0,ABS('Summary Budget'!AG21),0) -> 0 | GA2: ='Summary Budget'!$AH$22 -> 0 | GB2: =_xll.RiskOutput(,"Special Assessments",1)+IF('Summary Budget'!AH21<0,ABS('Summary Budget'!AH21),0) -> 0 | GC2: ='Summary Budget'!$AI$22 -> 0 | GD2: =_xll.RiskOutput(,"Special Assessments",1)+IF('Summary Budget'!AI21<0,ABS('Summary Budget'!AI21),0) -> 0 | GE2: ='Summary Budget'!$AJ$22 -> 0 | GF2: =_xll.RiskOutput(,"Special Assessments",1)+IF('Summary Budget'!AJ21<0,ABS('Summary Budget'!AJ21),0) -> 0 | GG2: ='Summary Budget'!$AK$22 -> 0 | GH2: =_xll.RiskOutput(,"Special Assessments",1)+IF('Summary Budget'!AK21<0,ABS('Summary Budget'!AK21),0) -> 0 | GI2: ='Summary Budget'!$AL$22 -> 0 | GJ2: =_xll.RiskOutput(,"Special Assessments",1)+IF('Summary Budget'!AL21<0,ABS('Summary Budget'!AL21),0) -> 0 | GK2: ='Summary Budget'!$AM$22 -> 0 | GL2: =_xll.RiskOutput(,"Special Assessments",1)+IF('Summary Budget'!AM21<0,ABS('Summary Budget'!AM21),0) -> 0 | GM2: ='Summary Budget'!$AN$22 -> 0 | GN2: =_xll.RiskOutput(,"Special Assessments",1)+IF('Summary Budget'!AN21<0,ABS('Summary Budget'!AN21),0) -> 0 | GO2: ='Summary Budget'!$AO$22 -> 0 | GP2: =_xll.RiskOutput(,"Special Assessments",1)+IF('Summary Budget'!AO21<0,ABS('Summary Budget'!AO21),0) -> 0 | GQ2: ='Summary Budget'!$AP$22 -> 0 | GR2: =_xll.RiskOutput(,"Special Assessments",1)+IF('Summary Budget'!AP21<0,ABS('Summary Budget'!AP21),0) -> 0 | GS2: ='Summary Budget'!$AQ$22 -> 0 | GT2: =_xll.RiskOutput(,"Special Assessments",1)+IF('Summary Budget'!AQ21<0,ABS('Summary Budget'!AQ21),0) -> 0 | GU2: ='Summary Budget'!$AR$22 -> 0 | GV2: =_xll.RiskOutput(,"Special Assessments",1)+IF('Summary Budget'!AR21<0,ABS('Summary Budget'!AR21),0) -> 0 | GW2: ='Summary Budget'!$AS$22 -> 0 | GX2: =_xll.RiskOutput(,"Special Assessments",1)+IF('Summary Budget'!AS21<0,ABS('Summary Budget'!AS21),0) -> 0 | GY2: ='Summary Budget'!$AT$22 -> 0 | GZ2: =_xll.RiskOutput(,"Special Assessments",1)+IF('Summary Budget'!AT21<0,ABS('Summary Budget'!AT21),0) -> 0 | HA2: ='Summary Budget'!$AU$22 -> 0 | HB2: =_xll.RiskOutput(,"Special Assessments",1)+IF('Summary Budget'!AU21<0,ABS('Summary Budget'!AU21),0) -> 0 | HC2: ='Summary Budget'!$AV$22 -> 0 | HD2: =_xll.RiskOutput(,"Special Assessments",1)+IF('Summary Budget'!AV21<0,ABS('Summary Budget'!AV21),0) -> 0 | HE2: ='Summary Budget'!$AW$22 -> 0 | HF2: =_xll.RiskOutput(,"Special Assessments",1)+IF('Summary Budget'!AW21<0,ABS('Summary Budget'!AW21),0) -> 0 | HG2: ='Summary Budget'!$AX$22 -> 0 | HH2: =_xll.RiskOutput(,"Special Assessments",1)+IF('Summary Budget'!AX21<0,ABS('Summary Budget'!AX21),0) -> 0 | HI2: ='Summary Budget'!$AY$22 -> 0 | HJ2: =_xll.RiskOutput(,"Special Assessments",1)+IF('Summary Budget'!AY21<0,ABS('Summary Budget'!AY21),0) -> 0 | HK2: ='Summary Budget'!$AZ$22 -> 0 | HL2: =_xll.RiskOutput(,"Special Assessments",1)+IF('Summary Budget'!AZ21<0,ABS('Summary Budget'!AZ21),0) -> 0 | HM2: ='Summary Budget'!$BA$22 -> 0 | HN2: =_xll.RiskOutput(,"Special Assessments",1)+IF('Summary Budget'!BA21<0,ABS('Summary Budget'!BA21),0) -> 0 | HO2: ='Summary Budget'!$BB$22 -> 0 | HP2: =_xll.RiskOutput(,"Special Assessments",1)+IF('Summary Budget'!BB21<0,ABS('Summary Budget'!BB21),0) -> 0 | HQ2: ='Summary Budget'!$BC$22 -> 0 | HR2: =_xll.RiskOutput(,"Special Assessments",1)+IF('Summary Budget'!BC21<0,ABS('Summary Budget'!BC21),0) -> 0 | HS2: ='Summary Budget'!$BD$22 -> 0 | HT2: =_xll.RiskOutput(,"Special Assessments",1)+IF('Summary Budget'!BD21<0,ABS('Summary Budget'!BD21),0) -> 0 | HU2: ='Summary Budget'!$BE$22 -> 0 | HV2: =_xll.RiskOutput(,"Special Assessments",1)+IF('Summary Budget'!BE21<0,ABS('Summary Budget'!BE21),0) -> 0 | HW2: ='Summary Budget'!$BF$22 -> 0 | HX2: =_xll.RiskOutput(,"Special Assessments",1)+IF('Summary Budget'!BF21<0,ABS('Summary Budget'!BF21),0) -> 0 | HY2: ='Summary Budget'!$BG$22 -> 0 | HZ2: =_xll.RiskOutput(,"Special Assessments",1)+IF('Summary Budget'!BG21<0,ABS('Summary Budget'!BG21),0) -> 0 | IA2: ='Summary Budget'!$BH$22 -> 0 | IB2: =_xll.RiskOutput(,"Special Assessments",1)+IF('Summary Budget'!BH21<0,ABS('Summary Budget'!BH21),0) -> 0 | IC2: ='Summary Budget'!$K$24 -> 0.1779564812 | ID2: =SpecialAssessmentRisk(MAX('Summary Budget'!K23,0)) -> 0.1779564812 | IE2: ='Summary Budget'!$L$24 -> 0.2048055834 | IF2: =SpecialAssessmentRisk(MAX('Summary Budget'!L23,0)) -> 0.2048055834 | IG2: ='Summary Budget'!$M$24 -> 0.1693338723 | IH2: =SpecialAssessmentRisk(MAX('Summary Budget'!M23,0)) -> 0.1693338723 | II2: ='Summary Budget'!$N$24 -> 0.1449389552 | IJ2: =SpecialAssessmentRisk(MAX('Summary Budget'!N23,0)) -> 0.1449389552 | IK2: ='Summary Budget'!$O$24 -> 0.1187694076 | IL2: =SpecialAssessmentRisk(MAX('Summary Budget'!O23,0)) -> 0.1187694076 | IM2: ='Summary Budget'!$P$24 -> 0.09770627501 | IN2: =SpecialAssessmentRisk(MAX('Summary Budget'!P23,0)) -> 0.09770627501 | IO2: ='Summary Budget'!$Q$24 -> 0.129683395 | IP2: =SpecialAssessmentRisk(MAX('Summary Budget'!Q23,0)) -> 0.129683395 | IQ2: ='Summary Budget'!$R$24 -> 0.1029011148 | IR2: =SpecialAssessmentRisk(MAX('Summary Budget'!R23,0)) -> 0.1029011148 | IS2: ='Summary Budget'!$S$24 -> 0.0877407065 | IT2: =SpecialAssessmentRisk(MAX('Summary Budget'!S23,0)) -> 0.0877407065 | IU2: ='Summary Budget'!$T$24 -> 0.08089954105 | IV2: =SpecialAssessmentRisk(MAX('Summary Budget'!T23,0)) -> 0.08089954105 | IW2: ='Summary Budget'!$U$24 -> 0.07033793297 | IX2: =SpecialAssessmentRisk(MAX('Summary Budget'!U23,0)) -> 0.07033793297 | IY2: ='Summary Budget'!$V$24 -> 0.1345391551 | IZ2: =SpecialAssessmentRisk(MAX('Summary Budget'!V23,0)) -> 0.1345391551 | JA2: ='Summary Budget'!$W$24 -> 0.1026584705 | JB2: =SpecialAssessmentRisk(MAX('Summary Budget'!W23,0)) -> 0.1026584705 | JC2: ='Summary Budget'!$X$24 -> 0.08705281451 | JD2: =SpecialAssessmentRisk(MAX('Summary Budget'!X23,0)) -> 0.08705281451 | JE2: ='Summary Budget'!$Y$24 -> 0.07202686914 | JF2: =SpecialAssessmentRisk(MAX('Summary Budget'!Y23,0)) -> 0.07202686914 | JG2: ='Summary Budget'!$Z$24 -> 0.06212490201 | JH2: =SpecialAssessmentRisk(MAX('Summary Budget'!Z23,0)) -> 0.06212490201 | JI2: ='Summary Budget'!$AA$24 -> 0.07057412376 | JJ2: =SpecialAssessmentRisk(MAX('Summary Budget'!AA23,0)) -> 0.07057412376 | JK2: ='Summary Budget'!$AB$24 -> 0.05298803777 | JL2: =SpecialAssessmentRisk(MAX('Summary Budget'!AB23,0)) -> 0.05298803777 | JM2: ='Summary Budget'!$AC$24 -> 0.04295252716 | JN2: =SpecialAssessmentRisk(MAX('Summary Budget'!AC23,0)) -> 0.04295252716 | JO2: ='Summary Budget'!$AD$24 -> 0.0337283868 | JP2: =SpecialAssessmentRisk(MAX('Summary Budget'!AD23,0)) -> 0.0337283868 | JQ2: ='Summary Budget'!$AE$24 -> 0.02596641973 | JR2: =SpecialAssessmentRisk(MAX('Summary Budget'!AE23,0)) -> 0.02596641973 | JS2: ='Summary Budget'!$AF$24 -> 0.19076422 | JT2: =SpecialAssessmentRisk(MAX('Summary Budget'!AF23,0)) -> 0.19076422 | JU2: ='Summary Budget'!$AG$24 -> 0.1228039894 | JV2: =SpecialAssessmentRisk(MAX('Summary Budget'!AG23,0)) -> 0.1228039894 | JW2: ='Summary Budget'!$AH$24 -> 0.07751413511 | JX2: =SpecialAssessmentRisk(MAX('Summary Budget'!AH23,0)) -> 0.07751413511 | JY2: ='Summary Budget'!$AI$24 -> 0.0514514934 | JZ2: =SpecialAssessmentRisk(MAX('Summary Budget'!AI23,0)) -> 0.0514514934 | KA2: ='Summary Budget'!$AJ$24 -> 0.0354482647 | KB2: =SpecialAssessmentRisk(MAX('Summary Budget'!AJ23,0)) -> 0.0354482647 | KC2: ='Summary Budget'!$AK$24 -> 0.02336230404 | KD2: =SpecialAssessmentRisk(MAX('Summary Budget'!AK23,0)) -> 0.02336230404 | KE2: ='Summary Budget'!$AL$24 -> 0.01616174631 | KF2: =SpecialAssessmentRisk(MAX('Summary Budget'!AL23,0)) -> 0.01616174631 | KG2: ='Summary Budget'!$AM$24 -> 0.01244729903 | KH2: =SpecialAssessmentRisk(MAX('Summary Budget'!AM23,0)) -> 0.01244729903 | KI2: ='Summary Budget'!$AN$24 -> 0.009517394292 | KJ2: =SpecialAssessmentRisk(MAX('Summary Budget'!AN23,0)) -> 0.009517394292 | KK2: ='Summary Budget'!$AO$24 -> 0.008853038246 | KL2: =SpecialAssessmentRisk(MAX('Summary Budget'!AO23,0)) -> 0.008853038246 | KM2: ='Summary Budget'!$AP$24 -> 0.009176568588 | KN2: =SpecialAssessmentRisk(MAX('Summary Budget'!AP23,0)) -> 0.009176568588 | KO2: ='Summary Budget'!$AQ$24 -> 0.007908451681 | KP2: =SpecialAssessmentRisk(MAX('Summary Budget'!AQ23,0)) -> 0.007908451681 | KQ2: ='Summary Budget'!$AR$24 -> 0.007074294132 | KR2: =SpecialAssessmentRisk(MAX('Summary Budget'!AR23,0)) -> 0.007074294132 | KS2: ='Summary Budget'!$AS$24 -> 0.005702042144 | KT2: =SpecialAssessmentRisk(MAX('Summary Budget'!AS23,0)) -> 0.005702042144 | KU2: ='Summary Budget'!$AT$24 -> 0.005420453678 | KV2: =SpecialAssessmentRisk(MAX('Summary Budget'!AT23,0)) -> 0.005420453678 | KW2: ='Summary Budget'!$AU$24 -> 0.003585164799 | KX2: =SpecialAssessmentRisk(MAX('Summary Budget'!AU23,0)) -> 0.003585164799 | KY2: ='Summary Budget'!$AV$24 -> 0.002916781436 | KZ2: =SpecialAssessmentRisk(MAX('Summary Budget'!AV23,0)) -> 0.002916781436 | LA2: ='Summary Budget'!$AW$24 -> 0.002870858084 | LB2: =SpecialAssessmentRisk(MAX('Summary Budget'!AW23,0)) -> 0.002870858084 | LC2: ='Summary Budget'!$AX$24 -> 0.002280991106 | LD2: =SpecialAssessmentRisk(MAX('Summary Budget'!AX23,0)) -> 0.002280991106 | LE2: ='Summary Budget'!$AY$24 -> 0.00234048956 | LF2: =SpecialAssessmentRisk(MAX('Summary Budget'!AY23,0)) -> 0.00234048956 | LG2: ='Summary Budget'!$AZ$24 -> 0.001522020139 | LH2: =SpecialAssessmentRisk(MAX('Summary Budget'!AZ23,0)) -> 0.001522020139 | LI2: ='Summary Budget'!$BA$24 -> 0.001212883487 | LJ2: =SpecialAssessmentRisk(MAX('Summary Budget'!BA23,0)) -> 0.001212883487 | LK2: ='Summary Budget'!$BB$24 -> 0.001394567533 | LL2: =SpecialAssessmentRisk(MAX('Summary Budget'!BB23,0)) -> 0.001394567533 | LM2: ='Summary Budget'!$BC$24 -> 0.001532690358 | LN2: =SpecialAssessmentRisk(MAX('Summary Budget'!BC23,0)) -> 0.001532690358 | LO2: ='Summary Budget'!$BD$24 -> 0.001655139677 | LP2: =SpecialAssessmentRisk(MAX('Summary Budget'!BD23,0)) -> 0.001655139677 | LQ2: ='Summary Budget'!$BE$24 -> 0.001274414031 | LR2: =SpecialAssessmentRisk(MAX('Summary Budget'!BE23,0)) -> 0.001274414031 | LS2: ='Summary Budget'!$BF$24 -> 0.00123176031 | LT2: =SpecialAssessmentRisk(MAX('Summary Budget'!BF23,0)) -> 0.00123176031 | LU2: ='Summary Budget'!$BG$24 -> 0.001436256961 | LV2: =SpecialAssessmentRisk(MAX('Summary Budget'!BG23,0)) -> 0.001436256961 | LW2: ='Summary Budget'!$BH$24 -> 0.0009734573845 | LX2: =SpecialAssessmentRisk(MAX('Summary Budget'!BH23,0)) -> 0.0009734573845 | LY2: ='NP Growth'!$B$14 -> 2027 | LZ2: =_xll.RiskOutput()+MAX('NP Growth'!K14:BH14) -> 2027 | MA2: ='NP Growth'!$B$16 -> 0 | MB2: =_xll.RiskOutput()+MIN('NP Growth'!K16:BH16) -> 0 | MC2: ='Annual Maintenance'!$E$7 -> 36 | MD2: =RiskValStatic([0]!MaintPersonHrs*[0]!MaintenancePersonPercent)+_xll.RiskUniform([0]!MaintPersonHrs*[0]!MaintenancePersonPercent,[0]!MaintPersonHrs*[0]!MaintenancePersonPercent*1.25,_xll.RiskStatic([0]!MaintPersonHrs*[0]!MaintenancePersonPercent)) ->  | ME2: ='Annual Maintenance'!$E$14 -> 4 | MF2: =RiskValStatic(4)+_xll.RiskUniform([0]!UnskilledLaborHrs*0.75,[0]!UnskilledLaborHrs*1.25) ->  | MG2: ='Annual Maintenance'!$E$21 -> 36 | MH2: =RiskValStatic(36)+_xll.RiskUniform([0]!SnowPlowPersonHours*0.75,[0]!SnowPlowPersonHours*1.25) ->  | MI2: ='Reserve Expenses'!$H$7 -> 3400 | MJ2: =IF([0]!ReserveCostOption="Constant",AVERAGE('Reserve Expenses'!F7:G7),RiskValStatic(3400)+_xll.RiskUniform('Reserve Expenses'!F7,'Reserve Expenses'!G7)) -> 3400 | MK2: ='Reserve Expenses'!$H$8 -> 500 | ML2: =IF([0]!ReserveCostOption="Constant",AVERAGE('Reserve Expenses'!F8:G8),RiskValStatic(500)+_xll.RiskUniform('Reserve Expenses'!F8,'Reserve Expenses'!G8)) -> 500 | MM2: ='Reserve Expenses'!$H$9 -> 750 | MN2: =IF([0]!ReserveCostOption="Constant",AVERAGE('Reserve Expenses'!F9:G9),RiskValStatic(750)+_xll.RiskUniform('Reserve Expenses'!F9,'Reserve Expenses'!G9)) -> 750 | MO2: ='Reserve Expenses'!$H$11 -> 2000 | MP2: =IF([0]!ReserveCostOption="Constant",AVERAGE('Reserve Expenses'!F11:G11),RiskValStatic(2000)+_xll.RiskUniform('Reserve Expenses'!F11,'Reserve Expenses'!G11)) -> 2000 | MQ2: ='Reserve Expenses'!$H$12 -> 0 | MR2: =IF([0]!AvenidaAlegraOwnership="NP/VDM",IF([0]!ReserveCostOption="Constant",AVERAGE('Reserve Expenses'!F12:G12),RiskValStatic(32227.33707)+_xll.RiskUniform('Reserve Expenses'!F12,'Reserve Expenses'!G12)),0) -> 0 | MS2: ='Reserve Expenses'!$H$13 -> 0 | MT2: =IF([0]!AvenidaAlegraOwnership="NP/VDM",IF([0]!ReserveCostOption="Constant",AVERAGE('Reserve Expenses'!F13:G13),RiskValStatic(4086.028385)+_xll.RiskUniform('Reserve Expenses'!F13,'Reserve Expenses'!G13)),0) -> 0 | MU2: ='Reserve Expenses'!$H$14 -> 0 | MV2: =IF([0]!AvenidaAlegraOwnership="NP/VDM",IF([0]!ReserveCostOption="Constant",AVERAGE('Reserve Expenses'!F14:G14),RiskValStatic(168.5268184)+_xll.RiskUniform('Reserve Expenses'!F14,'Reserve Expenses'!G14)),0) -> 0 | MW2: ='Reserve Expenses'!$H$15 -> 259878.3384 | MX2: =IF([0]!RoadOwnership="NP",IF([0]!ReserveCostOption="Constant",AVERAGE('Reserve Expenses'!F15:G15),RiskValStatic(259878.3384)+_xll.RiskUniform('Reserve Expenses'!F15,'Reserve Expenses'!G15)),0) -> 259878.3384 | MY2: ='Reserve Expenses'!$H$16 -> 32949.36424 | MZ2: =IF([0]!RoadOwnership="NP",IF([0]!ReserveCostOption="Constant",AVERAGE('Reserve Expenses'!F16:G16),RiskValStatic(32949.36424)+_xll.RiskUniform('Reserve Expenses'!F16,'Reserve Expenses'!G16)),0) -> 32949.36424 | NA2: ='Reserve Expenses'!$H$17 -> 1358.985058 | NB2: =IF([0]!RoadOwnership="NP",IF([0]!ReserveCostOption="Constant",AVERAGE('Reserve Expenses'!F17:G17),RiskValStatic(1358.985058)+_xll.RiskUniform('Reserve Expenses'!F17,'Reserve Expenses'!G17)),0) -> 1358.985058 | NC2: ='Reserve Expenses'!$H$18 -> 74708.66162 | ND2: =IF([0]!RoadOwnership="NP",IF([0]!ReserveCostOption="Constant",AVERAGE('Reserve Expenses'!F18:G18),RiskValStatic(74708.66162)+_xll.RiskUniform('Reserve Expenses'!F18,'Reserve Expenses'!G18)),0) -> 74708.66162 | NE2: ='Reserve Expenses'!$H$19 -> 9472.135765 | NF2: =IF([0]!RoadOwnership="NP",IF([0]!ReserveCostOption="Constant",AVERAGE('Reserve Expenses'!F19:G19),RiskValStatic(9472.135765)+_xll.RiskUniform('Reserve Expenses'!F19,'Reserve Expenses'!G19)),0) -> 9472.135765 | NG2: ='Reserve Expenses'!$H$20 -> 390.6749422 | NH2: =IF([0]!RoadOwnership="NP",IF([0]!ReserveCostOption="Constant",AVERAGE('Reserve Expenses'!F20:G20),RiskValStatic(390.6749422)+_xll.RiskUniform('Reserve Expenses'!F20,'Reserve Expenses'!G20)),0) -> 390.6749422 | NI2: ='Reserve Expenses'!$H$21 -> 36445.3624 | NJ2: =IF([0]!RoadOwnership="NP",IF([0]!ReserveCostOption="Constant",AVERAGE('Reserve Expenses'!F21:G21),RiskValStatic(36445.3624)+_xll.RiskUniform('Reserve Expenses'!F21,'Reserve Expenses'!G21)),0) -> 36445.3624 | NK2: ='Reserve Expenses'!$H$22 -> 4620.821913 | NL2: =IF([0]!RoadOwnership="NP",IF([0]!ReserveCostOption="Constant",AVERAGE('Reserve Expenses'!F22:G22),RiskValStatic(4620.821913)+_xll.RiskUniform('Reserve Expenses'!F22,'Reserve Expenses'!G22)),0) -> 4620.821913 | NM2: ='Reserve Expenses'!$H$23 -> 190.5841912 | NN2: =IF([0]!RoadOwnership="NP",IF([0]!ReserveCostOption="Constant",AVERAGE('Reserve Expenses'!F23:G23),RiskValStatic(190.5841912)+_xll.RiskUniform('Reserve Expenses'!F23,'Reserve Expenses'!G23)),0) -> 190.5841912 | NO2: ='Reserve Expenses'!$H$24 -> 35960.74079 | NP2: =IF([0]!RoadOwnership="NP",IF([0]!ReserveCostOption="Constant",AVERAGE('Reserve Expenses'!F24:G24),RiskValStatic(35960.74079)+_xll.RiskUniform('Reserve Expenses'!F24,'Reserve Expenses'!G24)),0) -> 35960.74079 | NQ2: ='Reserve Expenses'!$H$25 -> 4559.377877 | NR2: =IF([0]!RoadOwnership="NP",IF([0]!ReserveCostOption="Constant",AVERAGE('Reserve Expenses'!F25:G25),RiskValStatic(4559.377877)+_xll.RiskUniform('Reserve Expenses'!F25,'Reserve Expenses'!G25)),0) -> 4559.377877 | NS2: ='Reserve Expenses'!$H$26 -> 188.0499533 | NT2: =IF([0]!RoadOwnership="NP",IF([0]!ReserveCostOption="Constant",AVERAGE('Reserve Expenses'!F26:G26),RiskValStatic(188.0499533)+_xll.RiskUniform('Reserve Expenses'!F26,'Reserve Expenses'!G26)),0) -> 188.0499533 | NU2: ='Reserve Expenses'!$H$27 -> 42360.16916 | NV2: =IF([0]!RoadOwnership="NP",IF([0]!ReserveCostOption="Constant",AVERAGE('Reserve Expenses'!F27:G27),RiskValStatic(42360.16916)+_xll.RiskUniform('Reserve Expenses'!F27,'Reserve Expenses'!G27)),0) -> 42360.16916 | NW2: ='Reserve Expenses'!$H$28 -> 5370.74637 | NX2: =IF([0]!RoadOwnership="NP",IF([0]!ReserveCostOption="Constant",AVERAGE('Reserve Expenses'!F28:G28),RiskValStatic(5370.74637)+_xll.RiskUniform('Reserve Expenses'!F28,'Reserve Expenses'!G28)),0) -> 5370.74637 | NY2: ='Reserve Expenses'!$H$29 -> 221.5145644 | NZ2: =IF([0]!RoadOwnership="NP",IF([0]!ReserveCostOption="Constant",AVERAGE('Reserve Expenses'!F29:G29),RiskValStatic(221.5145644)+_xll.RiskUniform('Reserve Expenses'!F29,'Reserve Expenses'!G29)),0) -> 221.5145644 | OA2: ='Reserve Expenses'!$H$30 -> 8000 | OB2: =IF([0]!ReserveCostOption="Constant",AVERAGE('Reserve Expenses'!F30:G30),RiskValStatic(8000)+_xll.RiskUniform('Reserve Expenses'!F30,'Reserve Expenses'!G30)) -> 8000 | OC2: ='Reserve Expenses'!$H$31 -> 1250 | OD2: =IF([0]!ReserveCostOption="Constant",AVERAGE('Reserve Expenses'!F31:G31),RiskValStatic(1250)+_xll.RiskUniform('Reserve Expenses'!F31,'Reserve Expenses'!G31)) -> 1250 | OE2: ='Reserve Expenses'!$H$32 -> 8000 | OF2: =IF([0]!ReserveCostOption="Constant",AVERAGE('Reserve Expenses'!F32:G32),RiskValStatic(8000)+_xll.RiskUniform('Reserve Expenses'!F32,'Reserve Expenses'!G32)) -> 8000 | OG2: ='Reserve Expenses'!$H$33 -> 1250 | OH2: =IF([0]!ReserveCostOption="Constant",AVERAGE('Reserve Expenses'!F33:G33),RiskValStatic(1250)+_xll.RiskUniform('Reserve Expenses'!F33,'Reserve Expenses'!G33)) -> 1250 | OI2: ='Reserve Expenses'!$H$34 -> 18000 | OJ2: =IF([0]!ReserveCostOption="Constant",AVERAGE('Reserve Expenses'!F34:G34),RiskValStatic(18000)+_xll.RiskUniform('Reserve Expenses'!F34,'Reserve Expenses'!G34)) -> 18000 | OK2: ='Reserve Expenses'!$H$35 -> 1250 | OL2: =IF([0]!ReserveCostOption="Constant",AVERAGE('Reserve Expenses'!F35:G35),RiskValStatic(1250)+_xll.RiskUniform('Reserve Expenses'!F35,'Reserve Expenses'!G35)) -> 1250 | OM2: ='Reserve Expenses'!$H$36 -> 10000 | ON2: =IF([0]!ReserveCostOption="Constant",AVERAGE('Reserve Expenses'!F36:G36),RiskValStatic(10000)+_xll.RiskUniform('Reserve Expenses'!F36,'Reserve Expenses'!G36)) -> 10000 | OO2: ='Reserve Expenses'!$H$37 -> 3500 | OP2: =IF([0]!ReserveCostOption="Constant",AVERAGE('Reserve Expenses'!F37:G37),RiskValStatic(3500)+_xll.RiskUniform('Reserve Expenses'!F37,'Reserve Expenses'!G37)) -> 3500 | OQ2: ='Reserve Expenses'!$H$38 -> 14800 | OR2: =IF([0]!ReserveCostOption="Constant",AVERAGE('Reserve Expenses'!F38:G38),RiskValStatic(14800)+_xll.RiskUniform('Reserve Expenses'!F38,'Reserve Expenses'!G38)) -> 14800 | OS2: ='Reserve Expenses'!$H$39 -> 12000 | OT2: =IF([0]!ReserveCostOption="Constant",AVERAGE('Reserve Expenses'!F39:G39),RiskValStatic(12000)+_xll.RiskUniform('Reserve Expenses'!F39,'Reserve Expenses'!G39)) -> 12000 | OU2: ='Reserve Expenses'!$H$41 -> 9000 | OV2: =IF([0]!ReserveCostOption="Constant",AVERAGE('Reserve Expenses'!F41:G41),RiskValStatic(9000)+_xll.RiskUniform('Reserve Expenses'!F41,'Reserve Expenses'!G41)) -> 9000 | OW2: ='Reserve Expenses'!$H$42 -> 2000 | OX2: =IF([0]!ReserveCostOption="Constant",AVERAGE('Reserve Expenses'!F42:G42),RiskValStatic(2000)+_xll.RiskUniform('Reserve Expenses'!F42,'Reserve Expenses'!G42)) -> 2000 | OY2: ='Reserve Expenses'!$H$43 -> 275 | OZ2: =IF([0]!ReserveCostOption="Constant",AVERAGE('Reserve Expenses'!F43:G43),RiskValStatic(275)+_xll.RiskUniform('Reserve Expenses'!F43,'Reserve Expenses'!G43)) -> 275 | PA2: ='Reserve Expenses'!$H$44 -> 1800 | PB2: =IF([0]!ReserveCostOption="Constant",AVERAGE('Reserve Expenses'!F44:G44),RiskValStatic(1800)+_xll.RiskUniform('Reserve Expenses'!F44,'Reserve Expenses'!G44)) -> 1800 | PC2: ='Reserve Expenses'!$H$45 -> 1500 | PD2: =IF([0]!ReserveCostOption="Constant",AVERAGE('Reserve Expenses'!F45:G45),RiskValStatic(1500)+_xll.RiskUniform('Reserve Expenses'!F45,'Reserve Expenses'!G45)) -> 1500 | PE2: ='Reserve Expenses'!$H$46 -> 11500 | PF2: =IF([0]!ReserveCostOption="Constant",AVERAGE('Reserve Expenses'!F46:G46),RiskValStatic(11500)+_xll.RiskUniform('Reserve Expenses'!F46,'Reserve Expenses'!G46)) -> 11500 | PG2: ='Reserve Expenses'!$H$47 -> 4000 | PH2: =IF([0]!ReserveCostOption="Constant",AVERAGE('Reserve Expenses'!F47:G47),RiskValStatic(4000)+_xll.RiskUniform('Reserve Expenses'!F47,'Reserve Expenses'!G47)) -> 4000 | PI2: ='Reserve Expenses'!$H$48 -> 1800 | PJ2: =IF([0]!ReserveCostOption="Constant",AVERAGE('Reserve Expenses'!F48:G48),RiskValStatic(1800)+_xll.RiskUniform('Reserve Expenses'!F48,'Reserve Expenses'!G48)) -> 1800 | PK2: ='Reserve Expenses'!$H$49 -> 3000 | PL2: =IF([0]!ReserveCostOption="Constant",AVERAGE('Reserve Expenses'!F49:G49),RiskValStatic(3000)+_xll.RiskUniform('Reserve Expenses'!F49,'Reserve Expenses'!G49)) -> 3000 | PM2: ='Reserve Expenses'!$H$50 -> 2300 | PN2: =IF([0]!ReserveCostOption="Constant",AVERAGE('Reserve Expenses'!F50:G50),RiskValStatic(2300)+_xll.RiskUniform('Reserve Expenses'!F50,'Reserve Expenses'!G50)) -> 2300 | PO2: ='Reserve Expenses'!$H$51 -> 2500 | PP2: =IF([0]!ReserveCostOption="Constant",AVERAGE('Reserve Expenses'!F51:G51),RiskValStatic(2500)+_xll.RiskUniform('Reserve Expenses'!F51,'Reserve Expenses'!G51)) -> 2500 | PQ2: ='Reserve Expenses'!$H$52 -> 14500 | PR2: =IF([0]!ReserveCostOption="Constant",AVERAGE('Reserve Expenses'!F52:G52),RiskValStatic(14500)+_xll.RiskUniform('Reserve Expenses'!F52,'Reserve Expenses'!G52)) -> 14500 | PS2: ='Reserve Expenses'!$H$53 -> 45000 | PT2: =IF([0]!ReserveCostOption="Constant",AVERAGE('Reserve Expenses'!F53:G53),RiskValStatic(45000)+_xll.RiskUniform('Reserve Expenses'!F53,'Reserve Expenses'!G53)) -> 45000 | PU2: ='Reserve Expenses'!$H$54 -> 9300 | PV2: =IF([0]!ReserveCostOption="Constant",AVERAGE('Reserve Expenses'!F54:G54),RiskValStatic(9300)+_xll.RiskUniform('Reserve Expenses'!F54,'Reserve Expenses'!G54)) -> 9300 | PW2: ='Reserve Expenses'!$H$55 -> 3500 | PX2: =IF([0]!ReserveCostOption="Constant",AVERAGE('Reserve Expenses'!F55:G55),RiskValStatic(3500)+_xll.RiskUniform('Reserve Expenses'!F55,'Reserve Expenses'!G55)) -> 3500 | PY2: ='Reserve Expenses'!$H$56 -> 30000 | PZ2: =IF([0]!ReserveCostOption="Constant",AVERAGE('Reserve Expenses'!F56:G56),RiskValStatic(30000)+_xll.RiskUniform('Reserve Expenses'!F56,'Reserve Expenses'!G56)) -> 30000 | QA2: ='Reserve Expenses'!$H$57 -> 3600 | QB2: =IF([0]!ReserveCostOption="Constant",AVERAGE('Reserve Expenses'!F57:G57),RiskValStatic(3600)+_xll.RiskUniform('Reserve Expenses'!F57,'Reserve Expenses'!G57)) -> 3600 | QC2: ='Reserve Expenses'!$H$58 -> 15000 | QD2: =IF([0]!ReserveCostOption="Constant",AVERAGE('Reserve Expenses'!F58:G58),RiskValStatic(15000)+_xll.RiskUniform('Reserve Expenses'!F58,'Reserve Expenses'!G58)) -> 15000 | QE2: ='Reserve Expenses'!$H$59 -> 52500 | QF2: =IF([0]!ReserveCostOption="Constant",AVERAGE('Reserve Expenses'!F59:G59),RiskValStatic(52500)+_xll.RiskUniform('Reserve Expenses'!F59,'Reserve Expenses'!G59)) -> 52500 | QG2: ='Reserve Expenses'!$H$60 -> 6500 | QH2: =IF([0]!ReserveCostOption="Constant",AVERAGE('Reserve Expenses'!F60:G60),RiskValStatic(6500)+_xll.RiskUniform('Reserve Expenses'!F60,'Reserve Expenses'!G60)) -> 6500 | QI2: ='Reserve Expenses'!$H$61 -> 10000 | QJ2: =IF([0]!ReserveCostOption="Constant",AVERAGE('Reserve Expenses'!F61:G61),RiskValStatic(10000)+_xll.RiskUniform('Reserve Expenses'!F61,'Reserve Expenses'!G61)) -> 10000 | QK2: ='Reserve Expenses'!$H$62 -> 52500 | QL2: =IF([0]!ReserveCostOption="Constant",AVERAGE('Reserve Expenses'!F62:G62),RiskValStatic(52500)+_xll.RiskUniform('Reserve Expenses'!F62,'Reserve Expenses'!G62)) -> 52500 | QM2: ='Reserve Expenses'!$H$63 -> 40000 | QN2: =IF([0]!ReserveCostOption="Constant",AVERAGE('Reserve Expenses'!F63:G63),RiskValStatic(40000)+_xll.RiskUniform('Reserve Expenses'!F63,'Reserve Expenses'!G63)) -> 40000 | QO2: ='Reserve Expenses'!$H$64 -> 19500 | QP2: =IF([0]!ReserveCostOption="Constant",AVERAGE('Reserve Expenses'!F64:G64),RiskValStatic(19500)+_xll.RiskUniform('Reserve Expenses'!F64,'Reserve Expenses'!G64)) -> 19500 | QQ2: ='Reserve Expenses'!$H$65 -> 12500 | QR2: =IF([0]!ReserveCostOption="Constant",AVERAGE('Reserve Expenses'!F65:G65),RiskValStatic(12500)+_xll.RiskUniform('Reserve Expenses'!F65,'Reserve Expenses'!G65)) -> 12500 | QS2: ='Reserve Expenses'!$H$66 -> 4500 | QT2: =IF([0]!ReserveCostOption="Constant",AVERAGE('Reserve Expenses'!F66:G66),RiskValStatic(4500)+_xll.RiskUniform('Reserve Expenses'!F66,'Reserve Expenses'!G66)) -> 4500 | QU2: ='Reserve Expenses'!$H$67 -> 3500 | QV2: =IF([0]!ReserveCostOption="Constant",AVERAGE('Reserve Expenses'!F67:G67),RiskValStatic(3500)+_xll.RiskUniform('Reserve Expenses'!F67,'Reserve Expenses'!G67)) -> 3500 | QW2: ='Reserve Expenses'!$H$68 -> 17000 | QX2: =IF([0]!ReserveCostOption="Constant",AVERAGE('Reserve Expenses'!F68:G68),RiskValStatic(17000)+_xll.RiskUniform('Reserve Expenses'!F68,'Reserve Expenses'!G68)) -> 17000 | QY2: ='Reserve Expenses'!$H$69 -> 19592 | QZ2: =IF([0]!ReserveCostOption="Constant",AVERAGE('Reserve Expenses'!F69:G69),RiskValStatic(19592)+_xll.RiskUniform('Reserve Expenses'!F69,'Reserve Expenses'!G69)) -> 19592 | RA2: ='Reserve Expenses'!$H$70 -> 33833.5 | RB2: =IF([0]!ReserveCostOption="Constant",AVERAGE('Reserve Expenses'!F70:G70),RiskValStatic(33833.5)+_xll.RiskUniform('Reserve Expenses'!F70,'Reserve Expenses'!G70)) -> 33833.5 | RC2: ='Reserve Expenses'!$H$71 -> 2700 | RD2: =IF([0]!ReserveCostOption="Constant",AVERAGE('Reserve Expenses'!F71:G71),RiskValStatic(2700)+_xll.RiskUniform('Reserve Expenses'!F71,'Reserve Expenses'!G71)) -> 2700 | RE2: ='Reserve Expenses'!$H$72 -> 1500 | RF2: =IF([0]!ReserveCostOption="Constant",AVERAGE('Reserve Expenses'!F72:G72),RiskValStatic(1500)+_xll.RiskUniform('Reserve Expenses'!F72,'Reserve Expenses'!G72)) -> 1500 | RG2: ='Reserve Expenses'!$H$73 -> 7000 | RH2: =IF([0]!ReserveCostOption="Constant",AVERAGE('Reserve Expenses'!F73:G73),RiskValStatic(7000)+_xll.RiskUniform('Reserve Expenses'!F73,'Reserve Expenses'!G73)) -> 7000 | RI2: ='Reserve Expenses'!$H$74 -> 11000 | RJ2: =IF([0]!ReserveCostOption="Constant",AVERAGE('Reserve Expenses'!F74:G74),RiskValStatic(11000)+_xll.RiskUniform('Reserve Expenses'!F74,'Reserve Expenses'!G74)) -> 11000 | RK2: ='Reserve Expenses'!$H$75 -> 10500 | RL2: =IF([0]!ReserveCostOption="Constant",AVERAGE('Reserve Expenses'!F75:G75),RiskValStatic(10500)+_xll.RiskUniform('Reserve Expenses'!F75,'Reserve Expenses'!G75)) -> 10500 | RM2: ='Reserve Expenses'!$H$76 -> 3500 | RN2: =IF([0]!ReserveCostOption="Constant",AVERAGE('Reserve Expenses'!F76:G76),RiskValStatic(3500)+_xll.RiskUniform('Reserve Expenses'!F76,'Reserve Expenses'!G76)) -> 3500 | RO2: ='Reserve Expenses'!$H$77 -> 24000 | RP2: =IF([0]!ReserveCostOption="Constant",AVERAGE('Reserve Expenses'!F77:G77),RiskValStatic(24000)+_xll.RiskUniform('Reserve Expenses'!F77,'Reserve Expenses'!G77)) -> 24000 | RQ2: ='Reserve Expenses'!$H$78 -> 30000 | RR2: =IF([0]!ReserveCostOption="Constant",AVERAGE('Reserve Expenses'!F78:G78),RiskValStatic(30000)+_xll.RiskUniform('Reserve Expenses'!F78,'Reserve Expenses'!G78)) -> 30000 | RS2: ='Reserve Expenses'!$H$79 -> 1000 | RT2: =IF([0]!ReserveCostOption="Constant",AVERAGE('Reserve Expenses'!F79:G79),RiskValStatic(1000)+_xll.RiskUniform('Reserve Expenses'!F79,'Reserve Expenses'!G79)) -> 1000 | RU2: ='Reserve Expenses'!$H$80 -> 12500 | RV2: =IF([0]!ReserveCostOption="Constant",AVERAGE('Reserve Expenses'!F80:G80),RiskValStatic(12500)+_xll.RiskUniform('Reserve Expenses'!F80,'Reserve Expenses'!G80)) -> 12500 | RW2: ='Reserve Expenses'!$H$81 -> 22500 | RX2: =IF([0]!ReserveCostOption="Constant",AVERAGE('Reserve Expenses'!F81:G81),RiskValStatic(22500)+_xll.RiskUniform('Reserve Expenses'!F81,'Reserve Expenses'!G81)) -> 22500 | RY2: ='Reserve Expenses'!$H$82 -> 15000 | RZ2: =IF([0]!ReserveCostOption="Constant",AVERAGE('Reserve Expenses'!F82:G82),RiskValStatic(15000)+_xll.RiskUniform('Reserve Expenses'!F82,'Reserve Expenses'!G82)) -> 15000 | SA2: ='Reserve Expenses'!$H$83 -> 4500 | SB2: =IF([0]!ReserveCostOption="Constant",AVERAGE('Reserve Expenses'!F83:G83),RiskValStatic(4500)+_xll.RiskUniform('Reserve Expenses'!F83,'Reserve Expenses'!G83)) -> 4500 | SC2: ='Reserve Expenses'!$H$84 -> 1000 | SD2: =IF([0]!ReserveCostOption="Constant",AVERAGE('Reserve Expenses'!F84:G84),RiskValStatic(1000)+_xll.RiskUniform('Reserve Expenses'!F84,'Reserve Expenses'!G84)) -> 1000 | SE2: ='Reserve Expenses'!$H$85 -> 3300 | SF2: =IF([0]!ReserveCostOption="Constant",AVERAGE('Reserve Expenses'!F85:G85),RiskValStatic(3300)+_xll.RiskUniform('Reserve Expenses'!F85,'Reserve Expenses'!G85)) -> 3300 | SG2: ='Reserve Expenses'!$H$86 -> 1500 | SH2: =IF([0]!ReserveCostOption="Constant",AVERAGE('Reserve Expenses'!F86:G86),RiskValStatic(1500)+_xll.RiskUniform('Reserve Expenses'!F86,'Reserve Expenses'!G86)) -> 1500 | SI2: ='Reserve Expenses'!$H$87 -> 9500 | SJ2: =IF([0]!ReserveCostOption="Constant",AVERAGE('Reserve Expenses'!F87:G87),RiskValStatic(9500)+_xll.RiskUniform('Reserve Expenses'!F87,'Reserve Expenses'!G87)) -> 9500 | SK2: ='Reserve Expenses'!$H$88 -> 2800 | SL2: =IF([0]!ReserveCostOption="Constant",AVERAGE('Reserve Expenses'!F88:G88),RiskValStatic(2800)+_xll.RiskUniform('Reserve Expenses'!F88,'Reserve Expenses'!G88)) -> 2800 | SM2: ='Reserve Expenses'!$H$89 -> 3300 | SN2: =IF([0]!ReserveCostOption="Constant",AVERAGE('Reserve Expenses'!F89:G89),RiskValStatic(3300)+_xll.RiskUniform('Reserve Expenses'!F89,'Reserve Expenses'!G89)) -> 3300 | SO2: ='Reserve Expenses'!$H$90 -> 2500 | SP2: =IF([0]!ReserveCostOption="Constant",AVERAGE('Reserve Expenses'!F90:G90),RiskValStatic(2500)+_xll.RiskUniform('Reserve Expenses'!F90,'Reserve Expenses'!G90)) -> 2500 | SQ2: ='Reserve Expenses'!$H$91 -> 3300 | SR2: =IF([0]!ReserveCostOption="Constant",AVERAGE('Reserve Expenses'!F91:G91),RiskValStatic(3300)+_xll.RiskUniform('Reserve Expenses'!F91,'Reserve Expenses'!G91)) -> 3300 | SS2: ='Reserve Expenses'!$H$92 -> 5000 | ST2: =IF([0]!ReserveCostOption="Constant",AVERAGE('Reserve Expenses'!F92:G92),RiskValStatic(5000)+_xll.RiskUniform('Reserve Expenses'!F92,'Reserve Expenses'!G92)) -> 5000 | SU2: ='Reserve Expenses'!$H$93 -> 1150 | SV2: =IF([0]!ReserveCostOption="Constant",AVERAGE('Reserve Expenses'!F93:G93),RiskValStatic(1150)+_xll.RiskUniform('Reserve Expenses'!F93,'Reserve Expenses'!G93)) -> 1150 | SW2: ='Reserve Expenses'!$H$94 -> 3200 | SX2: =IF([0]!ReserveCostOption="Constant",AVERAGE('Reserve Expenses'!F94:G94),RiskValStatic(3200)+_xll.RiskUniform('Reserve Expenses'!F94,'Reserve Expenses'!G94)) -> 3200 | SY2: ='Reserve Expenses'!$H$95 -> 1200 | SZ2: =IF([0]!ReserveCostOption="Constant",AVERAGE('Reserve Expenses'!F95:G95),RiskValStatic(1200)+_xll.RiskUniform('Reserve Expenses'!F95,'Reserve Expenses'!G95)) -> 1200 | TA2: ='Reserve Expenses'!$H$96 -> 8000 | TB2: =IF([0]!ReserveCostOption="Constant",AVERAGE('Reserve Expenses'!F96:G96),RiskValStatic(8000)+_xll.RiskUniform('Reserve Expenses'!F96,'Reserve Expenses'!G96)) -> 8000 | TC2: ='Reserve Expenses'!$H$97 -> 1750 | TD2: =IF([0]!ReserveCostOption="Constant",AVERAGE('Reserve Expenses'!F97:G97),RiskValStatic(1750)+_xll.RiskUniform('Reserve Expenses'!F97,'Reserve Expenses'!G97)) -> 1750 | TE2: ='Reserve Expenses'!$H$98 -> 5000 | TF2: =IF([0]!ReserveCostOption="Constant",AVERAGE('Reserve Expenses'!F98:G98),RiskValStatic(5000)+_xll.RiskUniform('Reserve Expenses'!F98,'Reserve Expenses'!G98)) -> 5000 | TG2: ='Reserve Expenses'!$H$99 -> 3000 | TH2: =IF([0]!ReserveCostOption="Constant",AVERAGE('Reserve Expenses'!F99:G99),RiskValStatic(3000)+_xll.RiskUniform('Reserve Expenses'!F99,'Reserve Expenses'!G99)) -> 3000 | TI2: ='Reserve Expenses'!$H$100 -> 3000 | TJ2: =IF([0]!ReserveCostOption="Constant",AVERAGE('Reserve Expenses'!F100:G100),RiskValStatic(3000)+_xll.RiskUniform('Reserve Expenses'!F100,'Reserve Expenses'!G100)) -> 3000 | TK2: ='Reserve Expenses'!$H$101 -> 107500 | TL2: =IF([0]!ReserveCostOption="Constant",AVERAGE('Reserve Expenses'!F101:G101),RiskValStatic(107500)+_xll.RiskUniform('Reserve Expenses'!F101,'Reserve Expenses'!G101)) -> 107500 | TM2: ='Reserve Expenses'!$H$102 -> 5300 | TN2: =IF([0]!ReserveCostOption="Constant",AVERAGE('Reserve Expenses'!F102:G102),RiskValStatic(5300)+_xll.RiskUniform('Reserve Expenses'!F102,'Reserve Expenses'!G102)) -> 5300 | TO2: ='Reserve Expenses'!$H$103 -> 13000 | TP2: =IF([0]!ReserveCostOption="Constant",AVERAGE('Reserve Expenses'!F103:G103),RiskValStatic(13000)+_xll.RiskUniform('Reserve Expenses'!F103,'Reserve Expenses'!G103)) -> 13000 | TQ2: ='Reserve Expenses'!$H$104 -> 1200 | TR2: =IF([0]!ReserveCostOption="Constant",AVERAGE('Reserve Expenses'!F104:G104),RiskValStatic(1200)+_xll.RiskUniform('Reserve Expenses'!F104,'Reserve Expenses'!G104)) -> 1200 | TS2: ='Reserve Expenses'!$H$105 -> 2500 | TT2: =IF([0]!ReserveCostOption="Constant",AVERAGE('Reserve Expenses'!F105:G105),RiskValStatic(2500)+_xll.RiskUniform('Reserve Expenses'!F105,'Reserve Expenses'!G105)) -> 2500 | TU2: ='Reserve Expenses'!$H$107 -> 27172.52 | TV2: =IF([0]!RoadOwnership="NP",IF([0]!ReserveCostOption="Constant",AVERAGE('Reserve Expenses'!F107:G107),RiskValStatic(27172.52)+_xll.RiskUniform('Reserve Expenses'!F107,'Reserve Expenses'!G107)),0) -> 27172.52 | TW2: ='Reserve Expenses'!$H$108 -> 3445.14 | TX2: =IF([0]!RoadOwnership="NP",IF([0]!ReserveCostOption="Constant",AVERAGE('Reserve Expenses'!F108:G108),RiskValStatic(3445.14)+_xll.RiskUniform('Reserve Expenses'!F108,'Reserve Expenses'!G108)),0) -> 3445.14 | TY2: ='Reserve Expenses'!$H$109 -> 142.0936 | TZ2: =IF([0]!RoadOwnership="NP",IF([0]!ReserveCostOption="Constant",AVERAGE('Reserve Expenses'!F109:G109),RiskValStatic(142.0936)+_xll.RiskUniform('Reserve Expenses'!F109,'Reserve Expenses'!G109)),0) -> 142.0936 | UA2: ='Reserve Expenses'!$H$110 -> 53000 | UB2: =IF([0]!ReserveCostOption="Constant",AVERAGE('Reserve Expenses'!F110:G110),RiskValStatic(53000)+_xll.RiskUniform('Reserve Expenses'!F110,'Reserve Expenses'!G110)) -> 53000 | UC2: ='Reserve Expenses'!$H$111 -> 75000 | UD2: =IF([0]!ReserveCostOption="Constant",AVERAGE('Reserve Expenses'!F111:G111),RiskValStatic(75000)+_xll.RiskUniform('Reserve Expenses'!F111,'Reserve Expenses'!G111)) -> 75000 | UE2: ='Reserve Expenses'!$H$112 -> 4000 | UF2: =IF([0]!ReserveCostOption="Constant",AVERAGE('Reserve Expenses'!F112:G112),RiskValStatic(4000)+_xll.RiskUniform('Reserve Expenses'!F112,'Reserve Expenses'!G112)) -> 4000 | UG2: ='Reserve Expenses'!$H$113 -> 26500 | UH2: =IF([0]!ReserveCostOption="Constant",AVERAGE('Reserve Expenses'!F113:G113),RiskValStatic(26500)+_xll.RiskUniform('Reserve Expenses'!F113,'Reserve Expenses'!G113)) -> 26500 | UI2: ='Reserve Expenses'!$H$114 -> 3500 | UJ2: =IF([0]!ReserveCostOption="Constant",AVERAGE('Reserve Expenses'!F114:G114),RiskValStatic(3500)+_xll.RiskUniform('Reserve Expenses'!F114,'Reserve Expenses'!G114)) -> 3500 | UK2: ='Reserve Expenses'!$H$115 -> 25000 | UL2: =IF([0]!ReserveCostOption="Constant",AVERAGE('Reserve Expenses'!F115:G115),RiskValStatic(25000)+_xll.RiskUniform('Reserve Expenses'!F115,'Reserve Expenses'!G115)) -> 25000 | UM2: ='Reserve Expenses'!$H$116 -> 600 | UN2: =IF([0]!ReserveCostOption="Constant",AVERAGE('Reserve Expenses'!F116:G116),RiskValStatic(600)+_xll.RiskUniform('Reserve Expenses'!F116,'Reserve Expenses'!G116)) -> 600 | UO2: ='Reserve Expenses'!$H$117 -> 1600 | UP2: =IF([0]!ReserveCostOption="Constant",AVERAGE('Reserve Expenses'!F117:G117),RiskValStatic(1600)+_xll.RiskUniform('Reserve Expenses'!F117,'Reserve Expenses'!G117)) -> 1600 | UQ2: ='Reserve Expenses'!$H$118 -> 35000 | UR2: =IF([0]!ReserveCostOption="Constant",AVERAGE('Reserve Expenses'!F118:G118),RiskValStatic(35000)+_xll.RiskUniform('Reserve Expenses'!F118,'Reserve Expenses'!G118)) -> 35000 | US2: ='Reserve Expenses'!$H$119 -> 5000 | UT2: =IF([0]!ReserveCostOption="Constant",AVERAGE('Reserve Expenses'!F119:G119),RiskValStatic(5000)+_xll.RiskUniform('Reserve Expenses'!F119,'Reserve Expenses'!G119)) -> 5000 | UU2: ='Reserve Expenses'!$H$120 -> 6000 | UV2: =IF([0]!ReserveCostOption="Constant",AVERAGE('Reserve Expenses'!F120:G120),RiskValStatic(6000)+_xll.RiskUniform('Reserve Expenses'!F120,'Reserve Expenses'!G120)) -> 6000 | UW2: ='Reserve Expenses'!$H$121 -> 2000 | UX2: =IF([0]!ReserveCostOption="Constant",AVERAGE('Reserve Expenses'!F121:G121),RiskValStatic(2000)+_xll.RiskUniform('Reserve Expenses'!F121,'Reserve Expenses'!G121)) -> 2000 | UY2: ='Reserve Expenses'!$H$122 -> 13500 | UZ2: =IF([0]!ReserveCostOption="Constant",AVERAGE('Reserve Expenses'!F122:G122),RiskValStatic(13500)+_xll.RiskUniform('Reserve Expenses'!F122,'Reserve Expenses'!G122)) -> 13500 | VA2: ='Reserve Expenses'!$H$123 -> 7000 | VB2: =IF([0]!ReserveCostOption="Constant",AVERAGE('Reserve Expenses'!F123:G123),RiskValStatic(7000)+_xll.RiskUniform('Reserve Expenses'!F123,'Reserve Expenses'!G123)) -> 7000 | VC2: ='Reserve Expenses'!$H$124 -> 12000 | VD2: =IF([0]!ReserveCostOption="Constant",AVERAGE('Reserve Expenses'!F124:G124),RiskValStatic(12000)+_xll.RiskUniform('Reserve Expenses'!F124,'Reserve Expenses'!G124)) -> 12000 | VE2: ='Reserve Expenses'!$H$125 -> 1050 | VF2: =IF([0]!ReserveCostOption="Constant",AVERAGE('Reserve Expenses'!F125:G125),RiskValStatic(1050)+_xll.RiskUniform('Reserve Expenses'!F125,'Reserve Expenses'!G125)) -> 1050 | VG2: ='Reserve Expenses'!$H$126 -> 1050 | VH2: =IF([0]!ReserveCostOption="Constant",AVERAGE('Reserve Expenses'!F126:G126),RiskValStatic(1050)+_xll.RiskUniform('Reserve Expenses'!F126,'Reserve Expenses'!G126)) -> 1050 | VI2: ='Reserve Expenses'!$H$127 -> 9000 | VJ2: =IF([0]!ReserveCostOption="Constant",AVERAGE('Reserve Expenses'!F127:G127),RiskValStatic(9000)+_xll.RiskUniform('Reserve Expenses'!F127,'Reserve Expenses'!G127)) -> 9000 | VK2: ='Reserve Expenses'!$H$128 -> 7000 | VL2: =IF([0]!ReserveCostOption="Constant",AVERAGE('Reserve Expenses'!F128:G128),RiskValStatic(7000)+_xll.RiskUniform('Reserve Expenses'!F128,'Reserve Expenses'!G128)) -> 7000 | VM2: ='Reserve Expenses'!$H$129 -> 6500 | VN2: =IF([0]!ReserveCostOption="Constant",AVERAGE('Reserve Expenses'!F129:G129),RiskValStatic(6500)+_xll.RiskUniform('Reserve Expenses'!F129,'Reserve Expenses'!G129)) -> 6500 | VO2: ='Reserve Expenses'!$H$130 -> 7000 | VP2: =IF([0]!ReserveCostOption="Constant",AVERAGE('Reserve Expenses'!F130:G130),RiskValStatic(7000)+_xll.RiskUniform('Reserve Expenses'!F130,'Reserve Expenses'!G130)) -> 7000 | VQ2: ='Reserve Expenses'!$H$131 -> 1800 | VR2: =IF([0]!ReserveCostOption="Constant",AVERAGE('Reserve Expenses'!F131:G131),RiskValStatic(1800)+_xll.RiskUniform('Reserve Expenses'!F131,'Reserve Expenses'!G131)) -> 1800 | VS2: ='Reserve Expenses'!$H$132 -> 7000 | VT2: =IF([0]!ReserveCostOption="Constant",AVERAGE('Reserve Expenses'!F132:G132),RiskValStatic(7000)+_xll.RiskUniform('Reserve Expenses'!F132,'Reserve Expenses'!G132)) -> 7000 | VU2: ='Reserve Expenses'!$H$133 -> 1000 | VV2: =IF([0]!ReserveCostOption="Constant",AVERAGE('Reserve Expenses'!F133:G133),RiskValStatic(1000)+_xll.RiskUniform('Reserve Expenses'!F133,'Reserve Expenses'!G133)) -> 1000 | VW2: ='Reserve Expenses'!$H$134 -> 1800 | VX2: =IF([0]!ReserveCostOption="Constant",AVERAGE('Reserve Expenses'!F134:G134),RiskValStatic(1800)+_xll.RiskUniform('Reserve Expenses'!F134,'Reserve Expenses'!G134)) -> 1800 | VY2: ='Reserve Expenses'!$H$135 -> 2600 | VZ2: =IF([0]!ReserveCostOption="Constant",AVERAGE('Reserve Expenses'!F135:G135),RiskValStatic(2600)+_xll.RiskUniform('Reserve Expenses'!F135,'Reserve Expenses'!G135)) -> 2600 | WA2: ='Reserve Expenses'!$H$137 -> 11250 | WB2: =IF(AND([0]!WeddingOption="No",[0]!CorpEventOption="No"),0,IF([0]!ReserveCostOption="Constant",AVERAGE('Reserve Expenses'!F137:G137),RiskValStatic(11250)+_xll.RiskUniform('Reserve Expenses'!F137,'Reserve Expenses'!G137))) -> 11250 | WC2: ='Reserve Expenses'!$H$138 -> 937.5 | WD2: =IF(AND([0]!WeddingOption="No",[0]!CorpEventOption="No"),0,IF([0]!ReserveCostOption="Constant",AVERAGE('Reserve Expenses'!F138:G138),RiskValStatic(937.5)+_xll.RiskUniform('Reserve Expenses'!F138,'Reserve Expenses'!G138))) -> 937.5 | WE2: ='Reserve Expenses'!$H$139 -> 4500 | WF2: =IF(AND([0]!WeddingOption="No",[0]!CorpEventOption="No"),0,IF([0]!ReserveCostOption="Constant",AVERAGE('Reserve Expenses'!F139:G139),RiskValStatic(4500)+_xll.RiskUniform('Reserve Expenses'!F139,'Reserve Expenses'!G139))) -> 4500 | WG2: ='Reserve Expenses'!$H$140 -> 7300 | WH2: =IF(AND([0]!WeddingOption="No",[0]!CorpEventOption="No"),0,IF([0]!ReserveCostOption="Constant",AVERAGE('Reserve Expenses'!F140:G140),RiskValStatic(7300)+_xll.RiskUniform('Reserve Expenses'!F140,'Reserve Expenses'!G140))) -> 7300 | WI2: ='New Housing Starts'!BB4:EW4 ->  | WJ2: =_xll.RiskAR2(5.3785,0.16124,1.3792,-0.59088,5.1072,4.9774,_xll.RiskTsTransform(1,0),_xll.RiskTsSync(2,'New Housing Starts'!$B$4:$BA$4),_xll.RiskName("Western States Single Unit Starts (Thousands)")) -> 191.3758869 | WK2: =CPI!DE4:FB4 ->  | WL2: =_xll.RiskMA2(0.035803,0.01586,0.90469,0.32967,-0.024156,-0.0099604,_xll.RiskTsSync(2,CPI!$AP$4:$DC$4)) -> 0.01066530314

Sheet Inputs and Results
K1: Manage Expenses (Some options are driven by tab entries) | O1: Baseline | S1: Dues Only | W1: Manage Expenses (Some options are driven by tab entries) | AA1: Manage Income | AE1: Growth Sensitivity | AI1: HOA dues not CPI adjusted | AM1: Other sources of income
K2: Community Growth Assumptions/Options | O2: Community Growth Assumptions/Options | S2: Community Growth Assumptions/Options | W2: Community Growth Assumptions/Options | AA2: Community Growth Assumptions/Options | AE2: Community Growth Assumptions/Options | AI2: Community Growth Assumptions/Options | AM2: Community Growth Assumptions/Options
K3: Community Birth | L3: 2007 | O3: Community Birth | P3: 2007 | S3: Community Birth | T3: 2007 | W3: Community Birth | X3: 2007 | AA3: Community Birth | AB3: 2007 | AE3: Community Birth | AF3: 2007 | AI3: Community Birth | AJ3: 2007 | AM3: Community Birth | AN3: 2007
B4: 2016 | C4: 112 | K4: Community Age (Yr) | L4: =YEAR(TODAY())-CommunityBirth -> 10 | O4: Community Age (Yr) | P4: =YEAR(TODAY())-CommunityBirth -> 10 | S4: Community Age (Yr) | T4: =YEAR(TODAY())-CommunityBirth -> 10 | W4: Community Age (Yr) | X4: =YEAR(TODAY())-CommunityBirth -> 10 | AA4: Community Age (Yr) | AB4: =YEAR(TODAY())-CommunityBirth -> 10 | AE4: Community Age (Yr) | AF4: =YEAR(TODAY())-CommunityBirth -> 10 | AI4: Community Age (Yr) | AJ4: =YEAR(TODAY())-CommunityBirth -> 10 | AM4: Community Age (Yr) | AN4: =YEAR(TODAY())-CommunityBirth -> 10
B5: 2046 | C5: 112 | K5: Beginning Analysis Year | L5: 2017 | O5: Beginning Analysis Year | P5: 2017 | S5: Beginning Analysis Year | T5: 2017 | W5: Beginning Analysis Year | X5: 2017 | AA5: Beginning Analysis Year | AB5: 2017 | AE5: Beginning Analysis Year | AF5: 2017 | AI5: Beginning Analysis Year | AJ5: 2017 | AM5: Beginning Analysis Year | AN5: 2017
K6: Lots With Homes | L6: 29 | M6: =MaxAvailLots-LotsWithHomes -> 78 | O6: Lots With Homes | P6: 29 | Q6: =MaxAvailLots-LotsWithHomes -> 78 | S6: Lots With Homes | T6: 29 | U6: =MaxAvailLots-LotsWithHomes -> 78 | W6: Lots With Homes | X6: 29 | Y6: =MaxAvailLots-LotsWithHomes -> 78 | AA6: Lots With Homes | AB6: 29 | AC6: =MaxAvailLots-LotsWithHomes -> 78 | AE6: Lots With Homes | AF6: 29 | AG6: =MaxAvailLots-LotsWithHomes -> 78 | AI6: Lots With Homes | AJ6: 29 | AK6: =MaxAvailLots-LotsWithHomes -> 78 | AM6: Lots With Homes | AN6: 29 | AO6: =MaxAvailLots-LotsWithHomes -> 78
K7: Sold Vacant Lots | L7: 42 | M7: =MaxAvailLots-LotsWithHomes-SoldVacantLots -> 36 | N7: =SUM(L6:L7) -> 71 | O7: Sold Vacant Lots | P7: 42 | Q7: =MaxAvailLots-LotsWithHomes-SoldVacantLots -> 36 | R7: =SUM(P6:P7) -> 71 | S7: Sold Vacant Lots | T7: 42 | U7: =MaxAvailLots-LotsWithHomes-SoldVacantLots -> 36 | V7: =SUM(T6:T7) -> 71 | W7: Sold Vacant Lots | X7: 42 | Y7: =MaxAvailLots-LotsWithHomes-SoldVacantLots -> 36 | Z7: =SUM(X6:X7) -> 71 | AA7: Sold Vacant Lots | AB7: 42 | AC7: =MaxAvailLots-LotsWithHomes-SoldVacantLots -> 36 | AD7: =SUM(AB6:AB7) -> 71 | AE7: Sold Vacant Lots | AF7: 42 | AG7: =MaxAvailLots-LotsWithHomes-SoldVacantLots -> 36 | AH7: =SUM(AF6:AF7) -> 71 | AI7: Sold Vacant Lots | AJ7: 42 | AK7: =MaxAvailLots-LotsWithHomes-SoldVacantLots -> 36 | AL7: =SUM(AJ6:AJ7) -> 71 | AM7: Sold Vacant Lots | AN7: 42 | AO7: =MaxAvailLots-LotsWithHomes-SoldVacantLots -> 36 | AP7: =SUM(AN6:AN7) -> 71
K8: Growth: Constant or Historically Random | L8: ConstGrowth | O8: Growth: Constant or Historically Random | P8: ConstGrowth | S8: Growth: Constant or Historically Random | T8: ConstGrowth | W8: Growth: Constant or Historically Random | X8: ConstGrowth | AA8: Growth: Constant or Historically Random | AB8: ConstGrowth | AE8: Growth: Constant or Historically Random | AF8: ConstGrowth | AI8: Growth: Constant or Historically Random | AJ8: ConstGrowth | AM8: Growth: Constant or Historically Random | AN8: ConstGrowth
K9: Build Rate (Homes/Yr) | L9: 3 | N9: =IF(GrowthAssump="ConstGrowth", "Constant build rate", "BuildRate>0, Used for sale rate to build rate ratio") -> Constant build rate | O9: Build Rate (Homes/Yr) | P9: 3 | R9: =IF(GrowthAssump="ConstGrowth", "Constant build rate", "BuildRate>0, Used for sale rate to build rate ratio") -> Constant build rate | S9: Build Rate (Homes/Yr) | T9: 3 | V9: =IF(GrowthAssump="ConstGrowth", "Constant build rate", "BuildRate>0, Used for sale rate to build rate ratio") -> Constant build rate | W9: Build Rate (Homes/Yr) | X9: 3 | Z9: =IF(GrowthAssump="ConstGrowth", "Constant build rate", "BuildRate>0, Used for sale rate to build rate ratio") -> Constant build rate | AA9: Build Rate (Homes/Yr) | AB9: 3 | AD9: =IF(GrowthAssump="ConstGrowth", "Constant build rate", "BuildRate>0, Used for sale rate to build rate ratio") -> Constant build rate | AE9: Build Rate (Homes/Yr) | AF9: 1 | AH9: =IF(GrowthAssump="ConstGrowth", "Constant build rate", "BuildRate>0, Used for sale rate to build rate ratio") -> Constant build rate | AI9: Build Rate (Homes/Yr) | AJ9: 3 | AL9: =IF(GrowthAssump="ConstGrowth", "Constant build rate", "BuildRate>0, Used for sale rate to build rate ratio") -> Constant build rate | AM9: Build Rate (Homes/Yr) | AN9: 3 | AP9: =IF(GrowthAssump="ConstGrowth", "Constant build rate", "BuildRate>0, Used for sale rate to build rate ratio") -> Constant build rate
K10: Sales Rate of Dev/Vacant Lots (Lots/Yr) | L10: 3 | N10: =IF(GrowthAssump="ConstGrowth", "Constant sales rate", "Used for sale rate to build rate ratio") -> Constant sales rate | O10: Sales Rate of Dev/Vacant Lots (Lots/Yr) | P10: 3 | R10: =IF(GrowthAssump="ConstGrowth", "Constant sales rate", "Used for sale rate to build rate ratio") -> Constant sales rate | S10: Sales Rate of Dev/Vacant Lots (Lots/Yr) | T10: 3 | V10: =IF(GrowthAssump="ConstGrowth", "Constant sales rate", "Used for sale rate to build rate ratio") -> Constant sales rate | W10: Sales Rate of Dev/Vacant Lots (Lots/Yr) | X10: 3 | Z10: =IF(GrowthAssump="ConstGrowth", "Constant sales rate", "Used for sale rate to build rate ratio") -> Constant sales rate | AA10: Sales Rate of Dev/Vacant Lots (Lots/Yr) | AB10: 3 | AD10: =IF(GrowthAssump="ConstGrowth", "Constant sales rate", "Used for sale rate to build rate ratio") -> Constant sales rate | AE10: Sales Rate of Dev/Vacant Lots (Lots/Yr) | AF10: 1 | AH10: =IF(GrowthAssump="ConstGrowth", "Constant sales rate", "Used for sale rate to build rate ratio") -> Constant sales rate | AI10: Sales Rate of Dev/Vacant Lots (Lots/Yr) | AJ10: 3 | AL10: =IF(GrowthAssump="ConstGrowth", "Constant sales rate", "Used for sale rate to build rate ratio") -> Constant sales rate | AM10: Sales Rate of Dev/Vacant Lots (Lots/Yr) | AN10: 3 | AP10: =IF(GrowthAssump="ConstGrowth", "Constant sales rate", "Used for sale rate to build rate ratio") -> Constant sales rate
K11: Cap On Sold Lots | L11: =IF(GrowthAssump="ConstGrowth", MaxAvailLots,105) -> 107 | M11: 107 | N11: Developer may keep 2, Horton's may not subdivide, 2 undevelopable lots | O11: Cap On Sold Lots | P11: =IF(GrowthAssump="ConstGrowth", MaxAvailLots,105) -> 107 | Q11: 107 | R11: Developer may keep 2, Horton's may not subdivide, 2 undevelopable lots | S11: Cap On Sold Lots | T11: =IF(GrowthAssump="ConstGrowth", MaxAvailLots,105) -> 107 | U11: 107 | V11: Developer may keep 2, Horton's may not subdivide, 2 undevelopable lots | W11: Cap On Sold Lots | X11: =IF(GrowthAssump="ConstGrowth", MaxAvailLots,105) -> 107 | Y11: 107 | Z11: Developer may keep 2, Horton's may not subdivide, 2 undevelopable lots | AA11: Cap On Sold Lots | AB11: =IF(GrowthAssump="ConstGrowth", MaxAvailLots,105) -> 107 | AC11: 107 | AD11: Developer may keep 2, Horton's may not subdivide, 2 undevelopable lots | AE11: Cap On Sold Lots | AF11: =IF(GrowthAssump="ConstGrowth", MaxAvailLots,105) -> 107 | AG11: 107 | AH11: Developer may keep 2, Horton's may not subdivide, 2 undevelopable lots | AI11: Cap On Sold Lots | AJ11: =IF(GrowthAssump="ConstGrowth", MaxAvailLots,105) -> 107 | AK11: 107 | AL11: Developer may keep 2, Horton's may not subdivide, 2 undevelopable lots | AM11: Cap On Sold Lots | AN11: =IF(GrowthAssump="ConstGrowth", MaxAvailLots,105) -> 107 | AO11: 107 | AP11: Developer may keep 2, Horton's may not subdivide, 2 undevelopable lots
K12: Cap On Lots With Homes | L12: =IF(GrowthAssump="ConstGrowth", MaxHomes,101) -> 104 | M12: 104 | N12: Some lots held for privacy or investment and never built on | O12: Cap On Lots With Homes | P12: =IF(GrowthAssump="ConstGrowth", MaxHomes,101) -> 104 | Q12: 104 | R12: Some lots held for privacy or investment and never built on | S12: Cap On Lots With Homes | T12: =IF(GrowthAssump="ConstGrowth", MaxHomes,101) -> 104 | U12: 104 | V12: Some lots held for privacy or investment and never built on | W12: Cap On Lots With Homes | X12: =IF(GrowthAssump="ConstGrowth", MaxHomes,101) -> 104 | Y12: 104 | Z12: Some lots held for privacy or investment and never built on | AA12: Cap On Lots With Homes | AB12: =IF(GrowthAssump="ConstGrowth", MaxHomes,101) -> 104 | AC12: 104 | AD12: Some lots held for privacy or investment and never built on | AE12: Cap On Lots With Homes | AF12: =IF(GrowthAssump="ConstGrowth", MaxHomes,101) -> 104 | AG12: 104 | AH12: Some lots held for privacy or investment and never built on | AI12: Cap On Lots With Homes | AJ12: =IF(GrowthAssump="ConstGrowth", MaxHomes,101) -> 104 | AK12: 104 | AL12: Some lots held for privacy or investment and never built on | AM12: Cap On Lots With Homes | AN12: =IF(GrowthAssump="ConstGrowth", MaxHomes,101) -> 104 | AO12: 104 | AP12: Some lots held for privacy or investment and never built on
K22: Income | N22: Additional "minor" options on Operational Income tab | O22: Income | R22: Additional "minor" options on Operational Income tab | S22: Income | V22: Additional "minor" options on Operational Income tab | W22: Income | Z22: Additional "minor" options on Operational Income tab | AA22: Income | AD22: Additional "minor" options on Operational Income tab | AE22: Income | AH22: Additional "minor" options on Operational Income tab | AI22: Income | AL22: Additional "minor" options on Operational Income tab | AM22: Income | AP22: Additional "minor" options on Operational Income tab
K23: Contant or Random Inflation Selection | L23: Constant | N23: Inflation always applied to expenses and to Income only if selected | O23: Contant or Random Inflation Selection | P23: Constant | R23: Inflation always applied to expenses and to Income only if selected | S23: Contant or Random Inflation Selection | T23: Constant | V23: Inflation always applied to expenses and to Income only if selected | W23: Contant or Random Inflation Selection | X23: Constant | Z23: Inflation always applied to expenses and to Income only if selected | AA23: Contant or Random Inflation Selection | AB23: Constant | AD23: Inflation always applied to expenses and to Income only if selected | AE23: Contant or Random Inflation Selection | AF23: Constant | AH23: Inflation always applied to expenses and to Income only if selected | AI23: Contant or Random Inflation Selection | AJ23: Constant | AL23: Inflation always applied to expenses and to Income only if selected | AM23: Contant or Random Inflation Selection | AN23: Constant | AP23: Inflation always applied to expenses and to Income only if selected
K24: Future Inflation % | L24: 0.03 | N24: =IF(ConstantOrRandomInflation="Random","Not Used: Inflation is random prediction based on historical trends, see CPI tab","") ->  | O24: Future Inflation % | P24: 0.03 | R24: =IF(ConstantOrRandomInflation="Random","Not Used: Inflation is random prediction based on historical trends, see CPI tab","") ->  | S24: Future Inflation % | T24: 0.03 | V24: =IF(ConstantOrRandomInflation="Random","Not Used: Inflation is random prediction based on historical trends, see CPI tab","") ->  | W24: Future Inflation % | X24: 0.03 | Z24: =IF(ConstantOrRandomInflation="Random","Not Used: Inflation is random prediction based on historical trends, see CPI tab","") ->  | AA24: Future Inflation % | AB24: 0.03 | AD24: =IF(ConstantOrRandomInflation="Random","Not Used: Inflation is random prediction based on historical trends, see CPI tab","") ->  | AE24: Future Inflation % | AF24: 0.03 | AH24: =IF(ConstantOrRandomInflation="Random","Not Used: Inflation is random prediction based on historical trends, see CPI tab","") ->  | AI24: Future Inflation % | AJ24: 0.03 | AL24: =IF(ConstantOrRandomInflation="Random","Not Used: Inflation is random prediction based on historical trends, see CPI tab","") ->  | AM24: Future Inflation % | AN24: 0.03 | AP24: =IF(ConstantOrRandomInflation="Random","Not Used: Inflation is random prediction based on historical trends, see CPI tab","") -> 
K25: Inflate HOA Dues? | L25: Yes | N25: Expenses are always inflated | O25: Inflate HOA Dues? | P25: Yes | R25: Expenses are always inflated | S25: Inflate HOA Dues? | T25: Yes | V25: Expenses are always inflated | W25: Inflate HOA Dues? | X25: Yes | Z25: Expenses are always inflated | AA25: Inflate HOA Dues? | AB25: Yes | AD25: Expenses are always inflated | AE25: Inflate HOA Dues? | AF25: Yes | AH25: Expenses are always inflated | AI25: Inflate HOA Dues? | AJ25: No | AL25: Expenses are always inflated | AM25: Inflate HOA Dues? | AN25: Yes | AP25: Expenses are always inflated
K26: Inflate All Other Sources of Income? | L26: Yes | N26: Expenses are always inflated | O26: Inflate All Other Sources of Income? | P26: Yes | R26: Expenses are always inflated | S26: Inflate All Other Sources of Income? | T26: Yes | V26: Expenses are always inflated | W26: Inflate All Other Sources of Income? | X26: Yes | Z26: Expenses are always inflated | AA26: Inflate All Other Sources of Income? | AB26: Yes | AD26: Expenses are always inflated | AE26: Inflate All Other Sources of Income? | AF26: Yes | AH26: Expenses are always inflated | AI26: Inflate All Other Sources of Income? | AJ26: Yes | AL26: Expenses are always inflated | AM26: Inflate All Other Sources of Income? | AN26: Yes | AP26: Expenses are always inflated
K27: Home Owner Dues | L27: 160 | N27: 135/160 | O27: Home Owner Dues | P27: 160 | R27: 135/160 | S27: Home Owner Dues | T27: 450 | V27: 135/160 | W27: Home Owner Dues | X27: 160 | Z27: 135/160 | AA27: Home Owner Dues | AB27: 160 | AD27: 135/160 | AE27: Home Owner Dues | AF27: 160 | AH27: 135/160 | AI27: Home Owner Dues | AJ27: 160 | AL27: 135/160 | AM27: Home Owner Dues | AN27: 160 | AP27: 135/160
K28: Lot Owner Dues | L28: 90 | N28: 75/90 | O28: Lot Owner Dues | P28: 90 | R28: 75/90 | S28: Lot Owner Dues | T28: 225 | V28: 75/90 | W28: Lot Owner Dues | X28: 90 | Z28: 75/90 | AA28: Lot Owner Dues | AB28: 90 | AD28: 75/90 | AE28: Lot Owner Dues | AF28: 90 | AH28: 75/90 | AI28: Lot Owner Dues | AJ28: 90 | AL28: 75/90 | AM28: Lot Owner Dues | AN28: 90 | AP28: 75/90
K29: Home Owner Dues Defaults | L29: 0 | N29: Number of Homes | O29: Home Owner Dues Defaults | P29: 0 | R29: Number of Homes | S29: Home Owner Dues Defaults | T29: 0 | V29: Number of Homes | W29: Home Owner Dues Defaults | X29: 0 | Z29: Number of Homes | AA29: Home Owner Dues Defaults | AB29: 0 | AD29: Number of Homes | AE29: Home Owner Dues Defaults | AF29: 0 | AH29: Number of Homes | AI29: Home Owner Dues Defaults | AJ29: 0 | AL29: Number of Homes | AM29: Home Owner Dues Defaults | AN29: 0 | AP29: Number of Homes
K30: Lot Owner Dues Defaults | L30: 0 | N30: Number of Lots | O30: Lot Owner Dues Defaults | P30: 0 | R30: Number of Lots | S30: Lot Owner Dues Defaults | T30: 0 | V30: Number of Lots | W30: Lot Owner Dues Defaults | X30: 0 | Z30: Number of Lots | AA30: Lot Owner Dues Defaults | AB30: 0 | AD30: Number of Lots | AE30: Lot Owner Dues Defaults | AF30: 0 | AH30: Number of Lots | AI30: Lot Owner Dues Defaults | AJ30: 0 | AL30: Number of Lots | AM30: Lot Owner Dues Defaults | AN30: 0 | AP30: Number of Lots
K31: Rent Club House Apartment | L31: Yes | O31: Rent Club House Apartment | P31: Yes | S31: Rent Club House Apartment | T31: No | W31: Rent Club House Apartment | X31: Yes | AA31: Rent Club House Apartment | AB31: Yes | AE31: Rent Club House Apartment | AF31: Yes | AI31: Rent Club House Apartment | AJ31: Yes | AM31: Rent Club House Apartment | AN31: Yes
L32: 950 | N32: =IF(RentClubHouseApt="Yes","$/month","Not Used") -> $/month | P32: 950 | R32: =IF(RentClubHouseApt="Yes","$/month","Not Used") -> $/month | T32: 950 | V32: =IF(RentClubHouseApt="Yes","$/month","Not Used") -> $/month | X32: 950 | Z32: =IF(RentClubHouseApt="Yes","$/month","Not Used") -> $/month | AB32: 950 | AD32: =IF(RentClubHouseApt="Yes","$/month","Not Used") -> $/month | AF32: 950 | AH32: =IF(RentClubHouseApt="Yes","$/month","Not Used") -> $/month | AJ32: 950 | AL32: =IF(RentClubHouseApt="Yes","$/month","Not Used") -> $/month | AN32: 950 | AP32: =IF(RentClubHouseApt="Yes","$/month","Not Used") -> $/month
K33: Rent Shop Apartment | L33: Yes | O33: Rent Shop Apartment | P33: Yes | S33: Rent Shop Apartment | T33: No | W33: Rent Shop Apartment | X33: Yes | AA33: Rent Shop Apartment | AB33: Yes | AE33: Rent Shop Apartment | AF33: Yes | AI33: Rent Shop Apartment | AJ33: Yes | AM33: Rent Shop Apartment | AN33: Yes
L34: 760 | N34: =IF(RentShopApt="Yes","$/month","Not Used") -> $/month | P34: 760 | R34: =IF(RentShopApt="Yes","$/month","Not Used") -> $/month | T34: 760 | V34: =IF(RentShopApt="Yes","$/month","Not Used") -> $/month | X34: 760 | Z34: =IF(RentShopApt="Yes","$/month","Not Used") -> $/month | AB34: 760 | AD34: =IF(RentShopApt="Yes","$/month","Not Used") -> $/month | AF34: 760 | AH34: =IF(RentShopApt="Yes","$/month","Not Used") -> $/month | AJ34: 760 | AL34: =IF(RentShopApt="Yes","$/month","Not Used") -> $/month | AN34: 760 | AP34: =IF(RentShopApt="Yes","$/month","Not Used") -> $/month
K35: Investment Account Beginning Balance | L35: ='NP Balance Sheet'!C12 -> 239020.41 | O35: Investment Account Beginning Balance | P35: ='NP Balance Sheet'!G12 -> 0 | S35: Investment Account Beginning Balance | T35: ='NP Balance Sheet'!K12 -> 0 | W35: Investment Account Beginning Balance | X35: ='NP Balance Sheet'!O12 -> 0 | AA35: Investment Account Beginning Balance | AB35: ='NP Balance Sheet'!S12 -> 0 | AE35: Investment Account Beginning Balance | AF35: ='NP Balance Sheet'!W12 -> 0 | AI35: Investment Account Beginning Balance | AJ35: ='NP Balance Sheet'!AA12 -> 0 | AM35: Investment Account Beginning Balance | AN35: ='NP Balance Sheet'!AE12 -> 0
K36: Investment Account Interest Rate | L36: 0.0011 | N36: 0.11% Baseline | O36: Investment Account Interest Rate | P36: 0.0011 | R36: 0.11% Baseline | S36: Investment Account Interest Rate | T36: 0.0011 | V36: 0.11% Baseline | W36: Investment Account Interest Rate | X36: 0.0011 | Z36: 0.11% Baseline | AA36: Investment Account Interest Rate | AB36: 0.02 | AD36: 0.11% Baseline | AE36: Investment Account Interest Rate | AF36: 0.02 | AH36: 0.11% Baseline | AI36: Investment Account Interest Rate | AJ36: 0.02 | AL36: 0.11% Baseline | AM36: Investment Account Interest Rate | AN36: 0.02 | AP36: 0.11% Baseline
K37: Sell External Wellness Memberships? | L37: No | O37: Sell External Wellness Memberships? | P37: No | S37: Sell External Wellness Memberships? | T37: No | W37: Sell External Wellness Memberships? | X37: No | AA37: Sell External Wellness Memberships? | AB37: No | AE37: Sell External Wellness Memberships? | AF37: No | AI37: Sell External Wellness Memberships? | AJ37: No | AM37: Sell External Wellness Memberships? | AN37: No
K47: Wedding and Corporate Event Options | O47: Wedding and Corporate Event Options | S47: Wedding and Corporate Event Options | W47: Wedding and Corporate Event Options | AA47: Wedding and Corporate Event Options | AE47: Wedding and Corporate Event Options | AI47: Wedding and Corporate Event Options | AM47: Wedding and Corporate Event Options
K48: Conduct Weddings? | L48: Yes | O48: Conduct Weddings? | P48: Yes | S48: Conduct Weddings? | T48: No | W48: Conduct Weddings? | X48: Yes | AA48: Conduct Weddings? | AB48: Yes | AE48: Conduct Weddings? | AF48: Yes | AI48: Conduct Weddings? | AJ48: Yes | AM48: Conduct Weddings? | AN48: Yes
K49: Initial Number of Weddings Today | L49: 50 | N49: 52 allowed, but never sell what you are allowed, 48 representative | O49: Initial Number of Weddings Today | P49: 50 | R49: 52 allowed, but never sell what you are allowed, 48 representative | S49: Initial Number of Weddings Today | T49: 50 | V49: 52 allowed, but never sell what you are allowed, 48 representative | W49: Initial Number of Weddings Today | X49: 50 | Z49: 52 allowed, but never sell what you are allowed, 48 representative | AA49: Initial Number of Weddings Today | AB49: 50 | AD49: 52 allowed, but never sell what you are allowed, 48 representative | AE49: Initial Number of Weddings Today | AF49: 50 | AH49: 52 allowed, but never sell what you are allowed, 48 representative | AI49: Initial Number of Weddings Today | AJ49: 50 | AL49: 52 allowed, but never sell what you are allowed, 48 representative | AM49: Initial Number of Weddings Today | AN49: 50 | AP49: 52 allowed, but never sell what you are allowed, 48 representative
K50: Event Planner (ClubHouse Mgr) | L50: 28 | N50: hr/wk | O50: Event Planner (ClubHouse Mgr) | P50: 28 | R50: hr/wk | S50: Event Planner (ClubHouse Mgr) | T50: 28 | V50: hr/wk | W50: Event Planner (ClubHouse Mgr) | X50: 28 | Z50: hr/wk | AA50: Event Planner (ClubHouse Mgr) | AB50: 28 | AD50: hr/wk | AE50: Event Planner (ClubHouse Mgr) | AF50: 28 | AH50: hr/wk | AI50: Event Planner (ClubHouse Mgr) | AJ50: 28 | AL50: hr/wk | AM50: Event Planner (ClubHouse Mgr) | AN50: 28 | AP50: hr/wk
L51: =ClubHouseMgrRate -> 19 | N51: $/hr | P51: =ClubHouseMgrRate -> 19 | R51: $/hr | T51: =ClubHouseMgrRate -> 19 | V51: $/hr | X51: =ClubHouseMgrRate -> 19 | Z51: $/hr | AB51: =ClubHouseMgrRate -> 19 | AD51: $/hr | AF51: =ClubHouseMgrRate -> 19 | AH51: $/hr | AJ51: =ClubHouseMgrRate -> 19 | AL51: $/hr | AN51: =ClubHouseMgrRate -> 19 | AP51: $/hr
K52: Corporate Events? | L52: No | N52: =IF(CorpEventOption="Yes","Number of corp events = 52 - number of med allowed weddings","") ->  | O52: Corporate Events? | P52: No | R52: =IF(CorpEventOption="Yes","Number of corp events = 52 - number of med allowed weddings","") ->  | S52: Corporate Events? | T52: No | V52: =IF(CorpEventOption="Yes","Number of corp events = 52 - number of med allowed weddings","") ->  | W52: Corporate Events? | X52: No | Z52: =IF(CorpEventOption="Yes","Number of corp events = 52 - number of med allowed weddings","") ->  | AA52: Corporate Events? | AB52: No | AD52: =IF(CorpEventOption="Yes","Number of corp events = 52 - number of med allowed weddings","") ->  | AE52: Corporate Events? | AF52: No | AH52: =IF(CorpEventOption="Yes","Number of corp events = 52 - number of med allowed weddings","") ->  | AI52: Corporate Events? | AJ52: No | AL52: =IF(CorpEventOption="Yes","Number of corp events = 52 - number of med allowed weddings","") ->  | AM52: Corporate Events? | AN52: No | AP52: =IF(CorpEventOption="Yes","Number of corp events = 52 - number of med allowed weddings","") -> 
K53: Event Manager | L53: 21 | N53: hr/wk | O53: Event Manager | P53: 21 | R53: hr/wk | S53: Event Manager | T53: 21 | V53: hr/wk | W53: Event Manager | X53: 21 | Z53: hr/wk | AA53: Event Manager | AB53: 21 | AD53: hr/wk | AE53: Event Manager | AF53: 21 | AH53: hr/wk | AI53: Event Manager | AJ53: 21 | AL53: hr/wk | AM53: Event Manager | AN53: 21 | AP53: hr/wk
L54: 15 | N54: $/hr | P54: 15 | R54: $/hr | T54: 15 | V54: $/hr | X54: 15 | Z54: $/hr | AB54: 15 | AD54: $/hr | AF54: 15 | AH54: $/hr | AJ54: 15 | AL54: $/hr | AN54: 15 | AP54: $/hr
K55: BookKeeper | L55: 2 | N55: hr/event | O55: BookKeeper | P55: 2 | R55: hr/event | S55: BookKeeper | T55: 2 | V55: hr/event | W55: BookKeeper | X55: 2 | Z55: hr/event | AA55: BookKeeper | AB55: 2 | AD55: hr/event | AE55: BookKeeper | AF55: 2 | AH55: hr/event | AI55: BookKeeper | AJ55: 2 | AL55: hr/event | AM55: BookKeeper | AN55: 2 | AP55: hr/event
L56: =AccountantBookkeeperRate -> 40 | N56: $/hr | P56: =AccountantBookkeeperRate -> 40 | R56: $/hr | T56: =AccountantBookkeeperRate -> 40 | V56: $/hr | X56: =AccountantBookkeeperRate -> 40 | Z56: $/hr | AB56: =AccountantBookkeeperRate -> 40 | AD56: $/hr | AF56: =AccountantBookkeeperRate -> 40 | AH56: $/hr | AJ56: =AccountantBookkeeperRate -> 40 | AL56: $/hr | AN56: =AccountantBookkeeperRate -> 40 | AP56: $/hr
K57: Event Staff | L57: 10 | N57: paid hr/wed | O57: Event Staff | P57: 10 | R57: paid hr/wed | S57: Event Staff | T57: 10 | V57: paid hr/wed | W57: Event Staff | X57: 10 | Z57: paid hr/wed | AA57: Event Staff | AB57: 10 | AD57: paid hr/wed | AE57: Event Staff | AF57: 10 | AH57: paid hr/wed | AI57: Event Staff | AJ57: 10 | AL57: paid hr/wed | AM57: Event Staff | AN57: 10 | AP57: paid hr/wed
L58: 8 | N58: hr/corp-event | P58: 8 | R58: hr/corp-event | T58: 8 | V58: hr/corp-event | X58: 8 | Z58: hr/corp-event | AB58: 8 | AD58: hr/corp-event | AF58: 8 | AH58: hr/corp-event | AJ58: 8 | AL58: hr/corp-event | AN58: 8 | AP58: hr/corp-event
L59: 12 | N59: $/hr | P59: 12 | R59: $/hr | T59: 12 | V59: $/hr | X59: 12 | Z59: $/hr | AB59: 12 | AD59: $/hr | AF59: 12 | AH59: $/hr | AJ59: 12 | AL59: $/hr | AN59: 12 | AP59: $/hr
K60: Security | L60: 0 | N60: hr/wed | O60: Security | P60: 0 | R60: hr/wed | S60: Security | T60: 0 | V60: hr/wed | W60: Security | X60: 0 | Z60: hr/wed | AA60: Security | AB60: 0 | AD60: hr/wed | AE60: Security | AF60: 0 | AH60: hr/wed | AI60: Security | AJ60: 0 | AL60: hr/wed | AM60: Security | AN60: 0 | AP60: hr/wed
L61: 100 | N61: $/hr | P61: 100 | R61: $/hr | T61: 100 | V61: $/hr | X61: 100 | Z61: $/hr | AB61: 100 | AD61: $/hr | AF61: 100 | AH61: $/hr | AJ61: 100 | AL61: $/hr | AN61: 100 | AP61: $/hr
K62: Number of Weddings in 30 yrs | L62: =Income!AK32 -> 38 | N62: Computed based on planned or required reduction in weddings | O62: Number of Weddings in 30 yrs | P62: =Income!AO32 -> 38 | R62: Computed based on planned or required reduction in weddings | S62: Number of Weddings in 30 yrs | T62: =Income!AS32 -> 38 | V62: Computed based on planned or required reduction in weddings | W62: Number of Weddings in 30 yrs | X62: =Income!AW32 -> 38 | Z62: Computed based on planned or required reduction in weddings | AA62: Number of Weddings in 30 yrs | AB62: =Income!BA32 -> 38 | AD62: Computed based on planned or required reduction in weddings | AE62: Number of Weddings in 30 yrs | AF62: =Income!BE32 -> 38 | AH62: Computed based on planned or required reduction in weddings | AI62: Number of Weddings in 30 yrs | AJ62: =Income!BI32 -> 0 | AL62: Computed based on planned or required reduction in weddings | AM62: Number of Weddings in 30 yrs | AN62: =Income!BM32 -> 0 | AP62: Computed based on planned or required reduction in weddings
K74: Operating Costs Recurring on Annual Basis | N74: Additional "minor" options on Operating Costs tab | O74: Operating Costs Recurring on Annual Basis | R74: Additional "minor" options on Operating Costs tab | S74: Operating Costs Recurring on Annual Basis | V74: Additional "minor" options on Operating Costs tab | W74: Operating Costs Recurring on Annual Basis | Z74: Additional "minor" options on Operating Costs tab | AA74: Operating Costs Recurring on Annual Basis | AD74: Additional "minor" options on Operating Costs tab | AE74: Operating Costs Recurring on Annual Basis | AH74: Additional "minor" options on Operating Costs tab | AI74: Operating Costs Recurring on Annual Basis | AL74: Additional "minor" options on Operating Costs tab | AM74: Operating Costs Recurring on Annual Basis | AP74: Additional "minor" options on Operating Costs tab
K75: Club House Manager | L75: 12 | N75: hrs/wk on HOA business, not weddings | O75: Club House Manager | P75: 12 | R75: hrs/wk on HOA business, not weddings | S75: Club House Manager | T75: 12 | V75: hrs/wk on HOA business, not weddings | W75: Club House Manager | X75: 12 | Z75: hrs/wk on HOA business, not weddings | AA75: Club House Manager | AB75: 12 | AD75: hrs/wk on HOA business, not weddings | AE75: Club House Manager | AF75: 12 | AH75: hrs/wk on HOA business, not weddings | AI75: Club House Manager | AJ75: 12 | AL75: hrs/wk on HOA business, not weddings | AM75: Club House Manager | AN75: 12 | AP75: hrs/wk on HOA business, not weddings
L76: 19 | N76: $/hr | P76: 19 | R76: $/hr | T76: 19 | V76: $/hr | X76: 19 | Z76: $/hr | AB76: 19 | AD76: $/hr | AF76: 19 | AH76: $/hr | AJ76: 19 | AL76: $/hr | AN76: 19 | AP76: $/hr
K77: Assistant Club House Manager | L77: 9 | N77: hrs/wk on HOA business, not weddings | O77: Assistant Club House Manager | P77: 9 | R77: hrs/wk on HOA business, not weddings | S77: Assistant Club House Manager | T77: 9 | V77: hrs/wk on HOA business, not weddings | W77: Assistant Club House Manager | X77: 9 | Z77: hrs/wk on HOA business, not weddings | AA77: Assistant Club House Manager | AB77: 9 | AD77: hrs/wk on HOA business, not weddings | AE77: Assistant Club House Manager | AF77: 9 | AH77: hrs/wk on HOA business, not weddings | AI77: Assistant Club House Manager | AJ77: 9 | AL77: hrs/wk on HOA business, not weddings | AM77: Assistant Club House Manager | AN77: 9 | AP77: hrs/wk on HOA business, not weddings
L78: 15 | N78: $/hr | P78: 15 | R78: $/hr | T78: 15 | V78: $/hr | X78: 15 | Z78: $/hr | AB78: 15 | AD78: $/hr | AF78: 15 | AH78: $/hr | AJ78: 15 | AL78: $/hr | AN78: 15 | AP78: $/hr
K79: Bookkeeper Contractor | L79: 4 | N79: hrs/wk on HOA business, not weddings | O79: Bookkeeper Contractor | P79: 4 | R79: hrs/wk on HOA business, not weddings | S79: Bookkeeper Contractor | T79: 4 | V79: hrs/wk on HOA business, not weddings | W79: Bookkeeper Contractor | X79: 4 | Z79: hrs/wk on HOA business, not weddings | AA79: Bookkeeper Contractor | AB79: 4 | AD79: hrs/wk on HOA business, not weddings | AE79: Bookkeeper Contractor | AF79: 4 | AH79: hrs/wk on HOA business, not weddings | AI79: Bookkeeper Contractor | AJ79: 4 | AL79: hrs/wk on HOA business, not weddings | AM79: Bookkeeper Contractor | AN79: 4 | AP79: hrs/wk on HOA business, not weddings
L80: 40 | N80: $/hr | P80: 40 | R80: $/hr | T80: 40 | V80: $/hr | X80: 40 | Z80: $/hr | AB80: 40 | AD80: $/hr | AF80: 40 | AH80: $/hr | AJ80: 40 | AL80: $/hr | AN80: 40 | AP80: $/hr
K81: Employer Paid Social Security Tax % | L81: 0.0625 | N81: For employee's, not contractors | O81: Employer Paid Social Security Tax % | P81: 0.0625 | R81: For employee's, not contractors | S81: Employer Paid Social Security Tax % | T81: 0.0625 | V81: For employee's, not contractors | W81: Employer Paid Social Security Tax % | X81: 0.0625 | Z81: For employee's, not contractors | AA81: Employer Paid Social Security Tax % | AB81: 0.0625 | AD81: For employee's, not contractors | AE81: Employer Paid Social Security Tax % | AF81: 0.0625 | AH81: For employee's, not contractors | AI81: Employer Paid Social Security Tax % | AJ81: 0.0625 | AL81: For employee's, not contractors | AM81: Employer Paid Social Security Tax % | AN81: 0.0625 | AP81: For employee's, not contractors
K82: Employer Paid Medicare/Medicade Tax % | L82: 0.0145 | N82: For employee's, not contractors | O82: Employer Paid Medicare/Medicade Tax % | P82: 0.0145 | R82: For employee's, not contractors | S82: Employer Paid Medicare/Medicade Tax % | T82: 0.0145 | V82: For employee's, not contractors | W82: Employer Paid Medicare/Medicade Tax % | X82: 0.0145 | Z82: For employee's, not contractors | AA82: Employer Paid Medicare/Medicade Tax % | AB82: 0.0145 | AD82: For employee's, not contractors | AE82: Employer Paid Medicare/Medicade Tax % | AF82: 0.0145 | AH82: For employee's, not contractors | AI82: Employer Paid Medicare/Medicade Tax % | AJ82: 0.0145 | AL82: For employee's, not contractors | AM82: Employer Paid Medicare/Medicade Tax % | AN82: 0.0145 | AP82: For employee's, not contractors
K83: Employer Paid Unemployment Insurance % | L83: 0.02 | N83: For employee's, not contractors | O83: Employer Paid Unemployment Insurance % | P83: 0.02 | R83: For employee's, not contractors | S83: Employer Paid Unemployment Insurance % | T83: 0.02 | V83: For employee's, not contractors | W83: Employer Paid Unemployment Insurance % | X83: 0.02 | Z83: For employee's, not contractors | AA83: Employer Paid Unemployment Insurance % | AB83: 0.02 | AD83: For employee's, not contractors | AE83: Employer Paid Unemployment Insurance % | AF83: 0.02 | AH83: For employee's, not contractors | AI83: Employer Paid Unemployment Insurance % | AJ83: 0.02 | AL83: For employee's, not contractors | AM83: Employer Paid Unemployment Insurance % | AN83: 0.02 | AP83: For employee's, not contractors
K84: Workman's Comp Insurance | L84: 5 | N84: $/person/quarter | O84: Workman's Comp Insurance | P84: 5 | R84: $/person/quarter | S84: Workman's Comp Insurance | T84: 5 | V84: $/person/quarter | W84: Workman's Comp Insurance | X84: 5 | Z84: $/person/quarter | AA84: Workman's Comp Insurance | AB84: 5 | AD84: $/person/quarter | AE84: Workman's Comp Insurance | AF84: 5 | AH84: $/person/quarter | AI84: Workman's Comp Insurance | AJ84: 5 | AL84: $/person/quarter | AM84: Workman's Comp Insurance | AN84: 5 | AP84: $/person/quarter
K85: Utility Conservation Factor | L85: 0.05 | N85: Savings as a % through conservation | O85: Utility Conservation Factor | P85: 0 | R85: Savings as a % through conservation | S85: Utility Conservation Factor | T85: 0 | V85: Savings as a % through conservation | W85: Utility Conservation Factor | X85: 0.05 | Z85: Savings as a % through conservation | AA85: Utility Conservation Factor | AB85: 0.05 | AD85: Savings as a % through conservation | AE85: Utility Conservation Factor | AF85: 0.05 | AH85: Savings as a % through conservation | AI85: Utility Conservation Factor | AJ85: 0.05 | AL85: Savings as a % through conservation | AM85: Utility Conservation Factor | AN85: 0.05 | AP85: Savings as a % through conservation
K86: Tax Status | L86: =IF(AND(RentClubHouseApt="No",RentShopApt="No",WeddingOption="No"),"TaxExempt", "CorpTaxRates") -> CorpTaxRates | N86: =IF(TaxStatus="TaxExempt","No business income, qualify as a 501C4 tax exempt organization", "All income taxable on corporate rates") -> All income taxable on corporate rates | O86: Tax Status | P86: =IF(AND(RentClubHouseApt="No",RentShopApt="No",WeddingOption="No"),"TaxExempt", "CorpTaxRates") -> CorpTaxRates | R86: =IF(TaxStatus="TaxExempt","No business income, qualify as a 501C4 tax exempt organization", "All income taxable on corporate rates") -> All income taxable on corporate rates | S86: Tax Status | T86: =IF(AND(RentClubHouseApt="No",RentShopApt="No",WeddingOption="No"),"TaxExempt", "CorpTaxRates") -> CorpTaxRates | V86: =IF(TaxStatus="TaxExempt","No business income, qualify as a 501C4 tax exempt organization", "All income taxable on corporate rates") -> All income taxable on corporate rates | W86: Tax Status | X86: =IF(AND(RentClubHouseApt="No",RentShopApt="No",WeddingOption="No"),"TaxExempt", "CorpTaxRates") -> CorpTaxRates | Z86: =IF(TaxStatus="TaxExempt","No business income, qualify as a 501C4 tax exempt organization", "All income taxable on corporate rates") -> All income taxable on corporate rates | AA86: Tax Status | AB86: =IF(AND(RentClubHouseApt="No",RentShopApt="No",WeddingOption="No"),"TaxExempt", "CorpTaxRates") -> CorpTaxRates | AD86: =IF(TaxStatus="TaxExempt","No business income, qualify as a 501C4 tax exempt organization", "All income taxable on corporate rates") -> All income taxable on corporate rates | AE86: Tax Status | AF86: =IF(AND(RentClubHouseApt="No",RentShopApt="No",WeddingOption="No"),"TaxExempt", "CorpTaxRates") -> CorpTaxRates | AH86: =IF(TaxStatus="TaxExempt","No business income, qualify as a 501C4 tax exempt organization", "All income taxable on corporate rates") -> All income taxable on corporate rates | AI86: Tax Status | AJ86: =IF(AND(RentClubHouseApt="No",RentShopApt="No",WeddingOption="No"),"TaxExempt", "CorpTaxRates") -> CorpTaxRates | AL86: =IF(TaxStatus="TaxExempt","No business income, qualify as a 501C4 tax exempt organization", "All income taxable on corporate rates") -> All income taxable on corporate rates | AM86: Tax Status | AN86: =IF(AND(RentClubHouseApt="No",RentShopApt="No",WeddingOption="No"),"TaxExempt", "CorpTaxRates") -> CorpTaxRates | AP86: =IF(TaxStatus="TaxExempt","No business income, qualify as a 501C4 tax exempt organization", "All income taxable on corporate rates") -> All income taxable on corporate rates
K87: Annual Maintenance/Repairs/Replacements | O87: Annual Maintenance/Repairs/Replacements | S87: Annual Maintenance/Repairs/Replacements | W87: Annual Maintenance/Repairs/Replacements | AA87: Annual Maintenance/Repairs/Replacements | AE87: Annual Maintenance/Repairs/Replacements | AI87: Annual Maintenance/Repairs/Replacements | AM87: Annual Maintenance/Repairs/Replacements
K88: Reserve Expense Option | L88: Yes | N88: Include reserve expenses in the model? | O88: Reserve Expense Option | P88: Yes | R88: Include reserve expenses in the model? | S88: Reserve Expense Option | T88: Yes | V88: Include reserve expenses in the model? | W88: Reserve Expense Option | X88: Yes | Z88: Include reserve expenses in the model? | AA88: Reserve Expense Option | AB88: Yes | AD88: Include reserve expenses in the model? | AE88: Reserve Expense Option | AF88: Yes | AH88: Include reserve expenses in the model? | AI88: Reserve Expense Option | AJ88: Yes | AL88: Include reserve expenses in the model? | AM88: Reserve Expense Option | AN88: Yes | AP88: Include reserve expenses in the model?
K89: Maintenance Person | L89: 40 | N89: hrs/wk on HOA business | O89: Maintenance Person | P89: 40 | R89: hrs/wk on HOA business | S89: Maintenance Person | T89: 40 | V89: hrs/wk on HOA business | W89: Maintenance Person | X89: 40 | Z89: hrs/wk on HOA business | AA89: Maintenance Person | AB89: 40 | AD89: hrs/wk on HOA business | AE89: Maintenance Person | AF89: 40 | AH89: hrs/wk on HOA business | AI89: Maintenance Person | AJ89: 40 | AL89: hrs/wk on HOA business | AM89: Maintenance Person | AN89: 40 | AP89: hrs/wk on HOA business
L90: 19 | N90: $/hr | P90: 19 | R90: $/hr | T90: 19 | V90: $/hr | X90: 19 | Z90: $/hr | AB90: 19 | AD90: $/hr | AF90: 19 | AH90: $/hr | AJ90: 19 | AL90: $/hr | AN90: 19 | AP90: $/hr
K91: % of Time Spent on Annual Maintenance | L91: 0.9 | N91: as opposed to working on reserve items | O91: % of Time Spent on Annual Maintenance | P91: 0.9 | R91: as opposed to working on reserve items | S91: % of Time Spent on Annual Maintenance | T91: 0.9 | V91: as opposed to working on reserve items | W91: % of Time Spent on Annual Maintenance | X91: 0.9 | Z91: as opposed to working on reserve items | AA91: % of Time Spent on Annual Maintenance | AB91: 0.9 | AD91: as opposed to working on reserve items | AE91: % of Time Spent on Annual Maintenance | AF91: 0.9 | AH91: as opposed to working on reserve items | AI91: % of Time Spent on Annual Maintenance | AJ91: 0.9 | AL91: as opposed to working on reserve items | AM91: % of Time Spent on Annual Maintenance | AN91: 0.9 | AP91: as opposed to working on reserve items
K92: Snow Plow Person | L92: 36 | N92: hrs/yr | O92: Snow Plow Person | P92: 36 | R92: hrs/yr | S92: Snow Plow Person | T92: 36 | V92: hrs/yr | W92: Snow Plow Person | X92: 36 | Z92: hrs/yr | AA92: Snow Plow Person | AB92: 36 | AD92: hrs/yr | AE92: Snow Plow Person | AF92: 36 | AH92: hrs/yr | AI92: Snow Plow Person | AJ92: 36 | AL92: hrs/yr | AM92: Snow Plow Person | AN92: 36 | AP92: hrs/yr
L93: 17 | N93: $/hr | P93: 17 | R93: $/hr | T93: 17 | V93: $/hr | X93: 17 | Z93: $/hr | AB93: 17 | AD93: $/hr | AF93: 17 | AH93: $/hr | AJ93: 17 | AL93: $/hr | AN93: 17 | AP93: $/hr
K94: Unskilled Labor | L94: 4 | N94: hrs/wk | O94: Unskilled Labor | P94: 22 | R94: hrs/wk | S94: Unskilled Labor | T94: 22 | V94: hrs/wk | W94: Unskilled Labor | X94: 4 | Z94: hrs/wk | AA94: Unskilled Labor | AB94: 4 | AD94: hrs/wk | AE94: Unskilled Labor | AF94: 4 | AH94: hrs/wk | AI94: Unskilled Labor | AJ94: 4 | AL94: hrs/wk | AM94: Unskilled Labor | AN94: 4 | AP94: hrs/wk
L95: 12 | N95: $/hr | P95: 12 | R95: $/hr | T95: 12 | V95: $/hr | X95: 12 | Z95: $/hr | AB95: 12 | AD95: $/hr | AF95: 12 | AH95: $/hr | AJ95: 12 | AL95: $/hr | AN95: 12 | AP95: $/hr
K96: Landscaping Contractor | L96: 7000 | N96: $/yr | O96: Landscaping Contractor | P96: 7000 | R96: $/yr | S96: Landscaping Contractor | T96: 7000 | V96: $/yr | W96: Landscaping Contractor | X96: 7000 | Z96: $/yr | AA96: Landscaping Contractor | AB96: 7000 | AD96: $/yr | AE96: Landscaping Contractor | AF96: 7000 | AH96: $/yr | AI96: Landscaping Contractor | AJ96: 7000 | AL96: $/yr | AM96: Landscaping Contractor | AN96: 7000 | AP96: $/yr
K97: Reserve Expenses: Maintenance, Repairs, and Replacments that Recur on a Frequency Greater Than One Year | L97: 0 | O97: Reserve Expenses: Maintenance, Repairs, and Replacments that Recur on a Frequency Greater Than One Year | P97: 0 | S97: Reserve Expenses: Maintenance, Repairs, and Replacments that Recur on a Frequency Greater Than One Year | T97: 0 | W97: Reserve Expenses: Maintenance, Repairs, and Replacments that Recur on a Frequency Greater Than One Year | X97: 0 | AA97: Reserve Expenses: Maintenance, Repairs, and Replacments that Recur on a Frequency Greater Than One Year | AB97: 0 | AE97: Reserve Expenses: Maintenance, Repairs, and Replacments that Recur on a Frequency Greater Than One Year | AF97: 0 | AI97: Reserve Expenses: Maintenance, Repairs, and Replacments that Recur on a Frequency Greater Than One Year | AJ97: 0 | AM97: Reserve Expenses: Maintenance, Repairs, and Replacments that Recur on a Frequency Greater Than One Year | AN97: 0
K98: Reserve Cost Option: Constant or Random | L98: Constant | O98: Reserve Cost Option: Constant or Random | P98: Constant | S98: Reserve Cost Option: Constant or Random | T98: Constant | W98: Reserve Cost Option: Constant or Random | X98: Constant | AA98: Reserve Cost Option: Constant or Random | AB98: Constant | AE98: Reserve Cost Option: Constant or Random | AF98: Constant | AI98: Reserve Cost Option: Constant or Random | AJ98: Constant | AM98: Reserve Cost Option: Constant or Random | AN98: Constant
K99: Starting Reserve Balance | L99: =InvAcct -> 239020.41 | O99: Starting Reserve Balance | P99: =InvAcct -> 239020.41 | S99: Starting Reserve Balance | T99: =InvAcct -> 239020.41 | W99: Starting Reserve Balance | X99: =InvAcct -> 239020.41 | AA99: Starting Reserve Balance | AB99: =InvAcct -> 239020.41 | AE99: Starting Reserve Balance | AF99: =InvAcct -> 239020.41 | AI99: Starting Reserve Balance | AJ99: =InvAcct -> 239020.41 | AM99: Starting Reserve Balance | AN99: =InvAcct -> 239020.41
K100: Road Ownership | L100: NP | O100: Road Ownership | P100: NP | S100: Road Ownership | T100: NP | W100: Road Ownership | X100: NP | AA100: Road Ownership | AB100: NP | AE100: Road Ownership | AF100: NP | AI100: Road Ownership | AJ100: NP | AM100: Road Ownership | AN100: NP
K101: Avenida Alegra Responsibility | L101: County | O101: Avenida Alegra Responsibility | P101: NP/VDM | S101: Avenida Alegra Responsibility | T101: NP/VDM | W101: Avenida Alegra Responsibility | X101: County | AA101: Avenida Alegra Responsibility | AB101: County | AE101: Avenida Alegra Responsibility | AF101: County | AI101: Avenida Alegra Responsibility | AJ101: County | AM101: Avenida Alegra Responsibility | AN101: County
K102: 30 Year Minimum % Funded | L102: =MIN('Summary Budget'!H23:AK23) -> 0.2774494696 | O102: 30 Year Minimum % Funded | P102: =MIN('Summary Budget'!L23:AO23) -> 0.2774494696 | S102: 30 Year Minimum % Funded | T102: =MIN('Summary Budget'!P23:AS23) -> 0.2902143454 | W102: 30 Year Minimum % Funded | X102: =MIN('Summary Budget'!T23:AW23) -> 0.2902143454 | AA102: 30 Year Minimum % Funded | AB102: =MIN('Summary Budget'!X23:BA23) -> 0.2902143454 | AE102: 30 Year Minimum % Funded | AF102: =MIN('Summary Budget'!AB23:BE23) -> 0.2902143454 | AI102: 30 Year Minimum % Funded | AJ102: =MIN('Summary Budget'!AF23:BI23) -> 0.2902143454 | AM102: 30 Year Minimum % Funded | AN102: =MIN('Summary Budget'!AJ23:BM23) -> 0.5485057843
K103: Percent Funded @ 30 Years | L103: ='Summary Budget'!AK23 -> 0.5887923199 | O103: Percent Funded @ 30 Years | P103: ='Summary Budget'!AO23 -> 0.7382320585 | S103: Percent Funded @ 30 Years | T103: ='Summary Budget'!AS23 -> 0.8324489464 | W103: Percent Funded @ 30 Years | X103: ='Summary Budget'!AW23 -> 0.9064570958 | AA103: Percent Funded @ 30 Years | AB103: ='Summary Budget'!BA23 -> 0.9893558257 | AE103: Percent Funded @ 30 Years | AF103: ='Summary Budget'!BE23 -> 0.9862792985 | AI103: Percent Funded @ 30 Years | AJ103: ='Summary Budget'!BI23 -> 0 | AM103: Percent Funded @ 30 Years | AN103: ='Summary Budget'!BM23 -> 0
K104: 30 Year Cumulative SA | L104: ='Summary Budget'!G22 -> 0 | O104: 30 Year Cumulative SA | P104: ='Summary Budget'!K22 -> 0 | S104: 30 Year Cumulative SA | T104: ='Summary Budget'!O22 -> 0 | W104: 30 Year Cumulative SA | X104: ='Summary Budget'!S22 -> 0 | AA104: 30 Year Cumulative SA | AB104: ='Summary Budget'!W22 -> 0 | AE104: 30 Year Cumulative SA | AF104: ='Summary Budget'!AA22 -> 0 | AI104: 30 Year Cumulative SA | AJ104: ='Summary Budget'!AE22 -> 0 | AM104: 30 Year Cumulative SA | AN104: ='Summary Budget'!AI22 -> 0

Sheet Scenarios to Remember
J1: Yr # | K1: 0 | L1: 1 | M1: 2 | N1: 3 | O1: 4 | P1: 5 | Q1: 6 | R1: 7 | S1: 8 | T1: 9 | U1: 10 | V1: 11 | W1: 12 | X1: 13 | Y1: 14 | Z1: 15 | AA1: 16 | AB1: 17 | AC1: 18 | AD1: 19 | AE1: 20 | AF1: 21 | AG1: 22 | AH1: 23 | AI1: 24 | AJ1: 25 | AK1: 26 | AL1: 27 | AM1: 28 | AN1: 29 | AO1: 30 | AP1: 31 | AQ1: 32 | AR1: 33 | AS1: 34 | AT1: 35 | AU1: 36 | AV1: 37 | AW1: 38 | AX1: 39 | AY1: 40 | AZ1: 41 | BA1: 42 | BB1: 43 | BC1: 44 | BD1: 45 | BE1: 46 | BF1: 47 | BG1: 48 | BH1: 49
J2: CY | K2: =BeginningYear -> 2017 | L2: =K2+1 -> 2018 | M2: =L2+1 -> 2019 | N2: 2020 | O2: 2021 | P2: 2022 | Q2: 2023 | R2: 2024 | S2: 2025 | T2: 2026 | U2: 2027 | V2: 2028 | W2: 2029 | X2: 2030 | Y2: 2031 | Z2: 2032 | AA2: 2033 | AB2: 2034 | AC2: 2035 | AD2: 2036 | AE2: 2037 | AF2: 2038 | AG2: 2039 | AH2: 2040 | AI2: 2041 | AJ2: 2042 | AK2: 2043 | AL2: 2044 | AM2: 2045 | AN2: 2046 | AO2: 2047 | AP2: 2048 | AQ2: 2049 | AR2: 2050 | AS2: 2051 | AT2: 2052 | AU2: 2053 | AV2: 2054 | AW2: 2055 | AX2: 2056 | AY2: 2057 | AZ2: 2058 | BA2: 2059 | BB2: 2060 | BC2: 2061 | BD2: 2062 | BE2: 2063 | BF2: 2064 | BG2: 2065 | BH2: 2066
A4: Scenarios to Remember
A5: Scn1 | B5: Baseline | K5: 239020.41 | L5: 173760.7293 | M5: 209939.5476 | N5: 251326.7519 | O5: 280496.3673 | P5: 278701.2618 | Q5: 0 | R5: 72024.96488 | S5: 147400.149 | T5: 27102.94278 | U5: 74550.4074 | V5: 0 | W5: 87844.5921 | X5: 152538.7921 | Y5: 217062.1439 | Z5: 167956.019 | AA5: 113338.4074 | AB5: 198206.2442 | AC5: 289217.3396 | AD5: 268803.1412 | AE5: 402988.1653 | AF5: 0 | AG5: 120690.2297 | AH5: 149940.7627 | AI5: 239846.1979 | AJ5: 318015.0013 | AK5: 363930.3588 | AL5: 469949.8544 | AM5: 657387.738 | AN5: 676618.0848 | AO5: 869511.015 | AP5: 408516.4519 | AQ5: 557764.8177 | AR5: 746070.7466 | AS5: 717048.99 | AT5: 811759.9647 | AU5: 22794.21081 | AV5: 268558.5031 | AW5: 516667.9585 | AX5: 495775.644 | AY5: 739010.2829 | AZ5: 452026.8309 | BA5: 654978.6764 | BB5: 944785.5484 | BC5: 1197923.534 | BD5: 966852.6712 | BE5: 1235896.303 | BF5: 1437487.041 | BG5: 1793853.384 | BH5: 1552193.047
A6: Scn2 | B6: Manage Expenses | K6: 239020.41 | L6: 224166.8282 | M6: 280862.6355 | N6: 337911.015 | O6: 412195.8704 | P6: 491498.9143 | Q6: 433694.78 | R6: 525936.3791 | S6: 625653.4143 | T6: 683996.5616 | U6: 771434.0656 | V6: 541507.8023 | W6: 656142.8428 | X6: 751652.3725 | Y6: 873976.4085 | Z6: 952341.2673 | AA6: 885888.0474 | AB6: 1036377.317 | AC6: 1165713.831 | AD6: 1280543.24 | AE6: 1463531.34 | AF6: 557118.8698 | AG6: 714483.7455 | AH6: 914290.3735 | AI6: 1041599.201 | AJ6: 1218865.045 | AK6: 1267255.28 | AL6: 1415860.841 | AM6: 1652799.726 | AN6: 1796152.035 | AO6: 2054990.273 | AP6: 1643159.484 | AQ6: 1848952.395 | AR6: 2094755.936 | AS6: 2191806.407 | AT6: 2503612.884 | AU6: 2533811.022 | AV6: 2788165.374 | AW6: 3102689.49 | AX6: 3283127.35 | AY6: 3615515.54 | AZ6: 3335018.88 | BA6: 3606869.078 | BB6: 3974274.422 | BC6: 4339303.148 | BD6: 4706871.717 | BE6: 4981351.18 | BF6: 5344388.663 | BG6: 5790855.085 | BH6: 5977014.294
A7: Scn3 | B7: Manage Income | K7: 239020.41 | L7: 229814.1415 | M7: 290490.0642 | N7: 352283.9398 | O7: 431914.5031 | P7: 517458.986 | Q7: 470998.0855 | R7: 570261.7954 | S7: 678255.2466 | T7: 747773.7572 | U7: 845680.8638 | V7: 632942.6033 | W7: 757259.941 | X7: 863865.7935 | Y7: 998738.3832 | Z7: 1092252.527 | AA7: 1050813.372 | AB7: 1216690.501 | AC7: 1363189.173 | AD7: 1496886.923 | AE7: 1700977.744 | AF7: 825214.9646 | AG7: 996821.6056 | AH7: 1213358.107 | AI7: 1359843.108 | AJ7: 1558051.695 | AK7: 1637417.03 | AL7: 1810275.075 | AM7: 2074307.979 | AN7: 2247842.601 | AO7: 2538991.023 | AP7: 2182846.111 | AQ7: 2420161.501 | AR7: 2700586.487 | AS7: 2829376.923 | AT7: 3181194.549 | AU7: 3270800.481 | AV7: 3569775.409 | AW7: 3932901.213 | AX7: 4167115.674 | AY7: 4555120.828 | AZ7: 4373950.029 | BA7: 4703606.06 | BB7: 5133500.112 | BC7: 5565849.861 | BD7: 6005654.85 | BE7: 6356472.932 | BF7: 6800732.753 | BG7: 7334260.075 | BH7: 7622531.325
A8: Scn4 | B8: Diminished growth rate | K8: 239020.41 | L8: 229814.1415 | M8: 288469.9986 | N8: 345917.2523 | O8: 418911.7635 | P8: 495176.2441 | Q8: 426965.0025 | R8: 510498.9953 | S8: 599007.0221 | T8: 638665.8427 | U8: 706460.4161 | V8: 434731.1736 | W8: 519476.1476 | X8: 575995.8631 | Y8: 659462.1543 | Z8: 681445.2599 | AA8: 529633.2987 | AB8: 625476.4886 | AC8: 689639.9137 | AD8: 725073.1049 | AE8: 838062.202 | AF8: 0 | AG8: 53571.24125 | AH8: 151607.7342 | AI8: 138586.3028 | AJ8: 183937.9866 | AK8: 28307.4734 | AL8: 5780.295302 | AM8: 97526.62261 | AN8: 36991.87601 | AO8: 134575.3471 | AP8: 0 | AQ8: 0 | AR8: 40847.58546 | AS8: 0 | AT8: 104558.0977 | AU8: 0 | AV8: 0 | AW8: 62521.3119 | AX8: 0 | AY8: 54092.44933 | AZ8: 0 | BA8: 0 | BB8: 49683.18396 | BC8: 76538.25652 | BD8: 87006.04097 | BE8: 0 | BF8: 0 | BG8: 59431.59116 | BH8: 0
A9: Scn5 | B9: Dues at market reference | K9: 239020.41 | L9: 246639.3872 | M9: 320557.8124 | N9: 397064.2528 | O9: 491926.4431 | P9: 594253.9648 | Q9: 580571.4373 | R9: 700147.2754 | S9: 830278.9496 | T9: 925267.7829 | U9: 1049283.173 | V9: 886803.9675 | W9: 1041864.583 | X9: 1181584.649 | Y9: 1351759.373 | Z9: 1483621.765 | AA9: 1505928.698 | AB9: 1714604.838 | AC9: 1906547.597 | AD9: 2088460.166 | AE9: 2343667.415 | AF9: 1564264.661 | AG9: 1793679.862 | AH9: 2071357.861 | AI9: 2282471.199 | AJ9: 2548955.165 | AK9: 2709165.218 | AL9: 2956849.663 | AM9: 3298433.415 | AN9: 3552330.457 | AO9: 3926742.67 | AP9: 3724081.239 | AQ9: 4051499.282 | AR9: 4425223.05 | AS9: 4652813.091 | AT9: 5104653.902 | AU9: 5313863.009 | AV9: 5720172.964 | AW9: 6194371.371 | AX9: 6543513.955 | AY9: 7050424.301 | AZ9: 7077404.72 | BA9: 7535256.7 | BB9: 8097721.897 | BC9: 8667155.192 | BD9: 9248697.517 | BE9: 9746052.423 | BF9: 10341798.69 | BG9: 11031916.8 | BH9: 11482042.59
A10: Scn6 | B10: Corp events | K10: 239020.41 | L10: 235605.2391 | M10: 301827.7593 | N10: 371280.3894 | O10: 461195.8546 | P10: 559274.5219 | Q10: 539375.3748 | R10: 656242.1546 | S10: 784542.9413 | T10: 878645.4671 | U10: 1002788.86 | V10: 842472.4758 | W10: 997670.9857 | X10: 1136360.896 | Y10: 1304559.624 | Z10: 1433433.971 | AA10: 1449933.485 | AB10: 1653366.242 | AC10: 1838834.752 | AD10: 2012962.21 | AE10: 2258989.673 | AF10: 1460614.949 | AG10: 1677700.12 | AH10: 1941376.43 | AI10: 2136715.692 | AJ10: 2385547.802 | AK10: 2525974.79 | AL10: 2753262.89 | AM10: 3073670.923 | AN10: 3305587.609 | AO10: 3657188.787 | AP10: 3412412.479 | AQ10: 3715069.426 | AR10: 4063116.045 | AS10: 4264083.457 | AT10: 4688325.824 | AU10: 4867997.576 | AV10: 5244652.227 | AW10: 5688122.69 | AX10: 6005430.456 | AY10: 6479363.822 | AZ10: 6456292.688 | BA10: 6878594.477 | BB10: 7404252.832 | BC10: 7935582.797 | BD10: 8477684.248 | BE10: 8934218.426 | BF10: 9487720.505 | BG10: 10134126.02 | BH10: 10539024.51
A11: Scn7 | B11: Sell memberships | K11: 239020.41 | L11: 275927.3534 | M11: 362975.3646 | N11: 449544.3685 | O11: 551163.23 | P11: 656690.6057 | Q11: 665128.3447 | R11: 780242.4213 | S11: 901528.0423 | T11: 982982.0735 | U11: 1088454.624 | V11: 938610.5375 | W11: 1064502.403 | X11: 1168997.099 | Y11: 1297810.894 | Z11: 1394985.685 | AA11: 1359601.193 | AB11: 1528949.098 | AC11: 1678957.556 | AD11: 1816204.543 | AE11: 2023884.495 | AF11: 1154579.85 | AG11: 1329888.552 | AH11: 1550168.726 | AI11: 1700439.478 | AJ11: 1902476.368 | AK11: 1986677.426 | AL11: 2163461.158 | AM11: 2431463.873 | AN11: 2609012.927 | AO11: 2904220.904 | AP11: 2555380.589 | AQ11: 2796883.267 | AR11: 3081542.606 | AS11: 3214995.945 | AT11: 3571147.928 | AU11: 3667008.713 | AV11: 3970437.022 | AW11: 4338066.262 | AX11: 4576834.778 | AY11: 4969445.175 | AZ11: 4796560.863 | BA11: 5130967.039 | BB11: 5565664.629 | BC11: 6002871.907 | BD11: 6447589.023 | BE11: 6803374.446 | BF11: 7252657.44 | BG11: 7791264.395 | BH11: 8084672.374
A12: Scn8
A13: Scn9
A14: Scn10
A15: Scn11
A16: Scn12
A17: Scn13
A18: Scn14
A19: Scn15
A20: Scn16
A21: Scn17
A22: Scn18
A23: Scn19
A24: Scn20

Sheet Summary Budget
J1: Yr # | K1: 0 | L1: 1 | M1: 2 | N1: 3 | O1: 4 | P1: 5 | Q1: 6 | R1: 7 | S1: 8 | T1: 9 | U1: 10 | V1: 11 | W1: 12 | X1: 13 | Y1: 14 | Z1: 15 | AA1: 16 | AB1: 17 | AC1: 18 | AD1: 19 | AE1: 20 | AF1: 21 | AG1: 22 | AH1: 23 | AI1: 24 | AJ1: 25 | AK1: 26 | AL1: 27 | AM1: 28 | AN1: 29 | AO1: 30 | AP1: 31 | AQ1: 32 | AR1: 33 | AS1: 34 | AT1: 35 | AU1: 36 | AV1: 37 | AW1: 38 | AX1: 39 | AY1: 40 | AZ1: 41 | BA1: 42 | BB1: 43 | BC1: 44 | BD1: 45 | BE1: 46 | BF1: 47 | BG1: 48 | BH1: 49
J2: CY | K2: =BeginningYear -> 2017 | L2: =K2+1 -> 2018 | M2: =L2+1 -> 2019 | N2: 2020 | O2: 2021 | P2: 2022 | Q2: 2023 | R2: 2024 | S2: 2025 | T2: 2026 | U2: 2027 | V2: 2028 | W2: 2029 | X2: 2030 | Y2: 2031 | Z2: 2032 | AA2: 2033 | AB2: 2034 | AC2: 2035 | AD2: 2036 | AE2: 2037 | AF2: 2038 | AG2: 2039 | AH2: 2040 | AI2: 2041 | AJ2: 2042 | AK2: 2043 | AL2: 2044 | AM2: 2045 | AN2: 2046 | AO2: 2047 | AP2: 2048 | AQ2: 2049 | AR2: 2050 | AS2: 2051 | AT2: 2052 | AU2: 2053 | AV2: 2054 | AW2: 2055 | AX2: 2056 | AY2: 2057 | AZ2: 2058 | BA2: 2059 | BB2: 2060 | BC2: 2061 | BD2: 2062 | BE2: 2063 | BF2: 2064 | BG2: 2065 | BH2: 2066 | BI2: Comments
J3: Inflation Multiplier | K3: =CPI!DE6 -> 1 | L3: =CPI!DF6 -> 1.03 | M3: =CPI!DG6 -> 1.0609 | N3: =CPI!DH6 -> 1.092727 | O3: =CPI!DI6 -> 1.12550881 | P3: =CPI!DJ6 -> 1.159274074 | Q3: =CPI!DK6 -> 1.194052297 | R3: =CPI!DL6 -> 1.229873865 | S3: =CPI!DM6 -> 1.266770081 | T3: =CPI!DN6 -> 1.304773184 | U3: =CPI!DO6 -> 1.343916379 | V3: =CPI!DP6 -> 1.384233871 | W3: =CPI!DQ6 -> 1.425760887 | X3: =CPI!DR6 -> 1.468533713 | Y3: =CPI!DS6 -> 1.512589725 | Z3: =CPI!DT6 -> 1.557967417 | AA3: =CPI!DU6 -> 1.604706439 | AB3: =CPI!DV6 -> 1.652847632 | AC3: =CPI!DW6 -> 1.702433061 | AD3: =CPI!DX6 -> 1.753506053 | AE3: =CPI!DY6 -> 1.806111235 | AF3: =CPI!DZ6 -> 1.860294572 | AG3: =CPI!EA6 -> 1.916103409 | AH3: =CPI!EB6 -> 1.973586511 | AI3: =CPI!EC6 -> 2.032794106 | AJ3: =CPI!ED6 -> 2.09377793 | AK3: =CPI!EE6 -> 2.156591268 | AL3: =CPI!EF6 -> 2.221289006 | AM3: =CPI!EG6 -> 2.287927676 | AN3: =CPI!EH6 -> 2.356565506 | AO3: =CPI!EI6 -> 2.427262471 | AP3: =CPI!EJ6 -> 2.500080345 | AQ3: =CPI!EK6 -> 2.575082756 | AR3: =CPI!EL6 -> 2.652335238 | AS3: =CPI!EM6 -> 2.731905296 | AT3: =CPI!EN6 -> 2.813862454 | AU3: =CPI!EO6 -> 2.898278328 | AV3: =CPI!EP6 -> 2.985226678 | AW3: =CPI!EQ6 -> 3.074783478 | AX3: =CPI!ER6 -> 3.167026983 | AY3: =CPI!ES6 -> 3.262037792 | AZ3: =CPI!ET6 -> 3.359898926 | BA3: =CPI!EU6 -> 3.460695894 | BB3: =CPI!EV6 -> 3.56451677 | BC3: =CPI!EW6 -> 3.671452273 | BD3: =CPI!EX6 -> 3.781595842 | BE3: =CPI!EY6 -> 3.895043717 | BF3: =CPI!EZ6 -> 4.011895028 | BG3: =CPI!FA6 -> 4.132251879 | BH3: =CPI!FB6 -> 4.256219436
A4: Income | K4: =SUM(K5:K10) -> 446574.9016 | L4: =SUM(L5:L10) -> 459805.4108 | M4: 472871.2764 | N4: 485697.7732 | O4: 499812.0508 | P4: 514286.4661 | Q4: 528178.2255 | R4: 543538.2355 | S4: 559302.5036 | T4: 583042.7467 | U4: 600171.6064 | V4: 615965.7351 | W4: 633863.7592 | X4: 657143.8328 | Y4: 681206.6857 | Z4: 706014.5102 | AA4: 731789.79 | AB4: 758536.286 | AC4: 786204.8611 | AD4: 814908.4736 | AE4: 843974.4089 | AF4: 874151.7862 | AG4: 905996.9148 | AH4: 938888.8685 | AI4: 972969.1509 | AJ4: 1008137.857 | AK4: 1036773.046 | AL4: 1068076.347 | AM4: 1100232.224 | AN4: 1133447.279 | AO4: 1167219.717 | AP4: 1202101.934 | AQ4: 1238367.788 | AR4: 1251243.955 | AS4: 1314065.949 | AT4: 1353505.083 | AU4: 1394236.836 | AV4: 1436309.716 | AW4: 1479513.039 | AX4: 1524132.32 | AY4: 1569669.131 | AZ4: 1616693.277 | BA4: 1665467.194 | BB4: 1715701.823 | BC4: 1767433.637 | BD4: 1820614.549 | BE4: 1875456.755 | BF4: 1932024.99 | BG4: 1990042.501 | BH4: 2049941.873
A5: HOA Dues | I5: =SUM(K5:AO5) -> 9026035.563 | K5: =Income!K5 -> 104110.8 | L5: =Income!L5 -> 113285.58 | M5: =Income!M5 -> 122917.1471 | N5: =Income!N5 -> 133024.6512 | O5: =Income!O5 -> 143627.9801 | P5: =Income!P5 -> 154747.7865 | Q5: =Income!Q5 -> 166405.5161 | R5: =Income!R5 -> 178623.4366 | S5: =Income!S5 -> 191424.6672 | T5: =Income!T5 -> 204833.2107 | U5: =Income!U5 -> 218873.9845 | V5: =Income!V5 -> 233572.8549 | W5: =Income!W5 -> 248956.6709 | X5: =Income!X5 -> 260200.0901 | Y5: =Income!Y5 -> 271894.0534 | Z5: =Income!Z5 -> 284055.4745 | AA5: =Income!AA5 -> 296701.8761 | AB5: =Income!AB5 -> 309851.412 | AC5: =Income!AC5 -> 323522.8883 | AD5: =Income!AD5 -> 337735.7869 | AE5: =Income!AE5 -> 352510.2888 | AF5: =Income!AF5 -> 367867.2986 | AG5: =Income!AG5 -> 383828.4698 | AH5: =Income!AH5 -> 400416.2306 | AI5: =Income!AI5 -> 417653.8115 | AJ5: =Income!AJ5 -> 435565.2727 | AK5: =Income!AK5 -> 446367.81 | AL5: =Income!AL5 -> 459758.8443 | AM5: =Income!AM5 -> 473551.6096 | AN5: =Income!AN5 -> 487759.1579 | AO5: =Income!AO5 -> 502390.9027 | AP5: =Income!AP5 -> 517462.6297 | AQ5: =Income!AQ5 -> 532986.5086 | AR5: =Income!AR5 -> 548976.1039 | AS5: =Income!AS5 -> 565445.387 | AT5: =Income!AT5 -> 582408.7486 | AU5: =Income!AU5 -> 599881.0111 | AV5: =Income!AV5 -> 617877.4414 | AW5: =Income!AW5 -> 636413.7647 | AX5: =Income!AX5 -> 655506.1776 | AY5: =Income!AY5 -> 675171.3629 | AZ5: =Income!AZ5 -> 695426.5038 | BA5: =Income!BA5 -> 716289.2989 | BB5: =Income!BB5 -> 737777.9779 | BC5: =Income!BC5 -> 759911.3172 | BD5: =Income!BD5 -> 782708.6568 | BE5: =Income!BE5 -> 806189.9165 | BF5: =Income!BF5 -> 830375.6139 | BG5: =Income!BG5 -> 855286.8824 | BH5: =Income!BH5 -> 880945.4888
A6: Apartment Rent | K6: =Income!K20 -> 17100 | L6: =Income!L20 -> 17613 | M6: =Income!M20 -> 18141.39 | N6: =Income!N20 -> 18685.6317 | O6: =Income!O20 -> 19246.20065 | P6: =Income!P20 -> 19823.58667 | Q6: =Income!Q20 -> 20418.29427 | R6: =Income!R20 -> 21030.8431 | S6: =Income!S20 -> 21661.76839 | T6: =Income!T20 -> 22311.62144 | U6: =Income!U20 -> 22980.97009 | V6: =Income!V20 -> 23670.39919 | W6: =Income!W20 -> 24380.51117 | X6: =Income!X20 -> 25111.9265 | Y6: =Income!Y20 -> 25865.2843 | Z6: =Income!Z20 -> 26641.24282 | AA6: =Income!AA20 -> 27440.48011 | AB6: =Income!AB20 -> 28263.69451 | AC6: =Income!AC20 -> 29111.60535 | AD6: =Income!AD20 -> 29984.95351 | AE6: =Income!AE20 -> 30884.50211 | AF6: =Income!AF20 -> 31811.03718 | AG6: =Income!AG20 -> 32765.36829 | AH6: =Income!AH20 -> 33748.32934 | AI6: =Income!AI20 -> 34760.77922 | AJ6: =Income!AJ20 -> 35803.6026 | AK6: =Income!AK20 -> 36877.71067 | AL6: =Income!AL20 -> 37984.042 | AM6: =Income!AM20 -> 39123.56326 | AN6: =Income!AN20 -> 40297.27015 | AO6: =Income!AO20 -> 41506.18826 | AP6: =Income!AP20 -> 42751.37391 | AQ6: =Income!AQ20 -> 44033.91512 | AR6: =Income!AR20 -> 45354.93258 | AS6: =Income!AS20 -> 46715.58055 | AT6: =Income!AT20 -> 48117.04797 | AU6: =Income!AU20 -> 49560.55941 | AV6: =Income!AV20 -> 51047.37619 | AW6: =Income!AW20 -> 52578.79748 | AX6: =Income!AX20 -> 54156.1614 | AY6: =Income!AY20 -> 55780.84624 | AZ6: =Income!AZ20 -> 57454.27163 | BA6: =Income!BA20 -> 59177.89978 | BB6: =Income!BB20 -> 60953.23677 | BC6: =Income!BC20 -> 62781.83388 | BD6: =Income!BD20 -> 64665.28889 | BE6: =Income!BE20 -> 66605.24756 | BF6: =Income!BF20 -> 68603.40499 | BG6: =Income!BG20 -> 70661.50714 | BH6: =Income!BH20 -> 72781.35235
A7: Events (Excluding Outside Weddings) | K7: =Income!K24 -> 2560 | L7: =Income!L24 -> 2909.572414 | M7: =Income!M24 -> 2996.859586 | N7: =Income!N24 -> 3376.149628 | O7: =Income!O24 -> 3775.499898 | P7: =Income!P24 -> 4195.77265 | Q7: =Income!Q24 -> 4637.863817 | R7: =Income!R24 -> 5102.704258 | S7: =Income!S24 -> 5591.261049 | T7: =Income!T24 -> 6104.538813 | U7: =Income!U24 -> 6643.581108 | V7: =Income!V24 -> 7209.471856 | W7: =Income!W24 -> 7803.336826 | X7: =Income!X24 -> 8426.34517 | Y7: =Income!Y24 -> 9079.71101 | Z7: =Income!Z24 -> 9764.695091 | AA7: =Income!AA24 -> 10482.60648 | AB7: =Income!AB24 -> 11234.80432 | AC7: =Income!AC24 -> 12022.69969 | AD7: =Income!AD24 -> 12847.75745 | AE7: =Income!AE24 -> 13711.49826 | AF7: =Income!AF24 -> 14615.50052 | AG7: =Income!AG24 -> 15561.40258 | AH7: =Income!AH24 -> 16550.90481 | AI7: =Income!AI24 -> 17585.77191 | AJ7: =Income!AJ24 -> 18667.83522 | AK7: =Income!AK24 -> 19798.99514 | AL7: =Income!AL24 -> 20392.96499 | AM7: =Income!AM24 -> 21004.75394 | AN7: =Income!AN24 -> 21634.89656 | AO7: =Income!AO24 -> 22283.94346 | AP7: =Income!AP24 -> 22952.46176 | AQ7: =Income!AQ24 -> 23641.03562 | AS7: =Income!AS24 -> 25080.77469 | AT7: =Income!AT24 -> 25833.19793 | AU7: =Income!AU24 -> 26608.19386 | AV7: =Income!AV24 -> 27406.43968 | AW7: =Income!AW24 -> 28228.63287 | AX7: =Income!AX24 -> 29075.49186 | AY7: =Income!AY24 -> 29947.75661 | AZ7: =Income!AZ24 -> 30846.18931 | BA7: =Income!BA24 -> 31771.57499 | BB7: =Income!BB24 -> 32724.72224 | BC7: =Income!BC24 -> 33706.46391 | BD7: =Income!BD24 -> 34717.65782 | BE7: =Income!BE24 -> 35759.18756 | BF7: =Income!BF24 -> 36831.96318 | BG7: =Income!BG24 -> 37936.92208 | BH7: =Income!BH24 -> 39075.02974
A8: Weddings | K8: =Income!K29 -> 322555.9457 | L8: =Income!L29 -> 325729.0025 | M8: =Income!M29 -> 328494.4814 | N8: =Income!N29 -> 330221.6718 | O8: =Income!O29 -> 332695.2416 | P8: =Income!P29 -> 335066.397 | Q8: =Income!Q29 -> 336237.0928 | R8: =Income!R29 -> 338201.878 | S8: =Income!S29 -> 339981.9368 | T8: =Income!T29 -> 349072.3377 | U8: =Income!U29 -> 351058.7569 | V8: =Income!V29 -> 350948.6048 | W8: =Income!W29 -> 352061.0591 | X8: =Income!X29 -> 362622.8909 | Y8: =Income!Y29 -> 373501.5776 | Z8: =Income!Z29 -> 384706.625 | AA8: =Income!AA29 -> 396247.8237 | AB8: =Income!AB29 -> 408135.2584 | AC8: =Income!AC29 -> 420379.3162 | AD8: =Income!AD29 -> 432990.6957 | AE8: =Income!AE29 -> 445980.4165 | AF8: =Income!AF29 -> 459359.829 | AG8: =Income!AG29 -> 473140.6239 | AH8: =Income!AH29 -> 487334.8426 | AI8: =Income!AI29 -> 501954.8879 | AJ8: =Income!AJ29 -> 517013.5345 | AK8: =Income!AK29 -> 532523.9406 | AL8: =Income!AL29 -> 548499.6588 | AM8: =Income!AM29 -> 564954.6486 | AN8: =Income!AN29 -> 581903.288 | AO8: =Income!AO29 -> 599360.3867 | AP8: =Income!AP29 -> 617341.1982 | AQ8: =Income!AQ29 -> 635861.4342 | AR8: =Income!AR29 -> 654937.2772 | AS8: =Income!AS29 -> 674585.3955 | AT8: =Income!AT29 -> 694822.9574 | AU8: =Income!AU29 -> 715667.6461 | AV8: =Income!AV29 -> 737137.6755 | AW8: =Income!AW29 -> 759251.8058 | AX8: =Income!AX29 -> 782029.36 | AY8: =Income!AY29 -> 805490.2407 | AZ8: =Income!AZ29 -> 829654.948 | BA8: =Income!BA29 -> 854544.5964 | BB8: =Income!BB29 -> 880180.9343 | BC8: =Income!BC29 -> 906586.3623 | BD8: =Income!BD29 -> 933783.9532 | BE8: =Income!BE29 -> 961797.4718 | BF8: =Income!BF29 -> 990651.396 | BG8: =Income!BG29 -> 1020370.938 | BH8: =Income!BH29 -> 1050982.066
A9: Investment Interest | K9: =Income!K61 -> 248.1559439 | L9: =Income!L61 -> 268.2558917 | M9: =Income!M61 -> 321.39837 | N9: =Income!N61 -> 389.668925 | O9: =Income!O61 -> 467.1285873 | P9: =Income!P61 -> 452.9233312 | Q9: =Income!Q61 -> 479.4584696 | R9: =Income!R61 -> 579.3736664 | S9: =Income!S61 -> 642.8701267 | T9: =Income!T61 -> 721.0379962 | U9: =Income!U61 -> 614.3137961 | V9: =Income!V61 -> 564.4042896 | W9: =Income!W61 -> 662.181161 | X9: =Income!X61 -> 782.580137 | Y9: =Income!Y61 -> 866.0593476 | Z9: =Income!Z61 -> 846.4728259 | AA9: =Income!AA61 -> 917.0035327 | AB9: =Income!AB61 -> 1051.116828 | AC9: =Income!AC61 -> 1168.351649 | AD9: =Income!AD61 -> 1349.280087 | AE9: =Income!AE61 -> 887.7032217 | AF9: =Income!AF61 -> 498.1208985 | AG9: =Income!AG61 -> 701.0502111 | AH9: =Income!AH61 -> 838.5610563 | AI9: =Income!AI61 -> 1013.900345 | AJ9: =Income!AJ61 -> 1087.612085 | AK9: =Income!AK61 -> 1204.589439 | AL9: =Income!AL61 -> 1440.83729 | AM9: =Income!AM61 -> 1597.648124 | AN9: =Income!AN61 -> 1852.666558 | AO9: =Income!AO61 -> 1678.296358 | AP9: =Income!AP61 -> 1594.270187 | AQ9: =Income!AQ61 -> 1844.894127 | AR9: =Income!AR61 -> 1975.641089 | AS9: =Income!AS61 -> 2238.810977 | AT9: =Income!AT61 -> 2323.130593 | AU9: =Income!AU61 -> 2519.425639 | AV9: =Income!AV61 -> 2840.782935 | AW9: =Income!AW61 -> 3040.037983 | AX9: =Income!AX61 -> 3365.129669 | AY9: =Income!AY61 -> 3278.924932 | AZ9: =Income!AZ61 -> 3311.364708 | BA9: =Income!BA61 -> 3683.824236 | BB9: =Income!BB61 -> 4064.951624 | BC9: =Income!BC61 -> 4447.660087 | BD9: =Income!BD61 -> 4738.991867 | BE9: =Income!BE61 -> 5104.931555 | BF9: =Income!BF61 -> 5562.61154 | BG9: =Income!BG61 -> 5786.251465 | BH9: =Income!BH61 -> 6157.936089
A10: External Wellness Memberships | K10: =Income!K57 -> 0 | L10: =Income!L57 -> 0 | M10: =Income!M57 -> 0 | N10: =Income!N57 -> 0 | O10: =Income!O57 -> 0 | P10: =Income!P57 -> 0 | Q10: =Income!Q57 -> 0 | R10: =Income!R57 -> 0 | S10: =Income!S57 -> 0 | T10: =Income!T57 -> 0 | U10: =Income!U57 -> 0 | V10: =Income!V57 -> 0 | W10: =Income!W57 -> 0 | X10: =Income!X57 -> 0 | Y10: =Income!Y57 -> 0 | Z10: =Income!Z57 -> 0 | AA10: =Income!AA57 -> 0 | AB10: =Income!AB57 -> 0 | AC10: =Income!AC57 -> 0 | AD10: =Income!AD57 -> 0 | AE10: =Income!AE57 -> 0 | AF10: =Income!AF57 -> 0 | AG10: =Income!AG57 -> 0 | AH10: =Income!AH57 -> 0 | AI10: =Income!AI57 -> 0 | AJ10: =Income!AJ57 -> 0 | AK10: =Income!AK57 -> 0 | AL10: =Income!AL57 -> 0 | AM10: =Income!AM57 -> 0 | AN10: =Income!AN57 -> 0 | AO10: =Income!AO57 -> 0 | AP10: =Income!AP57 -> 0 | AQ10: =Income!AQ57 -> 0 | AR10: =Income!AR57 -> 0 | AS10: =Income!AS57 -> 0 | AT10: =Income!AT57 -> 0 | AU10: =Income!AU57 -> 0 | AV10: =Income!AV57 -> 0 | AW10: =Income!AW57 -> 0 | AX10: =Income!AX57 -> 0 | AY10: =Income!AY57 -> 0 | AZ10: =Income!AZ57 -> 0 | BA10: =Income!BA57 -> 0 | BB10: =Income!BB57 -> 0 | BC10: =Income!BC57 -> 0 | BD10: =Income!BD57 -> 0 | BE10: =Income!BE57 -> 0 | BF10: =Income!BF57 -> 0 | BG10: =Income!BG57 -> 0 | BH10: =Income!BH57 -> 0
A11: Dues + Apt rent | K11: =SUM(K5:K6) -> 121210.8 | L11: 130898.58 | M11: 141058.5371 | N11: 151710.2829 | O11: 162874.1807 | P11: 174571.3732 | Q11: 186823.8104 | R11: 199654.2797 | S11: 213086.4356 | T11: 227144.8321 | U11: 241854.9546 | V11: 257243.2541 | W11: 273337.1821 | X11: 285312.0166 | Y11: 297759.3377 | Z11: 310696.7173 | AA11: 324142.3562 | AB11: 338115.1065 | AC11: 352634.4936 | AD11: 367720.7404 | AE11: 383394.7909 | AF11: 399678.3358 | AG11: 416593.8381 | AH11: 434164.56 | AI11: 452414.5907 | AJ11: 471368.8753 | AK11: 483245.5207 | AL11: 497742.8863 | AM11: 512675.1729 | AN11: 528056.4281 | AO11: 543897.0909 | AP11: 560214.0037 | AQ11: =SUM(AQ5:AQ6) -> 577020.4238 | AR11: 594331.0365 | AS11: 612160.9676 | AT11: 630525.7966 | AU11: 649441.5705 | AV11: 668924.8176 | AW11: 688992.5621 | AX11: 709662.339 | AY11: 730952.2092 | AZ11: 752880.7754 | BA11: 775467.1987 | BB11: 798731.2147 | BC11: 822693.1511 | BD11: 847373.9456 | BE11: 872795.164 | BF11: 898979.0189 | BG11: 925948.3895 | BH11: 953726.8412
A12: Expenses | K12: =SUM(K13:K15) -> 473174.9404 | L12: =SUM(L13:L15) -> 411384.0131 | M12: 424489.4241 | N12: 419113.2289 | O12: 428212.65 | P12: 585151.71 | Q12: 443416.9201 | R12: 451439.3246 | S12: 510649.12 | T12: 504207.0771 | U12: 844406.3024 | V12: 509518.9839 | W12: 547428.1158 | X12: 543298.2074 | Y12: 613615.2482 | Z12: 788079.2431 | AA12: 590226.8141 | AB12: 638275.3183 | AC12: 681421.8006 | AD12: 641297.1523 | AE12: 1767340.741 | AF12: 726471.3497 | AG12: 716026.8873 | AH12: 822457.7723 | AI12: 805845.4565 | AJ12: 974438.6906 | AK12: 899354.8874 | AL12: 841902.858 | AM12: 968956.4187 | AN12: 886033.7125 | AO12: 1599991.608 | AP12: 1008438.148 | AQ12: 1005058.568 | AR12: =SUM(AR13:AR15) -> 1182255.023 | AS12: 1015526.776 | AT12: 1342809.491 | AU12: 1153963.505 | AV12: 1136289.997 | AW12: 1315344.876 | AX12: 1207134.586 | AY12: 1878374.139 | AZ12: 1361180.324 | BA12: 1314889.911 | BB12: 1368006.7 | BC12: 1417719.378 | BD12: 1564588.281 | BE12: 1531362.37 | BF12: 1505070.658 | BG12: 1828988.103 | BH12: 1671708.709
A13: Operating Expenses | K13: ='Operating Expenses'!K4 -> 238875.9549 | L13: ='Operating Expenses'!L4 -> 258769.0721 | M13: ='Operating Expenses'!M4 -> 263884.6217 | N13: ='Operating Expenses'!N4 -> 278452.7024 | O13: ='Operating Expenses'!O4 -> 286615.8258 | P13: ='Operating Expenses'!P4 -> 265570.4707 | Q13: ='Operating Expenses'!Q4 -> 305575.2051 | R13: ='Operating Expenses'!R4 -> 316206.1525 | S13: ='Operating Expenses'!S4 -> 296792.2746 | T13: ='Operating Expenses'!T4 -> 318806.0566 | U13: ='Operating Expenses'!U4 -> 296123.9201 | V13: ='Operating Expenses'!V4 -> 349290.0843 | W13: ='Operating Expenses'!W4 -> 340558.1322 | X13: ='Operating Expenses'!X4 -> 368561.6858 | Y13: ='Operating Expenses'!Y4 -> 348523.395 | Z13: ='Operating Expenses'!Z4 -> 337186.2038 | AA13: ='Operating Expenses'!AA4 -> 416111.7265 | AB13: ='Operating Expenses'!AB4 -> 408683.3042 | AC13: ='Operating Expenses'!AC4 -> 407642.3575 | AD13: ='Operating Expenses'!AD4 -> 469443.2736 | AE13: ='Operating Expenses'!AE4 -> 390891.2243 | AF13: ='Operating Expenses'!AF4 -> 469582.7771 | AG13: ='Operating Expenses'!AG4 -> 513176.1677 | AH13: ='Operating Expenses'!AH4 -> 469373.1685 | AI13: ='Operating Expenses'!AI4 -> 517606.5458 | AJ13: ='Operating Expenses'!AJ4 -> 464077.2873 | AK13: ='Operating Expenses'!AK4 -> 519357.5404 | AL13: ='Operating Expenses'!AL4 -> 599546.0238 | AM13: ='Operating Expenses'!AM4 -> 541786.5545 | AN13: ='Operating Expenses'!AN4 -> 641877.1614 | AO13: ='Operating Expenses'!AO4 -> 525325.1188 | AP13: ='Operating Expenses'!AP4 -> 627334.0943 | AQ13: ='Operating Expenses'!AQ4 -> 672524.1494 | AR13: ='Operating Expenses'!AR4 -> 600447.7498 | AS13: ='Operating Expenses'!AS4 -> 753244.8961 | AT13: ='Operating Expenses'!AT4 -> 615140.5844 | AU13: ='Operating Expenses'!AU4 -> 739537.9153 | AV13: ='Operating Expenses'!AV4 -> 802670.185 | AW13: ='Operating Expenses'!AW4 -> 720345.9716 | AX13: ='Operating Expenses'!AX4 -> 850544.9429 | AY13: ='Operating Expenses'!AY4 -> 705993.0317 | AZ13: ='Operating Expenses'!AZ4 -> 839378.7262 | BA13: ='Operating Expenses'!BA4 -> 932675.2765 | BB13: ='Operating Expenses'!BB4 -> 950212.5252 | BC13: ='Operating Expenses'!BC4 -> 972163.1493 | BD13: ='Operating Expenses'!BD4 -> 920246.1422 | BE13: ='Operating Expenses'!BE4 -> 1010389.499 | BF13: ='Operating Expenses'!BF4 -> 1097233.669 | BG13: ='Operating Expenses'!BG4 -> 942115.0958 | BH13: ='Operating Expenses'!BH4 -> 1105819.369
A14: Annual Maintenance/Repairs/Replacements | K14: ='Annual Maintenance'!K4 -> 88865.042 | L14: ='Annual Maintenance'!L4 -> 91530.99326 | M14: ='Annual Maintenance'!M4 -> 94276.92306 | N14: ='Annual Maintenance'!N4 -> 97105.23075 | O14: ='Annual Maintenance'!O4 -> 100018.3877 | P14: ='Annual Maintenance'!P4 -> 103018.9393 | Q14: ='Annual Maintenance'!Q4 -> 106109.5075 | R14: ='Annual Maintenance'!R4 -> 109292.7927 | S14: ='Annual Maintenance'!S4 -> 112571.5765 | T14: ='Annual Maintenance'!T4 -> 115948.7238 | U14: ='Annual Maintenance'!U4 -> 119427.1855 | V14: ='Annual Maintenance'!V4 -> 123010.0011 | W14: ='Annual Maintenance'!W4 -> 126700.3011 | X14: ='Annual Maintenance'!X4 -> 130501.3101 | Y14: ='Annual Maintenance'!Y4 -> 134416.3494 | Z14: ='Annual Maintenance'!Z4 -> 138448.8399 | AA14: ='Annual Maintenance'!AA4 -> 142602.3051 | AB14: ='Annual Maintenance'!AB4 -> 146880.3743 | AC14: ='Annual Maintenance'!AC4 -> 151286.7855 | AD14: ='Annual Maintenance'!AD4 -> 155825.3891 | AE14: ='Annual Maintenance'!AE4 -> 160500.1507 | AF14: ='Annual Maintenance'!AF4 -> 165315.1552 | AG14: ='Annual Maintenance'!AG4 -> 170274.6099 | AH14: ='Annual Maintenance'!AH4 -> 175382.8482 | AI14: ='Annual Maintenance'!AI4 -> 180644.3336 | AJ14: ='Annual Maintenance'!AJ4 -> 186063.6637 | AK14: ='Annual Maintenance'!AK4 -> 191645.5736 | AL14: ='Annual Maintenance'!AL4 -> 197394.9408 | AM14: ='Annual Maintenance'!AM4 -> 203316.789 | AN14: ='Annual Maintenance'!AN4 -> 209416.2927 | AO14: ='Annual Maintenance'!AO4 -> 215698.7814 | AP14: ='Annual Maintenance'!AP4 -> 222169.7449 | AQ14: ='Annual Maintenance'!AQ4 -> 228834.8372 | AR14: ='Annual Maintenance'!AR4 -> 235699.8824 | AS14: ='Annual Maintenance'!AS4 -> 242770.8788 | AT14: ='Annual Maintenance'!AT4 -> 250054.0052 | AU14: ='Annual Maintenance'!AU4 -> 257555.6253 | AV14: ='Annual Maintenance'!AV4 -> 265282.2941 | AW14: ='Annual Maintenance'!AW4 -> 273240.7629 | AX14: ='Annual Maintenance'!AX4 -> 281437.9858 | AY14: ='Annual Maintenance'!AY4 -> 289881.1254 | AZ14: ='Annual Maintenance'!AZ4 -> 298577.5592 | BA14: ='Annual Maintenance'!BA4 -> 307534.8859 | BB14: ='Annual Maintenance'!BB4 -> 316760.9325 | BC14: ='Annual Maintenance'!BC4 -> 326263.7605 | BD14: ='Annual Maintenance'!BD4 -> 336051.6733 | BE14: ='Annual Maintenance'!BE4 -> 346133.2235 | BF14: ='Annual Maintenance'!BF4 -> 356517.2202 | BG14: ='Annual Maintenance'!BG4 -> 367212.7368 | BH14: ='Annual Maintenance'!BH4 -> 378229.1189
A15: Reserve Fund Expenses | K15: =IF(ReserveExpOption="Yes",'Reserve Expenses'!K5,0) -> 145433.9436 | L15: =IF(ReserveExpOption="Yes",'Reserve Expenses'!L5,0) -> 61083.94766 | M15: =IF(ReserveExpOption="Yes",'Reserve Expenses'!M5,0) -> 66327.87936 | N15: =IF(ReserveExpOption="Yes",'Reserve Expenses'!N5,0) -> 43555.29574 | O15: =IF(ReserveExpOption="Yes",'Reserve Expenses'!O5,0) -> 41578.43651 | P15: =IF(ReserveExpOption="Yes",'Reserve Expenses'!P5,0) -> 216562.3 | Q15: =IF(ReserveExpOption="Yes",'Reserve Expenses'!Q5,0) -> 31732.20751 | R15: =IF(ReserveExpOption="Yes",'Reserve Expenses'!R5,0) -> 25940.37942 | S15: =IF(ReserveExpOption="Yes",'Reserve Expenses'!S5,0) -> 101285.2689 | T15: =IF(ReserveExpOption="Yes",'Reserve Expenses'!T5,0) -> 69452.29672 | U15: =IF(ReserveExpOption="Yes",'Reserve Expenses'!U5,0) -> 428855.1968 | V15: =IF(ReserveExpOption="Yes",'Reserve Expenses'!V5,0) -> 37218.89857 | W15: =IF(ReserveExpOption="Yes",'Reserve Expenses'!W5,0) -> 80169.6825 | X15: =IF(ReserveExpOption="Yes",'Reserve Expenses'!X5,0) -> 44235.21151 | Y15: =IF(ReserveExpOption="Yes",'Reserve Expenses'!Y5,0) -> 130675.5037 | Z15: =IF(ReserveExpOption="Yes",'Reserve Expenses'!Z5,0) -> 312444.1994 | AA15: =IF(ReserveExpOption="Yes",'Reserve Expenses'!AA5,0) -> 31512.78251 | AB15: =IF(ReserveExpOption="Yes",'Reserve Expenses'!AB5,0) -> 82711.63975 | AC15: =IF(ReserveExpOption="Yes",'Reserve Expenses'!AC5,0) -> 122492.6576 | AD15: =IF(ReserveExpOption="Yes",'Reserve Expenses'!AD5,0) -> 16028.4896 | AE15: =IF(ReserveExpOption="Yes",'Reserve Expenses'!AE5,0) -> 1215949.366 | AF15: =IF(ReserveExpOption="Yes",'Reserve Expenses'!AF5,0) -> 91573.41741 | AG15: =IF(ReserveExpOption="Yes",'Reserve Expenses'!AG5,0) -> 32576.10971 | AH15: =IF(ReserveExpOption="Yes",'Reserve Expenses'!AH5,0) -> 177701.7556 | AI15: =IF(ReserveExpOption="Yes",'Reserve Expenses'!AI5,0) -> 107594.5771 | AJ15: =IF(ReserveExpOption="Yes",'Reserve Expenses'!AJ5,0) -> 324297.7396 | AK15: =IF(ReserveExpOption="Yes",'Reserve Expenses'!AK5,0) -> 188351.7734 | AL15: =IF(ReserveExpOption="Yes",'Reserve Expenses'!AL5,0) -> 44961.89345 | AM15: =IF(ReserveExpOption="Yes",'Reserve Expenses'!AM5,0) -> 223853.0752 | AN15: =IF(ReserveExpOption="Yes",'Reserve Expenses'!AN5,0) -> 34740.25847 | AO15: =IF(ReserveExpOption="Yes",'Reserve Expenses'!AO5,0) -> 858967.7075 | AP15: =IF(ReserveExpOption="Yes",'Reserve Expenses'!AP5,0) -> 158934.309 | AQ15: =IF(ReserveExpOption="Yes",'Reserve Expenses'!AQ5,0) -> 103699.581 | AR15: =IF(ReserveExpOption="Yes",'Reserve Expenses'!AR5,0) -> 346107.3909 | AS15: =IF(ReserveExpOption="Yes",'Reserve Expenses'!AS5,0) -> 19511.00074 | AT15: =IF(ReserveExpOption="Yes",'Reserve Expenses'!AT5,0) -> 477614.9015 | AU15: =IF(ReserveExpOption="Yes",'Reserve Expenses'!AU5,0) -> 156869.9644 | AV15: =IF(ReserveExpOption="Yes",'Reserve Expenses'!AV5,0) -> 68337.51748 | AW15: =IF(ReserveExpOption="Yes",'Reserve Expenses'!AW5,0) -> 321758.1414 | AX15: =IF(ReserveExpOption="Yes",'Reserve Expenses'!AX5,0) -> 75151.65739 | AY15: =IF(ReserveExpOption="Yes",'Reserve Expenses'!AY5,0) -> 882499.9823 | AZ15: =IF(ReserveExpOption="Yes",'Reserve Expenses'!AZ5,0) -> 223224.0382 | BA15: =IF(ReserveExpOption="Yes",'Reserve Expenses'!BA5,0) -> 74679.74896 | BB15: =IF(ReserveExpOption="Yes",'Reserve Expenses'!BB5,0) -> 101033.2419 | BC15: =IF(ReserveExpOption="Yes",'Reserve Expenses'!BC5,0) -> 119292.4686 | BD15: =IF(ReserveExpOption="Yes",'Reserve Expenses'!BD5,0) -> 308290.466 | BE15: =IF(ReserveExpOption="Yes",'Reserve Expenses'!BE5,0) -> 174839.6482 | BF15: =IF(ReserveExpOption="Yes",'Reserve Expenses'!BF5,0) -> 51319.76928 | BG15: =IF(ReserveExpOption="Yes",'Reserve Expenses'!BG5,0) -> 519660.2703 | BH15: =IF(ReserveExpOption="Yes",'Reserve Expenses'!BH5,0) -> 187660.2206
A16: Operating + Annual Maintenance Exenses | K16: =SUM(K13:K14) -> 327740.9969 | L16: 350300.0654 | M16: 358161.5447 | N16: 375557.9331 | O16: 386634.2135 | P16: 368589.41 | Q16: 411684.7125 | R16: 425498.9452 | S16: 409363.8511 | T16: 434754.7803 | U16: 415551.1056 | V16: 472300.0853 | W16: 467258.4333 | X16: 499062.9959 | Y16: 482939.7444 | Z16: 475635.0437 | AA16: 558714.0316 | AB16: 555563.6785 | AC16: 558929.143 | AD16: 625268.6626 | AE16: 551391.375 | AF16: 634897.9323 | AG16: 683450.7776 | AH16: 644756.0167 | AI16: 698250.8794 | AJ16: 650140.951 | AK16: 711003.114 | AL16: 796940.9646 | AM16: 745103.3435 | AN16: 851293.454 | AO16: 741023.9003 | AP16: 849503.8392 | AQ16: =SUM(AQ13:AQ14) -> 901358.9866 | AR16: 836147.6322 | AS16: 996015.7749 | AT16: 865194.5896 | AU16: 997093.5406 | AV16: 1067952.479 | AW16: 993586.7346 | AX16: 1131982.929 | AY16: 995874.1571 | AZ16: 1137956.285 | BA16: 1240210.162 | BB16: 1266973.458 | BC16: 1298426.91 | BD16: 1256297.815 | BE16: 1356522.722 | BF16: 1453750.889 | BG16: 1309327.833 | BH16: 1484048.488
A17: Operatging + Annual Maintenance + Reserve Expenses | K17: =SUM(K13:K15) -> 473174.9404 | L17: 411384.0131 | M17: 424489.4241 | N17: 419113.2289 | O17: 428212.65 | P17: 585151.71 | Q17: 443416.9201 | R17: 451439.3246 | S17: 510649.12 | T17: 504207.0771 | U17: 844406.3024 | V17: 509518.9839 | W17: 547428.1158 | X17: 543298.2074 | Y17: 613615.2482 | Z17: 788079.2431 | AA17: 590226.8141 | AB17: 638275.3183 | AC17: 681421.8006 | AD17: 641297.1523 | AE17: 1767340.741 | AF17: 726471.3497 | AG17: 716026.8873 | AH17: 822457.7723 | AI17: 805845.4565 | AJ17: 974438.6906 | AK17: 899354.8874 | AL17: 841902.858 | AM17: 968956.4187 | AN17: 886033.7125 | AO17: 1599991.608 | AP17: 1008438.148 | AQ17: =SUM(AQ13:AQ15) -> 1005058.568 | AR17: 1182255.023 | AS17: 1015526.776 | AT17: 1342809.491 | AU17: 1153963.505 | AV17: 1136289.997 | AW17: 1315344.876 | AX17: 1207134.586 | AY17: 1878374.139 | AZ17: 1361180.324 | BA17: 1314889.911 | BB17: 1368006.7 | BC17: 1417719.378 | BD17: 1564588.281 | BE17: 1531362.37 | BF17: 1505070.658 | BG17: 1828988.103 | BH17: 1671708.709
A18: Cash Reserve | K18: =K19 -> 239020.41 | L18: =L19 -> 212420.3712 | M18: =M19 -> 260841.7689 | N18: 309223.6213 | O18: 375808.1657 | P18: 447407.5665 | Q18: 376542.3226 | R18: 461303.6281 | S18: 553402.539 | T18: 602055.9227 | U18: 680891.5923 | V18: 436656.8963 | W18: 543103.6475 | X18: 629539.2908 | Y18: 743384.9162 | Z18: 810976.3537 | AA18: 728911.6208 | AB18: 870474.5966 | AC18: 990735.5644 | AD18: 1095518.625 | AE18: 1269129.946 | AF18: 345763.6146 | AG18: 493444.0511 | AH18: 683414.0786 | AI18: 799845.1748 | AJ18: 966968.8692 | AK18: 1000668.036 | AL18: 1138086.194 | AM18: 1364259.684 | AN18: 1495535.488 | AO18: 1742949.055 | AP18: 1310177.165 | AQ18: 1503840.95 | AR18: 1737150.17 | AS18: 1806139.102 | AT18: 2104678.275 | AU18: 2115373.867 | AV18: 2355647.198 | AW18: 2655666.917 | AX18: 2819835.08 | AY18: 3136832.814 | AZ18: 2828127.806 | BA18: 3083640.76 | BB18: 3434218.043 | BC18: 3781913.166 | BD18: 4131627.425 | BE18: 4387653.692 | BF18: 4731748.077 | BG18: 5158702.408 | BH18: 5319756.806
A19: Beginning of Year Cash Reserve | C19: BOY | D19: =InvAcct -> 239020.41 | K19: =InvAcct -> 239020.41 | L19: =K21+K22 -> 212420.3712 | M19: =L21+L22 -> 260841.7689 | N19: =M21+M22 -> 309223.6213 | O19: =N21+N22 -> 375808.1657 | P19: =O21+O22 -> 447407.5665 | Q19: =P21+P22 -> 376542.3226 | R19: =Q21+Q22 -> 461303.6281 | S19: =R21+R22 -> 553402.539 | T19: =S21+S22 -> 602055.9227 | U19: =T21+T22 -> 680891.5923 | V19: =U21+U22 -> 436656.8963 | W19: =V21+V22 -> 543103.6475 | X19: =W21+W22 -> 629539.2908 | Y19: =X21+X22 -> 743384.9162 | Z19: =Y21+Y22 -> 810976.3537 | AA19: =Z21+Z22 -> 728911.6208 | AB19: =AA21+AA22 -> 870474.5966 | AC19: =AB21+AB22 -> 990735.5644 | AD19: =AC21+AC22 -> 1095518.625 | AE19: =AD21+AD22 -> 1269129.946 | AF19: =AE21+AE22 -> 345763.6146 | AG19: =AF21+AF22 -> 493444.0511 | AH19: =AG21+AG22 -> 683414.0786 | AI19: =AH21+AH22 -> 799845.1748 | AJ19: =AI21+AI22 -> 966968.8692 | AK19: =AJ21+AJ22 -> 1000668.036 | AL19: =AK21+AK22 -> 1138086.194 | AM19: =AL21+AL22 -> 1364259.684 | AN19: =AM21+AM22 -> 1495535.488 | AO19: =AN21+AN22 -> 1742949.055 | AP19: =AO21+AO22 -> 1310177.165 | AQ19: =AP21+AP22 -> 1503840.95 | AR19: =AQ21+AQ22 -> 1737150.17 | AS19: =AR21+AR22 -> 1806139.102 | AT19: =AS21+AS22 -> 2104678.275 | AU19: =AT21+AT22 -> 2115373.867 | AV19: =AU21+AU22 -> 2355647.198 | AW19: =AV21+AV22 -> 2655666.917 | AX19: =AW21+AW22 -> 2819835.08 | AY19: =AX21+AX22 -> 3136832.814 | AZ19: =AY21+AY22 -> 2828127.806 | BA19: =AZ21+AZ22 -> 3083640.76 | BB19: =BA21+BA22 -> 3434218.043 | BC19: =BB21+BB22 -> 3781913.166 | BD19: =BC21+BC22 -> 4131627.425 | BE19: =BD21+BD22 -> 4387653.692 | BF19: =BE21+BE22 -> 4731748.077 | BG19: =BF21+BF22 -> 5158702.408 | BH19: =BG21+BG22 -> 5319756.806
A20: "Reserve" Deposit/Withdrawal | K20: =K4-K12 -> -26600.03881 | L20: =L4-L12 -> 48421.39774 | M20: =M4-M12 -> 48381.85236 | N20: 66584.54436 | O20: 71599.40081 | P20: -70865.24384 | Q20: 84761.30546 | R20: 92098.91094 | S20: 48653.38365 | T20: 78835.6696 | U20: -244234.696 | V20: 106446.7511 | W20: 86435.64338 | X20: 113845.6254 | Y20: 67591.43754 | Z20: -82064.73298 | AA20: 141562.9758 | AB20: 120260.9678 | AC20: 104783.0605 | AD20: 173611.3213 | AE20: -923366.3316 | AF20: 147680.4365 | AG20: 189970.0275 | AH20: 116431.0962 | AI20: 167123.6944 | AJ20: 33699.16653 | AK20: 137418.1585 | AL20: 226173.4893 | AM20: 131275.8048 | AN20: 247413.5667 | AO20: -432771.8904 | AP20: 193663.7857 | AQ20: 233309.2201 | AR20: 68988.93177 | AS20: 298539.1731 | AT20: 10695.59138 | AU20: 240273.3311 | AV20: 300019.7191 | AW20: 164168.1628 | AX20: 316997.7344 | AY20: -308705.0078 | AZ20: 255512.9538 | BA20: 350577.2829 | BB20: 347695.1232 | BC20: 349714.2591 | BD20: 256026.2671 | BE20: 344094.3845 | BF20: 426954.3315 | BG20: 161054.398 | BH20: 378233.1644
A21: End of Year Cash Reserve | K21: =SUM(K19,K20) -> 212420.3712 | L21: =SUM(L19,L20) -> 260841.7689 | M21: =SUM(M19,M20) -> 309223.6213 | N21: =SUM(N19,N20) -> 375808.1657 | O21: =SUM(O19,O20) -> 447407.5665 | P21: =SUM(P19,P20) -> 376542.3226 | Q21: =SUM(Q19,Q20) -> 461303.6281 | R21: =SUM(R19,R20) -> 553402.539 | S21: =SUM(S19,S20) -> 602055.9227 | T21: =SUM(T19,T20) -> 680891.5923 | U21: =SUM(U19,U20) -> 436656.8963 | V21: =SUM(V19,V20) -> 543103.6475 | W21: =SUM(W19,W20) -> 629539.2908 | X21: =SUM(X19,X20) -> 743384.9162 | Y21: =SUM(Y19,Y20) -> 810976.3537 | Z21: =SUM(Z19,Z20) -> 728911.6208 | AA21: =SUM(AA19,AA20) -> 870474.5966 | AB21: =SUM(AB19,AB20) -> 990735.5644 | AC21: =SUM(AC19,AC20) -> 1095518.625 | AD21: =SUM(AD19,AD20) -> 1269129.946 | AE21: =SUM(AE19,AE20) -> 345763.6146 | AF21: =SUM(AF19,AF20) -> 493444.0511 | AG21: =SUM(AG19,AG20) -> 683414.0786 | AH21: =SUM(AH19,AH20) -> 799845.1748 | AI21: =SUM(AI19,AI20) -> 966968.8692 | AJ21: =SUM(AJ19,AJ20) -> 1000668.036 | AK21: =SUM(AK19,AK20) -> 1138086.194 | AL21: =SUM(AL19,AL20) -> 1364259.684 | AM21: =SUM(AM19,AM20) -> 1495535.488 | AN21: =SUM(AN19,AN20) -> 1742949.055 | AO21: =SUM(AO19,AO20) -> 1310177.165 | AP21: =SUM(AP19,AP20) -> 1503840.95 | AQ21: =SUM(AQ19,AQ20) -> 1737150.17 | AR21: =SUM(AR19,AR20) -> 1806139.102 | AS21: =SUM(AS19,AS20) -> 2104678.275 | AT21: =SUM(AT19,AT20) -> 2115373.867 | AU21: =SUM(AU19,AU20) -> 2355647.198 | AV21: =SUM(AV19,AV20) -> 2655666.917 | AW21: =SUM(AW19,AW20) -> 2819835.08 | AX21: =SUM(AX19,AX20) -> 3136832.814 | AY21: =SUM(AY19,AY20) -> 2828127.806 | AZ21: =SUM(AZ19,AZ20) -> 3083640.76 | BA21: =SUM(BA19,BA20) -> 3434218.043 | BB21: =SUM(BB19,BB20) -> 3781913.166 | BC21: =SUM(BC19,BC20) -> 4131627.425 | BD21: =SUM(BD19,BD20) -> 4387653.692 | BE21: =SUM(BE19,BE20) -> 4731748.077 | BF21: =SUM(BF19,BF20) -> 5158702.408 | BG21: =SUM(BG19,BG20) -> 5319756.806 | BH21: =SUM(BH19,BH20) -> 5697989.971
A22: Special Assessments | C22: 30 yr max | D22: =MAX(K22:AN22) -> 0 | F22: 30 yr cum | G22: =SUM(K22:AN22) -> 0 | K22: =IF(K21<0,ABS(K21),0) -> 0 | L22: =IF(L21<0,ABS(L21),0) -> 0 | M22: =IF(M21<0,ABS(M21),0) -> 0 | N22: =IF(N21<0,ABS(N21),0) -> 0 | O22: =IF(O21<0,ABS(O21),0) -> 0 | P22: =IF(P21<0,ABS(P21),0) -> 0 | Q22: =IF(Q21<0,ABS(Q21),0) -> 0 | R22: =IF(R21<0,ABS(R21),0) -> 0 | S22: =IF(S21<0,ABS(S21),0) -> 0 | T22: =IF(T21<0,ABS(T21),0) -> 0 | U22: =IF(U21<0,ABS(U21),0) -> 0 | V22: =IF(V21<0,ABS(V21),0) -> 0 | W22: =IF(W21<0,ABS(W21),0) -> 0 | X22: =IF(X21<0,ABS(X21),0) -> 0 | Y22: =IF(Y21<0,ABS(Y21),0) -> 0 | Z22: =IF(Z21<0,ABS(Z21),0) -> 0 | AA22: =IF(AA21<0,ABS(AA21),0) -> 0 | AB22: =IF(AB21<0,ABS(AB21),0) -> 0 | AC22: =IF(AC21<0,ABS(AC21),0) -> 0 | AD22: =IF(AD21<0,ABS(AD21),0) -> 0 | AE22: =IF(AE21<0,ABS(AE21),0) -> 0 | AF22: =IF(AF21<0,ABS(AF21),0) -> 0 | AG22: =IF(AG21<0,ABS(AG21),0) -> 0 | AH22: =IF(AH21<0,ABS(AH21),0) -> 0 | AI22: =IF(AI21<0,ABS(AI21),0) -> 0 | AJ22: =IF(AJ21<0,ABS(AJ21),0) -> 0 | AK22: =IF(AK21<0,ABS(AK21),0) -> 0 | AL22: =IF(AL21<0,ABS(AL21),0) -> 0 | AM22: =IF(AM21<0,ABS(AM21),0) -> 0 | AN22: =IF(AN21<0,ABS(AN21),0) -> 0 | AO22: =IF(AO21<0,ABS(AO21),0) -> 0 | AP22: =IF(AP21<0,ABS(AP21),0) -> 0 | AQ22: =IF(AQ21<0,ABS(AQ21),0) -> 0 | AR22: =IF(AR21<0,ABS(AR21),0) -> 0 | AS22: =IF(AS21<0,ABS(AS21),0) -> 0 | AT22: =IF(AT21<0,ABS(AT21),0) -> 0 | AU22: =IF(AU21<0,ABS(AU21),0) -> 0 | AV22: =IF(AV21<0,ABS(AV21),0) -> 0 | AW22: =IF(AW21<0,ABS(AW21),0) -> 0 | AX22: =IF(AX21<0,ABS(AX21),0) -> 0 | AY22: =IF(AY21<0,ABS(AY21),0) -> 0 | AZ22: =IF(AZ21<0,ABS(AZ21),0) -> 0 | BA22: =IF(BA21<0,ABS(BA21),0) -> 0 | BB22: =IF(BB21<0,ABS(BB21),0) -> 0 | BC22: =IF(BC21<0,ABS(BC21),0) -> 0 | BD22: =IF(BD21<0,ABS(BD21),0) -> 0 | BE22: =IF(BE21<0,ABS(BE21),0) -> 0 | BF22: =IF(BF21<0,ABS(BF21),0) -> 0 | BG22: =IF(BG21<0,ABS(BG21),0) -> 0 | BH22: =IF(BH21<0,ABS(BH21),0) -> 0
A23: Reserve Fund Strength | K23: ='Summary Budget'!K19/'Reserve Expenses'!EC5 -> 0.3025543985 | L23: ='Summary Budget'!L19/'Reserve Expenses'!ED5 -> 0.2774494696 | M23: ='Summary Budget'!M19/'Reserve Expenses'!EE5 -> 0.3133326596 | N23: ='Summary Budget'!N19/'Reserve Expenses'!EF5 -> 0.343826306 | O23: ='Summary Budget'!O19/'Reserve Expenses'!EG5 -> 0.3765382405 | P23: ='Summary Budget'!P19/'Reserve Expenses'!EH5 -> 0.40458745 | Q23: ='Summary Budget'!Q19/'Reserve Expenses'!EI5 -> 0.3628957562 | R23: ='Summary Budget'!R19/'Reserve Expenses'!EJ5 -> 0.3963736065 | S23: ='Summary Budget'!S19/'Reserve Expenses'!EK5 -> 0.424518587 | T23: ='Summary Budget'!T19/'Reserve Expenses'!EL5 -> 0.4382009179 | U23: ='Summary Budget'!U19/'Reserve Expenses'!EM5 -> 0.4593241341 | V23: ='Summary Budget'!V19/'Reserve Expenses'!EN5 -> 0.3568260561 | W23: ='Summary Budget'!W19/'Reserve Expenses'!EO5 -> 0.3966769118 | X23: ='Summary Budget'!X19/'Reserve Expenses'!EP5 -> 0.425894371 | Y23: ='Summary Budget'!Y19/'Reserve Expenses'!EQ5 -> 0.4559462617 | Z23: ='Summary Budget'!Z19/'Reserve Expenses'!ER5 -> 0.475750196 | AA23: ='Summary Budget'!AA19/'Reserve Expenses'!ES5 -> 0.4588517525 | AB23: ='Summary Budget'!AB19/'Reserve Expenses'!ET5 -> 0.4940239245 | AC23: ='Summary Budget'!AC19/'Reserve Expenses'!EU5 -> 0.5234915761 | AD23: ='Summary Budget'!AD19/'Reserve Expenses'!EV5 -> 0.5542387107 | AE23: ='Summary Budget'!AE19/'Reserve Expenses'!EW5 -> 0.5801119342 | AF23: ='Summary Budget'!AF19/'Reserve Expenses'!EX5 -> 0.2902143454 | AG23: ='Summary Budget'!AG19/'Reserve Expenses'!EY5 -> 0.3714950132 | AH23: ='Summary Budget'!AH19/'Reserve Expenses'!EZ5 -> 0.4449717298 | AI23: ='Summary Budget'!AI19/'Reserve Expenses'!FA5 -> 0.4970970132 | AJ23: ='Summary Budget'!AJ19/'Reserve Expenses'!FB5 -> 0.5485057843 | AK23: ='Summary Budget'!AK19/'Reserve Expenses'!FC5 -> 0.5887923199 | AL23: ='Summary Budget'!AL19/'Reserve Expenses'!FD5 -> 0.6383825369 | AM23: ='Summary Budget'!AM19/'Reserve Expenses'!FE5 -> 0.6755270097 | AN23: ='Summary Budget'!AN19/'Reserve Expenses'!FF5 -> 0.7160868569 | AO23: ='Summary Budget'!AO19/'Reserve Expenses'!FG5 -> 0.7382320585 | AP23: ='Summary Budget'!AP19/'Reserve Expenses'!FH5 -> 0.7274477137 | AQ23: ='Summary Budget'!AQ19/'Reserve Expenses'!FI5 -> 0.7697182773 | AR23: ='Summary Budget'!AR19/'Reserve Expenses'!FJ5 -> 0.7975235289 | AS23: ='Summary Budget'!AS19/'Reserve Expenses'!FK5 -> 0.8324489464 | AT23: ='Summary Budget'!AT19/'Reserve Expenses'!FL5 -> 0.8394886581 | AU23: ='Summary Budget'!AU19/'Reserve Expenses'!FM5 -> 0.88537088 | AV23: ='Summary Budget'!AV19/'Reserve Expenses'!FN5 -> 0.9041609282 | AW23: ='Summary Budget'!AW19/'Reserve Expenses'!FO5 -> 0.9064570958 | AX23: ='Summary Budget'!AX19/'Reserve Expenses'!FP5 -> 0.9359504447 | AY23: ='Summary Budget'!AY19/'Reserve Expenses'!FQ5 -> 0.932975522 | AZ23: ='Summary Budget'!AZ19/'Reserve Expenses'!FR5 -> 0.9738989931 | BA23: ='Summary Budget'!BA19/'Reserve Expenses'!FS5 -> 0.9893558257 | BB23: ='Summary Budget'!BB19/'Reserve Expenses'!FT5 -> 0.9802716234 | BC23: ='Summary Budget'!BC19/'Reserve Expenses'!FU5 -> 0.9733654821 | BD23: ='Summary Budget'!BD19/'Reserve Expenses'!FV5 -> 0.9672430162 | BE23: ='Summary Budget'!BE19/'Reserve Expenses'!FW5 -> 0.9862792985 | BF23: ='Summary Budget'!BF19/'Reserve Expenses'!FX5 -> 0.9884119845 | BG23: ='Summary Budget'!BG19/'Reserve Expenses'!FY5 -> 0.978187152 | BH23: ='Summary Budget'!BH19/'Reserve Expenses'!FZ5 -> 1.005308523
A24: Association Reserves Special Assessment Risk | K24: =SpecialAssessmentRisk(MAX(K23,0)) -> 0.1779564812 | L24: =SpecialAssessmentRisk(MAX(L23,0)) -> 0.2048055834 | M24: =SpecialAssessmentRisk(MAX(M23,0)) -> 0.1693338723 | N24: =SpecialAssessmentRisk(MAX(N23,0)) -> 0.1449389552 | O24: =SpecialAssessmentRisk(MAX(O23,0)) -> 0.1187694076 | P24: =SpecialAssessmentRisk(MAX(P23,0)) -> 0.09770627501 | Q24: =SpecialAssessmentRisk(MAX(Q23,0)) -> 0.129683395 | R24: =SpecialAssessmentRisk(MAX(R23,0)) -> 0.1029011148 | S24: =SpecialAssessmentRisk(MAX(S23,0)) -> 0.0877407065 | T24: =SpecialAssessmentRisk(MAX(T23,0)) -> 0.08089954105 | U24: =SpecialAssessmentRisk(MAX(U23,0)) -> 0.07033793297 | V24: =SpecialAssessmentRisk(MAX(V23,0)) -> 0.1345391551 | W24: =SpecialAssessmentRisk(MAX(W23,0)) -> 0.1026584705 | X24: =SpecialAssessmentRisk(MAX(X23,0)) -> 0.08705281451 | Y24: =SpecialAssessmentRisk(MAX(Y23,0)) -> 0.07202686914 | Z24: =SpecialAssessmentRisk(MAX(Z23,0)) -> 0.06212490201 | AA24: =SpecialAssessmentRisk(MAX(AA23,0)) -> 0.07057412376 | AB24: =SpecialAssessmentRisk(MAX(AB23,0)) -> 0.05298803777 | AC24: =SpecialAssessmentRisk(MAX(AC23,0)) -> 0.04295252716 | AD24: =SpecialAssessmentRisk(MAX(AD23,0)) -> 0.0337283868 | AE24: =SpecialAssessmentRisk(MAX(AE23,0)) -> 0.02596641973 | AF24: =SpecialAssessmentRisk(MAX(AF23,0)) -> 0.19076422 | AG24: =SpecialAssessmentRisk(MAX(AG23,0)) -> 0.1228039894 | AH24: =SpecialAssessmentRisk(MAX(AH23,0)) -> 0.07751413511 | AI24: =SpecialAssessmentRisk(MAX(AI23,0)) -> 0.0514514934 | AJ24: =SpecialAssessmentRisk(MAX(AJ23,0)) -> 0.0354482647 | AK24: =SpecialAssessmentRisk(MAX(AK23,0)) -> 0.02336230404 | AL24: =SpecialAssessmentRisk(MAX(AL23,0)) -> 0.01616174631 | AM24: =SpecialAssessmentRisk(MAX(AM23,0)) -> 0.01244729903 | AN24: =SpecialAssessmentRisk(MAX(AN23,0)) -> 0.009517394292 | AO24: =SpecialAssessmentRisk(MAX(AO23,0)) -> 0.008853038246 | AP24: =SpecialAssessmentRisk(MAX(AP23,0)) -> 0.009176568588 | AQ24: =SpecialAssessmentRisk(MAX(AQ23,0)) -> 0.007908451681 | AR24: =SpecialAssessmentRisk(MAX(AR23,0)) -> 0.007074294132 | AS24: =SpecialAssessmentRisk(MAX(AS23,0)) -> 0.005702042144 | AT24: =SpecialAssessmentRisk(MAX(AT23,0)) -> 0.005420453678 | AU24: =SpecialAssessmentRisk(MAX(AU23,0)) -> 0.003585164799 | AV24: =SpecialAssessmentRisk(MAX(AV23,0)) -> 0.002916781436 | AW24: =SpecialAssessmentRisk(MAX(AW23,0)) -> 0.002870858084 | AX24: =SpecialAssessmentRisk(MAX(AX23,0)) -> 0.002280991106 | AY24: =SpecialAssessmentRisk(MAX(AY23,0)) -> 0.00234048956 | AZ24: =SpecialAssessmentRisk(MAX(AZ23,0)) -> 0.001522020139 | BA24: =SpecialAssessmentRisk(MAX(BA23,0)) -> 0.001212883487 | BB24: =SpecialAssessmentRisk(MAX(BB23,0)) -> 0.001394567533 | BC24: =SpecialAssessmentRisk(MAX(BC23,0)) -> 0.001532690358 | BD24: =SpecialAssessmentRisk(MAX(BD23,0)) -> 0.001655139677 | BE24: =SpecialAssessmentRisk(MAX(BE23,0)) -> 0.001274414031 | BF24: =SpecialAssessmentRisk(MAX(BF23,0)) -> 0.00123176031 | BG24: =SpecialAssessmentRisk(MAX(BG23,0)) -> 0.001436256961 | BH24: =SpecialAssessmentRisk(MAX(BH23,0)) -> 0.0009734573845
A25: Wedding and Corporate Sales P&L Summary
A26: Gross Income | K26: =Income!K29 -> 322555.9457 | L26: =Income!L29 -> 325729.0025 | M26: =Income!M29 -> 328494.4814 | N26: =Income!N29 -> 330221.6718 | O26: =Income!O29 -> 332695.2416 | P26: =Income!P29 -> 335066.397 | Q26: =Income!Q29 -> 336237.0928 | R26: =Income!R29 -> 338201.878 | S26: =Income!S29 -> 339981.9368 | T26: =Income!T29 -> 349072.3377 | U26: =Income!U29 -> 351058.7569 | V26: =Income!V29 -> 350948.6048 | W26: =Income!W29 -> 352061.0591 | X26: =Income!X29 -> 362622.8909 | Y26: =Income!Y29 -> 373501.5776 | Z26: =Income!Z29 -> 384706.625 | AA26: =Income!AA29 -> 396247.8237 | AB26: =Income!AB29 -> 408135.2584 | AC26: =Income!AC29 -> 420379.3162 | AD26: =Income!AD29 -> 432990.6957 | AE26: =Income!AE29 -> 445980.4165 | AF26: =Income!AF29 -> 459359.829 | AG26: =Income!AG29 -> 473140.6239 | AH26: =Income!AH29 -> 487334.8426 | AI26: =Income!AI29 -> 501954.8879 | AJ26: =Income!AJ29 -> 517013.5345 | AK26: =Income!AK29 -> 532523.9406 | AL26: =Income!AL29 -> 548499.6588 | AM26: =Income!AM29 -> 564954.6486 | AN26: =Income!AN29 -> 581903.288 | AO26: =Income!AO29 -> 599360.3867 | AP26: =Income!AP29 -> 617341.1982 | AQ26: =Income!AQ29 -> 635861.4342 | AR26: =Income!AR29 -> 654937.2772 | AS26: =Income!AS29 -> 674585.3955 | AT26: =Income!AT29 -> 694822.9574 | AU26: =Income!AU29 -> 715667.6461 | AV26: =Income!AV29 -> 737137.6755 | AW26: =Income!AW29 -> 759251.8058 | AX26: =Income!AX29 -> 782029.36 | AY26: =Income!AY29 -> 805490.2407 | AZ26: =Income!AZ29 -> 829654.948 | BA26: =Income!BA29 -> 854544.5964 | BB26: =Income!BB29 -> 880180.9343 | BC26: =Income!BC29 -> 906586.3623 | BD26: =Income!BD29 -> 933783.9532 | BE26: =Income!BE29 -> 961797.4718 | BF26: =Income!BF29 -> 990651.396 | BG26: =Income!BG29 -> 1020370.938 | BH26: =Income!BH29 -> 1050982.066
A27: Total Operational Expenses | K27: ='Operating Expenses'!K56 -> 131027.248 | L27: ='Operating Expenses'!L56 -> 132795.132 | M27: ='Operating Expenses'!M56 -> 134551.1646 | N27: ='Operating Expenses'!N56 -> 136293.0434 | O27: ='Operating Expenses'!O56 -> 138018.339 | P27: ='Operating Expenses'!P56 -> 139724.4885 | Q27: ='Operating Expenses'!Q56 -> 141408.7905 | R27: ='Operating Expenses'!R56 -> 143068.3986 | S27: ='Operating Expenses'!S56 -> 144700.3153 | T27: ='Operating Expenses'!T56 -> 147675.4682 | U27: ='Operating Expenses'!U56 -> 149283.5947 | V27: ='Operating Expenses'!V56 -> 150855.3009 | W27: ='Operating Expenses'!W56 -> 152386.9542 | X27: ='Operating Expenses'!X56 -> 156958.5628 | Y27: ='Operating Expenses'!Y56 -> 161667.3197 | Z27: ='Operating Expenses'!Z56 -> 166517.3393 | AA27: ='Operating Expenses'!AA56 -> 171512.8595 | AB27: ='Operating Expenses'!AB56 -> 176658.2453 | AC27: ='Operating Expenses'!AC56 -> 181957.9926 | AD27: ='Operating Expenses'!AD56 -> 187416.7324 | AE27: ='Operating Expenses'!AE56 -> 193039.2344 | AF27: ='Operating Expenses'!AF56 -> 198830.4114 | AG27: ='Operating Expenses'!AG56 -> 204795.3237 | AH27: ='Operating Expenses'!AH56 -> 210939.1835 | AI27: ='Operating Expenses'!AI56 -> 217267.359 | AJ27: ='Operating Expenses'!AJ56 -> 223785.3797 | AK27: ='Operating Expenses'!AK56 -> 230498.9411 | AL27: ='Operating Expenses'!AL56 -> 237413.9094 | AM27: ='Operating Expenses'!AM56 -> 244536.3266 | AN27: ='Operating Expenses'!AN56 -> 251872.4164 | AO27: ='Operating Expenses'!AO56 -> 259428.5889 | AP27: ='Operating Expenses'!AP56 -> 267211.4466 | AQ27: ='Operating Expenses'!AQ56 -> 275227.79 | AR27: ='Operating Expenses'!AR56 -> 283484.6237 | AS27: ='Operating Expenses'!AS56 -> 291989.1624 | AT27: ='Operating Expenses'!AT56 -> 300748.8373 | AU27: ='Operating Expenses'!AU56 -> 309771.3024 | AV27: ='Operating Expenses'!AV56 -> 319064.4415 | AW27: ='Operating Expenses'!AW56 -> 328636.3747 | AX27: ='Operating Expenses'!AX56 -> 338495.466 | AY27: ='Operating Expenses'!AY56 -> 348650.3299 | AZ27: ='Operating Expenses'!AZ56 -> 359109.8398 | BA27: ='Operating Expenses'!BA56 -> 369883.135 | BB27: ='Operating Expenses'!BB56 -> 380979.6291 | BC27: ='Operating Expenses'!BC56 -> 392409.018 | BD27: ='Operating Expenses'!BD56 -> 404181.2885 | BE27: ='Operating Expenses'!BE56 -> 416306.7271 | BF27: ='Operating Expenses'!BF56 -> 428795.929 | BG27: ='Operating Expenses'!BG56 -> 441659.8068 | BH27: ='Operating Expenses'!BH56 -> 454909.601
A28: Total Reserve Expenses | K28: ='Reserve Expenses'!K136 -> 8237.5 | L28: ='Reserve Expenses'!L136 -> 11587.5 | M28: ='Reserve Expenses'!M136 -> 4774.05 | N28: ='Reserve Expenses'!N136 -> 1024.431562 | O28: ='Reserve Expenses'!O136 -> 0 | P28: ='Reserve Expenses'!P136 -> 21504.53408 | Q28: ='Reserve Expenses'!Q136 -> 1119.424028 | R28: ='Reserve Expenses'!R136 -> 5534.432394 | S28: ='Reserve Expenses'!S136 -> 0 | T28: ='Reserve Expenses'!T136 -> 15901.92318 | U28: ='Reserve Expenses'!U136 -> 9810.589569 | V28: ='Reserve Expenses'!V136 -> 0 | W28: ='Reserve Expenses'!W136 -> 7752.574822 | X28: ='Reserve Expenses'!X136 -> 16521.00428 | Y28: ='Reserve Expenses'!Y136 -> 0 | Z28: ='Reserve Expenses'!Z136 -> 12833.75659 | AA28: ='Reserve Expenses'!AA136 -> 0 | AB28: ='Reserve Expenses'!AB136 -> 26032.35021 | AC28: ='Reserve Expenses'!AC136 -> 1596.030995 | AD28: ='Reserve Expenses'!AD136 -> 0 | AE28: ='Reserve Expenses'!AE136 -> 13184.61201 | AF28: ='Reserve Expenses'!AF136 -> 22672.34009 | AG28: ='Reserve Expenses'!AG136 -> 8622.46534 | AH28: ='Reserve Expenses'!AH136 -> 0 | AI28: ='Reserve Expenses'!AI136 -> 1905.744475 | AJ28: ='Reserve Expenses'!AJ136 -> 38839.5806 | AK28: ='Reserve Expenses'!AK136 -> 0 | AL28: ='Reserve Expenses'!AL136 -> 12078.25897 | AM28: ='Reserve Expenses'!AM136 -> 0 | AN28: ='Reserve Expenses'!AN136 -> 26511.36194 | AO28: ='Reserve Expenses'!AO136 -> 19994.57461 | AP28: ='Reserve Expenses'!AP136 -> 0 | AQ28: ='Reserve Expenses'!AQ136 -> 11587.8724 | AR28: ='Reserve Expenses'!AR136 -> 32325.33572 | AS28: ='Reserve Expenses'!AS136 -> 0 | AT28: ='Reserve Expenses'!AT136 -> 20541.19592 | AU28: ='Reserve Expenses'!AU136 -> 2717.135933 | AV28: ='Reserve Expenses'!AV136 -> 47017.32018 | AW28: ='Reserve Expenses'!AW136 -> 0 | AX28: ='Reserve Expenses'!AX136 -> 2969.087796 | AY28: ='Reserve Expenses'!AY136 -> 23812.87588 | AZ28: ='Reserve Expenses'!AZ136 -> 37798.86291 | BA28: ='Reserve Expenses'!BA136 -> 18817.53392 | BB28: ='Reserve Expenses'!BB136 -> 0 | BC28: ='Reserve Expenses'!BC136 -> 0 | BD28: ='Reserve Expenses'!BD136 -> 73693.84896 | BE28: ='Reserve Expenses'!BE136 -> 0 | BF28: ='Reserve Expenses'!BF136 -> 18053.52763 | BG28: ='Reserve Expenses'!BG136 -> 3873.986137 | BH28: ='Reserve Expenses'!BH136 -> 47882.46865
A29: Income/Expense | K29: =IF(K26>0,K26/(K27+K28),0) -> 2.316134918 | L29: =IF(L26>0,L26/(L27+L28),0) -> 2.256012361 | M29: 2.357753279 | N29: 2.404804427 | O29: 2.410514748 | P29: 2.078201502 | Q29: 2.359091453 | R29: 2.275877758 | S29: 2.34955906 | T29: 2.133988902 | U29: 2.206609616 | V29: 2.326392263 | W29: 2.198464435 | X29: 2.090291652 | Y29: 2.310309705 | Z29: 2.144991772 | AA29: 2.310309705 | AB29: 2.013587544 | AC29: 2.2902212 | AD29: 2.310309705 | AE29: 2.162603522 | AF29: 2.073833512 | AG29: 2.216969007 | AH29: 2.310309705 | AI29: 2.2902212 | AJ29: 1.96863822 | AK29: 2.310309705 | AL29: 2.198464435 | AM29: 2.310309705 | AN29: 2.090291652 | AO29: 2.144991772 | AP29: 2.310309705 | AQ29: 2.216969007 | AR29: 2.073833512 | AS29: 2.310309705 | AT29: 2.162603522 | AU29: 2.2902212 | AV29: 2.013587544 | AW29: 2.310309705 | AX29: 2.2902212 | AY29: 2.162603522 | AZ29: 2.090291652 | BA29: 2.198464435 | BB29: 2.310309705 | BC29: 2.310309705 | BD29: 1.954033345 | BE29: 2.310309705 | BF29: 2.216969007 | BG29: 2.2902212 | BH29: 2.090291652
A30: Net Income | K30: =K26-K27-K28 -> 183291.1977 | L30: 181346.3705 | M30: 189169.2669 | N30: 192904.1968 | O30: 194676.9026 | P30: 173837.3744 | Q30: 193708.8782 | R30: 189599.0469 | S30: 195281.6215 | T30: 185494.9464 | U30: 191964.5726 | V30: 200093.304 | W30: 191921.5301 | X30: 189143.3238 | Y30: 211834.2579 | Z30: 205355.5291 | AA30: 224734.9642 | AB30: 205444.663 | AC30: 236825.2926 | AD30: 245573.9633 | AE30: 239756.5701 | AF30: 237857.0775 | AG30: 259722.8348 | AH30: 276395.6592 | AI30: 282781.7845 | AJ30: 254388.5742 | AK30: 302024.9994 | AL30: 299007.4905 | AM30: 320418.3219 | AN30: 303519.5096 | AO30: 319937.2231 | AP30: 350129.7516 | AQ30: =AQ26-AQ27-AQ28 -> 349045.7718 | AR30: 339127.3178 | AS30: 382596.2331 | AT30: 373532.9242 | AU30: 403179.2078 | AV30: 371055.9139 | AW30: 430615.4311 | AX30: 440564.8062 | AY30: 433027.0349 | AZ30: 432746.2452 | BA30: 465843.9275 | BB30: 499201.3052 | BC30: 514177.3444 | BD30: 455908.8157 | BE30: 545490.7447 | BF30: 543801.9394 | BG30: 574837.1449 | BH30: 548189.9963
A31: Number of Events | K31: =Income!K32+Income!K52 -> 50 | L31: =Income!L32+Income!L52 -> 49 | M31: =Income!M32+Income!M52 -> 48 | N31: =Income!N32+Income!N52 -> 47 | O31: =Income!O32+Income!O52 -> 46 | P31: =Income!P32+Income!P52 -> 45 | Q31: =Income!Q32+Income!Q52 -> 44 | R31: =Income!R32+Income!R52 -> 43 | S31: =Income!S32+Income!S52 -> 42 | T31: =Income!T32+Income!T52 -> 41 | U31: =Income!U32+Income!U52 -> 40 | V31: =Income!V32+Income!V52 -> 39 | W31: =Income!W32+Income!W52 -> 38 | X31: =Income!X32+Income!X52 -> 38 | Y31: =Income!Y32+Income!Y52 -> 38 | Z31: =Income!Z32+Income!Z52 -> 38 | AA31: =Income!AA32+Income!AA52 -> 38 | AB31: =Income!AB32+Income!AB52 -> 38 | AC31: =Income!AC32+Income!AC52 -> 38 | AD31: =Income!AD32+Income!AD52 -> 38 | AE31: =Income!AE32+Income!AE52 -> 38 | AF31: =Income!AF32+Income!AF52 -> 38 | AG31: =Income!AG32+Income!AG52 -> 38 | AH31: =Income!AH32+Income!AH52 -> 38 | AI31: =Income!AI32+Income!AI52 -> 38 | AJ31: =Income!AJ32+Income!AJ52 -> 38 | AK31: =Income!AK32+Income!AK52 -> 38 | AL31: =Income!AL32+Income!AL52 -> 38 | AM31: =Income!AM32+Income!AM52 -> 38 | AN31: =Income!AN32+Income!AN52 -> 38 | AO31: =Income!AO32+Income!AO52 -> 38 | AP31: =Income!AP32+Income!AP52 -> 38 | AQ31: =Income!AQ32+Income!AQ52 -> 38 | AR31: =Income!AR32+Income!AR52 -> 38 | AS31: =Income!AS32+Income!AS52 -> 38 | AT31: =Income!AT32+Income!AT52 -> 38 | AU31: =Income!AU32+Income!AU52 -> 38 | AV31: =Income!AV32+Income!AV52 -> 38 | AW31: =Income!AW32+Income!AW52 -> 38 | AX31: =Income!AX32+Income!AX52 -> 38 | AY31: =Income!AY32+Income!AY52 -> 38 | AZ31: =Income!AZ32+Income!AZ52 -> 38 | BA31: =Income!BA32+Income!BA52 -> 38 | BB31: =Income!BB32+Income!BB52 -> 38 | BC31: =Income!BC32+Income!BC52 -> 38 | BD31: =Income!BD32+Income!BD52 -> 38 | BE31: =Income!BE32+Income!BE52 -> 38 | BF31: =Income!BF32+Income!BF52 -> 38 | BG31: =Income!BG32+Income!BG52 -> 38 | BH31: =Income!BH32+Income!BH52 -> 38
A32: Net Income / Event w/o Taxes | K32: =IF(K26>0,K30/K31,0) -> 3665.823953 | L32: =IF(L26>0,L30/L31,0) -> 3700.946336 | M32: 3941.026393 | N32: 4104.344613 | O32: 4232.106578 | P32: 3863.052764 | Q32: 4402.474505 | R32: 4409.280161 | S32: 4649.562417 | T32: 4524.266985 | U32: 4799.114316 | V32: 5130.597538 | W32: 5050.566582 | X32: 4977.45589 | Y32: 5574.585735 | Z32: 5404.09287 | AA32: 5914.078006 | AB32: 5406.438499 | AC32: 6232.244541 | AD32: 6462.472717 | AE32: 6309.383425 | AF32: 6259.396777 | AG32: 6834.811443 | AH32: 7273.569978 | AI32: 7441.625907 | AJ32: 6694.436163 | AK32: 7948.026301 | AL32: 7868.61817 | AM32: 8432.061103 | AN32: 7987.355517 | AO32: 8419.400608 | AP32: 9213.940833 | AQ32: 9185.415047 | AR32: 8924.4031 | AS32: 10068.32192 | AT32: 9829.813795 | AU32: 10609.97915 | AV32: 9764.629312 | AW32: 11331.98503 | AX32: 11593.81069 | AY32: 11395.44829 | AZ32: 11388.05908 | BA32: 12259.05072 | BB32: 13136.87645 | BC32: 13530.98275 | BD32: 11997.60041 | BE32: 14355.0196 | BF32: 14310.57735 | BG32: 15127.29329 | BH32: 14426.05253
A33: External Wellness Memberships P&L Summary
A34: Gross Income | K34: =Income!K57 -> 0 | L34: =Income!L57 -> 0 | M34: =Income!M57 -> 0 | N34: =Income!N57 -> 0 | O34: =Income!O57 -> 0 | P34: =Income!P57 -> 0 | Q34: =Income!Q57 -> 0 | R34: =Income!R57 -> 0 | S34: =Income!S57 -> 0 | T34: =Income!T57 -> 0 | U34: =Income!U57 -> 0 | V34: =Income!V57 -> 0 | W34: =Income!W57 -> 0 | X34: =Income!X57 -> 0 | Y34: =Income!Y57 -> 0 | Z34: =Income!Z57 -> 0 | AA34: =Income!AA57 -> 0 | AB34: =Income!AB57 -> 0 | AC34: =Income!AC57 -> 0 | AD34: =Income!AD57 -> 0 | AE34: =Income!AE57 -> 0 | AF34: =Income!AF57 -> 0 | AG34: =Income!AG57 -> 0 | AH34: =Income!AH57 -> 0 | AI34: =Income!AI57 -> 0 | AJ34: =Income!AJ57 -> 0 | AK34: =Income!AK57 -> 0 | AL34: =Income!AL57 -> 0 | AM34: =Income!AM57 -> 0 | AN34: =Income!AN57 -> 0 | AO34: =Income!AO57 -> 0 | AP34: =Income!AP57 -> 0 | AQ34: =Income!AQ57 -> 0 | AR34: =Income!AR57 -> 0 | AS34: =Income!AS57 -> 0 | AT34: =Income!AT57 -> 0 | AU34: =Income!AU57 -> 0 | AV34: =Income!AV57 -> 0 | AW34: =Income!AW57 -> 0 | AX34: =Income!AX57 -> 0 | AY34: =Income!AY57 -> 0 | AZ34: =Income!AZ57 -> 0 | BA34: =Income!BA57 -> 0 | BB34: =Income!BB57 -> 0 | BC34: =Income!BC57 -> 0 | BD34: =Income!BD57 -> 0 | BE34: =Income!BE57 -> 0 | BF34: =Income!BF57 -> 0 | BG34: =Income!BG57 -> 0 | BH34: =Income!BH57 -> 0
A35: Total Operational Expenses | K35: ='Operating Expenses'!K96 -> 0 | L35: ='Operating Expenses'!L96 -> 0 | M35: ='Operating Expenses'!M96 -> 0 | N35: ='Operating Expenses'!N96 -> 0 | O35: ='Operating Expenses'!O96 -> 0 | P35: ='Operating Expenses'!P96 -> 0 | Q35: ='Operating Expenses'!Q96 -> 0 | R35: ='Operating Expenses'!R96 -> 0 | S35: ='Operating Expenses'!S96 -> 0 | T35: ='Operating Expenses'!T96 -> 0 | U35: ='Operating Expenses'!U96 -> 0 | V35: ='Operating Expenses'!V96 -> 0 | W35: ='Operating Expenses'!W96 -> 0 | X35: ='Operating Expenses'!X96 -> 0 | Y35: ='Operating Expenses'!Y96 -> 0 | Z35: ='Operating Expenses'!Z96 -> 0 | AA35: ='Operating Expenses'!AA96 -> 0 | AB35: ='Operating Expenses'!AB96 -> 0 | AC35: ='Operating Expenses'!AC96 -> 0 | AD35: ='Operating Expenses'!AD96 -> 0 | AE35: ='Operating Expenses'!AE96 -> 0 | AF35: ='Operating Expenses'!AF96 -> 0 | AG35: ='Operating Expenses'!AG96 -> 0 | AH35: ='Operating Expenses'!AH96 -> 0 | AI35: ='Operating Expenses'!AI96 -> 0 | AJ35: ='Operating Expenses'!AJ96 -> 0 | AK35: ='Operating Expenses'!AK96 -> 0 | AL35: ='Operating Expenses'!AL96 -> 0 | AM35: ='Operating Expenses'!AM96 -> 0 | AN35: ='Operating Expenses'!AN96 -> 0 | AO35: ='Operating Expenses'!AO96 -> 0 | AP35: ='Operating Expenses'!AP96 -> 0 | AQ35: ='Operating Expenses'!AQ96 -> 0 | AR35: ='Operating Expenses'!AR96 -> 0 | AS35: ='Operating Expenses'!AS96 -> 0 | AT35: ='Operating Expenses'!AT96 -> 0 | AU35: ='Operating Expenses'!AU96 -> 0 | AV35: ='Operating Expenses'!AV96 -> 0 | AW35: ='Operating Expenses'!AW96 -> 0 | AX35: ='Operating Expenses'!AX96 -> 0 | AY35: ='Operating Expenses'!AY96 -> 0 | AZ35: ='Operating Expenses'!AZ96 -> 0 | BA35: ='Operating Expenses'!BA96 -> 0 | BB35: ='Operating Expenses'!BB96 -> 0 | BC35: ='Operating Expenses'!BC96 -> 0 | BD35: ='Operating Expenses'!BD96 -> 0 | BE35: ='Operating Expenses'!BE96 -> 0 | BF35: ='Operating Expenses'!BF96 -> 0 | BG35: ='Operating Expenses'!BG96 -> 0 | BH35: ='Operating Expenses'!BH96 -> 0
A36: Income/Expense | I36: seed | J36: 2 | K36: =IF(K34>0,IF(J36>Income!$G58,K34/K35,0),0) -> 0 | L36: =IF(L34>0,IF(K36>Income!$G58,L34/L35,0),0) -> 0 | M36: =IF(M34>0,IF(L36>Income!$G58,M34/M35,0),0) -> 0 | N36: =IF(N34>0,IF(M36>Income!$G58,N34/N35,0),0) -> 0 | O36: =IF(O34>0,IF(N36>Income!$G58,O34/O35,0),0) -> 0 | P36: =IF(P34>0,IF(O36>Income!$G58,P34/P35,0),0) -> 0 | Q36: =IF(Q34>0,IF(P36>Income!$G58,Q34/Q35,0),0) -> 0 | R36: =IF(R34>0,IF(Q36>Income!$G58,R34/R35,0),0) -> 0 | S36: =IF(S34>0,IF(R36>Income!$G58,S34/S35,0),0) -> 0 | T36: =IF(T34>0,IF(S36>Income!$G58,T34/T35,0),0) -> 0 | U36: =IF(U34>0,IF(T36>Income!$G58,U34/U35,0),0) -> 0 | V36: =IF(V34>0,IF(U36>Income!$G58,V34/V35,0),0) -> 0 | W36: =IF(W34>0,IF(V36>Income!$G58,W34/W35,0),0) -> 0 | X36: =IF(X34>0,IF(W36>Income!$G58,X34/X35,0),0) -> 0 | Y36: =IF(Y34>0,IF(X36>Income!$G58,Y34/Y35,0),0) -> 0 | Z36: =IF(Z34>0,IF(Y36>Income!$G58,Z34/Z35,0),0) -> 0 | AA36: =IF(AA34>0,IF(Z36>Income!$G58,AA34/AA35,0),0) -> 0 | AB36: =IF(AB34>0,IF(AA36>Income!$G58,AB34/AB35,0),0) -> 0 | AC36: =IF(AC34>0,IF(AB36>Income!$G58,AC34/AC35,0),0) -> 0 | AD36: =IF(AD34>0,IF(AC36>Income!$G58,AD34/AD35,0),0) -> 0 | AE36: =IF(AE34>0,IF(AD36>Income!$G58,AE34/AE35,0),0) -> 0 | AF36: =IF(AF34>0,IF(AE36>Income!$G58,AF34/AF35,0),0) -> 0 | AG36: =IF(AG34>0,IF(AF36>Income!$G58,AG34/AG35,0),0) -> 0 | AH36: =IF(AH34>0,IF(AG36>Income!$G58,AH34/AH35,0),0) -> 0 | AI36: =IF(AI34>0,IF(AH36>Income!$G58,AI34/AI35,0),0) -> 0 | AJ36: =IF(AJ34>0,IF(AI36>Income!$G58,AJ34/AJ35,0),0) -> 0 | AK36: =IF(AK34>0,IF(AJ36>Income!$G58,AK34/AK35,0),0) -> 0 | AL36: =IF(AL34>0,IF(AK36>Income!$G58,AL34/AL35,0),0) -> 0 | AM36: =IF(AM34>0,IF(AL36>Income!$G58,AM34/AM35,0),0) -> 0 | AN36: =IF(AN34>0,IF(AM36>Income!$G58,AN34/AN35,0),0) -> 0 | AO36: =IF(AO34>0,IF(AN36>Income!$G58,AO34/AO35,0),0) -> 0 | AP36: =IF(AP34>0,IF(AO36>Income!$G58,AP34/AP35,0),0) -> 0 | AQ36: =IF(AQ34>0,IF(AP36>Income!$G58,AQ34/AQ35,0),0) -> 0 | AR36: =IF(AR34>0,IF(AQ36>Income!$G58,AR34/AR35,0),0) -> 0 | AS36: =IF(AS34>0,IF(AR36>Income!$G58,AS34/AS35,0),0) -> 0 | AT36: =IF(AT34>0,IF(AS36>Income!$G58,AT34/AT35,0),0) -> 0 | AU36: =IF(AU34>0,IF(AT36>Income!$G58,AU34/AU35,0),0) -> 0 | AV36: =IF(AV34>0,IF(AU36>Income!$G58,AV34/AV35,0),0) -> 0 | AW36: =IF(AW34>0,IF(AV36>Income!$G58,AW34/AW35,0),0) -> 0 | AX36: =IF(AX34>0,IF(AW36>Income!$G58,AX34/AX35,0),0) -> 0 | AY36: =IF(AY34>0,IF(AX36>Income!$G58,AY34/AY35,0),0) -> 0 | AZ36: =IF(AZ34>0,IF(AY36>Income!$G58,AZ34/AZ35,0),0) -> 0 | BA36: =IF(BA34>0,IF(AZ36>Income!$G58,BA34/BA35,0),0) -> 0 | BB36: =IF(BB34>0,IF(BA36>Income!$G58,BB34/BB35,0),0) -> 0 | BC36: =IF(BC34>0,IF(BB36>Income!$G58,BC34/BC35,0),0) -> 0 | BD36: =IF(BD34>0,IF(BC36>Income!$G58,BD34/BD35,0),0) -> 0 | BE36: =IF(BE34>0,IF(BD36>Income!$G58,BE34/BE35,0),0) -> 0 | BF36: =IF(BF34>0,IF(BE36>Income!$G58,BF34/BF35,0),0) -> 0 | BG36: =IF(BG34>0,IF(BF36>Income!$G58,BG34/BG35,0),0) -> 0 | BH36: =IF(BH34>0,IF(BG36>Income!$G58,BH34/BH35,0),0) -> 0
A37: Total Reserve Expenses | K37: 0 | L37: 0 | M37: 0 | N37: 0 | O37: 0 | P37: 0 | Q37: 0 | R37: 0 | S37: 0 | T37: 0 | U37: 0 | V37: 0 | W37: 0 | X37: 0 | Y37: 0 | Z37: 0 | AA37: 0 | AB37: 0 | AC37: 0 | AD37: 0 | AE37: 0 | AF37: 0 | AG37: 0 | AH37: 0 | AI37: 0 | AJ37: 0 | AK37: 0 | AL37: 0 | AM37: 0 | AN37: 0 | AO37: 0 | AP37: 0 | AQ37: 0 | AR37: 0 | AS37: 0 | AT37: 0 | AU37: 0 | AV37: 0 | AW37: 0 | AX37: 0 | AY37: 0 | AZ37: 0 | BA37: 0 | BB37: 0 | BC37: 0 | BD37: 0 | BE37: 0 | BF37: 0 | BG37: 0 | BH37: 0
A38: Net Income | K38: =K34-K35-K37 -> 0 | L38: =L34-L35-L37 -> 0 | M38: 0 | N38: 0 | O38: 0 | P38: 0 | Q38: 0 | R38: 0 | S38: 0 | T38: 0 | U38: 0 | V38: 0 | W38: 0 | X38: 0 | Y38: 0 | Z38: 0 | AA38: 0 | AB38: 0 | AC38: 0 | AD38: 0 | AE38: 0 | AF38: 0 | AG38: 0 | AH38: 0 | AI38: 0 | AJ38: 0 | AK38: 0 | AL38: 0 | AM38: 0 | AN38: 0 | AO38: 0 | AP38: 0 | AQ38: 0 | AR38: 0 | AS38: 0 | AT38: 0 | AU38: 0 | AV38: 0 | AW38: 0 | AX38: 0 | AY38: 0 | AZ38: 0 | BA38: 0 | BB38: 0 | BC38: 0 | BD38: 0 | BE38: 0 | BF38: 0 | BG38: 0 | BH38: 0
A39: Number of Memberships | K39: =Income!K58 -> 0 | L39: =Income!L58 -> 0 | M39: =Income!M58 -> 0 | N39: =Income!N58 -> 0 | O39: =Income!O58 -> 0 | P39: =Income!P58 -> 0 | Q39: =Income!Q58 -> 0 | R39: =Income!R58 -> 0 | S39: =Income!S58 -> 0 | T39: =Income!T58 -> 0 | U39: =Income!U58 -> 0 | V39: =Income!V58 -> 0 | W39: =Income!W58 -> 0 | X39: =Income!X58 -> 0 | Y39: =Income!Y58 -> 0 | Z39: =Income!Z58 -> 0 | AA39: =Income!AA58 -> 0 | AB39: =Income!AB58 -> 0 | AC39: =Income!AC58 -> 0 | AD39: =Income!AD58 -> 0 | AE39: =Income!AE58 -> 0 | AF39: =Income!AF58 -> 0 | AG39: =Income!AG58 -> 0 | AH39: =Income!AH58 -> 0 | AI39: =Income!AI58 -> 0 | AJ39: =Income!AJ58 -> 0 | AK39: =Income!AK58 -> 0 | AL39: =Income!AL58 -> 0 | AM39: =Income!AM58 -> 0 | AN39: =Income!AN58 -> 0 | AO39: =Income!AO58 -> 0 | AP39: =Income!AP58 -> 0 | AQ39: =Income!AQ58 -> 0 | AR39: =Income!AR58 -> 0 | AS39: =Income!AS58 -> 0 | AT39: =Income!AT58 -> 0 | AU39: =Income!AU58 -> 0 | AV39: =Income!AV58 -> 0 | AW39: =Income!AW58 -> 0 | AX39: =Income!AX58 -> 0 | AY39: =Income!AY58 -> 0 | AZ39: =Income!AZ58 -> 0 | BA39: =Income!BA58 -> 0 | BB39: =Income!BB58 -> 0 | BC39: =Income!BC58 -> 0 | BD39: =Income!BD58 -> 0 | BE39: =Income!BE58 -> 0 | BF39: =Income!BF58 -> 0 | BG39: =Income!BG58 -> 0 | BH39: =Income!BH58 -> 0
A40: Net Income / Membership w/o Taxes | K40: =IF(K34>0,K38/K39,0) -> 0 | L40: =IF(L34>0,L38/L39,0) -> 0 | M40: 0 | N40: 0 | O40: 0 | P40: 0 | Q40: 0 | R40: 0 | S40: 0 | T40: 0 | U40: 0 | V40: 0 | W40: =IF(W34>0,W38/W39,0) -> 0 | X40: =IF(X34>0,X38/X39,0) -> 0 | Y40: =IF(Y34>0,Y38/Y39,0) -> 0 | Z40: =IF(Z34>0,Z38/Z39,0) -> 0 | AA40: =IF(AA34>0,AA38/AA39,0) -> 0 | AB40: =IF(AB34>0,AB38/AB39,0) -> 0 | AC40: =IF(AC34>0,AC38/AC39,0) -> 0 | AD40: =IF(AD34>0,AD38/AD39,0) -> 0 | AE40: =IF(AE34>0,AE38/AE39,0) -> 0 | AF40: =IF(AF34>0,AF38/AF39,0) -> 0 | AG40: =IF(AG34>0,AG38/AG39,0) -> 0 | AH40: =IF(AH34>0,AH38/AH39,0) -> 0 | AI40: =IF(AI34>0,AI38/AI39,0) -> 0 | AJ40: =IF(AJ34>0,AJ38/AJ39,0) -> 0 | AK40: =IF(AK34>0,AK38/AK39,0) -> 0 | AL40: =IF(AL34>0,AL38/AL39,0) -> 0 | AM40: =IF(AM34>0,AM38/AM39,0) -> 0 | AN40: =IF(AN34>0,AN38/AN39,0) -> 0 | AO40: =IF(AO34>0,AO38/AO39,0) -> 0 | AP40: =IF(AP34>0,AP38/AP39,0) -> 0 | AQ40: =IF(AQ34>0,AQ38/AQ39,0) -> 0 | AR40: =IF(AR34>0,AR38/AR39,0) -> 0 | AS40: =IF(AS34>0,AS38/AS39,0) -> 0 | AT40: =IF(AT34>0,AT38/AT39,0) -> 0 | AU40: =IF(AU34>0,AU38/AU39,0) -> 0 | AV40: =IF(AV34>0,AV38/AV39,0) -> 0 | AW40: =IF(AW34>0,AW38/AW39,0) -> 0 | AX40: =IF(AX34>0,AX38/AX39,0) -> 0 | AY40: =IF(AY34>0,AY38/AY39,0) -> 0 | AZ40: =IF(AZ34>0,AZ38/AZ39,0) -> 0 | BA40: =IF(BA34>0,BA38/BA39,0) -> 0 | BB40: =IF(BB34>0,BB38/BB39,0) -> 0 | BC40: =IF(BC34>0,BC38/BC39,0) -> 0 | BD40: =IF(BD34>0,BD38/BD39,0) -> 0 | BE40: =IF(BE34>0,BE38/BE39,0) -> 0 | BF40: =IF(BF34>0,BF38/BF39,0) -> 0 | BG40: =IF(BG34>0,BG38/BG39,0) -> 0 | BH40: =IF(BH34>0,BH38/BH39,0) -> 0

Sheet NP Growth
J1: Yr # | K1: 0 | L1: 1 | M1: 2 | N1: 3 | O1: 4 | P1: 5 | Q1: 6 | R1: 7 | S1: 8 | T1: 9 | U1: 10 | V1: 11 | W1: 12 | X1: 13 | Y1: 14 | Z1: 15 | AA1: 16 | AB1: 17 | AC1: 18 | AD1: 19 | AE1: 20 | AF1: 21 | AG1: 22 | AH1: 23 | AI1: 24 | AJ1: 25 | AK1: 26 | AL1: 27 | AM1: 28 | AN1: 29 | AO1: 30 | AP1: 31 | AQ1: 32 | AR1: 33 | AS1: 34 | AT1: 35 | AU1: 36 | AV1: 37 | AW1: 38 | AX1: 39 | AY1: 40 | AZ1: 41 | BA1: 42 | BB1: 43 | BC1: 44 | BD1: 45 | BE1: 46 | BF1: 47 | BG1: 48 | BH1: 49
J2: CY | K2: =BeginningYear -> 2017 | L2: =K2+1 -> 2018 | M2: =L2+1 -> 2019 | N2: 2020 | O2: 2021 | P2: 2022 | Q2: 2023 | R2: 2024 | S2: 2025 | T2: 2026 | U2: 2027 | V2: 2028 | W2: 2029 | X2: 2030 | Y2: 2031 | Z2: 2032 | AA2: 2033 | AB2: 2034 | AC2: 2035 | AD2: 2036 | AE2: 2037 | AF2: 2038 | AG2: 2039 | AH2: 2040 | AI2: 2041 | AJ2: 2042 | AK2: 2043 | AL2: 2044 | AM2: 2045 | AN2: 2046 | AO2: 2047 | AP2: 2048 | AQ2: 2049 | AR2: 2050 | AS2: 2051 | AT2: 2052 | AU2: 2053 | AV2: 2054 | AW2: 2055 | AX2: 2056 | AY2: 2057 | AZ2: 2058 | BA2: 2059 | BB2: 2060 | BC2: 2061 | BD2: 2062 | BE2: 2063 | BF2: 2064 | BG2: 2065 | BH2: 2066
A4: Nature Pointe Community Growth Projections | J4: Dev % | K4: =K8/112 -> 0.2589285714 | L4: 0.2857142857 | M4: 0.3125 | N4: 0.3392857143 | O4: 0.3660714286 | P4: 0.3928571429 | Q4: 0.4196428571 | R4: 0.4464285714 | S4: 0.4732142857 | T4: 0.5 | U4: 0.5267857143 | V4: 0.5535714286 | W4: 0.5803571429 | X4: 0.6071428571 | Y4: 0.6339285714 | Z4: 0.6607142857 | AA4: 0.6875 | AB4: 0.7142857143 | AC4: 0.7410714286 | AD4: 0.7678571429 | AE4: 0.7946428571 | AF4: 0.8214285714 | AG4: 0.8482142857 | AH4: 0.875 | AI4: 0.9017857143 | AJ4: 0.9285714286 | AK4: 0.9285714286 | AL4: 0.9285714286 | AM4: 0.9285714286 | AN4: 0.9285714286 | AO4: =AO8/112 -> 0.9285714286 | AP4: 0.9285714286 | AQ4: 0.9285714286 | AR4: 0.9285714286 | AS4: 0.9285714286 | AT4: 0.9285714286 | AU4: 0.9285714286 | AV4: 0.9285714286 | AW4: 0.9285714286 | AX4: 0.9285714286 | AY4: 0.9285714286 | AZ4: 0.9285714286 | BA4: 0.9285714286 | BB4: 0.9285714286 | BC4: 0.9285714286 | BD4: 0.9285714286 | BE4: 0.9285714286 | BF4: 0.9285714286 | BG4: 0.9285714286 | BH4: 0.9285714286
A7: Total Lots Sold | K7: =TotLotsSold -> 71 | L7: =IF(GrowthAssump="ConstGrowth",MIN(K7+MIN(SalesRate,K8),CapOnLots),MIN(K7+MIN('New Housing Starts'!BB7,K8),CapOnLots)) -> 74 | M7: =IF(GrowthAssump="ConstGrowth",MIN(L7+MIN(SalesRate,L8),CapOnLots),MIN(L7+MIN('New Housing Starts'!BC7,L8),CapOnLots)) -> 77 | N7: =IF(GrowthAssump="ConstGrowth",MIN(M7+MIN(SalesRate,M8),CapOnLots),MIN(M7+MIN('New Housing Starts'!BD7,M8),CapOnLots)) -> 80 | O7: =IF(GrowthAssump="ConstGrowth",MIN(N7+MIN(SalesRate,N8),CapOnLots),MIN(N7+MIN('New Housing Starts'!BE7,N8),CapOnLots)) -> 83 | P7: =IF(GrowthAssump="ConstGrowth",MIN(O7+MIN(SalesRate,O8),CapOnLots),MIN(O7+MIN('New Housing Starts'!BF7,O8),CapOnLots)) -> 86 | Q7: =IF(GrowthAssump="ConstGrowth",MIN(P7+MIN(SalesRate,P8),CapOnLots),MIN(P7+MIN('New Housing Starts'!BG7,P8),CapOnLots)) -> 89 | R7: =IF(GrowthAssump="ConstGrowth",MIN(Q7+MIN(SalesRate,Q8),CapOnLots),MIN(Q7+MIN('New Housing Starts'!BH7,Q8),CapOnLots)) -> 92 | S7: =IF(GrowthAssump="ConstGrowth",MIN(R7+MIN(SalesRate,R8),CapOnLots),MIN(R7+MIN('New Housing Starts'!BI7,R8),CapOnLots)) -> 95 | T7: =IF(GrowthAssump="ConstGrowth",MIN(S7+MIN(SalesRate,S8),CapOnLots),MIN(S7+MIN('New Housing Starts'!BJ7,S8),CapOnLots)) -> 98 | U7: =IF(GrowthAssump="ConstGrowth",MIN(T7+MIN(SalesRate,T8),CapOnLots),MIN(T7+MIN('New Housing Starts'!BK7,T8),CapOnLots)) -> 101 | V7: =IF(GrowthAssump="ConstGrowth",MIN(U7+MIN(SalesRate,U8),CapOnLots),MIN(U7+MIN('New Housing Starts'!BL7,U8),CapOnLots)) -> 104 | W7: =IF(GrowthAssump="ConstGrowth",MIN(V7+MIN(SalesRate,V8),CapOnLots),MIN(V7+MIN('New Housing Starts'!BM7,V8),CapOnLots)) -> 107 | X7: =IF(GrowthAssump="ConstGrowth",MIN(W7+MIN(SalesRate,W8),CapOnLots),MIN(W7+MIN('New Housing Starts'!BN7,W8),CapOnLots)) -> 107 | Y7: =IF(GrowthAssump="ConstGrowth",MIN(X7+MIN(SalesRate,X8),CapOnLots),MIN(X7+MIN('New Housing Starts'!BO7,X8),CapOnLots)) -> 107 | Z7: =IF(GrowthAssump="ConstGrowth",MIN(Y7+MIN(SalesRate,Y8),CapOnLots),MIN(Y7+MIN('New Housing Starts'!BP7,Y8),CapOnLots)) -> 107 | AA7: =IF(GrowthAssump="ConstGrowth",MIN(Z7+MIN(SalesRate,Z8),CapOnLots),MIN(Z7+MIN('New Housing Starts'!BQ7,Z8),CapOnLots)) -> 107 | AB7: =IF(GrowthAssump="ConstGrowth",MIN(AA7+MIN(SalesRate,AA8),CapOnLots),MIN(AA7+MIN('New Housing Starts'!BR7,AA8),CapOnLots)) -> 107 | AC7: =IF(GrowthAssump="ConstGrowth",MIN(AB7+MIN(SalesRate,AB8),CapOnLots),MIN(AB7+MIN('New Housing Starts'!BS7,AB8),CapOnLots)) -> 107 | AD7: =IF(GrowthAssump="ConstGrowth",MIN(AC7+MIN(SalesRate,AC8),CapOnLots),MIN(AC7+MIN('New Housing Starts'!BT7,AC8),CapOnLots)) -> 107 | AE7: =IF(GrowthAssump="ConstGrowth",MIN(AD7+MIN(SalesRate,AD8),CapOnLots),MIN(AD7+MIN('New Housing Starts'!BU7,AD8),CapOnLots)) -> 107 | AF7: =IF(GrowthAssump="ConstGrowth",MIN(AE7+MIN(SalesRate,AE8),CapOnLots),MIN(AE7+MIN('New Housing Starts'!BV7,AE8),CapOnLots)) -> 107 | AG7: =IF(GrowthAssump="ConstGrowth",MIN(AF7+MIN(SalesRate,AF8),CapOnLots),MIN(AF7+MIN('New Housing Starts'!BW7,AF8),CapOnLots)) -> 107 | AH7: =IF(GrowthAssump="ConstGrowth",MIN(AG7+MIN(SalesRate,AG8),CapOnLots),MIN(AG7+MIN('New Housing Starts'!BX7,AG8),CapOnLots)) -> 107 | AI7: =IF(GrowthAssump="ConstGrowth",MIN(AH7+MIN(SalesRate,AH8),CapOnLots),MIN(AH7+MIN('New Housing Starts'!BY7,AH8),CapOnLots)) -> 107 | AJ7: =IF(GrowthAssump="ConstGrowth",MIN(AI7+MIN(SalesRate,AI8),CapOnLots),MIN(AI7+MIN('New Housing Starts'!BZ7,AI8),CapOnLots)) -> 107 | AK7: =IF(GrowthAssump="ConstGrowth",MIN(AJ7+MIN(SalesRate,AJ8),CapOnLots),MIN(AJ7+MIN('New Housing Starts'!CA7,AJ8),CapOnLots)) -> 107 | AL7: =IF(GrowthAssump="ConstGrowth",MIN(AK7+MIN(SalesRate,AK8),CapOnLots),MIN(AK7+MIN('New Housing Starts'!CB7,AK8),CapOnLots)) -> 107 | AM7: =IF(GrowthAssump="ConstGrowth",MIN(AL7+MIN(SalesRate,AL8),CapOnLots),MIN(AL7+MIN('New Housing Starts'!CC7,AL8),CapOnLots)) -> 107 | AN7: =IF(GrowthAssump="ConstGrowth",MIN(AM7+MIN(SalesRate,AM8),CapOnLots),MIN(AM7+MIN('New Housing Starts'!CD7,AM8),CapOnLots)) -> 107 | AO7: =IF(GrowthAssump="ConstGrowth",MIN(AN7+MIN(SalesRate,AN8),CapOnLots),MIN(AN7+MIN('New Housing Starts'!CE7,AN8),CapOnLots)) -> 107 | AP7: =IF(GrowthAssump="ConstGrowth",MIN(AO7+MIN(SalesRate,AO8),CapOnLots),MIN(AO7+MIN('New Housing Starts'!CF7,AO8),CapOnLots)) -> 107 | AQ7: =IF(GrowthAssump="ConstGrowth",MIN(AP7+MIN(SalesRate,AP8),CapOnLots),MIN(AP7+MIN('New Housing Starts'!CG7,AP8),CapOnLots)) -> 107 | AR7: =IF(GrowthAssump="ConstGrowth",MIN(AQ7+MIN(SalesRate,AQ8),CapOnLots),MIN(AQ7+MIN('New Housing Starts'!CH7,AQ8),CapOnLots)) -> 107 | AS7: =IF(GrowthAssump="ConstGrowth",MIN(AR7+MIN(SalesRate,AR8),CapOnLots),MIN(AR7+MIN('New Housing Starts'!CI7,AR8),CapOnLots)) -> 107 | AT7: =IF(GrowthAssump="ConstGrowth",MIN(AS7+MIN(SalesRate,AS8),CapOnLots),MIN(AS7+MIN('New Housing Starts'!CJ7,AS8),CapOnLots)) -> 107 | AU7: =IF(GrowthAssump="ConstGrowth",MIN(AT7+MIN(SalesRate,AT8),CapOnLots),MIN(AT7+MIN('New Housing Starts'!CK7,AT8),CapOnLots)) -> 107 | AV7: =IF(GrowthAssump="ConstGrowth",MIN(AU7+MIN(SalesRate,AU8),CapOnLots),MIN(AU7+MIN('New Housing Starts'!CL7,AU8),CapOnLots)) -> 107 | AW7: =IF(GrowthAssump="ConstGrowth",MIN(AV7+MIN(SalesRate,AV8),CapOnLots),MIN(AV7+MIN('New Housing Starts'!CM7,AV8),CapOnLots)) -> 107 | AX7: =IF(GrowthAssump="ConstGrowth",MIN(AW7+MIN(SalesRate,AW8),CapOnLots),MIN(AW7+MIN('New Housing Starts'!CN7,AW8),CapOnLots)) -> 107 | AY7: =IF(GrowthAssump="ConstGrowth",MIN(AX7+MIN(SalesRate,AX8),CapOnLots),MIN(AX7+MIN('New Housing Starts'!CO7,AX8),CapOnLots)) -> 107 | AZ7: =IF(GrowthAssump="ConstGrowth",MIN(AY7+MIN(SalesRate,AY8),CapOnLots),MIN(AY7+MIN('New Housing Starts'!CP7,AY8),CapOnLots)) -> 107 | BA7: =IF(GrowthAssump="ConstGrowth",MIN(AZ7+MIN(SalesRate,AZ8),CapOnLots),MIN(AZ7+MIN('New Housing Starts'!CQ7,AZ8),CapOnLots)) -> 107 | BB7: =IF(GrowthAssump="ConstGrowth",MIN(BA7+MIN(SalesRate,BA8),CapOnLots),MIN(BA7+MIN('New Housing Starts'!CR7,BA8),CapOnLots)) -> 107 | BC7: =IF(GrowthAssump="ConstGrowth",MIN(BB7+MIN(SalesRate,BB8),CapOnLots),MIN(BB7+MIN('New Housing Starts'!CS7,BB8),CapOnLots)) -> 107 | BD7: =IF(GrowthAssump="ConstGrowth",MIN(BC7+MIN(SalesRate,BC8),CapOnLots),MIN(BC7+MIN('New Housing Starts'!CT7,BC8),CapOnLots)) -> 107 | BE7: =IF(GrowthAssump="ConstGrowth",MIN(BD7+MIN(SalesRate,BD8),CapOnLots),MIN(BD7+MIN('New Housing Starts'!CU7,BD8),CapOnLots)) -> 107 | BF7: =IF(GrowthAssump="ConstGrowth",MIN(BE7+MIN(SalesRate,BE8),CapOnLots),MIN(BE7+MIN('New Housing Starts'!CV7,BE8),CapOnLots)) -> 107 | BG7: =IF(GrowthAssump="ConstGrowth",MIN(BF7+MIN(SalesRate,BF8),CapOnLots),MIN(BF7+MIN('New Housing Starts'!CW7,BF8),CapOnLots)) -> 107 | BH7: =IF(GrowthAssump="ConstGrowth",MIN(BG7+MIN(SalesRate,BG8),CapOnLots),MIN(BG7+MIN('New Housing Starts'!CX7,BG8),CapOnLots)) -> 107
A8: Lots With Homes | J8: 26 | K8: =LotsWithHomes -> 29 | L8: =IF(GrowthAssump="ConstGrowth",MIN(K8+MIN(BuildRate,K9),CapOnHomes),MIN(K8+MIN('New Housing Starts'!BB6,K9),CapOnHomes)) -> 32 | M8: =IF(GrowthAssump="ConstGrowth",MIN(L8+MIN(BuildRate,L9),CapOnHomes),MIN(L8+MIN('New Housing Starts'!BC6,L9),CapOnHomes)) -> 35 | N8: =IF(GrowthAssump="ConstGrowth",MIN(M8+MIN(BuildRate,M9),CapOnHomes),MIN(M8+MIN('New Housing Starts'!BD6,M9),CapOnHomes)) -> 38 | O8: =IF(GrowthAssump="ConstGrowth",MIN(N8+MIN(BuildRate,N9),CapOnHomes),MIN(N8+MIN('New Housing Starts'!BE6,N9),CapOnHomes)) -> 41 | P8: =IF(GrowthAssump="ConstGrowth",MIN(O8+MIN(BuildRate,O9),CapOnHomes),MIN(O8+MIN('New Housing Starts'!BF6,O9),CapOnHomes)) -> 44 | Q8: =IF(GrowthAssump="ConstGrowth",MIN(P8+MIN(BuildRate,P9),CapOnHomes),MIN(P8+MIN('New Housing Starts'!BG6,P9),CapOnHomes)) -> 47 | R8: =IF(GrowthAssump="ConstGrowth",MIN(Q8+MIN(BuildRate,Q9),CapOnHomes),MIN(Q8+MIN('New Housing Starts'!BH6,Q9),CapOnHomes)) -> 50 | S8: =IF(GrowthAssump="ConstGrowth",MIN(R8+MIN(BuildRate,R9),CapOnHomes),MIN(R8+MIN('New Housing Starts'!BI6,R9),CapOnHomes)) -> 53 | T8: =IF(GrowthAssump="ConstGrowth",MIN(S8+MIN(BuildRate,S9),CapOnHomes),MIN(S8+MIN('New Housing Starts'!BJ6,S9),CapOnHomes)) -> 56 | U8: =IF(GrowthAssump="ConstGrowth",MIN(T8+MIN(BuildRate,T9),CapOnHomes),MIN(T8+MIN('New Housing Starts'!BK6,T9),CapOnHomes)) -> 59 | V8: =IF(GrowthAssump="ConstGrowth",MIN(U8+MIN(BuildRate,U9),CapOnHomes),MIN(U8+MIN('New Housing Starts'!BL6,U9),CapOnHomes)) -> 62 | W8: =IF(GrowthAssump="ConstGrowth",MIN(V8+MIN(BuildRate,V9),CapOnHomes),MIN(V8+MIN('New Housing Starts'!BM6,V9),CapOnHomes)) -> 65 | X8: =IF(GrowthAssump="ConstGrowth",MIN(W8+MIN(BuildRate,W9),CapOnHomes),MIN(W8+MIN('New Housing Starts'!BN6,W9),CapOnHomes)) -> 68 | Y8: =IF(GrowthAssump="ConstGrowth",MIN(X8+MIN(BuildRate,X9),CapOnHomes),MIN(X8+MIN('New Housing Starts'!BO6,X9),CapOnHomes)) -> 71 | Z8: =IF(GrowthAssump="ConstGrowth",MIN(Y8+MIN(BuildRate,Y9),CapOnHomes),MIN(Y8+MIN('New Housing Starts'!BP6,Y9),CapOnHomes)) -> 74 | AA8: =IF(GrowthAssump="ConstGrowth",MIN(Z8+MIN(BuildRate,Z9),CapOnHomes),MIN(Z8+MIN('New Housing Starts'!BQ6,Z9),CapOnHomes)) -> 77 | AB8: =IF(GrowthAssump="ConstGrowth",MIN(AA8+MIN(BuildRate,AA9),CapOnHomes),MIN(AA8+MIN('New Housing Starts'!BR6,AA9),CapOnHomes)) -> 80 | AC8: =IF(GrowthAssump="ConstGrowth",MIN(AB8+MIN(BuildRate,AB9),CapOnHomes),MIN(AB8+MIN('New Housing Starts'!BS6,AB9),CapOnHomes)) -> 83 | AD8: =IF(GrowthAssump="ConstGrowth",MIN(AC8+MIN(BuildRate,AC9),CapOnHomes),MIN(AC8+MIN('New Housing Starts'!BT6,AC9),CapOnHomes)) -> 86 | AE8: =IF(GrowthAssump="ConstGrowth",MIN(AD8+MIN(BuildRate,AD9),CapOnHomes),MIN(AD8+MIN('New Housing Starts'!BU6,AD9),CapOnHomes)) -> 89 | AF8: =IF(GrowthAssump="ConstGrowth",MIN(AE8+MIN(BuildRate,AE9),CapOnHomes),MIN(AE8+MIN('New Housing Starts'!BV6,AE9),CapOnHomes)) -> 92 | AG8: =IF(GrowthAssump="ConstGrowth",MIN(AF8+MIN(BuildRate,AF9),CapOnHomes),MIN(AF8+MIN('New Housing Starts'!BW6,AF9),CapOnHomes)) -> 95 | AH8: =IF(GrowthAssump="ConstGrowth",MIN(AG8+MIN(BuildRate,AG9),CapOnHomes),MIN(AG8+MIN('New Housing Starts'!BX6,AG9),CapOnHomes)) -> 98 | AI8: =IF(GrowthAssump="ConstGrowth",MIN(AH8+MIN(BuildRate,AH9),CapOnHomes),MIN(AH8+MIN('New Housing Starts'!BY6,AH9),CapOnHomes)) -> 101 | AJ8: =IF(GrowthAssump="ConstGrowth",MIN(AI8+MIN(BuildRate,AI9),CapOnHomes),MIN(AI8+MIN('New Housing Starts'!BZ6,AI9),CapOnHomes)) -> 104 | AK8: =IF(GrowthAssump="ConstGrowth",MIN(AJ8+MIN(BuildRate,AJ9),CapOnHomes),MIN(AJ8+MIN('New Housing Starts'!CA6,AJ9),CapOnHomes)) -> 104 | AL8: =IF(GrowthAssump="ConstGrowth",MIN(AK8+MIN(BuildRate,AK9),CapOnHomes),MIN(AK8+MIN('New Housing Starts'!CB6,AK9),CapOnHomes)) -> 104 | AM8: =IF(GrowthAssump="ConstGrowth",MIN(AL8+MIN(BuildRate,AL9),CapOnHomes),MIN(AL8+MIN('New Housing Starts'!CC6,AL9),CapOnHomes)) -> 104 | AN8: =IF(GrowthAssump="ConstGrowth",MIN(AM8+MIN(BuildRate,AM9),CapOnHomes),MIN(AM8+MIN('New Housing Starts'!CD6,AM9),CapOnHomes)) -> 104 | AO8: =IF(GrowthAssump="ConstGrowth",MIN(AN8+MIN(BuildRate,AN9),CapOnHomes),MIN(AN8+MIN('New Housing Starts'!CE6,AN9),CapOnHomes)) -> 104 | AP8: =IF(GrowthAssump="ConstGrowth",MIN(AO8+MIN(BuildRate,AO9),CapOnHomes),MIN(AO8+MIN('New Housing Starts'!CF6,AO9),CapOnHomes)) -> 104 | AQ8: =IF(GrowthAssump="ConstGrowth",MIN(AP8+MIN(BuildRate,AP9),CapOnHomes),MIN(AP8+MIN('New Housing Starts'!CG6,AP9),CapOnHomes)) -> 104 | AR8: =IF(GrowthAssump="ConstGrowth",MIN(AQ8+MIN(BuildRate,AQ9),CapOnHomes),MIN(AQ8+MIN('New Housing Starts'!CH6,AQ9),CapOnHomes)) -> 104 | AS8: =IF(GrowthAssump="ConstGrowth",MIN(AR8+MIN(BuildRate,AR9),CapOnHomes),MIN(AR8+MIN('New Housing Starts'!CI6,AR9),CapOnHomes)) -> 104 | AT8: =IF(GrowthAssump="ConstGrowth",MIN(AS8+MIN(BuildRate,AS9),CapOnHomes),MIN(AS8+MIN('New Housing Starts'!CJ6,AS9),CapOnHomes)) -> 104 | AU8: =IF(GrowthAssump="ConstGrowth",MIN(AT8+MIN(BuildRate,AT9),CapOnHomes),MIN(AT8+MIN('New Housing Starts'!CK6,AT9),CapOnHomes)) -> 104 | AV8: =IF(GrowthAssump="ConstGrowth",MIN(AU8+MIN(BuildRate,AU9),CapOnHomes),MIN(AU8+MIN('New Housing Starts'!CL6,AU9),CapOnHomes)) -> 104 | AW8: =IF(GrowthAssump="ConstGrowth",MIN(AV8+MIN(BuildRate,AV9),CapOnHomes),MIN(AV8+MIN('New Housing Starts'!CM6,AV9),CapOnHomes)) -> 104 | AX8: =IF(GrowthAssump="ConstGrowth",MIN(AW8+MIN(BuildRate,AW9),CapOnHomes),MIN(AW8+MIN('New Housing Starts'!CN6,AW9),CapOnHomes)) -> 104 | AY8: =IF(GrowthAssump="ConstGrowth",MIN(AX8+MIN(BuildRate,AX9),CapOnHomes),MIN(AX8+MIN('New Housing Starts'!CO6,AX9),CapOnHomes)) -> 104 | AZ8: =IF(GrowthAssump="ConstGrowth",MIN(AY8+MIN(BuildRate,AY9),CapOnHomes),MIN(AY8+MIN('New Housing Starts'!CP6,AY9),CapOnHomes)) -> 104 | BA8: =IF(GrowthAssump="ConstGrowth",MIN(AZ8+MIN(BuildRate,AZ9),CapOnHomes),MIN(AZ8+MIN('New Housing Starts'!CQ6,AZ9),CapOnHomes)) -> 104 | BB8: =IF(GrowthAssump="ConstGrowth",MIN(BA8+MIN(BuildRate,BA9),CapOnHomes),MIN(BA8+MIN('New Housing Starts'!CR6,BA9),CapOnHomes)) -> 104 | BC8: =IF(GrowthAssump="ConstGrowth",MIN(BB8+MIN(BuildRate,BB9),CapOnHomes),MIN(BB8+MIN('New Housing Starts'!CS6,BB9),CapOnHomes)) -> 104 | BD8: =IF(GrowthAssump="ConstGrowth",MIN(BC8+MIN(BuildRate,BC9),CapOnHomes),MIN(BC8+MIN('New Housing Starts'!CT6,BC9),CapOnHomes)) -> 104 | BE8: =IF(GrowthAssump="ConstGrowth",MIN(BD8+MIN(BuildRate,BD9),CapOnHomes),MIN(BD8+MIN('New Housing Starts'!CU6,BD9),CapOnHomes)) -> 104 | BF8: =IF(GrowthAssump="ConstGrowth",MIN(BE8+MIN(BuildRate,BE9),CapOnHomes),MIN(BE8+MIN('New Housing Starts'!CV6,BE9),CapOnHomes)) -> 104 | BG8: =IF(GrowthAssump="ConstGrowth",MIN(BF8+MIN(BuildRate,BF9),CapOnHomes),MIN(BF8+MIN('New Housing Starts'!CW6,BF9),CapOnHomes)) -> 104 | BH8: =IF(GrowthAssump="ConstGrowth",MIN(BG8+MIN(BuildRate,BG9),CapOnHomes),MIN(BG8+MIN('New Housing Starts'!CX6,BG9),CapOnHomes)) -> 104
A9: Sold/Vacant Lots | K9: =K7-K8 -> 42 | L9: =L7-L8 -> 42 | M9: =M7-M8 -> 42 | N9: 42 | O9: 42 | P9: 42 | Q9: 42 | R9: 42 | S9: 42 | T9: 42 | U9: 42 | V9: 42 | W9: 42 | X9: 39 | Y9: 36 | Z9: 33 | AA9: 30 | AB9: 27 | AC9: 24 | AD9: 21 | AE9: 18 | AF9: 15 | AG9: 12 | AH9: 9 | AI9: 6 | AJ9: 3 | AK9: 3 | AL9: 3 | AM9: 3 | AN9: 3 | AO9: 3 | AP9: 3 | AQ9: 3 | AR9: 3 | AS9: 3 | AT9: 3 | AU9: 3 | AV9: 3 | AW9: 3 | AX9: 3 | AY9: 3 | AZ9: 3 | BA9: 3 | BB9: 3 | BC9: 3 | BD9: 3 | BE9: 3 | BF9: 3 | BG9: 3 | BH9: 3
A10: Unsold Lots Available Lots | K10: =MaxAvailLots-SUM(K8:K9) -> 36 | L10: 33 | M10: 30 | N10: 27 | O10: 24 | P10: 21 | Q10: 18 | R10: 15 | S10: 12 | T10: 9 | U10: 6 | V10: 3 | W10: 0 | X10: 0 | Y10: 0 | Z10: 0 | AA10: 0 | AB10: 0 | AC10: 0 | AD10: 0 | AE10: 0 | AF10: 0 | AG10: 0 | AH10: 0 | AI10: 0 | AJ10: 0 | AK10: 0 | AL10: 0 | AM10: 0 | AN10: 0 | AO10: 0 | AP10: 0 | AQ10: =MaxAvailLots-SUM(AQ8:AQ9) -> 0 | AR10: 0 | AS10: 0 | AT10: 0 | AU10: 0 | AV10: 0 | AW10: 0 | AX10: 0 | AY10: 0 | AZ10: 0 | BA10: 0 | BB10: 0 | BC10: 0 | BD10: 0 | BE10: 0 | BF10: 0 | BG10: 0 | BH10: 0
A11: Fraction: Homes Only | K11: =K8/112 -> 0.2589285714 | L11: 0.2857142857 | M11: 0.3125 | N11: 0.3392857143 | O11: 0.3660714286 | P11: 0.3928571429 | Q11: 0.4196428571 | R11: 0.4464285714 | S11: 0.4732142857 | T11: 0.5 | U11: 0.5267857143 | V11: 0.5535714286 | W11: 0.5803571429 | X11: 0.6071428571 | Y11: 0.6339285714 | Z11: 0.6607142857 | AA11: 0.6875 | AB11: 0.7142857143 | AC11: 0.7410714286 | AD11: 0.7678571429 | AE11: 0.7946428571 | AF11: 0.8214285714 | AG11: 0.8482142857 | AH11: 0.875 | AI11: 0.9017857143 | AJ11: 0.9285714286 | AK11: 0.9285714286 | AL11: 0.9285714286 | AM11: 0.9285714286 | AN11: 0.9285714286 | AO11: =AO8/112 -> 0.9285714286 | AP11: 0.9285714286 | AQ11: 0.9285714286 | AR11: 0.9285714286 | AS11: 0.9285714286 | AT11: 0.9285714286 | AU11: 0.9285714286 | AV11: 0.9285714286 | AW11: 0.9285714286 | AX11: 0.9285714286 | AY11: 0.9285714286 | AZ11: 0.9285714286 | BA11: 0.9285714286 | BB11: 0.9285714286 | BC11: 0.9285714286 | BD11: 0.9285714286 | BE11: 0.9285714286 | BF11: 0.9285714286 | BG11: 0.9285714286 | BH11: 0.9285714286
A12: Fraction: Tot Lots Sold | K12: =K7/112 -> 0.6339285714 | L12: =L7/112 -> 0.6607142857 | M12: =M7/112 -> 0.6875 | N12: 0.7142857143 | O12: 0.7410714286 | P12: 0.7678571429 | Q12: 0.7946428571 | R12: 0.8214285714 | S12: 0.8482142857 | T12: 0.875 | U12: 0.9017857143 | V12: 0.9285714286 | W12: 0.9553571429 | X12: 0.9553571429 | Y12: 0.9553571429 | Z12: 0.9553571429 | AA12: 0.9553571429 | AB12: 0.9553571429 | AC12: 0.9553571429 | AD12: 0.9553571429 | AE12: 0.9553571429 | AF12: 0.9553571429 | AG12: 0.9553571429 | AH12: 0.9553571429 | AI12: 0.9553571429 | AJ12: 0.9553571429 | AK12: 0.9553571429 | AL12: 0.9553571429 | AM12: 0.9553571429 | AN12: 0.9553571429 | AO12: 0.9553571429 | AP12: 0.9553571429 | AQ12: 0.9553571429 | AR12: 0.9553571429 | AS12: 0.9553571429 | AT12: 0.9553571429 | AU12: 0.9553571429 | AV12: 0.9553571429 | AW12: 0.9553571429 | AX12: 0.9553571429 | AY12: 0.9553571429 | AZ12: 0.9553571429 | BA12: 0.9553571429 | BB12: 0.9553571429 | BC12: 0.9553571429 | BD12: 0.9553571429 | BE12: 0.9553571429 | BF12: 0.9553571429 | BG12: 0.9553571429 | BH12: 0.9553571429
A13: Error Check: Total Lot # | K13: =SUM(K8:K10) -> 107 | L13: 107 | M13: 107 | N13: 107 | O13: 107 | P13: 107 | Q13: 107 | R13: 107 | S13: 107 | T13: 107 | U13: 107 | V13: 107 | W13: 107 | X13: 107 | Y13: 107 | Z13: 107 | AA13: 107 | AB13: 107 | AC13: 107 | AD13: 107 | AE13: 107 | AF13: 107 | AG13: 107 | AH13: 107 | AI13: 107 | AJ13: 107 | AK13: 107 | AL13: 107 | AM13: 107 | AN13: 107 | AO13: 107 | AP13: 107 | AQ13: 107 | AR13: 107 | AS13: 107 | AT13: 107 | AU13: 107 | AV13: 107 | AW13: 107 | AX13: 107 | AY13: 107 | AZ13: 107 | BA13: 107 | BB13: 107 | BC13: 107 | BD13: 107 | BE13: 107 | BF13: 107 | BG13: 107 | BH13: 107
A14: Year Search: VDO ==> HOA | B14: =MAX(K14:BH14) -> 2027 | K14: =IF(AND(J12<=0.9,K12>0.9),K2,"") ->  | U14: 2027 | AO14: =IF(AND(AN12<=0.9,AO12>0.9),AO2,"") -> 
A15: Sold Lots When Control Transfer from VDO to HOA | B15: =ROUNDUP(0.9*112,0) -> 101
A16: Year Search: Homes = 112 | B16: =MIN(K16:BH16) -> 0 | K16: =IF(AND(J8<=112,K8>=112),K2,"") -> 

Sheet Income
J1: Yr # | K1: 0 | L1: 1 | M1: 2 | N1: 3 | O1: 4 | P1: 5 | Q1: 6 | R1: 7 | S1: 8 | T1: 9 | U1: 10 | V1: 11 | W1: 12 | X1: 13 | Y1: 14 | Z1: 15 | AA1: 16 | AB1: 17 | AC1: 18 | AD1: 19 | AE1: 20 | AF1: 21 | AG1: 22 | AH1: 23 | AI1: 24 | AJ1: 25 | AK1: 26 | AL1: 27 | AM1: 28 | AN1: 29 | AO1: 30 | AP1: 31 | AQ1: 32 | AR1: 33 | AS1: 34 | AT1: 35 | AU1: 36 | AV1: 37 | AW1: 38 | AX1: 39 | AY1: 40 | AZ1: 41 | BA1: 42 | BB1: 43 | BC1: 44 | BD1: 45 | BE1: 46 | BF1: 47 | BG1: 48 | BH1: 49
J2: CY | K2: =BeginningYear -> 2017 | L2: =K2+1 -> 2018 | M2: =L2+1 -> 2019 | N2: 2020 | O2: 2021 | P2: 2022 | Q2: 2023 | R2: 2024 | S2: 2025 | T2: 2026 | U2: 2027 | V2: 2028 | W2: 2029 | X2: 2030 | Y2: 2031 | Z2: 2032 | AA2: 2033 | AB2: 2034 | AC2: 2035 | AD2: 2036 | AE2: 2037 | AF2: 2038 | AG2: 2039 | AH2: 2040 | AI2: 2041 | AJ2: 2042 | AK2: 2043 | AL2: 2044 | AM2: 2045 | AN2: 2046 | AO2: 2047 | AP2: 2048 | AQ2: 2049 | AR2: 2050 | AS2: 2051 | AT2: 2052 | AU2: 2053 | AV2: 2054 | AW2: 2055 | AX2: 2056 | AY2: 2057 | AZ2: 2058 | BA2: 2059 | BB2: 2060 | BC2: 2061 | BD2: 2062 | BE2: 2063 | BF2: 2064 | BG2: 2065 | BH2: 2066 | BI2: Comments
J3: Inflation Multiplier | K3: =CPI!DE6 -> 1 | L3: =CPI!DF6 -> 1.03 | M3: =CPI!DG6 -> 1.0609 | N3: =CPI!DH6 -> 1.092727 | O3: =CPI!DI6 -> 1.12550881 | P3: =CPI!DJ6 -> 1.159274074 | Q3: =CPI!DK6 -> 1.194052297 | R3: =CPI!DL6 -> 1.229873865 | S3: =CPI!DM6 -> 1.266770081 | T3: =CPI!DN6 -> 1.304773184 | U3: =CPI!DO6 -> 1.343916379 | V3: =CPI!DP6 -> 1.384233871 | W3: =CPI!DQ6 -> 1.425760887 | X3: =CPI!DR6 -> 1.468533713 | Y3: =CPI!DS6 -> 1.512589725 | Z3: =CPI!DT6 -> 1.557967417 | AA3: =CPI!DU6 -> 1.604706439 | AB3: =CPI!DV6 -> 1.652847632 | AC3: =CPI!DW6 -> 1.702433061 | AD3: =CPI!DX6 -> 1.753506053 | AE3: =CPI!DY6 -> 1.806111235 | AF3: =CPI!DZ6 -> 1.860294572 | AG3: =CPI!EA6 -> 1.916103409 | AH3: =CPI!EB6 -> 1.973586511 | AI3: =CPI!EC6 -> 2.032794106 | AJ3: =CPI!ED6 -> 2.09377793 | AK3: =CPI!EE6 -> 2.156591268 | AL3: =CPI!EF6 -> 2.221289006 | AM3: =CPI!EG6 -> 2.287927676 | AN3: =CPI!EH6 -> 2.356565506 | AO3: =CPI!EI6 -> 2.427262471 | AP3: =CPI!EJ6 -> 2.500080345 | AQ3: =CPI!EK6 -> 2.575082756 | AR3: =CPI!EL6 -> 2.652335238 | AS3: =CPI!EM6 -> 2.731905296 | AT3: =CPI!EN6 -> 2.813862454 | AU3: =CPI!EO6 -> 2.898278328 | AV3: =CPI!EP6 -> 2.985226678 | AW3: =CPI!EQ6 -> 3.074783478 | AX3: =CPI!ER6 -> 3.167026983 | AY3: =CPI!ES6 -> 3.262037792 | AZ3: =CPI!ET6 -> 3.359898926 | BA3: =CPI!EU6 -> 3.460695894 | BB3: =CPI!EV6 -> 3.56451677 | BC3: =CPI!EW6 -> 3.671452273 | BD3: =CPI!EX6 -> 3.781595842 | BE3: =CPI!EY6 -> 3.895043717 | BF3: =CPI!EZ6 -> 4.011895028 | BG3: =CPI!FA6 -> 4.132251879 | BH3: =CPI!FB6 -> 4.256219436
A4: Income | K4: =SUM(K5,K20,K24,K29,K61,K57) -> 446574.9016 | L4: 459805.4108 | M4: 472871.2764 | N4: 485697.7732 | O4: 499812.0508 | P4: 514286.4661 | Q4: 528178.2255 | R4: 543538.2355 | S4: 559302.5036 | T4: 583042.7467 | U4: 600171.6064 | V4: 615965.7351 | W4: 633863.7592 | X4: 657143.8328 | Y4: 681206.6857 | Z4: 706014.5102 | AA4: 731789.79 | AB4: 758536.286 | AC4: 786204.8611 | AD4: 814908.4736 | AE4: 843974.4089 | AF4: 874151.7862 | AG4: 905996.9148 | AH4: 938888.8685 | AI4: 972969.1509 | AJ4: 1008137.857 | AK4: 1036773.046 | AL4: 1068076.347 | AM4: 1100232.224 | AN4: 1133447.279 | AO4: 1167219.717 | AP4: 1202101.934 | AQ4: =SUM(AQ5,AQ20,AQ24,AQ29,AQ61,AQ57) -> 1238367.788 | AR4: 1275594.221 | AS4: 1314065.949 | AT4: 1353505.083 | AU4: 1394236.836 | AV4: 1436309.716 | AW4: 1479513.039 | AX4: 1524132.32 | AY4: 1569669.131 | AZ4: 1616693.277 | BA4: 1665467.194 | BB4: 1715701.823 | BC4: 1767433.637 | BD4: 1820614.549 | BE4: 1875456.755 | BF4: 1932024.99 | BG4: 1990042.501 | BH4: 2049941.873
A5: HOA Dues | K5: =SUM(K10:K18) -> 104110.8 | L5: =SUM(L10:L18) -> 113285.58 | M5: 122917.1471 | N5: 133024.6512 | O5: 143627.9801 | P5: 154747.7865 | Q5: 166405.5161 | R5: 178623.4366 | S5: 191424.6672 | T5: 204833.2107 | U5: 218873.9845 | V5: 233572.8549 | W5: 248956.6709 | X5: 260200.0901 | Y5: 271894.0534 | Z5: 284055.4745 | AA5: 296701.8761 | AB5: 309851.412 | AC5: 323522.8883 | AD5: 337735.7869 | AE5: 352510.2888 | AF5: 367867.2986 | AG5: 383828.4698 | AH5: 400416.2306 | AI5: 417653.8115 | AJ5: 435565.2727 | AK5: 446367.81 | AL5: 459758.8443 | AM5: 473551.6096 | AN5: =SUM(AN10:AN18) -> 487759.1579 | AO5: 502390.9027 | AP5: 517462.6297 | AQ5: =SUM(AQ10:AQ18) -> 532986.5086 | AR5: 548976.1039 | AS5: 565445.387 | AT5: 582408.7486 | AU5: 599881.0111 | AV5: 617877.4414 | AW5: 636413.7647 | AX5: 655506.1776 | AY5: 675171.3629 | AZ5: 695426.5038 | BA5: 716289.2989 | BB5: 737777.9779 | BC5: 759911.3172 | BD5: 782708.6568 | BE5: 806189.9165 | BF5: 830375.6139 | BG5: 855286.8824 | BH5: 880945.4888
A6: HOA Dues/Month for Sold/Vacant Lot | B6: $/mo | C6: 75 | I6: $/mo | K6: =IF(InflateHOADues="Yes",LotOwnerDues*K3,LotOwnerDues) -> 90 | L6: 92.7 | M6: 95.481 | N6: 98.34543 | O6: 101.2957929 | P6: 104.3346667 | Q6: 107.4647067 | R6: 110.6886479 | S6: 114.0093073 | T6: 117.4295865 | U6: 120.9524741 | V6: 124.5810484 | W6: 128.3184798 | X6: 132.1680342 | Y6: 136.1330752 | Z6: 140.2170675 | AA6: 144.4235795 | AB6: 148.7562869 | AC6: 153.2189755 | AD6: 157.8155448 | AE6: 162.5500111 | AF6: 167.4265115 | AG6: 172.4493068 | AH6: 177.622786 | AI6: 182.9514696 | AJ6: 188.4400137 | AK6: 194.0932141 | AL6: 199.9160105 | AM6: 205.9134908 | AN6: 212.0908955 | AO6: 218.4536224 | AP6: 225.0072311 | AQ6: =IF(InflateHOADues="Yes",LotOwnerDues*AQ3,LotOwnerDues) -> 231.757448 | AR6: 238.7101715 | AS6: 245.8714766 | AT6: 253.2476209 | AU6: 260.8450495 | AV6: 268.670401 | AW6: 276.730513 | AX6: 285.0324284 | AY6: 293.5834013 | AZ6: 302.3909033 | BA6: 311.4626304 | BB6: 320.8065093 | BC6: 330.4307046 | BD6: 340.3436257 | BE6: 350.5539345 | BF6: 361.0705526 | BG6: 371.9026691 | BH6: 383.0597492
A7: HOA Dues/Month for Lots With Homes | B7: $/mo | C7: 135 | F7: DuesRatio | G7: =LotOwnerDues/HomeOwnerDues -> 0.5625 | I7: $/mo | K7: =IF(InflateHOADues="Yes",HomeOwnerDues*K3,HomeOwnerDues) -> 160 | L7: 164.8 | M7: 169.744 | N7: 174.83632 | O7: 180.0814096 | P7: 185.4838519 | Q7: 191.0483674 | R7: 196.7798185 | S7: 202.683213 | T7: 208.7637094 | U7: 215.0266207 | V7: 221.4774193 | W7: 228.1217419 | X7: 234.9653942 | Y7: 242.014356 | Z7: 249.2747867 | AA7: 256.7530303 | AB7: 264.4556212 | AC7: 272.3892898 | AD7: 280.5609685 | AE7: 288.9777975 | AF7: 297.6471315 | AG7: 306.5765454 | AH7: 315.7738418 | AI7: 325.247057 | AJ7: 335.0044687 | AK7: 345.0546028 | AL7: 355.4062409 | AM7: 366.0684281 | AN7: 377.050481 | AO7: 388.3619954 | AP7: 400.0128553 | AQ7: =IF(InflateHOADues="Yes",HomeOwnerDues*AQ3,HomeOwnerDues) -> 412.0132409 | AR7: 424.3736381 | AS7: 437.1048473 | AT7: 450.2179927 | AU7: 463.7245325 | AV7: 477.6362685 | AW7: 491.9653565 | AX7: 506.7243172 | AY7: 521.9260467 | AZ7: 537.5838281 | BA7: 553.711343 | BB7: 570.3226833 | BC7: 587.4323638 | BD7: 605.0553347 | BE7: 623.2069947 | BF7: 641.9032045 | BG7: 661.1603007 | BH7: 680.9951097
A8: Market Reference: Lots With Homes | C8: 200 | K8: =IF(InflateHOADues="Yes",$C8*K$3,$C8) -> 200 | L8: 206 | M8: 212.18 | N8: 218.5454 | O8: 225.101762 | P8: 231.8548149 | Q8: 238.8104593 | R8: 245.9747731 | S8: 253.3540163 | T8: 260.9546368 | U8: =IF(InflateHOADues="Yes",$C8*U$3,$C8) -> 268.7832759 | V8: 276.8467741 | W8: 285.1521774 | X8: 293.7067427 | Y8: 302.517945 | Z8: 311.5934833 | AA8: 320.9412878 | AB8: 330.5695265 | AC8: 340.4866122 | AD8: 350.7012106 | AE8: =IF(InflateHOADues="Yes",$C8*AE$3,$C8) -> 361.2222469 | AF8: 372.0589143 | AG8: 383.2206818 | AH8: 394.7173022 | AI8: 406.5588213 | AJ8: 418.7555859 | AK8: 431.3182535 | AL8: 444.2578011 | AM8: 457.5855351 | AN8: 471.3131012 | AO8: =IF(InflateHOADues="Yes",$C8*AO$3,$C8) -> 485.4524942 | AP8: 500.0160691 | AQ8: 515.0165511 | AR8: 530.4670477 | AS8: 546.3810591 | AT8: 562.7724909 | AU8: 579.6556656 | AV8: 597.0453356 | AW8: 614.9566956 | AX8: 633.4053965 | AY8: =IF(InflateHOADues="Yes",$C8*AY$3,$C8) -> 652.4075584 | AZ8: 671.9797852 | BA8: 692.1391787 | BB8: 712.9033541 | BC8: 734.2904547 | BD8: 756.3191683 | BE8: 779.0087434 | BF8: 802.3790057 | BG8: 826.4503759 | BH8: 851.2438871
A9: Market Reference: Undeveloped Lots | C9: 100 | K9: 100 | L9: 103 | M9: 106.09 | N9: 109.2727 | O9: 112.550881 | P9: 115.9274074 | Q9: 119.4052297 | R9: 122.9873865 | S9: 126.6770081 | T9: 130.4773184 | U9: 134.3916379 | V9: 138.4233871 | W9: 142.5760887 | X9: 146.8533713 | Y9: 151.2589725 | Z9: 155.7967417 | AA9: 160.4706439 | AB9: 165.2847632 | AC9: 170.2433061 | AD9: 175.3506053 | AE9: 180.6111235 | AF9: 186.0294572 | AG9: 191.6103409 | AH9: 197.3586511 | AI9: 203.2794106 | AJ9: 209.377793 | AK9: 215.6591268 | AL9: 222.1289006 | AM9: 228.7927676 | AN9: 235.6565506 | AO9: 242.7262471 | AP9: 250.0080345 | AQ9: 257.5082756 | AR9: 265.2335238 | AS9: 273.1905296 | AT9: 281.3862454 | AU9: 289.8278328 | AV9: 298.5226678 | AW9: 307.4783478 | AX9: 316.7026983 | AY9: 326.2037792 | AZ9: 335.9898926 | BA9: 346.0695894 | BB9: 356.451677 | BC9: 367.1452273 | BD9: 378.1595842 | BE9: 389.5043717 | BF9: 401.1895028 | BG9: 413.2251879 | BH9: 425.6219436
A10: Total Sold/Vacant Lot Dues | B10: Defaults | C10: =LotOwnerDuesDefaults -> 0 | K10: =MAX(K6*12*('NP Growth'!K9-LotOwnerDuesDefaults),0) -> 45360 | L10: =MAX(L6*12*('NP Growth'!L9-LotOwnerDuesDefaults),0) -> 46720.8 | M10: =MAX(M6*12*('NP Growth'!M9-LotOwnerDuesDefaults),0) -> 48122.424 | N10: =MAX(N6*12*('NP Growth'!N9-LotOwnerDuesDefaults),0) -> 49566.09672 | O10: =MAX(O6*12*('NP Growth'!O9-LotOwnerDuesDefaults),0) -> 51053.07962 | P10: =MAX(P6*12*('NP Growth'!P9-LotOwnerDuesDefaults),0) -> 52584.67201 | Q10: =MAX(Q6*12*('NP Growth'!Q9-LotOwnerDuesDefaults),0) -> 54162.21217 | R10: =MAX(R6*12*('NP Growth'!R9-LotOwnerDuesDefaults),0) -> 55787.07854 | S10: =MAX(S6*12*('NP Growth'!S9-LotOwnerDuesDefaults),0) -> 57460.69089 | T10: =MAX(T6*12*('NP Growth'!T9-LotOwnerDuesDefaults),0) -> 59184.51162 | U10: =MAX(U6*12*('NP Growth'!U9-LotOwnerDuesDefaults),0) -> 60960.04697 | V10: =MAX(V6*12*('NP Growth'!V9-LotOwnerDuesDefaults),0) -> 62788.84838 | W10: =MAX(W6*12*('NP Growth'!W9-LotOwnerDuesDefaults),0) -> 64672.51383 | X10: =MAX(X6*12*('NP Growth'!X9-LotOwnerDuesDefaults),0) -> 61854.64001 | Y10: =MAX(Y6*12*('NP Growth'!Y9-LotOwnerDuesDefaults),0) -> 58809.4885 | Z10: =MAX(Z6*12*('NP Growth'!Z9-LotOwnerDuesDefaults),0) -> 55525.95873 | AA10: =MAX(AA6*12*('NP Growth'!AA9-LotOwnerDuesDefaults),0) -> 51992.48863 | AB10: =MAX(AB6*12*('NP Growth'!AB9-LotOwnerDuesDefaults),0) -> 48197.03696 | AC10: =MAX(AC6*12*('NP Growth'!AC9-LotOwnerDuesDefaults),0) -> 44127.06495 | AD10: =MAX(AD6*12*('NP Growth'!AD9-LotOwnerDuesDefaults),0) -> 39769.51728 | AE10: =MAX(AE6*12*('NP Growth'!AE9-LotOwnerDuesDefaults),0) -> 35110.8024 | AF10: =MAX(AF6*12*('NP Growth'!AF9-LotOwnerDuesDefaults),0) -> 30136.77206 | AG10: =MAX(AG6*12*('NP Growth'!AG9-LotOwnerDuesDefaults),0) -> 24832.70018 | AH10: =MAX(AH6*12*('NP Growth'!AH9-LotOwnerDuesDefaults),0) -> 19183.26089 | AI10: =MAX(AI6*12*('NP Growth'!AI9-LotOwnerDuesDefaults),0) -> 13172.50581 | AJ10: =MAX(AJ6*12*('NP Growth'!AJ9-LotOwnerDuesDefaults),0) -> 6783.840492 | AK10: =MAX(AK6*12*('NP Growth'!AK9-LotOwnerDuesDefaults),0) -> 6987.355707 | AL10: =MAX(AL6*12*('NP Growth'!AL9-LotOwnerDuesDefaults),0) -> 7196.976378 | AM10: =MAX(AM6*12*('NP Growth'!AM9-LotOwnerDuesDefaults),0) -> 7412.885669 | AN10: =MAX(AN6*12*('NP Growth'!AN9-LotOwnerDuesDefaults),0) -> 7635.272239 | AO10: =MAX(AO6*12*('NP Growth'!AO9-LotOwnerDuesDefaults),0) -> 7864.330407 | AP10: =MAX(AP6*12*('NP Growth'!AP9-LotOwnerDuesDefaults),0) -> 8100.260319 | AQ10: =MAX(AQ6*12*('NP Growth'!AQ9-LotOwnerDuesDefaults),0) -> 8343.268128 | AR10: =MAX(AR6*12*('NP Growth'!AR9-LotOwnerDuesDefaults),0) -> 8593.566172 | AS10: =MAX(AS6*12*('NP Growth'!AS9-LotOwnerDuesDefaults),0) -> 8851.373157 | AT10: =MAX(AT6*12*('NP Growth'!AT9-LotOwnerDuesDefaults),0) -> 9116.914352 | AU10: =MAX(AU6*12*('NP Growth'!AU9-LotOwnerDuesDefaults),0) -> 9390.421783 | AV10: =MAX(AV6*12*('NP Growth'!AV9-LotOwnerDuesDefaults),0) -> 9672.134436 | AW10: =MAX(AW6*12*('NP Growth'!AW9-LotOwnerDuesDefaults),0) -> 9962.298469 | AX10: =MAX(AX6*12*('NP Growth'!AX9-LotOwnerDuesDefaults),0) -> 10261.16742 | AY10: =MAX(AY6*12*('NP Growth'!AY9-LotOwnerDuesDefaults),0) -> 10569.00245 | AZ10: =MAX(AZ6*12*('NP Growth'!AZ9-LotOwnerDuesDefaults),0) -> 10886.07252 | BA10: =MAX(BA6*12*('NP Growth'!BA9-LotOwnerDuesDefaults),0) -> 11212.6547 | BB10: =MAX(BB6*12*('NP Growth'!BB9-LotOwnerDuesDefaults),0) -> 11549.03434 | BC10: =MAX(BC6*12*('NP Growth'!BC9-LotOwnerDuesDefaults),0) -> 11895.50537 | BD10: =MAX(BD6*12*('NP Growth'!BD9-LotOwnerDuesDefaults),0) -> 12252.37053 | BE10: =MAX(BE6*12*('NP Growth'!BE9-LotOwnerDuesDefaults),0) -> 12619.94164 | BF10: =MAX(BF6*12*('NP Growth'!BF9-LotOwnerDuesDefaults),0) -> 12998.53989 | BG10: =MAX(BG6*12*('NP Growth'!BG9-LotOwnerDuesDefaults),0) -> 13388.49609 | BH10: =MAX(BH6*12*('NP Growth'!BH9-LotOwnerDuesDefaults),0) -> 13790.15097
A11: Total Dues for Lots With Homes | B11: Defaults | C11: =HomeOwnerDuesDefaults -> 0 | K11: =MAX(K7*12*('NP Growth'!K8-HomeOwnerDuesDefaults),0) -> 55680 | L11: =MAX(L7*12*('NP Growth'!L8-HomeOwnerDuesDefaults),0) -> 63283.2 | M11: =MAX(M7*12*('NP Growth'!M8-HomeOwnerDuesDefaults),0) -> 71292.48 | N11: =MAX(N7*12*('NP Growth'!N8-HomeOwnerDuesDefaults),0) -> 79725.36192 | O11: =MAX(O7*12*('NP Growth'!O8-HomeOwnerDuesDefaults),0) -> 88600.05352 | P11: =MAX(P7*12*('NP Growth'!P8-HomeOwnerDuesDefaults),0) -> 97935.4738 | Q11: =MAX(Q7*12*('NP Growth'!Q8-HomeOwnerDuesDefaults),0) -> 107751.2792 | R11: =MAX(R7*12*('NP Growth'!R8-HomeOwnerDuesDefaults),0) -> 118067.8911 | S11: =MAX(S7*12*('NP Growth'!S8-HomeOwnerDuesDefaults),0) -> 128906.5235 | T11: =MAX(T7*12*('NP Growth'!T8-HomeOwnerDuesDefaults),0) -> 140289.2127 | U11: =MAX(U7*12*('NP Growth'!U8-HomeOwnerDuesDefaults),0) -> 152238.8475 | V11: =MAX(V7*12*('NP Growth'!V8-HomeOwnerDuesDefaults),0) -> 164779.2 | W11: =MAX(W7*12*('NP Growth'!W8-HomeOwnerDuesDefaults),0) -> 177934.9587 | X11: =MAX(X7*12*('NP Growth'!X8-HomeOwnerDuesDefaults),0) -> 191731.7616 | Y11: =MAX(Y7*12*('NP Growth'!Y8-HomeOwnerDuesDefaults),0) -> 206196.2313 | Z11: =MAX(Z7*12*('NP Growth'!Z8-HomeOwnerDuesDefaults),0) -> 221356.0106 | AA11: =MAX(AA7*12*('NP Growth'!AA8-HomeOwnerDuesDefaults),0) -> 237239.8 | AB11: =MAX(AB7*12*('NP Growth'!AB8-HomeOwnerDuesDefaults),0) -> 253877.3963 | AC11: =MAX(AC7*12*('NP Growth'!AC8-HomeOwnerDuesDefaults),0) -> 271299.7326 | AD11: =MAX(AD7*12*('NP Growth'!AD8-HomeOwnerDuesDefaults),0) -> 289538.9195 | AE11: =MAX(AE7*12*('NP Growth'!AE8-HomeOwnerDuesDefaults),0) -> 308628.2878 | AF11: =MAX(AF7*12*('NP Growth'!AF8-HomeOwnerDuesDefaults),0) -> 328602.4331 | AG11: =MAX(AG7*12*('NP Growth'!AG8-HomeOwnerDuesDefaults),0) -> 349497.2618 | AH11: =MAX(AH7*12*('NP Growth'!AH8-HomeOwnerDuesDefaults),0) -> 371350.0379 | AI11: =MAX(AI7*12*('NP Growth'!AI8-HomeOwnerDuesDefaults),0) -> 394199.4331 | AJ11: =MAX(AJ7*12*('NP Growth'!AJ8-HomeOwnerDuesDefaults),0) -> 418085.577 | AK11: =MAX(AK7*12*('NP Growth'!AK8-HomeOwnerDuesDefaults),0) -> 430628.1443 | AL11: =MAX(AL7*12*('NP Growth'!AL8-HomeOwnerDuesDefaults),0) -> 443546.9886 | AM11: =MAX(AM7*12*('NP Growth'!AM8-HomeOwnerDuesDefaults),0) -> 456853.3983 | AN11: =MAX(AN7*12*('NP Growth'!AN8-HomeOwnerDuesDefaults),0) -> 470559.0002 | AO11: =MAX(AO7*12*('NP Growth'!AO8-HomeOwnerDuesDefaults),0) -> 484675.7702 | AP11: =MAX(AP7*12*('NP Growth'!AP8-HomeOwnerDuesDefaults),0) -> 499216.0434 | AQ11: =MAX(AQ7*12*('NP Growth'!AQ8-HomeOwnerDuesDefaults),0) -> 514192.5247 | AR11: =MAX(AR7*12*('NP Growth'!AR8-HomeOwnerDuesDefaults),0) -> 529618.3004 | AS11: =MAX(AS7*12*('NP Growth'!AS8-HomeOwnerDuesDefaults),0) -> 545506.8494 | AT11: =MAX(AT7*12*('NP Growth'!AT8-HomeOwnerDuesDefaults),0) -> 561872.0549 | AU11: =MAX(AU7*12*('NP Growth'!AU8-HomeOwnerDuesDefaults),0) -> 578728.2165 | AV11: =MAX(AV7*12*('NP Growth'!AV8-HomeOwnerDuesDefaults),0) -> 596090.063 | AW11: =MAX(AW7*12*('NP Growth'!AW8-HomeOwnerDuesDefaults),0) -> 613972.7649 | AX11: =MAX(AX7*12*('NP Growth'!AX8-HomeOwnerDuesDefaults),0) -> 632391.9479 | AY11: =MAX(AY7*12*('NP Growth'!AY8-HomeOwnerDuesDefaults),0) -> 651363.7063 | AZ11: =MAX(AZ7*12*('NP Growth'!AZ8-HomeOwnerDuesDefaults),0) -> 670904.6175 | BA11: =MAX(BA7*12*('NP Growth'!BA8-HomeOwnerDuesDefaults),0) -> 691031.756 | BB11: =MAX(BB7*12*('NP Growth'!BB8-HomeOwnerDuesDefaults),0) -> 711762.7087 | BC11: =MAX(BC7*12*('NP Growth'!BC8-HomeOwnerDuesDefaults),0) -> 733115.59 | BD11: =MAX(BD7*12*('NP Growth'!BD8-HomeOwnerDuesDefaults),0) -> 755109.0577 | BE11: =MAX(BE7*12*('NP Growth'!BE8-HomeOwnerDuesDefaults),0) -> 777762.3294 | BF11: =MAX(BF7*12*('NP Growth'!BF8-HomeOwnerDuesDefaults),0) -> 801095.1993 | BG11: =MAX(BG7*12*('NP Growth'!BG8-HomeOwnerDuesDefaults),0) -> 825128.0553 | BH11: =MAX(BH7*12*('NP Growth'!BH8-HomeOwnerDuesDefaults),0) -> 849881.8969
A12: Prior Year Back Dues/Penalities | K12: 0 | L12: 0 | M12: 0 | N12: 0 | O12: 0 | P12: 0 | Q12: 0 | R12: 0 | S12: 0 | T12: 0 | U12: 0 | V12: 0 | W12: 0 | X12: 0 | Y12: 0 | Z12: 0 | AA12: 0 | AB12: 0 | AC12: 0 | AD12: 0 | AE12: 0 | AF12: 0 | AG12: 0 | AH12: 0 | AI12: 0 | AJ12: 0 | AK12: 0 | AL12: 0 | AM12: 0 | AN12: 1 | AO12: 0 | AP12: 0 | AQ12: 0 | AR12: 0 | AS12: 0 | AT12: 0 | AU12: 0 | AV12: 0 | AW12: 0 | AX12: 0 | AY12: 0 | AZ12: 0 | BA12: 0 | BB12: 0 | BC12: 0 | BD12: 0 | BE12: 0 | BF12: 0 | BG12: 0 | BH12: 0
A13: Late Fees From Dues | B13: CY14 % | C13: 0.02 | E13: Assumes same % for all future years | K13: =$C13*SUM(K10:K11) -> 2020.8 | L13: 2200.08 | M13: 2388.29808 | N13: 2585.829173 | O13: 2793.062663 | P13: 3010.402916 | Q13: 3238.269828 | R13: 3477.099392 | S13: 3727.344287 | T13: 3989.474487 | U13: 4263.977888 | V13: 4551.360967 | W13: 4852.14945 | X13: 5071.728033 | Y13: 5300.114396 | Z13: 5537.639386 | AA13: 5784.645772 | AB13: 6041.488665 | AC13: 6308.535952 | AD13: 6586.168735 | AE13: 6874.781804 | AF13: 7174.784104 | AG13: 7486.599239 | AH13: 7810.665976 | AI13: 8147.438779 | AJ13: 8497.38835 | AK13: 8752.31 | AL13: 9014.8793 | AM13: 9285.325679 | AN13: =$C13*SUM(AN10:AN11) -> 9563.88545 | AO13: 9850.802013 | AP13: 10146.32607 | AQ13: =$C13*SUM(AQ10:AQ11) -> 10450.71586 | AR13: 10764.23733 | AS13: 11087.16445 | AT13: 11419.77938 | AU13: 11762.37277 | AV13: 12115.24395 | AW13: 12478.70127 | AX13: 12853.06231 | AY13: 13238.65418 | AZ13: 13635.8138 | BA13: 14044.88821 | BB13: 14466.23486 | BC13: 14900.22191 | BD13: 15347.22856 | BE13: 15807.64542 | BF13: 16281.87478 | BG13: 16770.33103 | BH13: 17273.44096
A14: Remote Controls (Net) | B14: ref | C14: 0 | K14: =IF(Inflate4FutureInflation="Yes",$C14*K3,$C14) -> 0 | L14: 0 | M14: 0 | N14: 0 | O14: 0 | P14: 0 | Q14: 0 | R14: 0 | S14: 0 | T14: 0 | U14: 0 | V14: 0 | W14: 0 | X14: 0 | Y14: 0 | Z14: 0 | AA14: 0 | AB14: 0 | AC14: 0 | AD14: 0 | AE14: 0 | AF14: 0 | AG14: 0 | AH14: 0 | AI14: 0 | AJ14: 0 | AK14: 0 | AL14: 0 | AM14: 0 | AN14: =IF(Inflate4FutureInflation="Yes",$C14*AN3,$C14) -> 0 | AO14: 0 | AP14: 0 | AQ14: =IF(Inflate4FutureInflation="Yes",$C14*AQ3,$C14) -> 0 | AR14: 0 | AS14: 0 | AT14: 0 | AU14: 0 | AV14: 0 | AW14: 0 | AX14: 0 | AY14: 0 | AZ14: 0 | BA14: 0 | BB14: 0 | BC14: 0 | BD14: 0 | BE14: 0 | BF14: 0 | BG14: 0 | BH14: 0
A15: ACC Plan Review | B15: Hist Fee | C15: 300 | E15: Fee | F15: =350 -> 350 | K15: =IF(Inflate4FutureInflation="Yes",$F15*K3,$F15)*('NP Growth'!K8-'NP Growth'!J8) -> 1050 | L15: =IF(Inflate4FutureInflation="Yes",$F15*L3,$F15)*('NP Growth'!L8-'NP Growth'!K8) -> 1081.5 | M15: =IF(Inflate4FutureInflation="Yes",$F15*M3,$F15)*('NP Growth'!M8-'NP Growth'!L8) -> 1113.945 | N15: =IF(Inflate4FutureInflation="Yes",$F15*N3,$F15)*('NP Growth'!N8-'NP Growth'!M8) -> 1147.36335 | O15: =IF(Inflate4FutureInflation="Yes",$F15*O3,$F15)*('NP Growth'!O8-'NP Growth'!N8) -> 1181.784251 | P15: =IF(Inflate4FutureInflation="Yes",$F15*P3,$F15)*('NP Growth'!P8-'NP Growth'!O8) -> 1217.237778 | Q15: =IF(Inflate4FutureInflation="Yes",$F15*Q3,$F15)*('NP Growth'!Q8-'NP Growth'!P8) -> 1253.754911 | R15: =IF(Inflate4FutureInflation="Yes",$F15*R3,$F15)*('NP Growth'!R8-'NP Growth'!Q8) -> 1291.367559 | S15: =IF(Inflate4FutureInflation="Yes",$F15*S3,$F15)*('NP Growth'!S8-'NP Growth'!R8) -> 1330.108585 | T15: =IF(Inflate4FutureInflation="Yes",$F15*T3,$F15)*('NP Growth'!T8-'NP Growth'!S8) -> 1370.011843 | U15: =IF(Inflate4FutureInflation="Yes",$F15*U3,$F15)*('NP Growth'!U8-'NP Growth'!T8) -> 1411.112198 | V15: =IF(Inflate4FutureInflation="Yes",$F15*V3,$F15)*('NP Growth'!V8-'NP Growth'!U8) -> 1453.445564 | W15: =IF(Inflate4FutureInflation="Yes",$F15*W3,$F15)*('NP Growth'!W8-'NP Growth'!V8) -> 1497.048931 | X15: =IF(Inflate4FutureInflation="Yes",$F15*X3,$F15)*('NP Growth'!X8-'NP Growth'!W8) -> 1541.960399 | Y15: =IF(Inflate4FutureInflation="Yes",$F15*Y3,$F15)*('NP Growth'!Y8-'NP Growth'!X8) -> 1588.219211 | Z15: =IF(Inflate4FutureInflation="Yes",$F15*Z3,$F15)*('NP Growth'!Z8-'NP Growth'!Y8) -> 1635.865787 | AA15: =IF(Inflate4FutureInflation="Yes",$F15*AA3,$F15)*('NP Growth'!AA8-'NP Growth'!Z8) -> 1684.941761 | AB15: =IF(Inflate4FutureInflation="Yes",$F15*AB3,$F15)*('NP Growth'!AB8-'NP Growth'!AA8) -> 1735.490014 | AC15: =IF(Inflate4FutureInflation="Yes",$F15*AC3,$F15)*('NP Growth'!AC8-'NP Growth'!AB8) -> 1787.554714 | AD15: =IF(Inflate4FutureInflation="Yes",$F15*AD3,$F15)*('NP Growth'!AD8-'NP Growth'!AC8) -> 1841.181356 | AE15: =IF(Inflate4FutureInflation="Yes",$F15*AE3,$F15)*('NP Growth'!AE8-'NP Growth'!AD8) -> 1896.416796 | AF15: =IF(Inflate4FutureInflation="Yes",$F15*AF3,$F15)*('NP Growth'!AF8-'NP Growth'!AE8) -> 1953.3093 | AG15: =IF(Inflate4FutureInflation="Yes",$F15*AG3,$F15)*('NP Growth'!AG8-'NP Growth'!AF8) -> 2011.908579 | AH15: =IF(Inflate4FutureInflation="Yes",$F15*AH3,$F15)*('NP Growth'!AH8-'NP Growth'!AG8) -> 2072.265837 | AI15: =IF(Inflate4FutureInflation="Yes",$F15*AI3,$F15)*('NP Growth'!AI8-'NP Growth'!AH8) -> 2134.433812 | AJ15: =IF(Inflate4FutureInflation="Yes",$F15*AJ3,$F15)*('NP Growth'!AJ8-'NP Growth'!AI8) -> 2198.466826 | AK15: =IF(Inflate4FutureInflation="Yes",$F15*AK3,$F15)*('NP Growth'!AK8-'NP Growth'!AJ8) -> 0 | AL15: =IF(Inflate4FutureInflation="Yes",$F15*AL3,$F15)*('NP Growth'!AL8-'NP Growth'!AK8) -> 0 | AM15: =IF(Inflate4FutureInflation="Yes",$F15*AM3,$F15)*('NP Growth'!AM8-'NP Growth'!AL8) -> 0 | AN15: =IF(Inflate4FutureInflation="Yes",$F15*AN3,$F15)*('NP Growth'!AN8-'NP Growth'!AM8) -> 0 | AO15: =IF(Inflate4FutureInflation="Yes",$F15*AO3,$F15)*('NP Growth'!AO8-'NP Growth'!AN8) -> 0 | AP15: =IF(Inflate4FutureInflation="Yes",$F15*AP3,$F15)*('NP Growth'!AP8-'NP Growth'!AO8) -> 0 | AQ15: =IF(Inflate4FutureInflation="Yes",$F15*AQ3,$F15)*('NP Growth'!AQ8-'NP Growth'!AP8) -> 0 | AR15: =IF(Inflate4FutureInflation="Yes",$F15*AR3,$F15)*('NP Growth'!AR8-'NP Growth'!AQ8) -> 0 | AS15: =IF(Inflate4FutureInflation="Yes",$F15*AS3,$F15)*('NP Growth'!AS8-'NP Growth'!AR8) -> 0 | AT15: =IF(Inflate4FutureInflation="Yes",$F15*AT3,$F15)*('NP Growth'!AT8-'NP Growth'!AS8) -> 0 | AU15: =IF(Inflate4FutureInflation="Yes",$F15*AU3,$F15)*('NP Growth'!AU8-'NP Growth'!AT8) -> 0 | AV15: =IF(Inflate4FutureInflation="Yes",$F15*AV3,$F15)*('NP Growth'!AV8-'NP Growth'!AU8) -> 0 | AW15: =IF(Inflate4FutureInflation="Yes",$F15*AW3,$F15)*('NP Growth'!AW8-'NP Growth'!AV8) -> 0 | AX15: =IF(Inflate4FutureInflation="Yes",$F15*AX3,$F15)*('NP Growth'!AX8-'NP Growth'!AW8) -> 0 | AY15: =IF(Inflate4FutureInflation="Yes",$F15*AY3,$F15)*('NP Growth'!AY8-'NP Growth'!AX8) -> 0 | AZ15: =IF(Inflate4FutureInflation="Yes",$F15*AZ3,$F15)*('NP Growth'!AZ8-'NP Growth'!AY8) -> 0 | BA15: =IF(Inflate4FutureInflation="Yes",$F15*BA3,$F15)*('NP Growth'!BA8-'NP Growth'!AZ8) -> 0 | BB15: =IF(Inflate4FutureInflation="Yes",$F15*BB3,$F15)*('NP Growth'!BB8-'NP Growth'!BA8) -> 0 | BC15: =IF(Inflate4FutureInflation="Yes",$F15*BC3,$F15)*('NP Growth'!BC8-'NP Growth'!BB8) -> 0 | BD15: =IF(Inflate4FutureInflation="Yes",$F15*BD3,$F15)*('NP Growth'!BD8-'NP Growth'!BC8) -> 0 | BE15: =IF(Inflate4FutureInflation="Yes",$F15*BE3,$F15)*('NP Growth'!BE8-'NP Growth'!BD8) -> 0 | BF15: =IF(Inflate4FutureInflation="Yes",$F15*BF3,$F15)*('NP Growth'!BF8-'NP Growth'!BE8) -> 0 | BG15: =IF(Inflate4FutureInflation="Yes",$F15*BG3,$F15)*('NP Growth'!BG8-'NP Growth'!BF8) -> 0 | BH15: =IF(Inflate4FutureInflation="Yes",$F15*BH3,$F15)*('NP Growth'!BH8-'NP Growth'!BG8) -> 0
A16: Fund Raising | B16: ref | C16: 0 | K16: =IF(Inflate4FutureInflation="Yes",$C16*K3,$C16) -> 0 | L16: 0 | M16: 0 | N16: 0 | O16: 0 | P16: 0 | Q16: 0 | R16: 0 | S16: 0 | T16: 0 | U16: 0 | V16: 0 | W16: 0 | X16: 0 | Y16: 0 | Z16: 0 | AA16: 0 | AB16: 0 | AC16: 0 | AD16: 0 | AE16: 0 | AF16: 0 | AG16: 0 | AH16: 0 | AI16: 0 | AJ16: 0 | AK16: 0 | AL16: 0 | AM16: 0 | AN16: =IF(Inflate4FutureInflation="Yes",$C16*AN3,$C16) -> 0 | AO16: 0 | AP16: 0 | AQ16: =IF(Inflate4FutureInflation="Yes",$C16*AQ3,$C16) -> 0 | AR16: 0 | AS16: 0 | AT16: 0 | AU16: 0 | AV16: 0 | AW16: 0 | AX16: 0 | AY16: 0 | AZ16: 0 | BA16: 0 | BB16: 0 | BC16: 0 | BD16: 0 | BE16: 0 | BF16: 0 | BG16: 0 | BH16: 0
A17: Misc | B17: ref | C17: 0 | K17: =IF(Inflate4FutureInflation="Yes",$C17*K3,$C17) -> 0 | L17: 0 | M17: 0 | N17: 0 | O17: 0 | P17: 0 | Q17: 0 | R17: 0 | S17: 0 | T17: 0 | U17: 0 | V17: 0 | W17: 0 | X17: 0 | Y17: 0 | Z17: 0 | AA17: 0 | AB17: 0 | AC17: 0 | AD17: 0 | AE17: 0 | AF17: 0 | AG17: 0 | AH17: 0 | AI17: 0 | AJ17: 0 | AK17: 0 | AL17: 0 | AM17: 0 | AN17: =IF(Inflate4FutureInflation="Yes",$C17*AN3,$C17) -> 0 | AO17: 0 | AP17: 0 | AQ17: =IF(Inflate4FutureInflation="Yes",$C17*AQ3,$C17) -> 0 | AR17: 0 | AS17: 0 | AT17: 0 | AU17: 0 | AV17: 0 | AW17: 0 | AX17: 0 | AY17: 0 | AZ17: 0 | BA17: 0 | BB17: 0 | BC17: 0 | BD17: 0 | BE17: 0 | BF17: 0 | BG17: 0 | BH17: 0
A18: Uncategorized | B18: ref | C18: 0 | K18: =IF(Inflate4FutureInflation="Yes",$C18*K3,$C18) -> 0 | L18: 0 | M18: 0 | N18: 0 | O18: 0 | P18: 0 | Q18: 0 | R18: 0 | S18: 0 | T18: 0 | U18: 0 | V18: 0 | W18: 0 | X18: 0 | Y18: 0 | Z18: 0 | AA18: 0 | AB18: 0 | AC18: 0 | AD18: 0 | AE18: 0 | AF18: 0 | AG18: 0 | AH18: 0 | AI18: 0 | AJ18: 0 | AK18: 0 | AL18: 0 | AM18: 0 | AN18: =IF(Inflate4FutureInflation="Yes",$C18*AN3,$C18) -> 0 | AO18: 0 | AP18: 0 | AQ18: =IF(Inflate4FutureInflation="Yes",$C18*AQ3,$C18) -> 0 | AR18: 0 | AS18: 0 | AT18: 0 | AU18: 0 | AV18: 0 | AW18: 0 | AX18: 0 | AY18: 0 | AZ18: 0 | BA18: 0 | BB18: 0 | BC18: 0 | BD18: 0 | BE18: 0 | BF18: 0 | BG18: 0 | BH18: 0
A20: Rent | K20: =SUM(K21:K22) -> 17100 | L20: =SUM(L21:L22) -> 17613 | M20: 18141.39 | N20: 18685.6317 | O20: 19246.20065 | P20: 19823.58667 | Q20: 20418.29427 | R20: 21030.8431 | S20: 21661.76839 | T20: 22311.62144 | U20: 22980.97009 | V20: 23670.39919 | W20: 24380.51117 | X20: 25111.9265 | Y20: 25865.2843 | Z20: 26641.24282 | AA20: 27440.48011 | AB20: 28263.69451 | AC20: 29111.60535 | AD20: 29984.95351 | AE20: 30884.50211 | AF20: 31811.03718 | AG20: 32765.36829 | AH20: 33748.32934 | AI20: 34760.77922 | AJ20: 35803.6026 | AK20: 36877.71067 | AL20: 37984.042 | AM20: 39123.56326 | AN20: =SUM(AN21:AN22) -> 40297.27015 | AO20: 41506.18826 | AP20: 42751.37391 | AQ20: 44033.91512 | AR20: 45354.93258 | AS20: 46715.58055 | AT20: 48117.04797 | AU20: 49560.55941 | AV20: 51047.37619 | AW20: 52578.79748 | AX20: 54156.1614 | AY20: 55780.84624 | AZ20: 57454.27163 | BA20: 59177.89978 | BB20: 60953.23677 | BC20: 62781.83388 | BD20: 64665.28889 | BE20: 66605.24756 | BF20: 68603.40499 | BG20: 70661.50714 | BH20: 72781.35235
A21: Club House Apartment Rent | B21: Rent/Mo | C21: =ClubAptRent -> 950 | D21: Vac Rate | E21: =2/12 -> 0.1666666667 | F21: Rent? | G21: =RentClubHouseApt -> Yes | H21: Inc/yr | I21: =IF(RentClubHouseApt="Yes",ClubAptRent*(1-ClubAptVacRate)*12,0) -> 9500 | K21: =IF(Inflate4FutureInflation="Yes",K3*$I21,$I21) -> 9500 | L21: 9785 | M21: 10078.55 | N21: 10380.9065 | O21: 10692.3337 | P21: 11013.10371 | Q21: 11343.49682 | R21: 11683.80172 | S21: 12034.31577 | T21: 12395.34525 | U21: 12767.2056 | V21: 13150.22177 | W21: 13544.72843 | X21: 13951.07028 | Y21: 14369.60239 | Z21: 14800.69046 | AA21: 15244.71117 | AB21: 15702.05251 | AC21: 16173.11408 | AD21: 16658.3075 | AE21: 17158.05673 | AF21: 17672.79843 | AG21: 18202.98238 | AH21: 18749.07186 | AI21: 19311.54401 | AJ21: 19890.89033 | AK21: 20487.61704 | AL21: 21102.24555 | AM21: 21735.31292 | AN21: =IF(Inflate4FutureInflation="Yes",AN3*$I21,$I21) -> 22387.37231 | AO21: 23058.99348 | AP21: 23750.76328 | AQ21: =IF(Inflate4FutureInflation="Yes",AQ3*$I21,$I21) -> 24463.28618 | AR21: 25197.18476 | AS21: 25953.10031 | AT21: 26731.69332 | AU21: 27533.64412 | AV21: 28359.65344 | AW21: 29210.44304 | AX21: 30086.75633 | AY21: 30989.35902 | AZ21: 31919.03979 | BA21: 32876.61099 | BB21: 33862.90932 | BC21: 34878.7966 | BD21: 35925.1605 | BE21: 37002.91531 | BF21: 38113.00277 | BG21: 39256.39285 | BH21: 40434.08464
A22: Shop Apartment Rent | B22: Rent/Mo | C22: =ShopAptRent -> 760 | D22: Vac Rate | E22: =2/12 -> 0.1666666667 | F22: Rent? | G22: =RentShopApt -> Yes | H22: Inc/yr | I22: =IF(RentShopApt="Yes",ShopAptRent*(1-ShopAptVacRate)*12,0) -> 7600 | K22: =IF(Inflate4FutureInflation="Yes",K3*$I22,$I22) -> 7600 | L22: 7828 | M22: 8062.84 | N22: 8304.7252 | O22: 8553.866956 | P22: 8810.482965 | Q22: 9074.797454 | R22: 9347.041377 | S22: 9627.452619 | T22: 9916.276197 | U22: 10213.76448 | V22: 10520.17742 | W22: 10835.78274 | X22: 11160.85622 | Y22: 11495.68191 | Z22: 11840.55237 | AA22: 12195.76894 | AB22: 12561.64201 | AC22: 12938.49127 | AD22: 13326.646 | AE22: 13726.44538 | AF22: 14138.23874 | AG22: 14562.38591 | AH22: 14999.25748 | AI22: 15449.23521 | AJ22: 15912.71227 | AK22: 16390.09363 | AL22: 16881.79644 | AM22: 17388.25034 | AN22: =IF(Inflate4FutureInflation="Yes",AN3*$I22,$I22) -> 17909.89785 | AO22: 18447.19478 | AP22: 19000.61062 | AQ22: =IF(Inflate4FutureInflation="Yes",AQ3*$I22,$I22) -> 19570.62894 | AR22: 20157.74781 | AS22: 20762.48025 | AT22: 21385.35465 | AU22: 22026.91529 | AV22: 22687.72275 | AW22: 23368.35443 | AX22: 24069.40507 | AY22: 24791.48722 | AZ22: 25535.23184 | BA22: 26301.28879 | BB22: 27090.32745 | BC22: 27903.03728 | BD22: 28740.1284 | BE22: 29602.33225 | BF22: 30490.40222 | BG22: 31405.11428 | BH22: 32347.26771
A24: Events (Excluding Outside Weddings) | K24: =SUM(K25:K27) -> 2560 | L24: 2909.572414 | M24: 2996.859586 | N24: 3376.149628 | O24: 3775.499898 | P24: 4195.77265 | Q24: 4637.863817 | R24: 5102.704258 | S24: 5591.261049 | T24: 6104.538813 | U24: 6643.581108 | V24: 7209.471856 | W24: 7803.336826 | X24: 8426.34517 | Y24: 9079.71101 | Z24: 9764.695091 | AA24: 10482.60648 | AB24: 11234.80432 | AC24: 12022.69969 | AD24: 12847.75745 | AE24: 13711.49826 | AF24: 14615.50052 | AG24: 15561.40258 | AH24: 16550.90481 | AI24: 17585.77191 | AJ24: 18667.83522 | AK24: 19798.99514 | AL24: 20392.96499 | AM24: 21004.75394 | AN24: =SUM(AN25:AN27) -> 21634.89656 | AO24: 22283.94346 | AP24: 22952.46176 | AQ24: =SUM(AQ25:AQ27) -> 23641.03562 | AR24: 24350.26668 | AS24: 25080.77469 | AT24: 25833.19793 | AU24: 26608.19386 | AV24: 27406.43968 | AW24: 28228.63287 | AX24: 29075.49186 | AY24: 29947.75661 | AZ24: 30846.18931 | BA24: 31771.57499 | BB24: 32724.72224 | BC24: 33706.46391 | BD24: 34717.65782 | BE24: 35759.18756 | BF24: 36831.96318 | BG24: 37936.92208 | BH24: 39075.02974
A25: Member Events | B25: Ref $ | C25: 1300 | D25: NoHms | E25: 29 | F25: Mult | G25: 1.2 | H25: $/Hm | I25: =C25/E25*G25 -> 53.79310345 | K25: =IF(Inflate4FutureInflation="Yes",$I25*K3,$I25)*'NP Growth'!K8 -> 1560 | L25: =IF(Inflate4FutureInflation="Yes",$I25*L3,$I25)*'NP Growth'!L8 -> 1773.02069 | M25: =$I25*'NP Growth'!L8*M3 -> 1826.21131 | N25: =$I25*'NP Growth'!M8*N3 -> 2057.341179 | O25: =$I25*'NP Growth'!N8*O3 -> 2300.69525 | P25: =$I25*'NP Growth'!O8*P3 -> 2556.798958 | Q25: =$I25*'NP Growth'!P8*Q3 -> 2826.198263 | R25: =$I25*'NP Growth'!Q8*R3 -> 3109.460407 | S25: =$I25*'NP Growth'!R8*S3 -> 3407.174702 | T25: =$I25*'NP Growth'!S8*T3 -> 3719.953339 | U25: =$I25*'NP Growth'!T8*U3 -> 4048.432238 | V25: =$I25*'NP Growth'!U8*V3 -> 4393.271912 | W25: =$I25*'NP Growth'!V8*W3 -> 4755.158378 | X25: =$I25*'NP Growth'!W8*X3 -> 5134.804088 | Y25: =$I25*'NP Growth'!X8*Y3 -> 5532.948897 | Z25: =$I25*'NP Growth'!Y8*Z3 -> 5950.361071 | AA25: =$I25*'NP Growth'!Z8*AA3 -> 6387.838322 | AB25: =$I25*'NP Growth'!AA8*AB3 -> 6846.208882 | AC25: =$I25*'NP Growth'!AB8*AC3 -> 7326.332622 | AD25: =$I25*'NP Growth'!AC8*AD3 -> 7829.102198 | AE25: =$I25*'NP Growth'!AD8*AE3 -> 8355.44425 | AF25: =$I25*'NP Growth'!AE8*AF3 -> 8906.320632 | AG25: =$I25*'NP Growth'!AF8*AG3 -> 9482.729698 | AH25: =$I25*'NP Growth'!AG8*AH3 -> 10085.70762 | AI25: =$I25*'NP Growth'!AH8*AI3 -> 10716.32976 | AJ25: =$I25*'NP Growth'!AI8*AJ3 -> 11375.71209 | AK25: =$I25*'NP Growth'!AJ8*AK3 -> 12065.01266 | AL25: =$I25*'NP Growth'!AK8*AL3 -> 12426.96304 | AM25: =$I25*'NP Growth'!AL8*AM3 -> 12799.77193 | AN25: =$I25*'NP Growth'!AM8*AN3 -> 13183.76509 | AO25: =$I25*'NP Growth'!AN8*AO3 -> 13579.27805 | AP25: =$I25*'NP Growth'!AO8*AP3 -> 13986.65639 | AQ25: =$I25*'NP Growth'!AP8*AQ3 -> 14406.25608 | AR25: =$I25*'NP Growth'!AQ8*AR3 -> 14838.44376 | AS25: =$I25*'NP Growth'!AR8*AS3 -> 15283.59707 | AT25: =$I25*'NP Growth'!AS8*AT3 -> 15742.10499 | AU25: =$I25*'NP Growth'!AT8*AU3 -> 16214.36814 | AV25: =$I25*'NP Growth'!AU8*AV3 -> 16700.79918 | AW25: =$I25*'NP Growth'!AV8*AW3 -> 17201.82316 | AX25: =$I25*'NP Growth'!AW8*AX3 -> 17717.87785 | AY25: =$I25*'NP Growth'!AX8*AY3 -> 18249.41419 | AZ25: =$I25*'NP Growth'!AY8*AZ3 -> 18796.89661 | BA25: =$I25*'NP Growth'!AZ8*BA3 -> 19360.80351 | BB25: =$I25*'NP Growth'!BA8*BB3 -> 19941.62761 | BC25: =$I25*'NP Growth'!BB8*BC3 -> 20539.87644 | BD25: =$I25*'NP Growth'!BC8*BD3 -> 21156.07274 | BE25: =$I25*'NP Growth'!BD8*BE3 -> 21790.75492 | BF25: =$I25*'NP Growth'!BE8*BF3 -> 22444.47757 | BG25: =$I25*'NP Growth'!BF8*BG3 -> 23117.81189 | BH25: =$I25*'NP Growth'!BG8*BH3 -> 23811.34625
A26: Member Weddings | B26: Ref $ | C26: 1000 | D26: NoHms | E26: 29 | F26: Mult | G26: 1 | H26: $/Hm | I26: =C26/E26*G26 -> 34.48275862 | K26: =IF(Inflate4FutureInflation="Yes",$I26*K3,$I26)*'NP Growth'!K8 -> 1000 | L26: =IF(Inflate4FutureInflation="Yes",$I26*L3,$I26)*'NP Growth'!L8 -> 1136.551724 | M26: =$I26*'NP Growth'!L8*M3 -> 1170.648276 | N26: =$I26*'NP Growth'!M8*N3 -> 1318.808448 | O26: =$I26*'NP Growth'!N8*O3 -> 1474.804648 | P26: =$I26*'NP Growth'!O8*P3 -> 1638.973691 | Q26: =$I26*'NP Growth'!P8*Q3 -> 1811.665553 | R26: =$I26*'NP Growth'!Q8*R3 -> 1993.243851 | S26: =$I26*'NP Growth'!R8*S3 -> 2184.086347 | T26: =$I26*'NP Growth'!S8*T3 -> 2384.585474 | U26: =$I26*'NP Growth'!T8*U3 -> 2595.14887 | V26: =$I26*'NP Growth'!U8*V3 -> 2816.199944 | W26: =$I26*'NP Growth'!V8*W3 -> 3048.178448 | X26: =$I26*'NP Growth'!W8*X3 -> 3291.541082 | Y26: =$I26*'NP Growth'!X8*Y3 -> 3546.762113 | Z26: =$I26*'NP Growth'!Y8*Z3 -> 3814.33402 | AA26: =$I26*'NP Growth'!Z8*AA3 -> 4094.768155 | AB26: =$I26*'NP Growth'!AA8*AB3 -> 4388.595437 | AC26: =$I26*'NP Growth'!AB8*AC3 -> 4696.367065 | AD26: =$I26*'NP Growth'!AC8*AD3 -> 5018.655255 | AE26: =$I26*'NP Growth'!AD8*AE3 -> 5356.054006 | AF26: =$I26*'NP Growth'!AE8*AF3 -> 5709.179892 | AG26: =$I26*'NP Growth'!AF8*AG3 -> 6078.672883 | AH26: =$I26*'NP Growth'!AG8*AH3 -> 6465.197192 | AI26: =$I26*'NP Growth'!AH8*AI3 -> 6869.442153 | AJ26: =$I26*'NP Growth'!AI8*AJ3 -> 7292.123134 | AK26: =$I26*'NP Growth'!AJ8*AK3 -> 7733.982477 | AL26: =$I26*'NP Growth'!AK8*AL3 -> 7966.001951 | AM26: =$I26*'NP Growth'!AL8*AM3 -> 8204.98201 | AN26: =$I26*'NP Growth'!AM8*AN3 -> 8451.13147 | AO26: =$I26*'NP Growth'!AN8*AO3 -> 8704.665414 | AP26: =$I26*'NP Growth'!AO8*AP3 -> 8965.805376 | AQ26: =$I26*'NP Growth'!AP8*AQ3 -> 9234.779538 | AR26: =$I26*'NP Growth'!AQ8*AR3 -> 9511.822924 | AS26: =$I26*'NP Growth'!AR8*AS3 -> 9797.177611 | AT26: =$I26*'NP Growth'!AS8*AT3 -> 10091.09294 | AU26: =$I26*'NP Growth'!AT8*AU3 -> 10393.82573 | AV26: =$I26*'NP Growth'!AU8*AV3 -> 10705.6405 | AW26: =$I26*'NP Growth'!AV8*AW3 -> 11026.80971 | AX26: =$I26*'NP Growth'!AW8*AX3 -> 11357.61401 | AY26: =$I26*'NP Growth'!AX8*AY3 -> 11698.34243 | AZ26: =$I26*'NP Growth'!AY8*AZ3 -> 12049.2927 | BA26: =$I26*'NP Growth'!AZ8*BA3 -> 12410.77148 | BB26: =$I26*'NP Growth'!BA8*BB3 -> 12783.09462 | BC26: =$I26*'NP Growth'!BB8*BC3 -> 13166.58746 | BD26: =$I26*'NP Growth'!BC8*BD3 -> 13561.58509 | BE26: =$I26*'NP Growth'!BD8*BE3 -> 13968.43264 | BF26: =$I26*'NP Growth'!BE8*BF3 -> 14387.48562 | BG26: =$I26*'NP Growth'!BF8*BG3 -> 14819.11019 | BH26: =$I26*'NP Growth'!BG8*BH3 -> 15263.68349
A27: Community Events | B27: Ref $ | C27: 0 | D27: Number | E27: 1 | J27: =C27*E27 -> 0 | K27: =IF(Inflate4FutureInflation="Yes",$J27*K3,$J27) -> 0 | L27: 0 | M27: 0 | N27: 0 | O27: 0 | P27: 0 | Q27: 0 | R27: 0 | S27: 0 | T27: 0 | U27: 0 | V27: 0 | W27: 0 | X27: 0 | Y27: 0 | Z27: 0 | AA27: 0 | AB27: 0 | AC27: 0 | AD27: 0 | AE27: 0 | AF27: 0 | AG27: 0 | AH27: 0 | AI27: 0 | AJ27: 0 | AK27: 0 | AL27: 0 | AM27: 0 | AN27: 0 | AO27: 0 | AP27: 0 | AQ27: =IF(Inflate4FutureInflation="Yes",$J27*AQ3,$J27) -> 0 | AR27: 0 | AS27: 0 | AT27: 0 | AU27: 0 | AV27: 0 | AW27: 0 | AX27: 0 | AY27: 0 | AZ27: 0 | BA27: 0 | BB27: 0 | BC27: 0 | BD27: 0 | BE27: 0 | BF27: 0 | BG27: 0 | BH27: 0
A29: Weddings and Corporate Events | K29: =IF(WeddingOption="Yes",SUM(K37,K40,K43,K46,K53),0) -> 322555.9457 | L29: 325729.0025 | M29: 328494.4814 | N29: 330221.6718 | O29: 332695.2416 | P29: 335066.397 | Q29: 336237.0928 | R29: 338201.878 | S29: 339981.9368 | T29: 349072.3377 | U29: 351058.7569 | V29: 350948.6048 | W29: 352061.0591 | X29: 362622.8909 | Y29: 373501.5776 | Z29: 384706.625 | AA29: 396247.8237 | AB29: 408135.2584 | AC29: 420379.3162 | AD29: 432990.6957 | AE29: 445980.4165 | AF29: 459359.829 | AG29: 473140.6239 | AH29: 487334.8426 | AI29: 501954.8879 | AJ29: 517013.5345 | AK29: 532523.9406 | AL29: 548499.6588 | AM29: 564954.6486 | AN29: 581903.288 | AO29: 599360.3867 | AP29: 617341.1982 | AQ29: =IF(WeddingOption="Yes",SUM(AQ37,AQ40,AQ43,AQ46,AQ53),0) -> 635861.4342 | AR29: 654937.2772 | AS29: 674585.3955 | AT29: 694822.9574 | AU29: 715667.6461 | AV29: 737137.6755 | AW29: 759251.8058 | AX29: 782029.36 | AY29: 805490.2407 | AZ29: 829654.948 | BA29: 854544.5964 | BB29: 880180.9343 | BC29: 906586.3623 | BD29: 933783.9532 | BE29: 961797.4718 | BF29: 990651.396 | BG29: 1020370.938 | BH29: 1050982.066
A30: Wedding Data
A31: Weddings Allowed by SUP + Mediation | B31: max | C31: =52-TRUNC(1/3*J31) -> 52 | D31: decrease | E31: 1 | F31: for every | G31: 3 | H31: lots sold | I31: # Sold Ref | J31: 0 | K31: =MAX($C31-TRUNC(1/3*('NP Growth'!$K10-'NP Growth'!K10)),0) -> 52 | L31: =MAX($C31-TRUNC(1/3*('NP Growth'!$K10-'NP Growth'!L10)),0) -> 51 | M31: =MAX($C31-TRUNC(1/3*('NP Growth'!$K10-'NP Growth'!M10)),0) -> 50 | N31: =MAX($C31-TRUNC(1/3*('NP Growth'!$K10-'NP Growth'!N10)),0) -> 49 | O31: =MAX($C31-TRUNC(1/3*('NP Growth'!$K10-'NP Growth'!O10)),0) -> 48 | P31: =MAX($C31-TRUNC(1/3*('NP Growth'!$K10-'NP Growth'!P10)),0) -> 47 | Q31: =MAX($C31-TRUNC(1/3*('NP Growth'!$K10-'NP Growth'!Q10)),0) -> 46 | R31: =MAX($C31-TRUNC(1/3*('NP Growth'!$K10-'NP Growth'!R10)),0) -> 45 | S31: =MAX($C31-TRUNC(1/3*('NP Growth'!$K10-'NP Growth'!S10)),0) -> 44 | T31: =MAX($C31-TRUNC(1/3*('NP Growth'!$K10-'NP Growth'!T10)),0) -> 43 | U31: =MAX($C31-TRUNC(1/3*('NP Growth'!$K10-'NP Growth'!U10)),0) -> 42 | V31: =MAX($C31-TRUNC(1/3*('NP Growth'!$K10-'NP Growth'!V10)),0) -> 41 | W31: =MAX($C31-TRUNC(1/3*('NP Growth'!$K10-'NP Growth'!W10)),0) -> 40 | X31: =MAX($C31-TRUNC(1/3*('NP Growth'!$K10-'NP Growth'!X10)),0) -> 40 | Y31: =MAX($C31-TRUNC(1/3*('NP Growth'!$K10-'NP Growth'!Y10)),0) -> 40 | Z31: =MAX($C31-TRUNC(1/3*('NP Growth'!$K10-'NP Growth'!Z10)),0) -> 40 | AA31: =MAX($C31-TRUNC(1/3*('NP Growth'!$K10-'NP Growth'!AA10)),0) -> 40 | AB31: =MAX($C31-TRUNC(1/3*('NP Growth'!$K10-'NP Growth'!AB10)),0) -> 40 | AC31: =MAX($C31-TRUNC(1/3*('NP Growth'!$K10-'NP Growth'!AC10)),0) -> 40 | AD31: =MAX($C31-TRUNC(1/3*('NP Growth'!$K10-'NP Growth'!AD10)),0) -> 40 | AE31: =MAX($C31-TRUNC(1/3*('NP Growth'!$K10-'NP Growth'!AE10)),0) -> 40 | AF31: =MAX($C31-TRUNC(1/3*('NP Growth'!$K10-'NP Growth'!AF10)),0) -> 40 | AG31: =MAX($C31-TRUNC(1/3*('NP Growth'!$K10-'NP Growth'!AG10)),0) -> 40 | AH31: =MAX($C31-TRUNC(1/3*('NP Growth'!$K10-'NP Growth'!AH10)),0) -> 40 | AI31: =MAX($C31-TRUNC(1/3*('NP Growth'!$K10-'NP Growth'!AI10)),0) -> 40 | AJ31: =MAX($C31-TRUNC(1/3*('NP Growth'!$K10-'NP Growth'!AJ10)),0) -> 40 | AK31: =MAX($C31-TRUNC(1/3*('NP Growth'!$K10-'NP Growth'!AK10)),0) -> 40 | AL31: =MAX($C31-TRUNC(1/3*('NP Growth'!$K10-'NP Growth'!AL10)),0) -> 40 | AM31: =MAX($C31-TRUNC(1/3*('NP Growth'!$K10-'NP Growth'!AM10)),0) -> 40 | AN31: =MAX($C31-TRUNC(1/3*('NP Growth'!$K10-'NP Growth'!AN10)),0) -> 40 | AO31: =MAX($C31-TRUNC(1/3*('NP Growth'!$K10-'NP Growth'!AO10)),0) -> 40 | AP31: =MAX($C31-TRUNC(1/3*('NP Growth'!$K10-'NP Growth'!AP10)),0) -> 40 | AQ31: =MAX($C31-TRUNC(1/3*('NP Growth'!$K10-'NP Growth'!AQ10)),0) -> 40 | AR31: =MAX($C31-TRUNC(1/3*('NP Growth'!$K10-'NP Growth'!AR10)),0) -> 40 | AS31: =MAX($C31-TRUNC(1/3*('NP Growth'!$K10-'NP Growth'!AS10)),0) -> 40 | AT31: =MAX($C31-TRUNC(1/3*('NP Growth'!$K10-'NP Growth'!AT10)),0) -> 40 | AU31: =MAX($C31-TRUNC(1/3*('NP Growth'!$K10-'NP Growth'!AU10)),0) -> 40 | AV31: =MAX($C31-TRUNC(1/3*('NP Growth'!$K10-'NP Growth'!AV10)),0) -> 40 | AW31: =MAX($C31-TRUNC(1/3*('NP Growth'!$K10-'NP Growth'!AW10)),0) -> 40 | AX31: =MAX($C31-TRUNC(1/3*('NP Growth'!$K10-'NP Growth'!AX10)),0) -> 40 | AY31: =MAX($C31-TRUNC(1/3*('NP Growth'!$K10-'NP Growth'!AY10)),0) -> 40 | AZ31: =MAX($C31-TRUNC(1/3*('NP Growth'!$K10-'NP Growth'!AZ10)),0) -> 40 | BA31: =MAX($C31-TRUNC(1/3*('NP Growth'!$K10-'NP Growth'!BA10)),0) -> 40 | BB31: =MAX($C31-TRUNC(1/3*('NP Growth'!$K10-'NP Growth'!BB10)),0) -> 40 | BC31: =MAX($C31-TRUNC(1/3*('NP Growth'!$K10-'NP Growth'!BC10)),0) -> 40 | BD31: =MAX($C31-TRUNC(1/3*('NP Growth'!$K10-'NP Growth'!BD10)),0) -> 40 | BE31: =MAX($C31-TRUNC(1/3*('NP Growth'!$K10-'NP Growth'!BE10)),0) -> 40 | BF31: =MAX($C31-TRUNC(1/3*('NP Growth'!$K10-'NP Growth'!BF10)),0) -> 40 | BG31: =MAX($C31-TRUNC(1/3*('NP Growth'!$K10-'NP Growth'!BG10)),0) -> 40 | BH31: =MAX($C31-TRUNC(1/3*('NP Growth'!$K10-'NP Growth'!BH10)),0) -> 40
A32: Number of Planned Weddings | B32: max | C32: =InitialNumberOfWeddings -> 50 | D32: decrease | E32: 1 | F32: for every | G32: 3 | H32: lots sold | K32: =IF(WeddingOption="Yes",MAX($C32-TRUNC($E32/$G32*('NP Growth'!$K10-'NP Growth'!K10)),0),0) -> 50 | L32: =IF(WeddingOption="Yes",MAX($C32-TRUNC($E32/$G32*('NP Growth'!$K10-'NP Growth'!L10)),0),0) -> 49 | M32: =IF(WeddingOption="Yes",MAX($C32-TRUNC($E32/$G32*('NP Growth'!$K10-'NP Growth'!M10)),0),0) -> 48 | N32: =IF(WeddingOption="Yes",MAX($C32-TRUNC($E32/$G32*('NP Growth'!$K10-'NP Growth'!N10)),0),0) -> 47 | O32: =IF(WeddingOption="Yes",MAX($C32-TRUNC($E32/$G32*('NP Growth'!$K10-'NP Growth'!O10)),0),0) -> 46 | P32: =IF(WeddingOption="Yes",MAX($C32-TRUNC($E32/$G32*('NP Growth'!$K10-'NP Growth'!P10)),0),0) -> 45 | Q32: =IF(WeddingOption="Yes",MAX($C32-TRUNC($E32/$G32*('NP Growth'!$K10-'NP Growth'!Q10)),0),0) -> 44 | R32: =IF(WeddingOption="Yes",MAX($C32-TRUNC($E32/$G32*('NP Growth'!$K10-'NP Growth'!R10)),0),0) -> 43 | S32: =IF(WeddingOption="Yes",MAX($C32-TRUNC($E32/$G32*('NP Growth'!$K10-'NP Growth'!S10)),0),0) -> 42 | T32: =IF(WeddingOption="Yes",MAX($C32-TRUNC($E32/$G32*('NP Growth'!$K10-'NP Growth'!T10)),0),0) -> 41 | U32: =IF(WeddingOption="Yes",MAX($C32-TRUNC($E32/$G32*('NP Growth'!$K10-'NP Growth'!U10)),0),0) -> 40 | V32: =IF(WeddingOption="Yes",MAX($C32-TRUNC($E32/$G32*('NP Growth'!$K10-'NP Growth'!V10)),0),0) -> 39 | W32: =IF(WeddingOption="Yes",MAX($C32-TRUNC($E32/$G32*('NP Growth'!$K10-'NP Growth'!W10)),0),0) -> 38 | X32: =IF(WeddingOption="Yes",MAX($C32-TRUNC($E32/$G32*('NP Growth'!$K10-'NP Growth'!X10)),0),0) -> 38 | Y32: =IF(WeddingOption="Yes",MAX($C32-TRUNC($E32/$G32*('NP Growth'!$K10-'NP Growth'!Y10)),0),0) -> 38 | Z32: =IF(WeddingOption="Yes",MAX($C32-TRUNC($E32/$G32*('NP Growth'!$K10-'NP Growth'!Z10)),0),0) -> 38 | AA32: =IF(WeddingOption="Yes",MAX($C32-TRUNC($E32/$G32*('NP Growth'!$K10-'NP Growth'!AA10)),0),0) -> 38 | AB32: =IF(WeddingOption="Yes",MAX($C32-TRUNC($E32/$G32*('NP Growth'!$K10-'NP Growth'!AB10)),0),0) -> 38 | AC32: =IF(WeddingOption="Yes",MAX($C32-TRUNC($E32/$G32*('NP Growth'!$K10-'NP Growth'!AC10)),0),0) -> 38 | AD32: =IF(WeddingOption="Yes",MAX($C32-TRUNC($E32/$G32*('NP Growth'!$K10-'NP Growth'!AD10)),0),0) -> 38 | AE32: =IF(WeddingOption="Yes",MAX($C32-TRUNC($E32/$G32*('NP Growth'!$K10-'NP Growth'!AE10)),0),0) -> 38 | AF32: =IF(WeddingOption="Yes",MAX($C32-TRUNC($E32/$G32*('NP Growth'!$K10-'NP Growth'!AF10)),0),0) -> 38 | AG32: =IF(WeddingOption="Yes",MAX($C32-TRUNC($E32/$G32*('NP Growth'!$K10-'NP Growth'!AG10)),0),0) -> 38 | AH32: =IF(WeddingOption="Yes",MAX($C32-TRUNC($E32/$G32*('NP Growth'!$K10-'NP Growth'!AH10)),0),0) -> 38 | AI32: =IF(WeddingOption="Yes",MAX($C32-TRUNC($E32/$G32*('NP Growth'!$K10-'NP Growth'!AI10)),0),0) -> 38 | AJ32: =IF(WeddingOption="Yes",MAX($C32-TRUNC($E32/$G32*('NP Growth'!$K10-'NP Growth'!AJ10)),0),0) -> 38 | AK32: =IF(WeddingOption="Yes",MAX($C32-TRUNC($E32/$G32*('NP Growth'!$K10-'NP Growth'!AK10)),0),0) -> 38 | AL32: =IF(WeddingOption="Yes",MAX($C32-TRUNC($E32/$G32*('NP Growth'!$K10-'NP Growth'!AL10)),0),0) -> 38 | AM32: =IF(WeddingOption="Yes",MAX($C32-TRUNC($E32/$G32*('NP Growth'!$K10-'NP Growth'!AM10)),0),0) -> 38 | AN32: =IF(WeddingOption="Yes",MAX($C32-TRUNC($E32/$G32*('NP Growth'!$K10-'NP Growth'!AN10)),0),0) -> 38 | AO32: =IF(WeddingOption="Yes",MAX($C32-TRUNC($E32/$G32*('NP Growth'!$K10-'NP Growth'!AO10)),0),0) -> 38 | AP32: =IF(WeddingOption="Yes",MAX($C32-TRUNC($E32/$G32*('NP Growth'!$K10-'NP Growth'!AP10)),0),0) -> 38 | AQ32: =IF(WeddingOption="Yes",MAX($C32-TRUNC($E32/$G32*('NP Growth'!$K10-'NP Growth'!AQ10)),0),0) -> 38 | AR32: =IF(WeddingOption="Yes",MAX($C32-TRUNC($E32/$G32*('NP Growth'!$K10-'NP Growth'!AR10)),0),0) -> 38 | AS32: =IF(WeddingOption="Yes",MAX($C32-TRUNC($E32/$G32*('NP Growth'!$K10-'NP Growth'!AS10)),0),0) -> 38 | AT32: =IF(WeddingOption="Yes",MAX($C32-TRUNC($E32/$G32*('NP Growth'!$K10-'NP Growth'!AT10)),0),0) -> 38 | AU32: =IF(WeddingOption="Yes",MAX($C32-TRUNC($E32/$G32*('NP Growth'!$K10-'NP Growth'!AU10)),0),0) -> 38 | AV32: =IF(WeddingOption="Yes",MAX($C32-TRUNC($E32/$G32*('NP Growth'!$K10-'NP Growth'!AV10)),0),0) -> 38 | AW32: =IF(WeddingOption="Yes",MAX($C32-TRUNC($E32/$G32*('NP Growth'!$K10-'NP Growth'!AW10)),0),0) -> 38 | AX32: =IF(WeddingOption="Yes",MAX($C32-TRUNC($E32/$G32*('NP Growth'!$K10-'NP Growth'!AX10)),0),0) -> 38 | AY32: =IF(WeddingOption="Yes",MAX($C32-TRUNC($E32/$G32*('NP Growth'!$K10-'NP Growth'!AY10)),0),0) -> 38 | AZ32: =IF(WeddingOption="Yes",MAX($C32-TRUNC($E32/$G32*('NP Growth'!$K10-'NP Growth'!AZ10)),0),0) -> 38 | BA32: =IF(WeddingOption="Yes",MAX($C32-TRUNC($E32/$G32*('NP Growth'!$K10-'NP Growth'!BA10)),0),0) -> 38 | BB32: =IF(WeddingOption="Yes",MAX($C32-TRUNC($E32/$G32*('NP Growth'!$K10-'NP Growth'!BB10)),0),0) -> 38 | BC32: =IF(WeddingOption="Yes",MAX($C32-TRUNC($E32/$G32*('NP Growth'!$K10-'NP Growth'!BC10)),0),0) -> 38 | BD32: =IF(WeddingOption="Yes",MAX($C32-TRUNC($E32/$G32*('NP Growth'!$K10-'NP Growth'!BD10)),0),0) -> 38 | BE32: =IF(WeddingOption="Yes",MAX($C32-TRUNC($E32/$G32*('NP Growth'!$K10-'NP Growth'!BE10)),0),0) -> 38 | BF32: =IF(WeddingOption="Yes",MAX($C32-TRUNC($E32/$G32*('NP Growth'!$K10-'NP Growth'!BF10)),0),0) -> 38 | BG32: =IF(WeddingOption="Yes",MAX($C32-TRUNC($E32/$G32*('NP Growth'!$K10-'NP Growth'!BG10)),0),0) -> 38 | BH32: =IF(WeddingOption="Yes",MAX($C32-TRUNC($E32/$G32*('NP Growth'!$K10-'NP Growth'!BH10)),0),0) -> 38
A33: Number of Cancelations | B33: rate | C33: 0.06 | K33: =ROUND($C33*K32,0) -> 3 | L33: 3 | M33: 3 | N33: 3 | O33: 3 | P33: 3 | Q33: 3 | R33: 3 | S33: 3 | T33: 2 | U33: 2 | V33: 2 | W33: 2 | X33: 2 | Y33: 2 | Z33: 2 | AA33: 2 | AB33: 2 | AC33: 2 | AD33: 2 | AE33: 2 | AF33: 2 | AG33: 2 | AH33: 2 | AI33: 2 | AJ33: 2 | AK33: 2 | AL33: 2 | AM33: 2 | AN33: 2 | AO33: 2 | AP33: 2 | AQ33: =ROUND($C33*AQ32,0) -> 2 | AR33: 2 | AS33: 2 | AT33: 2 | AU33: 2 | AV33: 2 | AW33: 2 | AX33: 2 | AY33: 2 | AZ33: 2 | BA33: 2 | BB33: 2 | BC33: 2 | BD33: 2 | BE33: 2 | BF33: 2 | BG33: 2 | BH33: 2
A34: Number of Weddings | K34: =K32-K33 -> 47 | L34: =L32-L33 -> 46 | M34: 45 | N34: 44 | O34: 43 | P34: 42 | Q34: 41 | R34: 40 | S34: 39 | T34: 39 | U34: 38 | V34: 37 | W34: 36 | X34: 36 | Y34: 36 | Z34: 36 | AA34: 36 | AB34: 36 | AC34: 36 | AD34: 36 | AE34: 36 | AF34: 36 | AG34: 36 | AH34: 36 | AI34: 36 | AJ34: 36 | AK34: 36 | AL34: 36 | AM34: 36 | AN34: 36 | AO34: 36 | AP34: 36 | AQ34: 36 | AR34: 36 | AS34: 36 | AT34: 36 | AU34: 36 | AV34: 36 | AW34: 36 | AX34: 36 | AY34: 36 | AZ34: 36 | BA34: 36 | BB34: 36 | BC34: 36 | BD34: 36 | BE34: 36 | BF34: 36 | BG34: 36 | BH34: 36
A35: Number of Wedding Guests | B35: min | C35: 80 | D35: max | E35: 210 | F35: avg | G35: =AVERAGE(C35,E35) -> 145 | K35: =$G35 -> 145 | L35: =$G35 -> 145 | M35: 145 | N35: 145 | O35: 145 | P35: 145 | Q35: 145 | R35: 145 | S35: 145 | T35: 145 | U35: 145 | V35: 145 | W35: 145 | X35: 145 | Y35: 145 | Z35: 145 | AA35: 145 | AB35: 145 | AC35: 145 | AD35: 145 | AE35: 145 | AF35: 145 | AG35: 145 | AH35: 145 | AI35: 145 | AJ35: 145 | AK35: 145 | AL35: 145 | AM35: 145 | AN35: 145 | AO35: 145 | AP35: 145 | AQ35: 145 | AR35: 145 | AS35: 145 | AT35: 145 | AU35: 145 | AV35: 145 | AW35: 145 | AX35: 145 | AY35: 145 | AZ35: 145 | BA35: 145 | BB35: 145 | BC35: 145 | BD35: 145 | BE35: 145 | BF35: 145 | BG35: 145 | BH35: 145
A36: Number of Wedding Workers | B36: min | C36: 6 | D36: max | E36: 10 | F36: avg | G36: =AVERAGE(C36,E36) -> 8 | K36: =$G36 -> 8 | L36: 8 | M36: 8 | N36: 8 | O36: 8 | P36: 8 | Q36: 8 | R36: 8 | S36: 8 | T36: 8 | U36: 8 | V36: 8 | W36: 8 | X36: 8 | Y36: 8 | Z36: 8 | AA36: 8 | AB36: 8 | AC36: 8 | AD36: 8 | AE36: 8 | AF36: 8 | AG36: 8 | AH36: 8 | AI36: 8 | AJ36: 8 | AK36: 8 | AL36: 8 | AM36: 8 | AN36: 8 | AO36: 8 | AP36: 8 | AQ36: 8 | AR36: 8 | AS36: 8 | AT36: 8 | AU36: 8 | AV36: 8 | AW36: 8 | AX36: 8 | AY36: 8 | AZ36: 8 | BA36: 8 | BB36: 8 | BC36: 8 | BD36: 8 | BE36: 8 | BF36: 8 | BG36: 8 | BH36: 8
A37: Wedding Income | K37: =SUM(K38:K39) -> 299317.1957 | L37: =SUM(L38:L39) -> 301793.09 | M37: 304148.1525 | N37: 306372.905 | O37: 308457.4094 | P37: 310391.2483 | Q37: 312163.5059 | R37: 313762.7469 | S37: 315176.9952 | T37: 323523.2478 | U37: 324743.1943 | V37: 325745.1666 | W37: 326514.9884 | X37: 336310.4381 | Y37: 346399.7512 | Z37: 356791.7438 | AA37: 367495.4961 | AB37: 378520.361 | AC37: 389875.9718 | AD37: 401572.251 | AE37: 413619.4185 | AF37: 426028.001 | AG37: 438808.8411 | AH37: 451973.1063 | AI37: 465532.2995 | AJ37: 479498.2685 | AK37: 493883.2165 | AL37: 508699.713 | AM37: 523960.7044 | AN37: 539679.5256 | AO37: 555869.9113 | AP37: 572546.0087 | AQ37: 589722.3889 | AR37: 607414.0606 | AS37: 625636.4824 | AT37: 644405.5769 | AU37: 663737.7442 | AV37: 683649.8765 | AW37: 704159.3728 | AX37: 725284.154 | AY37: 747042.6786 | AZ37: 769453.959 | BA37: 792537.5777 | BB37: 816313.7051 | BC37: 840803.1162 | BD37: 866027.2097 | BE37: 892008.026 | BF37: 918768.2668 | BG37: 946331.3148 | BH37: 974721.2542
A38: Wedding Income | C38: ='Net Wedding Income'!J8 -> 6314.195652 | D38: 2017 ref see net wedding tab for calculation | K38: =IF(Inflate4FutureInflation="Yes",$C38*K34*K3,$C38*K34) -> 296767.1957 | L38: 299166.59 | M38: 301442.8575 | N38: 303586.4512 | O38: 305587.3619 | P38: 307435.0994 | Q38: 309118.6726 | R38: 310626.5686 | S38: 311946.7315 | T38: 321305.1334 | U38: 322458.5365 | V38: 323391.9691 | W38: 324091.1949 | X38: 333813.9308 | Y38: 343828.3487 | Z38: 354143.1992 | AA38: 364767.4951 | AB38: 375710.52 | AC38: 386981.8356 | AD38: 398591.2907 | AE38: 410549.0294 | AF38: 422865.5003 | AG38: 435551.4653 | AH38: 448618.0092 | AI38: 462076.5495 | AJ38: 475938.846 | AK38: 490217.0114 | AL38: 504923.5217 | AM38: 520071.2274 | AN38: 535673.3642 | AO38: 551743.5651 | AP38: 568295.8721 | AQ38: =IF(Inflate4FutureInflation="Yes",$C38*AQ34*AQ3,$C38*AQ34) -> 585344.7482 | AR38: 602905.0907 | AS38: 620992.2434 | AT38: 639622.0107 | AU38: 658810.671 | AV38: 678574.9912 | AW38: 698932.2409 | AX38: 719900.2081 | AY38: 741497.2144 | AZ38: 763742.1308 | BA38: 786654.3947 | BB38: 810254.0266 | BC38: 834561.6474 | BD38: 859598.4968 | BE38: 885386.4517 | BF38: 911948.0452 | BG38: 939306.4866 | BH38: 967485.6812
A39: Cancelation Income | B39: fee | C39: 850 | K39: =IF(Inflate4FutureInflation="Yes",$C39*K33*K3,$C39*K33) -> 2550 | L39: 2626.5 | M39: 2705.295 | N39: 2786.45385 | O39: 2870.047466 | P39: 2956.148889 | Q39: 3044.833356 | R39: 3136.178357 | S39: 3230.263708 | T39: 2218.114413 | U39: 2284.657845 | V39: 2353.19758 | W39: 2423.793508 | X39: 2496.507313 | Y39: 2571.402532 | Z39: 2648.544608 | AA39: 2728.000946 | AB39: 2809.840975 | AC39: 2894.136204 | AD39: 2980.96029 | AE39: 3070.389099 | AF39: 3162.500772 | AG39: 3257.375795 | AH39: 3355.097069 | AI39: 3455.749981 | AJ39: 3559.42248 | AK39: 3666.205155 | AL39: 3776.191309 | AM39: 3889.477049 | AN39: 4006.16136 | AO39: 4126.346201 | AP39: 4250.136587 | AQ39: =IF(Inflate4FutureInflation="Yes",$C39*AQ33*AQ3,$C39*AQ33) -> 4377.640685 | AR39: 4508.969905 | AS39: 4644.239002 | AT39: 4783.566172 | AU39: 4927.073158 | AV39: 5074.885352 | AW39: 5227.131913 | AX39: 5383.94587 | AY39: 5545.464246 | AZ39: 5711.828174 | BA39: 5883.183019 | BB39: 6059.67851 | BC39: 6241.468865 | BD39: 6428.712931 | BE39: 6621.574319 | BF39: 6820.221548 | BG39: 7024.828195 | BH39: 7235.573041
A40: Photo Booth Income | K40: =IF(Inflate4FutureInflation="Yes",$C42*K41*K3,$C42*K41) -> 10150 | L40: 10454.5 | M40: 10460.474 | N40: 10457.39739 | O40: 10444.72176 | P40: 10758.06341 | Q40: 10734.53015 | R40: 10699.90263 | S40: 10653.53638 | T40: 10973.14248 | U40: 11302.33675 | V40: 11239.97903 | W40: 11163.70774 | X40: 11498.61898 | Y40: 11843.57755 | Z40: 12198.88487 | AA40: 12564.85142 | AB40: 12941.79696 | AC40: 13330.05087 | AD40: 13729.9524 | AE40: 14141.85097 | AF40: 14566.1065 | AG40: 15003.08969 | AH40: 15453.18238 | AI40: 15916.77785 | AJ40: 16394.28119 | AK40: 16886.10962 | AL40: 17392.69291 | AM40: 17914.4737 | AN40: 18451.90791 | AO40: 19005.46515 | AP40: 19575.6291 | AQ40: =IF(Inflate4FutureInflation="Yes",$C42*AQ41*AQ3,$C42*AQ41) -> 20162.89798 | AR40: 20767.78492 | AS40: 21390.81846 | AT40: 22032.54302 | AU40: 22693.51931 | AV40: 23374.32489 | AW40: 24075.55463 | AX40: 24797.82127 | AY40: 25541.75591 | AZ40: 26308.00859 | BA40: 27097.24885 | BB40: 27910.16631 | BC40: 28747.4713 | BD40: 29609.89544 | BE40: 30498.1923 | BF40: 31413.13807 | BG40: 32355.53221 | BH40: 33326.19818
A41: Number | B41: fraction | C41: 0.75 | K41: =ROUND($C41*K34,0) -> 35 | L41: 35 | M41: 34 | N41: 33 | O41: 32 | P41: 32 | Q41: 31 | R41: 30 | S41: 29 | T41: 29 | U41: 29 | V41: 28 | W41: 27 | X41: 27 | Y41: 27 | Z41: 27 | AA41: 27 | AB41: 27 | AC41: 27 | AD41: 27 | AE41: 27 | AF41: 27 | AG41: 27 | AH41: 27 | AI41: 27 | AJ41: 27 | AK41: 27 | AL41: 27 | AM41: 27 | AN41: 27 | AO41: 27 | AP41: 27 | AQ41: =ROUND($C41*AQ34,0) -> 27 | AR41: 27 | AS41: 27 | AT41: 27 | AU41: 27 | AV41: 27 | AW41: 27 | AX41: 27 | AY41: 27 | AZ41: 27 | BA41: 27 | BB41: 27 | BC41: 27 | BD41: 27 | BE41: 27 | BF41: 27 | BG41: 27 | BH41: 27
A42: $/wed | B42: rate | C42: 290
A43: China Rental Income | K43: =IF(Inflate4FutureInflation="Yes",$C45*K35*K44*K3,$C45*K35*K44) -> 10838.75 | L43: 11163.9125 | M43: 11498.82987 | N43: 10932.73364 | O43: 11260.71564 | P43: 11598.53711 | Q43: 10950.95212 | R43: 11279.48069 | S43: 11617.86511 | T43: 11966.40106 | U43: 12325.39309 | V43: 11541.0499 | W43: 11887.28139 | X43: 12243.89984 | Y43: 12611.21683 | Z43: 12989.55334 | AA43: 13379.23994 | AB43: 13780.61713 | AC43: 14194.03565 | AD43: 14619.85672 | AE43: 15058.45242 | AF43: 15510.20599 | AG43: 15975.51217 | AH43: 16454.77754 | AI43: 16948.42086 | AJ43: 17456.87349 | AK43: 17980.57969 | AL43: 18519.99708 | AM43: 19075.597 | AN43: 19647.86491 | AO43: 20237.30085 | AP43: 20844.41988 | AQ43: =IF(Inflate4FutureInflation="Yes",$C45*AQ35*AQ44*AQ3,$C45*AQ35*AQ44) -> 21469.75248 | AR43: 22113.84505 | AS43: 22777.2604 | AT43: 23460.57821 | AU43: 24164.39556 | AV43: 24889.32743 | AW43: 25636.00725 | AX43: 26405.08747 | AY43: 27197.24009 | AZ43: 28013.15729 | BA43: 28853.55201 | BB43: 29719.15857 | BC43: 30610.73333 | BD43: 31529.05533 | BE43: 32474.92699 | BF43: 33449.1748 | BG43: 34452.65004 | BH43: 35486.22954
A44: Number | B44: fraction | C44: 0.28 | K44: =ROUND($C44*K34,0) -> 13 | L44: 13 | M44: 13 | N44: 12 | O44: 12 | P44: 12 | Q44: 11 | R44: 11 | S44: 11 | T44: 11 | U44: 11 | V44: 10 | W44: 10 | X44: 10 | Y44: 10 | Z44: 10 | AA44: 10 | AB44: 10 | AC44: 10 | AD44: 10 | AE44: 10 | AF44: 10 | AG44: 10 | AH44: 10 | AI44: 10 | AJ44: 10 | AK44: 10 | AL44: 10 | AM44: 10 | AN44: 10 | AO44: 10 | AP44: 10 | AQ44: =ROUND($C44*AQ34,0) -> 10 | AR44: 10 | AS44: 10 | AT44: 10 | AU44: 10 | AV44: 10 | AW44: 10 | AX44: 10 | AY44: 10 | AZ44: 10 | BA44: 10 | BB44: 10 | BC44: 10 | BD44: 10 | BE44: 10 | BF44: 10 | BG44: 10 | BH44: 10
A45: $/head | B45: rate | C45: 5.75
A46: Ceiling Drapery | K46: =IF(Inflate4FutureInflation="Yes",$C48*K47*K3,$C48*K47) -> 2250 | L46: 2317.5 | M46: 2387.025 | N46: 2458.63575 | O46: 2532.394823 | P46: 2318.548149 | Q46: 2388.104593 | R46: 2459.747731 | S46: 2533.540163 | T46: 2609.546368 | U46: 2687.832759 | V46: 2422.409274 | W46: 2495.081552 | X46: 2569.933999 | Y46: 2647.032018 | Z46: 2726.442979 | AA46: 2808.236268 | AB46: 2892.483356 | AC46: 2979.257857 | AD46: 3068.635593 | AE46: 3160.694661 | AF46: 3255.5155 | AG46: 3353.180966 | AH46: 3453.776394 | AI46: 3557.389686 | AJ46: 3664.111377 | AK46: 3774.034718 | AL46: 3887.25576 | AM46: 4003.873433 | AN46: 4123.989636 | AO46: 4247.709325 | AP46: 4375.140604 | AQ46: =IF(Inflate4FutureInflation="Yes",$C48*AQ47*AQ3,$C48*AQ47) -> 4506.394822 | AR46: 4641.586667 | AS46: 4780.834267 | AT46: 4924.259295 | AU46: 5071.987074 | AV46: 5224.146686 | AW46: 5380.871087 | AX46: 5542.297219 | AY46: 5708.566136 | AZ46: 5879.82312 | BA46: 6056.217814 | BB46: 6237.904348 | BC46: 6425.041479 | BD46: 6617.792723 | BE46: 6816.326505 | BF46: 7020.8163 | BG46: 7231.440789 | BH46: 7448.384012
A47: Number | B47: fraction | C47: 0.2 | K47: =ROUND($C47*K34,0) -> 9 | L47: 9 | M47: 9 | N47: 9 | O47: 9 | P47: 8 | Q47: 8 | R47: 8 | S47: 8 | T47: 8 | U47: 8 | V47: 7 | W47: 7 | X47: 7 | Y47: 7 | Z47: 7 | AA47: 7 | AB47: 7 | AC47: 7 | AD47: 7 | AE47: 7 | AF47: 7 | AG47: 7 | AH47: 7 | AI47: 7 | AJ47: 7 | AK47: 7 | AL47: 7 | AM47: 7 | AN47: 7 | AO47: 7 | AP47: 7 | AQ47: =ROUND($C47*AQ34,0) -> 7 | AR47: 7 | AS47: 7 | AT47: 7 | AU47: 7 | AV47: 7 | AW47: 7 | AX47: 7 | AY47: 7 | AZ47: 7 | BA47: 7 | BB47: 7 | BC47: 7 | BD47: 7 | BE47: 7 | BF47: 7 | BG47: 7 | BH47: 7
A48: $/wed | B48: rate | C48: 250
A49: Corporate Event Data
A50: Number of Planned Corporate Events | C50: SUP allowed | D50: 12 | K50: =IF(CorpEventOption="Yes",MIN(52-K32,$D50),0) -> 0 | L50: 0 | M50: 0 | N50: 0 | O50: 0 | P50: 0 | Q50: 0 | R50: 0 | S50: 0 | T50: 0 | U50: 0 | V50: 0 | W50: 0 | X50: 0 | Y50: 0 | Z50: 0 | AA50: 0 | AB50: 0 | AC50: 0 | AD50: 0 | AE50: 0 | AF50: 0 | AG50: 0 | AH50: 0 | AI50: 0 | AJ50: 0 | AK50: 0 | AL50: 0 | AM50: 0 | AN50: 0 | AO50: 0 | AP50: 0 | AQ50: =IF(CorpEventOption="Yes",MIN(52-AQ32,$D50),0) -> 0 | AR50: 0 | AS50: 0 | AT50: 0 | AU50: 0 | AV50: 0 | AW50: 0 | AX50: 0 | AY50: 0 | AZ50: 0 | BA50: 0 | BB50: 0 | BC50: 0 | BD50: 0 | BE50: 0 | BF50: 0 | BG50: 0 | BH50: 0
A51: Number of Cancelations | B51: rate | C51: 0.1 | K51: =ROUND($C51*K50,0) -> 0 | L51: =ROUND($C51*L50,0) -> 0 | M51: 0 | N51: 0 | O51: 0 | P51: 0 | Q51: 0 | R51: 0 | S51: 0 | T51: 0 | U51: 0 | V51: 0 | W51: 0 | X51: 0 | Y51: 0 | Z51: 0 | AA51: 0 | AB51: 0 | AC51: 0 | AD51: 0 | AE51: 0 | AF51: 0 | AG51: 0 | AH51: 0 | AI51: 0 | AJ51: 0 | AK51: 0 | AL51: 0 | AM51: 0 | AN51: 0 | AO51: 0 | AP51: 0 | AQ51: 0 | AR51: 0 | AS51: 0 | AT51: 0 | AU51: 0 | AV51: 0 | AW51: 0 | AX51: 0 | AY51: 0 | AZ51: 0 | BA51: 0 | BB51: 0 | BC51: 0 | BD51: 0 | BE51: 0 | BF51: 0 | BG51: 0 | BH51: 0
A52: Number of Corp Events | K52: =K50-K51 -> 0 | L52: =L50-L51 -> 0 | M52: 0 | N52: 0 | O52: 0 | P52: 0 | Q52: 0 | R52: 0 | S52: 0 | T52: 0 | U52: 0 | V52: 0 | W52: 0 | X52: 0 | Y52: 0 | Z52: 0 | AA52: 0 | AB52: 0 | AC52: 0 | AD52: 0 | AE52: 0 | AF52: 0 | AG52: 0 | AH52: 0 | AI52: 0 | AJ52: 0 | AK52: 0 | AL52: 0 | AM52: 0 | AN52: 0 | AO52: 0 | AP52: 0 | AQ52: 0 | AR52: 0 | AS52: 0 | AT52: 0 | AU52: 0 | AV52: 0 | AW52: 0 | AX52: 0 | AY52: 0 | AZ52: 0 | BA52: 0 | BB52: 0 | BC52: 0 | BD52: 0 | BE52: 0 | BF52: 0 | BG52: 0 | BH52: 0
A53: Corp Event Income | K53: =SUM(K54:K55) -> 0 | L53: =SUM(L54:L55) -> 0 | M53: 0 | N53: 0 | O53: 0 | P53: 0 | Q53: 0 | R53: 0 | S53: 0 | T53: 0 | U53: 0 | V53: 0 | W53: 0 | X53: 0 | Y53: 0 | Z53: 0 | AA53: 0 | AB53: 0 | AC53: 0 | AD53: 0 | AE53: 0 | AF53: 0 | AG53: 0 | AH53: 0 | AI53: 0 | AJ53: 0 | AK53: 0 | AL53: 0 | AM53: 0 | AN53: 0 | AO53: 0 | AP53: 0 | AQ53: 0 | AR53: 0 | AS53: 0 | AT53: 0 | AU53: 0 | AV53: 0 | AW53: 0 | AX53: 0 | AY53: 0 | AZ53: 0 | BA53: 0 | BB53: 0 | BC53: 0 | BD53: 0 | BE53: 0 | BF53: 0 | BG53: 0 | BH53: 0
A54: Corp Event Income | C54: contract price | D54: 4000 | K54: =$D54*K3*K50 -> 0 | L54: =$D54*L3*L50 -> 0 | M54: 0 | N54: 0 | O54: 0 | P54: 0 | Q54: 0 | R54: 0 | S54: 0 | T54: 0 | U54: 0 | V54: 0 | W54: 0 | X54: 0 | Y54: 0 | Z54: 0 | AA54: 0 | AB54: 0 | AC54: 0 | AD54: 0 | AE54: 0 | AF54: 0 | AG54: 0 | AH54: 0 | AI54: 0 | AJ54: 0 | AK54: 0 | AL54: 0 | AM54: 0 | AN54: 0 | AO54: 0 | AP54: 0 | AQ54: 0 | AR54: 0 | AS54: 0 | AT54: 0 | AU54: 0 | AV54: 0 | AW54: 0 | AX54: 0 | AY54: 0 | AZ54: 0 | BA54: 0 | BB54: 0 | BC54: 0 | BD54: 0 | BE54: 0 | BF54: 0 | BG54: 0 | BH54: 0
A55: Cancelation Income | B55: fee | C55: 850 | K55: =$C55*K3*K51 -> 0 | L55: =$C55*L3*L51 -> 0 | M55: 0 | N55: 0 | O55: 0 | P55: 0 | Q55: 0 | R55: 0 | S55: 0 | T55: 0 | U55: 0 | V55: 0 | W55: 0 | X55: 0 | Y55: 0 | Z55: 0 | AA55: 0 | AB55: 0 | AC55: 0 | AD55: 0 | AE55: 0 | AF55: 0 | AG55: 0 | AH55: 0 | AI55: 0 | AJ55: 0 | AK55: 0 | AL55: 0 | AM55: 0 | AN55: 0 | AO55: 0 | AP55: 0 | AQ55: 0 | AR55: 0 | AS55: 0 | AT55: 0 | AU55: 0 | AV55: 0 | AW55: 0 | AX55: 0 | AY55: 0 | AZ55: 0 | BA55: 0 | BB55: 0 | BC55: 0 | BD55: 0 | BE55: 0 | BF55: 0 | BG55: 0 | BH55: 0
A57: Sell External Wellness Memberships | K57: =K59 -> 0 | L57: =L59 -> 0 | M57: 0 | N57: 0 | O57: 0 | P57: 0 | Q57: 0 | R57: 0 | S57: 0 | T57: 0 | U57: 0 | V57: 0 | W57: 0 | X57: 0 | Y57: 0 | Z57: 0 | AA57: 0 | AB57: 0 | AC57: 0 | AD57: 0 | AE57: 0 | AF57: 0 | AG57: 0 | AH57: 0 | AI57: 0 | AJ57: 0 | AK57: 0 | AL57: 0 | AM57: 0 | AN57: 0 | AO57: 0 | AP57: 0 | AQ57: 0 | AR57: 0 | AS57: 0 | AT57: 0 | AU57: 0 | AV57: 0 | AW57: 0 | AX57: 0 | AY57: 0 | AZ57: 0 | BA57: 0 | BB57: 0 | BC57: 0 | BD57: 0 | BE57: 0 | BF57: 0 | BG57: 0 | BH57: 0
A58: Number | B58: 110 lots - number of homes | F58: I/E thres | G58: 1.55 | K58: =IF(ExternalWellnessMemberships="Yes",IF('Summary Budget'!J36>Income!$G58,112-'NP Growth'!K8,0),0) -> 0 | L58: =IF(ExternalWellnessMemberships="Yes",IF('Summary Budget'!K36>Income!$G58,112-'NP Growth'!L8,0),0) -> 0 | M58: =IF(ExternalWellnessMemberships="Yes",IF('Summary Budget'!L36>Income!$G58,112-'NP Growth'!M8,0),0) -> 0 | N58: =IF(ExternalWellnessMemberships="Yes",IF('Summary Budget'!M36>Income!$G58,112-'NP Growth'!N8,0),0) -> 0 | O58: =IF(ExternalWellnessMemberships="Yes",IF('Summary Budget'!N36>Income!$G58,112-'NP Growth'!O8,0),0) -> 0 | P58: =IF(ExternalWellnessMemberships="Yes",IF('Summary Budget'!O36>Income!$G58,112-'NP Growth'!P8,0),0) -> 0 | Q58: =IF(ExternalWellnessMemberships="Yes",IF('Summary Budget'!P36>Income!$G58,112-'NP Growth'!Q8,0),0) -> 0 | R58: =IF(ExternalWellnessMemberships="Yes",IF('Summary Budget'!Q36>Income!$G58,112-'NP Growth'!R8,0),0) -> 0 | S58: =IF(ExternalWellnessMemberships="Yes",IF('Summary Budget'!R36>Income!$G58,112-'NP Growth'!S8,0),0) -> 0 | T58: =IF(ExternalWellnessMemberships="Yes",IF('Summary Budget'!S36>Income!$G58,112-'NP Growth'!T8,0),0) -> 0 | U58: =IF(ExternalWellnessMemberships="Yes",IF('Summary Budget'!T36>Income!$G58,112-'NP Growth'!U8,0),0) -> 0 | V58: =IF(ExternalWellnessMemberships="Yes",IF('Summary Budget'!U36>Income!$G58,112-'NP Growth'!V8,0),0) -> 0 | W58: =IF(ExternalWellnessMemberships="Yes",IF('Summary Budget'!V36>Income!$G58,112-'NP Growth'!W8,0),0) -> 0 | X58: =IF(ExternalWellnessMemberships="Yes",IF('Summary Budget'!W36>Income!$G58,112-'NP Growth'!X8,0),0) -> 0 | Y58: =IF(ExternalWellnessMemberships="Yes",IF('Summary Budget'!X36>Income!$G58,112-'NP Growth'!Y8,0),0) -> 0 | Z58: =IF(ExternalWellnessMemberships="Yes",IF('Summary Budget'!Y36>Income!$G58,112-'NP Growth'!Z8,0),0) -> 0 | AA58: =IF(ExternalWellnessMemberships="Yes",IF('Summary Budget'!Z36>Income!$G58,112-'NP Growth'!AA8,0),0) -> 0 | AB58: =IF(ExternalWellnessMemberships="Yes",IF('Summary Budget'!AA36>Income!$G58,112-'NP Growth'!AB8,0),0) -> 0 | AC58: =IF(ExternalWellnessMemberships="Yes",IF('Summary Budget'!AB36>Income!$G58,112-'NP Growth'!AC8,0),0) -> 0 | AD58: =IF(ExternalWellnessMemberships="Yes",IF('Summary Budget'!AC36>Income!$G58,112-'NP Growth'!AD8,0),0) -> 0 | AE58: =IF(ExternalWellnessMemberships="Yes",IF('Summary Budget'!AD36>Income!$G58,112-'NP Growth'!AE8,0),0) -> 0 | AF58: =IF(ExternalWellnessMemberships="Yes",IF('Summary Budget'!AE36>Income!$G58,112-'NP Growth'!AF8,0),0) -> 0 | AG58: =IF(ExternalWellnessMemberships="Yes",IF('Summary Budget'!AF36>Income!$G58,112-'NP Growth'!AG8,0),0) -> 0 | AH58: =IF(ExternalWellnessMemberships="Yes",IF('Summary Budget'!AG36>Income!$G58,112-'NP Growth'!AH8,0),0) -> 0 | AI58: =IF(ExternalWellnessMemberships="Yes",IF('Summary Budget'!AH36>Income!$G58,112-'NP Growth'!AI8,0),0) -> 0 | AJ58: =IF(ExternalWellnessMemberships="Yes",IF('Summary Budget'!AI36>Income!$G58,112-'NP Growth'!AJ8,0),0) -> 0 | AK58: =IF(ExternalWellnessMemberships="Yes",IF('Summary Budget'!AJ36>Income!$G58,112-'NP Growth'!AK8,0),0) -> 0 | AL58: =IF(ExternalWellnessMemberships="Yes",IF('Summary Budget'!AK36>Income!$G58,112-'NP Growth'!AL8,0),0) -> 0 | AM58: =IF(ExternalWellnessMemberships="Yes",IF('Summary Budget'!AL36>Income!$G58,112-'NP Growth'!AM8,0),0) -> 0 | AN58: =IF(ExternalWellnessMemberships="Yes",IF('Summary Budget'!AM36>Income!$G58,112-'NP Growth'!AN8,0),0) -> 0 | AO58: =IF(ExternalWellnessMemberships="Yes",IF('Summary Budget'!AN36>Income!$G58,112-'NP Growth'!AO8,0),0) -> 0 | AP58: =IF(ExternalWellnessMemberships="Yes",IF('Summary Budget'!AO36>Income!$G58,112-'NP Growth'!AP8,0),0) -> 0 | AQ58: =IF(ExternalWellnessMemberships="Yes",IF('Summary Budget'!AP36>Income!$G58,112-'NP Growth'!AQ8,0),0) -> 0 | AR58: =IF(ExternalWellnessMemberships="Yes",IF('Summary Budget'!AQ36>Income!$G58,112-'NP Growth'!AR8,0),0) -> 0 | AS58: =IF(ExternalWellnessMemberships="Yes",IF('Summary Budget'!AR36>Income!$G58,112-'NP Growth'!AS8,0),0) -> 0 | AT58: =IF(ExternalWellnessMemberships="Yes",IF('Summary Budget'!AS36>Income!$G58,112-'NP Growth'!AT8,0),0) -> 0 | AU58: =IF(ExternalWellnessMemberships="Yes",IF('Summary Budget'!AT36>Income!$G58,112-'NP Growth'!AU8,0),0) -> 0 | AV58: =IF(ExternalWellnessMemberships="Yes",IF('Summary Budget'!AU36>Income!$G58,112-'NP Growth'!AV8,0),0) -> 0 | AW58: =IF(ExternalWellnessMemberships="Yes",IF('Summary Budget'!AV36>Income!$G58,112-'NP Growth'!AW8,0),0) -> 0 | AX58: =IF(ExternalWellnessMemberships="Yes",IF('Summary Budget'!AW36>Income!$G58,112-'NP Growth'!AX8,0),0) -> 0 | AY58: =IF(ExternalWellnessMemberships="Yes",IF('Summary Budget'!AX36>Income!$G58,112-'NP Growth'!AY8,0),0) -> 0 | AZ58: =IF(ExternalWellnessMemberships="Yes",IF('Summary Budget'!AY36>Income!$G58,112-'NP Growth'!AZ8,0),0) -> 0 | BA58: =IF(ExternalWellnessMemberships="Yes",IF('Summary Budget'!AZ36>Income!$G58,112-'NP Growth'!BA8,0),0) -> 0 | BB58: =IF(ExternalWellnessMemberships="Yes",IF('Summary Budget'!BA36>Income!$G58,112-'NP Growth'!BB8,0),0) -> 0 | BC58: =IF(ExternalWellnessMemberships="Yes",IF('Summary Budget'!BB36>Income!$G58,112-'NP Growth'!BC8,0),0) -> 0 | BD58: =IF(ExternalWellnessMemberships="Yes",IF('Summary Budget'!BC36>Income!$G58,112-'NP Growth'!BD8,0),0) -> 0 | BE58: =IF(ExternalWellnessMemberships="Yes",IF('Summary Budget'!BD36>Income!$G58,112-'NP Growth'!BE8,0),0) -> 0 | BF58: =IF(ExternalWellnessMemberships="Yes",IF('Summary Budget'!BE36>Income!$G58,112-'NP Growth'!BF8,0),0) -> 0 | BG58: =IF(ExternalWellnessMemberships="Yes",IF('Summary Budget'!BF36>Income!$G58,112-'NP Growth'!BG8,0),0) -> 0 | BH58: =IF(ExternalWellnessMemberships="Yes",IF('Summary Budget'!BG36>Income!$G58,112-'NP Growth'!BH8,0),0) -> 0
A59: Cost of Membership | C59: Net $/mo | D59: 150 | J59: =D59*12 -> 1800 | K59: =IF(Inflate4FutureInflation="Yes",K3*$J59*K58,$J59*K58) -> 0 | L59: 0 | M59: 0 | N59: 0 | O59: 0 | P59: 0 | Q59: 0 | R59: 0 | S59: 0 | T59: 0 | U59: 0 | V59: 0 | W59: 0 | X59: 0 | Y59: 0 | Z59: 0 | AA59: 0 | AB59: 0 | AC59: 0 | AD59: 0 | AE59: 0 | AF59: 0 | AG59: 0 | AH59: 0 | AI59: 0 | AJ59: 0 | AK59: 0 | AL59: 0 | AM59: 0 | AN59: 0 | AO59: 0 | AP59: 0 | AQ59: =IF(Inflate4FutureInflation="Yes",AQ3*$J59*AQ58,$J59*AQ58) -> 0 | AR59: 0 | AS59: 0 | AT59: 0 | AU59: 0 | AV59: 0 | AW59: 0 | AX59: 0 | AY59: 0 | AZ59: 0 | BA59: 0 | BB59: 0 | BC59: 0 | BD59: 0 | BE59: 0 | BF59: 0 | BG59: 0 | BH59: 0
A61: Investment Interest | K61: =K64 -> 248.1559439 | L61: 268.2558917 | M61: 321.39837 | N61: 389.668925 | O61: 467.1285873 | P61: 452.9233312 | Q61: 479.4584696 | R61: 579.3736664 | S61: 642.8701267 | T61: 721.0379962 | U61: 614.3137961 | V61: 564.4042896 | W61: 662.181161 | X61: 782.580137 | Y61: 866.0593476 | Z61: 846.4728259 | AA61: 917.0035327 | AB61: 1051.116828 | AC61: 1168.351649 | AD61: 1349.280087 | AE61: 887.7032217 | AF61: 498.1208985 | AG61: 701.0502111 | AH61: 838.5610563 | AI61: 1013.900345 | AJ61: 1087.612085 | AK61: 1204.589439 | AL61: 1440.83729 | AM61: 1597.648124 | AN61: 1852.666558 | AO61: 1678.296358 | AP61: 1594.270187 | AQ61: =AQ64 -> 1844.894127 | AR61: 1975.641089 | AS61: 2238.810977 | AT61: 2323.130593 | AU61: 2519.425639 | AV61: 2840.782935 | AW61: 3040.037983 | AX61: 3365.129669 | AY61: 3278.924932 | AZ61: 3311.364708 | BA61: 3683.824236 | BB61: 4064.951624 | BC61: 4447.660087 | BD61: 4738.991867 | BE61: 5104.931555 | BF61: 5562.61154 | BG61: 5786.251465 | BH61: 6157.936089
A62: Beginning of Year Cash Reserve | K62: ='Summary Budget'!K19 -> 239020.41 | L62: ='Summary Budget'!L19 -> 212420.3712 | M62: =L62+'Summary Budget'!L4-'Summary Budget'!L12 -> 260841.7689 | N62: =M62+'Summary Budget'!M4-'Summary Budget'!M12 -> 309223.6213 | O62: =N62+'Summary Budget'!N4-'Summary Budget'!N12 -> 375808.1657 | P62: =O62+'Summary Budget'!O4-'Summary Budget'!O12 -> 447407.5665 | Q62: =P62+'Summary Budget'!P4-'Summary Budget'!P12 -> 376542.3226 | R62: =Q62+'Summary Budget'!Q4-'Summary Budget'!Q12 -> 461303.6281 | S62: =R62+'Summary Budget'!R4-'Summary Budget'!R12 -> 553402.539 | T62: =S62+'Summary Budget'!S4-'Summary Budget'!S12 -> 602055.9227 | U62: =T62+'Summary Budget'!T4-'Summary Budget'!T12 -> 680891.5923 | V62: =U62+'Summary Budget'!U4-'Summary Budget'!U12 -> 436656.8963 | W62: =V62+'Summary Budget'!V4-'Summary Budget'!V12 -> 543103.6475 | X62: =W62+'Summary Budget'!W4-'Summary Budget'!W12 -> 629539.2908 | Y62: =X62+'Summary Budget'!X4-'Summary Budget'!X12 -> 743384.9162 | Z62: =Y62+'Summary Budget'!Y4-'Summary Budget'!Y12 -> 810976.3537 | AA62: =Z62+'Summary Budget'!Z4-'Summary Budget'!Z12 -> 728911.6208 | AB62: =AA62+'Summary Budget'!AA4-'Summary Budget'!AA12 -> 870474.5966 | AC62: =AB62+'Summary Budget'!AB4-'Summary Budget'!AB12 -> 990735.5644 | AD62: =AC62+'Summary Budget'!AC4-'Summary Budget'!AC12 -> 1095518.625 | AE62: =AD62+'Summary Budget'!AD4-'Summary Budget'!AD12 -> 1269129.946 | AF62: =AE62+'Summary Budget'!AE4-'Summary Budget'!AE12 -> 345763.6146 | AG62: =AF62+'Summary Budget'!AF4-'Summary Budget'!AF12 -> 493444.0511 | AH62: =AG62+'Summary Budget'!AG4-'Summary Budget'!AG12 -> 683414.0786 | AI62: =AH62+'Summary Budget'!AH4-'Summary Budget'!AH12 -> 799845.1748 | AJ62: =AI62+'Summary Budget'!AI4-'Summary Budget'!AI12 -> 966968.8692 | AK62: =AJ62+'Summary Budget'!AJ4-'Summary Budget'!AJ12 -> 1000668.036 | AL62: =AK62+'Summary Budget'!AK4-'Summary Budget'!AK12 -> 1138086.194 | AM62: =AL62+'Summary Budget'!AL4-'Summary Budget'!AL12 -> 1364259.684 | AN62: =AM62+'Summary Budget'!AM4-'Summary Budget'!AM12 -> 1495535.488 | AO62: =AN62+'Summary Budget'!AN4-'Summary Budget'!AN12 -> 1742949.055 | AP62: =AO62+'Summary Budget'!AO4-'Summary Budget'!AO12 -> 1310177.165 | AQ62: =AP62+'Summary Budget'!AP4-'Summary Budget'!AP12 -> 1503840.95 | AR62: =AQ62+'Summary Budget'!AQ4-'Summary Budget'!AQ12 -> 1737150.17 | AS62: =AR62+'Summary Budget'!AR4-'Summary Budget'!AR12 -> 1806139.102 | AT62: =AS62+'Summary Budget'!AS4-'Summary Budget'!AS12 -> 2104678.275 | AU62: =AT62+'Summary Budget'!AT4-'Summary Budget'!AT12 -> 2115373.867 | AV62: =AU62+'Summary Budget'!AU4-'Summary Budget'!AU12 -> 2355647.198 | AW62: =AV62+'Summary Budget'!AV4-'Summary Budget'!AV12 -> 2655666.917 | AX62: =AW62+'Summary Budget'!AW4-'Summary Budget'!AW12 -> 2819835.08 | AY62: =AX62+'Summary Budget'!AX4-'Summary Budget'!AX12 -> 3136832.814 | AZ62: =AY62+'Summary Budget'!AY4-'Summary Budget'!AY12 -> 2828127.806 | BA62: =AZ62+'Summary Budget'!AZ4-'Summary Budget'!AZ12 -> 3083640.76 | BB62: =BA62+'Summary Budget'!BA4-'Summary Budget'!BA12 -> 3434218.043 | BC62: =BB62+'Summary Budget'!BB4-'Summary Budget'!BB12 -> 3781913.166 | BD62: =BC62+'Summary Budget'!BC4-'Summary Budget'!BC12 -> 4131627.425 | BE62: =BD62+'Summary Budget'!BD4-'Summary Budget'!BD12 -> 4387653.692 | BF62: =BE62+'Summary Budget'!BE4-'Summary Budget'!BE12 -> 4731748.077 | BG62: =BF62+'Summary Budget'!BF4-'Summary Budget'!BF12 -> 5158702.408 | BH62: =BG62+'Summary Budget'!BG4-'Summary Budget'!BG12 -> 5319756.806
A63: Approximate Average Balance | K63: =K62+(SUM(K5,K20,K24,K29,K57)-SUM('Operating Expenses'!K5,'Operating Expenses'!K26,'Operating Expenses'!K32,'Operating Expenses'!K40,'Operating Expenses'!K50,'Operating Expenses'!K56,'Operating Expenses'!K96,'Operating Expenses'!K120,'Annual Maintenance'!K4,'Reserve Expenses'!K5))/2 -> 225596.3126 | L63: =L62+(SUM(L5,L20,L24,L29,L57)-SUM('Operating Expenses'!L5,'Operating Expenses'!L26,'Operating Expenses'!L32,'Operating Expenses'!L40,'Operating Expenses'!L50,'Operating Expenses'!L56,'Operating Expenses'!L96,'Operating Expenses'!L120,'Annual Maintenance'!L4,'Reserve Expenses'!L5))/2 -> 243868.9924 | M63: =M62+(SUM(M5,M20,M24,M29,M57)-SUM('Operating Expenses'!M5,'Operating Expenses'!M26,'Operating Expenses'!M32,'Operating Expenses'!M40,'Operating Expenses'!M50,'Operating Expenses'!M56,'Operating Expenses'!M96,'Operating Expenses'!M120,'Annual Maintenance'!M4,'Reserve Expenses'!M5))/2 -> 292180.3364 | N63: =N62+(SUM(N5,N20,N24,N29,N57)-SUM('Operating Expenses'!N5,'Operating Expenses'!N26,'Operating Expenses'!N32,'Operating Expenses'!N40,'Operating Expenses'!N50,'Operating Expenses'!N56,'Operating Expenses'!N96,'Operating Expenses'!N120,'Annual Maintenance'!N4,'Reserve Expenses'!N5))/2 -> 354244.4773 | O63: =O62+(SUM(O5,O20,O24,O29,O57)-SUM('Operating Expenses'!O5,'Operating Expenses'!O26,'Operating Expenses'!O32,'Operating Expenses'!O40,'Operating Expenses'!O50,'Operating Expenses'!O56,'Operating Expenses'!O96,'Operating Expenses'!O120,'Annual Maintenance'!O4,'Reserve Expenses'!O5))/2 -> 424662.3521 | P63: =P62+(SUM(P5,P20,P24,P29,P57)-SUM('Operating Expenses'!P5,'Operating Expenses'!P26,'Operating Expenses'!P32,'Operating Expenses'!P40,'Operating Expenses'!P50,'Operating Expenses'!P56,'Operating Expenses'!P96,'Operating Expenses'!P120,'Annual Maintenance'!P4,'Reserve Expenses'!P5))/2 -> 411748.4829 | Q63: =Q62+(SUM(Q5,Q20,Q24,Q29,Q57)-SUM('Operating Expenses'!Q5,'Operating Expenses'!Q26,'Operating Expenses'!Q32,'Operating Expenses'!Q40,'Operating Expenses'!Q50,'Operating Expenses'!Q56,'Operating Expenses'!Q96,'Operating Expenses'!Q120,'Annual Maintenance'!Q4,'Reserve Expenses'!Q5))/2 -> 435871.336 | R63: =R62+(SUM(R5,R20,R24,R29,R57)-SUM('Operating Expenses'!R5,'Operating Expenses'!R26,'Operating Expenses'!R32,'Operating Expenses'!R40,'Operating Expenses'!R50,'Operating Expenses'!R56,'Operating Expenses'!R96,'Operating Expenses'!R120,'Annual Maintenance'!R4,'Reserve Expenses'!R5))/2 -> 526703.3331 | S63: =S62+(SUM(S5,S20,S24,S29,S57)-SUM('Operating Expenses'!S5,'Operating Expenses'!S26,'Operating Expenses'!S32,'Operating Expenses'!S40,'Operating Expenses'!S50,'Operating Expenses'!S56,'Operating Expenses'!S96,'Operating Expenses'!S120,'Annual Maintenance'!S4,'Reserve Expenses'!S5))/2 -> 584427.3879 | T63: =T62+(SUM(T5,T20,T24,T29,T57)-SUM('Operating Expenses'!T5,'Operating Expenses'!T26,'Operating Expenses'!T32,'Operating Expenses'!T40,'Operating Expenses'!T50,'Operating Expenses'!T56,'Operating Expenses'!T96,'Operating Expenses'!T120,'Annual Maintenance'!T4,'Reserve Expenses'!T5))/2 -> 655489.0874 | U63: =U62+(SUM(U5,U20,U24,U29,U57)-SUM('Operating Expenses'!U5,'Operating Expenses'!U26,'Operating Expenses'!U32,'Operating Expenses'!U40,'Operating Expenses'!U50,'Operating Expenses'!U56,'Operating Expenses'!U96,'Operating Expenses'!U120,'Annual Maintenance'!U4,'Reserve Expenses'!U5))/2 -> 558467.0874 | V63: =V62+(SUM(V5,V20,V24,V29,V57)-SUM('Operating Expenses'!V5,'Operating Expenses'!V26,'Operating Expenses'!V32,'Operating Expenses'!V40,'Operating Expenses'!V50,'Operating Expenses'!V56,'Operating Expenses'!V96,'Operating Expenses'!V120,'Annual Maintenance'!V4,'Reserve Expenses'!V5))/2 -> 513094.8088 | W63: =W62+(SUM(W5,W20,W24,W29,W57)-SUM('Operating Expenses'!W5,'Operating Expenses'!W26,'Operating Expenses'!W32,'Operating Expenses'!W40,'Operating Expenses'!W50,'Operating Expenses'!W56,'Operating Expenses'!W96,'Operating Expenses'!W120,'Annual Maintenance'!W4,'Reserve Expenses'!W5))/2 -> 601982.8736 | X63: =X62+(SUM(X5,X20,X24,X29,X57)-SUM('Operating Expenses'!X5,'Operating Expenses'!X26,'Operating Expenses'!X32,'Operating Expenses'!X40,'Operating Expenses'!X50,'Operating Expenses'!X56,'Operating Expenses'!X96,'Operating Expenses'!X120,'Annual Maintenance'!X4,'Reserve Expenses'!X5))/2 -> 711436.4882 | Y63: =Y62+(SUM(Y5,Y20,Y24,Y29,Y57)-SUM('Operating Expenses'!Y5,'Operating Expenses'!Y26,'Operating Expenses'!Y32,'Operating Expenses'!Y40,'Operating Expenses'!Y50,'Operating Expenses'!Y56,'Operating Expenses'!Y96,'Operating Expenses'!Y120,'Annual Maintenance'!Y4,'Reserve Expenses'!Y5))/2 -> 787326.6796 | Z63: =Z62+(SUM(Z5,Z20,Z24,Z29,Z57)-SUM('Operating Expenses'!Z5,'Operating Expenses'!Z26,'Operating Expenses'!Z32,'Operating Expenses'!Z40,'Operating Expenses'!Z50,'Operating Expenses'!Z56,'Operating Expenses'!Z96,'Operating Expenses'!Z120,'Annual Maintenance'!Z4,'Reserve Expenses'!Z5))/2 -> 769520.7508 | AA63: =AA62+(SUM(AA5,AA20,AA24,AA29,AA57)-SUM('Operating Expenses'!AA5,'Operating Expenses'!AA26,'Operating Expenses'!AA32,'Operating Expenses'!AA40,'Operating Expenses'!AA50,'Operating Expenses'!AA56,'Operating Expenses'!AA96,'Operating Expenses'!AA120,'Annual Maintenance'!AA4,'Reserve Expenses'!AA5))/2 -> 833639.5752 | AB63: =AB62+(SUM(AB5,AB20,AB24,AB29,AB57)-SUM('Operating Expenses'!AB5,'Operating Expenses'!AB26,'Operating Expenses'!AB32,'Operating Expenses'!AB40,'Operating Expenses'!AB50,'Operating Expenses'!AB56,'Operating Expenses'!AB96,'Operating Expenses'!AB120,'Annual Maintenance'!AB4,'Reserve Expenses'!AB5))/2 -> 955560.7524 | AC63: =AC62+(SUM(AC5,AC20,AC24,AC29,AC57)-SUM('Operating Expenses'!AC5,'Operating Expenses'!AC26,'Operating Expenses'!AC32,'Operating Expenses'!AC40,'Operating Expenses'!AC50,'Operating Expenses'!AC56,'Operating Expenses'!AC96,'Operating Expenses'!AC120,'Annual Maintenance'!AC4,'Reserve Expenses'!AC5))/2 -> 1062137.863 | AD63: =AD62+(SUM(AD5,AD20,AD24,AD29,AD57)-SUM('Operating Expenses'!AD5,'Operating Expenses'!AD26,'Operating Expenses'!AD32,'Operating Expenses'!AD40,'Operating Expenses'!AD50,'Operating Expenses'!AD56,'Operating Expenses'!AD96,'Operating Expenses'!AD120,'Annual Maintenance'!AD4,'Reserve Expenses'!AD5))/2 -> 1226618.261 | AE63: =AE62+(SUM(AE5,AE20,AE24,AE29,AE57)-SUM('Operating Expenses'!AE5,'Operating Expenses'!AE26,'Operating Expenses'!AE32,'Operating Expenses'!AE40,'Operating Expenses'!AE50,'Operating Expenses'!AE56,'Operating Expenses'!AE96,'Operating Expenses'!AE120,'Annual Maintenance'!AE4,'Reserve Expenses'!AE5))/2 -> 807002.9288 | AF63: =AF62+(SUM(AF5,AF20,AF24,AF29,AF57)-SUM('Operating Expenses'!AF5,'Operating Expenses'!AF26,'Operating Expenses'!AF32,'Operating Expenses'!AF40,'Operating Expenses'!AF50,'Operating Expenses'!AF56,'Operating Expenses'!AF96,'Operating Expenses'!AF120,'Annual Maintenance'!AF4,'Reserve Expenses'!AF5))/2 -> 452837.1805 | AG63: =AG62+(SUM(AG5,AG20,AG24,AG29,AG57)-SUM('Operating Expenses'!AG5,'Operating Expenses'!AG26,'Operating Expenses'!AG32,'Operating Expenses'!AG40,'Operating Expenses'!AG50,'Operating Expenses'!AG56,'Operating Expenses'!AG96,'Operating Expenses'!AG120,'Annual Maintenance'!AG4,'Reserve Expenses'!AG5))/2 -> 637318.3737 | AH63: =AH62+(SUM(AH5,AH20,AH24,AH29,AH57)-SUM('Operating Expenses'!AH5,'Operating Expenses'!AH26,'Operating Expenses'!AH32,'Operating Expenses'!AH40,'Operating Expenses'!AH50,'Operating Expenses'!AH56,'Operating Expenses'!AH96,'Operating Expenses'!AH120,'Annual Maintenance'!AH4,'Reserve Expenses'!AH5))/2 -> 762328.233 | AI63: =AI62+(SUM(AI5,AI20,AI24,AI29,AI57)-SUM('Operating Expenses'!AI5,'Operating Expenses'!AI26,'Operating Expenses'!AI32,'Operating Expenses'!AI40,'Operating Expenses'!AI50,'Operating Expenses'!AI56,'Operating Expenses'!AI96,'Operating Expenses'!AI120,'Annual Maintenance'!AI4,'Reserve Expenses'!AI5))/2 -> 921727.5864 | AJ63: =AJ62+(SUM(AJ5,AJ20,AJ24,AJ29,AJ57)-SUM('Operating Expenses'!AJ5,'Operating Expenses'!AJ26,'Operating Expenses'!AJ32,'Operating Expenses'!AJ40,'Operating Expenses'!AJ50,'Operating Expenses'!AJ56,'Operating Expenses'!AJ96,'Operating Expenses'!AJ120,'Annual Maintenance'!AJ4,'Reserve Expenses'!AJ5))/2 -> 988738.259 | AK63: =AK62+(SUM(AK5,AK20,AK24,AK29,AK57)-SUM('Operating Expenses'!AK5,'Operating Expenses'!AK26,'Operating Expenses'!AK32,'Operating Expenses'!AK40,'Operating Expenses'!AK50,'Operating Expenses'!AK56,'Operating Expenses'!AK96,'Operating Expenses'!AK120,'Annual Maintenance'!AK4,'Reserve Expenses'!AK5))/2 -> 1095081.308 | AL63: =AL62+(SUM(AL5,AL20,AL24,AL29,AL57)-SUM('Operating Expenses'!AL5,'Operating Expenses'!AL26,'Operating Expenses'!AL32,'Operating Expenses'!AL40,'Operating Expenses'!AL50,'Operating Expenses'!AL56,'Operating Expenses'!AL96,'Operating Expenses'!AL120,'Annual Maintenance'!AL4,'Reserve Expenses'!AL5))/2 -> 1309852.082 | AM63: =AM62+(SUM(AM5,AM20,AM24,AM29,AM57)-SUM('Operating Expenses'!AM5,'Operating Expenses'!AM26,'Operating Expenses'!AM32,'Operating Expenses'!AM40,'Operating Expenses'!AM50,'Operating Expenses'!AM56,'Operating Expenses'!AM96,'Operating Expenses'!AM120,'Annual Maintenance'!AM4,'Reserve Expenses'!AM5))/2 -> 1452407.385 | AN63: =AN62+(SUM(AN5,AN20,AN24,AN29,AN57)-SUM('Operating Expenses'!AN5,'Operating Expenses'!AN26,'Operating Expenses'!AN32,'Operating Expenses'!AN40,'Operating Expenses'!AN50,'Operating Expenses'!AN56,'Operating Expenses'!AN96,'Operating Expenses'!AN120,'Annual Maintenance'!AN4,'Reserve Expenses'!AN5))/2 -> 1684242.325 | AO63: =AO62+(SUM(AO5,AO20,AO24,AO29,AO57)-SUM('Operating Expenses'!AO5,'Operating Expenses'!AO26,'Operating Expenses'!AO32,'Operating Expenses'!AO40,'Operating Expenses'!AO50,'Operating Expenses'!AO56,'Operating Expenses'!AO96,'Operating Expenses'!AO120,'Annual Maintenance'!AO4,'Reserve Expenses'!AO5))/2 -> 1525723.962 | AP63: =AP62+(SUM(AP5,AP20,AP24,AP29,AP57)-SUM('Operating Expenses'!AP5,'Operating Expenses'!AP26,'Operating Expenses'!AP32,'Operating Expenses'!AP40,'Operating Expenses'!AP50,'Operating Expenses'!AP56,'Operating Expenses'!AP96,'Operating Expenses'!AP120,'Annual Maintenance'!AP4,'Reserve Expenses'!AP5))/2 -> 1449336.533 | AQ63: =AQ62+(SUM(AQ5,AQ20,AQ24,AQ29,AQ57)-SUM('Operating Expenses'!AQ5,'Operating Expenses'!AQ26,'Operating Expenses'!AQ32,'Operating Expenses'!AQ40,'Operating Expenses'!AQ50,'Operating Expenses'!AQ56,'Operating Expenses'!AQ96,'Operating Expenses'!AQ120,'Annual Maintenance'!AQ4,'Reserve Expenses'!AQ5))/2 -> 1677176.479 | AR63: =AR62+(SUM(AR5,AR20,AR24,AR29,AR57)-SUM('Operating Expenses'!AR5,'Operating Expenses'!AR26,'Operating Expenses'!AR32,'Operating Expenses'!AR40,'Operating Expenses'!AR50,'Operating Expenses'!AR56,'Operating Expenses'!AR96,'Operating Expenses'!AR120,'Annual Maintenance'!AR4,'Reserve Expenses'!AR5))/2 -> 1796037.353 | AS63: =AS62+(SUM(AS5,AS20,AS24,AS29,AS57)-SUM('Operating Expenses'!AS5,'Operating Expenses'!AS26,'Operating Expenses'!AS32,'Operating Expenses'!AS40,'Operating Expenses'!AS50,'Operating Expenses'!AS56,'Operating Expenses'!AS96,'Operating Expenses'!AS120,'Annual Maintenance'!AS4,'Reserve Expenses'!AS5))/2 -> 2035282.707 | AT63: =AT62+(SUM(AT5,AT20,AT24,AT29,AT57)-SUM('Operating Expenses'!AT5,'Operating Expenses'!AT26,'Operating Expenses'!AT32,'Operating Expenses'!AT40,'Operating Expenses'!AT50,'Operating Expenses'!AT56,'Operating Expenses'!AT96,'Operating Expenses'!AT120,'Annual Maintenance'!AT4,'Reserve Expenses'!AT5))/2 -> 2111936.902 | AU63: =AU62+(SUM(AU5,AU20,AU24,AU29,AU57)-SUM('Operating Expenses'!AU5,'Operating Expenses'!AU26,'Operating Expenses'!AU32,'Operating Expenses'!AU40,'Operating Expenses'!AU50,'Operating Expenses'!AU56,'Operating Expenses'!AU96,'Operating Expenses'!AU120,'Annual Maintenance'!AU4,'Reserve Expenses'!AU5))/2 -> 2290386.945 | AV63: =AV62+(SUM(AV5,AV20,AV24,AV29,AV57)-SUM('Operating Expenses'!AV5,'Operating Expenses'!AV26,'Operating Expenses'!AV32,'Operating Expenses'!AV40,'Operating Expenses'!AV50,'Operating Expenses'!AV56,'Operating Expenses'!AV96,'Operating Expenses'!AV120,'Annual Maintenance'!AV4,'Reserve Expenses'!AV5))/2 -> 2582529.941 | AW63: =AW62+(SUM(AW5,AW20,AW24,AW29,AW57)-SUM('Operating Expenses'!AW5,'Operating Expenses'!AW26,'Operating Expenses'!AW32,'Operating Expenses'!AW40,'Operating Expenses'!AW50,'Operating Expenses'!AW56,'Operating Expenses'!AW96,'Operating Expenses'!AW120,'Annual Maintenance'!AW4,'Reserve Expenses'!AW5))/2 -> 2763670.893 | AX63: =AX62+(SUM(AX5,AX20,AX24,AX29,AX57)-SUM('Operating Expenses'!AX5,'Operating Expenses'!AX26,'Operating Expenses'!AX32,'Operating Expenses'!AX40,'Operating Expenses'!AX50,'Operating Expenses'!AX56,'Operating Expenses'!AX96,'Operating Expenses'!AX120,'Annual Maintenance'!AX4,'Reserve Expenses'!AX5))/2 -> 3059208.79 | AY63: =AY62+(SUM(AY5,AY20,AY24,AY29,AY57)-SUM('Operating Expenses'!AY5,'Operating Expenses'!AY26,'Operating Expenses'!AY32,'Operating Expenses'!AY40,'Operating Expenses'!AY50,'Operating Expenses'!AY56,'Operating Expenses'!AY96,'Operating Expenses'!AY120,'Annual Maintenance'!AY4,'Reserve Expenses'!AY5))/2 -> 2980840.848 | AZ63: =AZ62+(SUM(AZ5,AZ20,AZ24,AZ29,AZ57)-SUM('Operating Expenses'!AZ5,'Operating Expenses'!AZ26,'Operating Expenses'!AZ32,'Operating Expenses'!AZ40,'Operating Expenses'!AZ50,'Operating Expenses'!AZ56,'Operating Expenses'!AZ96,'Operating Expenses'!AZ120,'Annual Maintenance'!AZ4,'Reserve Expenses'!AZ5))/2 -> 3010331.553 | BA63: =BA62+(SUM(BA5,BA20,BA24,BA29,BA57)-SUM('Operating Expenses'!BA5,'Operating Expenses'!BA26,'Operating Expenses'!BA32,'Operating Expenses'!BA40,'Operating Expenses'!BA50,'Operating Expenses'!BA56,'Operating Expenses'!BA96,'Operating Expenses'!BA120,'Annual Maintenance'!BA4,'Reserve Expenses'!BA5))/2 -> 3348931.124 | BB63: =BB62+(SUM(BB5,BB20,BB24,BB29,BB57)-SUM('Operating Expenses'!BB5,'Operating Expenses'!BB26,'Operating Expenses'!BB32,'Operating Expenses'!BB40,'Operating Expenses'!BB50,'Operating Expenses'!BB56,'Operating Expenses'!BB96,'Operating Expenses'!BB120,'Annual Maintenance'!BB4,'Reserve Expenses'!BB5))/2 -> 3695410.568 | BC63: =BC62+(SUM(BC5,BC20,BC24,BC29,BC57)-SUM('Operating Expenses'!BC5,'Operating Expenses'!BC26,'Operating Expenses'!BC32,'Operating Expenses'!BC40,'Operating Expenses'!BC50,'Operating Expenses'!BC56,'Operating Expenses'!BC96,'Operating Expenses'!BC120,'Annual Maintenance'!BC4,'Reserve Expenses'!BC5))/2 -> 4043327.352 | BD63: =BD62+(SUM(BD5,BD20,BD24,BD29,BD57)-SUM('Operating Expenses'!BD5,'Operating Expenses'!BD26,'Operating Expenses'!BD32,'Operating Expenses'!BD40,'Operating Expenses'!BD50,'Operating Expenses'!BD56,'Operating Expenses'!BD96,'Operating Expenses'!BD120,'Annual Maintenance'!BD4,'Reserve Expenses'!BD5))/2 -> 4308174.425 | BE63: =BE62+(SUM(BE5,BE20,BE24,BE29,BE57)-SUM('Operating Expenses'!BE5,'Operating Expenses'!BE26,'Operating Expenses'!BE32,'Operating Expenses'!BE40,'Operating Expenses'!BE50,'Operating Expenses'!BE56,'Operating Expenses'!BE96,'Operating Expenses'!BE120,'Annual Maintenance'!BE4,'Reserve Expenses'!BE5))/2 -> 4640846.868 | BF63: =BF62+(SUM(BF5,BF20,BF24,BF29,BF57)-SUM('Operating Expenses'!BF5,'Operating Expenses'!BF26,'Operating Expenses'!BF32,'Operating Expenses'!BF40,'Operating Expenses'!BF50,'Operating Expenses'!BF56,'Operating Expenses'!BF96,'Operating Expenses'!BF120,'Annual Maintenance'!BF4,'Reserve Expenses'!BF5))/2 -> 5056919.582 | BG63: =BG62+(SUM(BG5,BG20,BG24,BG29,BG57)-SUM('Operating Expenses'!BG5,'Operating Expenses'!BG26,'Operating Expenses'!BG32,'Operating Expenses'!BG40,'Operating Expenses'!BG50,'Operating Expenses'!BG56,'Operating Expenses'!BG96,'Operating Expenses'!BG120,'Annual Maintenance'!BG4,'Reserve Expenses'!BG5))/2 -> 5260228.604 | BH63: =BH62+(SUM(BH5,BH20,BH24,BH29,BH57)-SUM('Operating Expenses'!BH5,'Operating Expenses'!BH26,'Operating Expenses'!BH32,'Operating Expenses'!BH40,'Operating Expenses'!BH50,'Operating Expenses'!BH56,'Operating Expenses'!BH96,'Operating Expenses'!BH120,'Annual Maintenance'!BH4,'Reserve Expenses'!BH5))/2 -> 5598123.717
A64: Interest Income | B64: rate | C64: =InvAcctRate -> 0.0011 | K64: =IF(K63>0,InvAcctRate*K63,0) -> 248.1559439 | L64: 268.2558917 | M64: 321.39837 | N64: 389.668925 | O64: 467.1285873 | P64: 452.9233312 | Q64: 479.4584696 | R64: 579.3736664 | S64: 642.8701267 | T64: 721.0379962 | U64: 614.3137961 | V64: 564.4042896 | W64: 662.181161 | X64: 782.580137 | Y64: 866.0593476 | Z64: 846.4728259 | AA64: 917.0035327 | AB64: 1051.116828 | AC64: 1168.351649 | AD64: 1349.280087 | AE64: 887.7032217 | AF64: 498.1208985 | AG64: 701.0502111 | AH64: 838.5610563 | AI64: 1013.900345 | AJ64: 1087.612085 | AK64: 1204.589439 | AL64: 1440.83729 | AM64: 1597.648124 | AN64: 1852.666558 | AO64: 1678.296358 | AP64: 1594.270187 | AQ64: 1844.894127 | AR64: =IF(AR63>0,InvAcctRate*AR63,0) -> 1975.641089 | AS64: 2238.810977 | AT64: 2323.130593 | AU64: 2519.425639 | AV64: 2840.782935 | AW64: 3040.037983 | AX64: 3365.129669 | AY64: 3278.924932 | AZ64: 3311.364708 | BA64: 3683.824236 | BB64: 4064.951624 | BC64: 4447.660087 | BD64: 4738.991867 | BE64: 5104.931555 | BF64: 5562.61154 | BG64: 5786.251465 | BH64: 6157.936089

Sheet Operating Expenses
J1: Yr # | K1: 0 | L1: 1 | M1: 2 | N1: 3 | O1: 4 | P1: 5 | Q1: 6 | R1: 7 | S1: 8 | T1: 9 | U1: 10 | V1: 11 | W1: 12 | X1: 13 | Y1: 14 | Z1: 15 | AA1: 16 | AB1: 17 | AC1: 18 | AD1: 19 | AE1: 20 | AF1: 21 | AG1: 22 | AH1: 23 | AI1: 24 | AJ1: 25 | AK1: 26 | AL1: 27 | AM1: 28 | AN1: 29 | AO1: 30 | AP1: 31 | AQ1: 32 | AR1: 33 | AS1: 34 | AT1: 35 | AU1: 36 | AV1: 37 | AW1: 38 | AX1: 39 | AY1: 40 | AZ1: 41 | BA1: 42 | BB1: 43 | BC1: 44 | BD1: 45 | BE1: 46 | BF1: 47 | BG1: 48 | BH1: 49
J2: CY | K2: =BeginningYear -> 2017 | L2: =K2+1 -> 2018 | M2: =L2+1 -> 2019 | N2: 2020 | O2: 2021 | P2: 2022 | Q2: 2023 | R2: 2024 | S2: 2025 | T2: 2026 | U2: 2027 | V2: 2028 | W2: 2029 | X2: 2030 | Y2: 2031 | Z2: 2032 | AA2: 2033 | AB2: 2034 | AC2: 2035 | AD2: 2036 | AE2: 2037 | AF2: 2038 | AG2: 2039 | AH2: 2040 | AI2: 2041 | AJ2: 2042 | AK2: 2043 | AL2: 2044 | AM2: 2045 | AN2: 2046 | AO2: 2047 | AP2: 2048 | AQ2: 2049 | AR2: 2050 | AS2: 2051 | AT2: 2052 | AU2: 2053 | AV2: 2054 | AW2: 2055 | AX2: 2056 | AY2: 2057 | AZ2: 2058 | BA2: 2059 | BB2: 2060 | BC2: 2061 | BD2: 2062 | BE2: 2063 | BF2: 2064 | BG2: 2065 | BH2: 2066 | BI2: Comments
J3: Inflation Multiplier | K3: =CPI!DE6 -> 1 | L3: =CPI!DF6 -> 1.03 | M3: =CPI!DG6 -> 1.0609 | N3: =CPI!DH6 -> 1.092727 | O3: =CPI!DI6 -> 1.12550881 | P3: =CPI!DJ6 -> 1.159274074 | Q3: =CPI!DK6 -> 1.194052297 | R3: =CPI!DL6 -> 1.229873865 | S3: =CPI!DM6 -> 1.266770081 | T3: =CPI!DN6 -> 1.304773184 | U3: =CPI!DO6 -> 1.343916379 | V3: =CPI!DP6 -> 1.384233871 | W3: =CPI!DQ6 -> 1.425760887 | X3: =CPI!DR6 -> 1.468533713 | Y3: =CPI!DS6 -> 1.512589725 | Z3: =CPI!DT6 -> 1.557967417 | AA3: =CPI!DU6 -> 1.604706439 | AB3: =CPI!DV6 -> 1.652847632 | AC3: =CPI!DW6 -> 1.702433061 | AD3: =CPI!DX6 -> 1.753506053 | AE3: =CPI!DY6 -> 1.806111235 | AF3: =CPI!DZ6 -> 1.860294572 | AG3: =CPI!EA6 -> 1.916103409 | AH3: =CPI!EB6 -> 1.973586511 | AI3: =CPI!EC6 -> 2.032794106 | AJ3: =CPI!ED6 -> 2.09377793 | AK3: =CPI!EE6 -> 2.156591268 | AL3: =CPI!EF6 -> 2.221289006 | AM3: =CPI!EG6 -> 2.287927676 | AN3: =CPI!EH6 -> 2.356565506 | AO3: =CPI!EI6 -> 2.427262471 | AP3: =CPI!EJ6 -> 2.500080345 | AQ3: =CPI!EK6 -> 2.575082756 | AR3: =CPI!EL6 -> 2.652335238 | AS3: =CPI!EM6 -> 2.731905296 | AT3: =CPI!EN6 -> 2.813862454 | AU3: =CPI!EO6 -> 2.898278328 | AV3: =CPI!EP6 -> 2.985226678 | AW3: =CPI!EQ6 -> 3.074783478 | AX3: =CPI!ER6 -> 3.167026983 | AY3: =CPI!ES6 -> 3.262037792 | AZ3: =CPI!ET6 -> 3.359898926 | BA3: =CPI!EU6 -> 3.460695894 | BB3: =CPI!EV6 -> 3.56451677 | BC3: =CPI!EW6 -> 3.671452273 | BD3: =CPI!EX6 -> 3.781595842 | BE3: =CPI!EY6 -> 3.895043717 | BF3: =CPI!EZ6 -> 4.011895028 | BG3: =CPI!FA6 -> 4.132251879 | BH3: =CPI!FB6 -> 4.256219436
A4: Operating Costs Recurring on Annual or Less than Annual Basis - Excludes Income Taxes - | K4: =SUM(K5,K26,K32,K40,K50,K56,K96,K120,K127) -> 238875.9549 | L4: 258769.0721 | M4: 263884.6217 | N4: 278452.7024 | O4: 286615.8258 | P4: 265570.4707 | Q4: 305575.2051 | R4: 316206.1525 | S4: 296792.2746 | T4: 318806.0566 | U4: 296123.9201 | V4: 349290.0843 | W4: 340558.1322 | X4: 368561.6858 | Y4: 348523.395 | Z4: 337186.2038 | AA4: 416111.7265 | AB4: 408683.3042 | AC4: 407642.3575 | AD4: 469443.2736 | AE4: 390891.2243 | AF4: 469582.7771 | AG4: 513176.1677 | AH4: 469373.1685 | AI4: 517606.5458 | AJ4: 464077.2873 | AK4: 519357.5404 | AL4: 599546.0238 | AM4: 541786.5545 | AN4: 641877.1614 | AO4: 525325.1188 | AP4: 627334.0943 | AQ4: =SUM(AQ5,AQ26,AQ32,AQ40,AQ50,AQ56,AQ96,AQ120,AQ127) -> 672524.1494 | AR4: 600447.7498 | AS4: 753244.8961 | AT4: 615140.5844 | AU4: 739537.9153 | AV4: 802670.185 | AW4: 720345.9716 | AX4: 850544.9429 | AY4: 705993.0317 | AZ4: 839378.7262 | BA4: 932675.2765 | BB4: 950212.5252 | BC4: 972163.1493 | BD4: 920246.1422 | BE4: 1010389.499 | BF4: 1097233.669 | BG4: 942115.0958 | BH4: 1105819.369
A5: Management Services | K5: =SUM(K6,K13,K20,K22,K25) -> 30906.564 | L5: =SUM(L6,L13,L20,L22,L25) -> 31833.76092 | M5: =SUM(M6,M13,M20,M22,M25) -> 32788.77375 | N5: 33772.43696 | O5: 34785.61007 | P5: 35829.17837 | Q5: 36904.05372 | R5: 38011.17533 | S5: 39151.51059 | T5: 40326.05591 | U5: 41535.83759 | V5: 42781.91272 | W5: 44065.3701 | X5: 45387.3312 | Y5: 46748.95114 | Z5: 48151.41967 | AA5: 49595.96226 | AB5: 51083.84113 | AC5: 52616.35636 | AD5: 54194.84705 | AE5: 55820.69247 | AF5: 57495.31324 | AG5: 59220.17264 | AH5: 60996.77782 | AI5: 62826.68115 | AJ5: 64711.48158 | AK5: 66652.82603 | AL5: 68652.41081 | AM5: 70711.98314 | AN5: 72833.34263 | AO5: 75018.34291 | AP5: 77268.8932 | AQ5: 79586.95999 | AR5: 81974.56879 | AS5: 84433.80586 | AT5: 86966.82003 | AU5: 89575.82463 | AV5: 92263.09937 | AW5: 95030.99235 | AX5: 97881.92213 | AY5: 100818.3798 | AZ5: 103842.9312 | BA5: 106958.2191 | BB5: 110166.9657 | BC5: 113471.9747 | BD5: 116876.1339 | BE5: 120382.4179 | BF5: 123993.8905 | BG5: 127713.7072 | BH5: 131545.1184
A6: Clubhouse Manager | J6: =SUM(J7:J12) -> 13012.032 | K6: =$J6*K3 -> 13012.032 | L6: =$J6*L3 -> 13402.39296 | M6: 13804.46475 | N6: 14218.59869 | O6: 14645.15665 | P6: 15084.51135 | Q6: 15537.04669 | R6: 16003.15809 | S6: 16483.25284 | T6: 16977.75042 | U6: 17487.08293 | V6: 18011.69542 | W6: 18552.04628 | X6: 19108.60767 | Y6: 19681.8659 | Z6: 20272.32188 | AA6: 20880.49154 | AB6: 21506.90628 | AC6: 22152.11347 | AD6: 22816.67687 | AE6: 23501.17718 | AF6: 24206.2125 | AG6: 24932.39887 | AH6: 25680.37084 | AI6: 26450.78196 | AJ6: 27244.30542 | AK6: 28061.63458 | AL6: 28903.48362 | AM6: 29770.58813 | AN6: 30663.70577 | AO6: 31583.61695 | AP6: 32531.12546 | AQ6: 33507.05922 | AR6: 34512.271 | AS6: 35547.63913 | AT6: 36614.0683 | AU6: 37712.49035 | AV6: 38843.86506 | AW6: 40009.18101 | AX6: 41209.45644 | AY6: 42445.74013 | AZ6: 43719.11234 | BA6: 45030.68571 | BB6: 46381.60628 | BC6: 47773.05447 | BD6: 49206.2461 | BE6: 50682.43349 | BF6: 52202.90649 | BG6: 53768.99368 | BH6: 55382.0635
A7: Salary | B7: Salary/hr | C7: =ClubHouseMgrRate -> 19 | D7: hrs/wk | E7: =ClubHouseMgrHrs -> 12 | J7: =C7*E7*52 -> 11856
A8: Social Security Tax | B8: Rate | C8: =SocialSecurityTax -> 0.0625 | D8: Time spent on weddings accounted for as cost of wedding. | J8: =J$7*C8 -> 741
A9: Medicare/Medicade Tax | B9: Rate | C9: =MedicareMedicadeTax -> 0.0145 | J9: =J$7*C9 -> 171.912
A10: Unimployment Tax | B10: Rate | C10: =UnemploymentInsurance -> 0.02 | J10: =J$7*C10 -> 237.12
A11: Workman's Comp Insurance | B11: $/quarter/person | D11: =WorkmansCompInsurance -> 5 | J11: =D11*4*E7/40 -> 6
A12: Benefits | J12: =J$121*C12 -> 0
A13: Assistant Clubhouse Manager | J13: =SUM(J14:J19) -> 8174.532 | K13: =$J13*K3 -> 8174.532 | L13: =$J13*L3 -> 8419.76796 | M13: 8672.360999 | N13: 8932.531829 | O13: 9200.507784 | P13: 9476.523017 | Q13: 9760.818708 | R13: 10053.64327 | S13: 10355.25257 | T13: 10665.91014 | U13: 10985.88745 | V13: 11315.46407 | W13: 11654.92799 | X13: 12004.57583 | Y13: 12364.71311 | Z13: 12735.6545 | AA13: 13117.72414 | AB13: 13511.25586 | AC13: 13916.59354 | AD13: 14334.09134 | AE13: 14764.11408 | AF13: 15207.03751 | AG13: 15663.24863 | AH13: 16133.14609 | AI13: 16617.14047 | AJ13: 17115.65469 | AK13: 17629.12433 | AL13: 18157.99806 | AM13: 18702.738 | AN13: 19263.82014 | AO13: 19841.73474 | AP13: 20436.98679 | AQ13: 21050.09639 | AR13: 21681.59928 | AS13: 22332.04726 | AT13: 23002.00868 | AU13: 23692.06894 | AV13: 24402.83101 | AW13: 25134.91594 | AX13: 25888.96341 | AY13: 26665.63232 | AZ13: 27465.60129 | BA13: 28289.56932 | BB13: 29138.2564 | BC13: 30012.4041 | BD13: 30912.77622 | BE13: 31840.15951 | BF13: 32795.36429 | BG13: 33779.22522 | BH13: 34792.60198
A14: Salary | B14: Salary/hr | C14: =AssitClubHouseMgrRate -> 15 | D14: hrs/wk | E14: =AssitClubHouseMgeHrs -> 9 | J14: =C14*E14*52 -> 7020
A15: Social Security Tax | B15: Rate | C15: =SocialSecurityTax -> 0.0625 | D15: Time spent on weddings accounted for as cost of wedding. | J15: =J$7*C15 -> 741
A16: Medicare/Medicade Tax | B16: Rate | C16: =MedicareMedicadeTax -> 0.0145 | J16: =J$7*C16 -> 171.912
A17: Unimployment Tax | B17: Rate | C17: =UnemploymentInsurance -> 0.02 | J17: =J$7*C17 -> 237.12
A18: Workman's Comp Insurance | B18: $/quarter/person | D18: =WorkmansCompInsurance -> 5 | J18: =D18*4*E14/40 -> 4.5
A19: Benefits | J19: =J$121*C19 -> 0
A20: Accounting (Sanders) | D20: I'm guessing here | J20: =J21 -> 1200 | K20: =$J20*K3 -> 1200 | L20: =$J20*L3 -> 1236 | M20: 1273.08 | N20: 1311.2724 | O20: 1350.610572 | P20: 1391.128889 | Q20: 1432.862756 | R20: 1475.848639 | S20: 1520.124098 | T20: 1565.727821 | U20: 1612.699655 | V20: 1661.080645 | W20: 1710.913064 | X20: 1762.240456 | Y20: 1815.10767 | Z20: 1869.5609 | AA20: 1925.647727 | AB20: 1983.417159 | AC20: 2042.919673 | AD20: 2104.207264 | AE20: 2167.333482 | AF20: 2232.353486 | AG20: 2299.324091 | AH20: 2368.303813 | AI20: 2439.352928 | AJ20: 2512.533516 | AK20: 2587.909521 | AL20: 2665.546807 | AM20: 2745.513211 | AN20: 2827.878607 | AO20: 2912.714965 | AP20: 3000.096414 | AQ20: 3090.099307 | AR20: 3182.802286 | AS20: 3278.286355 | AT20: 3376.634945 | AU20: 3477.933994 | AV20: 3582.272013 | AW20: 3689.740174 | AX20: 3800.432379 | AY20: 3914.44535 | AZ20: 4031.878711 | BA20: 4152.835072 | BB20: 4277.420124 | BC20: 4405.742728 | BD20: 4537.91501 | BE20: 4674.05246 | BF20: 4814.274034 | BG20: 4958.702255 | BH20: 5107.463323
A21: Salary | B21: Salary/yr | C21: 1200 | J21: =C21 -> 1200
A22: Bookkeeping (Krtystal) | J22: =SUM(J23:J23) -> 8320 | K22: =$J22*K3 -> 8320 | L22: 8569.6 | M22: 8826.688 | N22: 9091.48864 | O22: 9364.233299 | P22: 9645.160298 | Q22: 9934.515107 | R22: 10232.55056 | S22: 10539.52708 | T22: 10855.71289 | U22: 11181.38428 | V22: 11516.8258 | W22: 11862.33058 | X22: 12218.2005 | Y22: 12584.74651 | Z22: 12962.28891 | AA22: 13351.15757 | AB22: 13751.6923 | AC22: 14164.24307 | AD22: 14589.17036 | AE22: 15026.84547 | AF22: 15477.65084 | AG22: 15941.98036 | AH22: 16420.23977 | AI22: 16912.84697 | AJ22: 17420.23237 | AK22: 17942.83935 | AL22: 18481.12453 | AM22: 19035.55826 | AN22: 19606.62501 | AO22: 20194.82376 | AP22: 20800.66847 | AQ22: =$J22*AQ3 -> 21424.68853 | AR22: 22067.42918 | AS22: 22729.45206 | AT22: 23411.33562 | AU22: 24113.67569 | AV22: 24837.08596 | AW22: 25582.19854 | AX22: 26349.66449 | AY22: 27140.15443 | AZ22: 27954.35906 | BA22: 28792.98983 | BB22: 29656.77953 | BC22: 30546.48292 | BD22: 31462.8774 | BE22: 32406.76372 | BF22: 33378.96664 | BG22: 34380.33564 | BH22: 35411.7457
A23: Salary | B23: Salary/hr | C23: =AccountantBookkeeperRate -> 40 | D23: hrs/wk | E23: =AccountantBookkeeperHrs -> 4 | J23: =C23*E23*52 -> 8320
A24: Election Certification | C24: 700
A25: Staff Development | J25: 200 | K25: =$J25*K3 -> 200 | L25: 206 | M25: 212.18 | N25: 218.5454 | O25: 225.101762 | P25: 231.8548149 | Q25: 238.8104593 | R25: 245.9747731 | S25: 253.3540163 | T25: 260.9546368 | U25: 268.7832759 | V25: 276.8467741 | W25: 285.1521774 | X25: 293.7067427 | Y25: 302.517945 | Z25: 311.5934833 | AA25: 320.9412878 | AB25: 330.5695265 | AC25: 340.4866122 | AD25: 350.7012106 | AE25: 361.2222469 | AF25: 372.0589143 | AG25: 383.2206818 | AH25: 394.7173022 | AI25: 406.5588213 | AJ25: 418.7555859 | AK25: 431.3182535 | AL25: 444.2578011 | AM25: 457.5855351 | AN25: 471.3131012 | AO25: 485.4524942 | AP25: 500.0160691 | AQ25: =$J25*AQ3 -> 515.0165511 | AR25: 530.4670477 | AS25: 546.3810591 | AT25: 562.7724909 | AU25: 579.6556656 | AV25: 597.0453356 | AW25: 614.9566956 | AX25: 633.4053965 | AY25: 652.4075584 | AZ25: 671.9797852 | BA25: 692.1391787 | BB25: 712.9033541 | BC25: 734.2904547 | BD25: 756.3191683 | BE25: 779.0087434 | BF25: 802.3790057 | BG25: 826.4503759 | BH25: 851.2438871
A26: Legal | H26: =SUM(H27:H28) -> 900048.2072 | K26: =SUM(K27:K31) -> 18190 | L26: 18735.7 | M26: 19297.771 | N26: 19876.70413 | O26: 20473.00525 | P26: 21087.19541 | Q26: 21719.81127 | R26: 22371.40561 | S26: 23042.54778 | T26: 23733.82421 | U26: 24445.83894 | V26: 25179.21411 | W26: 25934.59053 | X26: 26712.62825 | Y26: 27514.0071 | Z26: 28339.42731 | AA26: 29189.61013 | AB26: 30065.29843 | AC26: 30967.25738 | AD26: 31896.27511 | AE26: 32853.16336 | AF26: 33838.75826 | AG26: 34853.92101 | AH26: 35899.53864 | AI26: 36976.5248 | AJ26: 38085.82054 | AK26: 39228.39516 | AL26: 40405.24701 | AM26: 41617.40442 | AN26: 42865.92655 | AO26: 44151.90435 | AP26: 45476.46148 | AQ26: =SUM(AQ27:AQ31) -> 46840.75533 | AR26: 48245.97799 | AS26: 49693.35733 | AT26: 51184.15805 | AU26: 52719.68279 | AV26: 54301.27327 | AW26: 55930.31147 | AX26: 57608.22081 | AY26: 59336.46744 | AZ26: 61116.56146 | BA26: 62950.0583 | BB26: 64838.56005 | BC26: 66783.71685 | BD26: 68787.22836 | BE26: 70850.84521 | BF26: 72976.37057 | BG26: 75165.66168 | BH26: 77420.63153
A27: Legal Services (Normal) | H27: =SUM(K27:AO27) -> 250013.3909 | I27: ref | J27: 5000 | K27: =$J27*K$3 -> 5000 | L27: 5150 | M27: 5304.5 | N27: 5463.635 | O27: 5627.54405 | P27: 5796.370372 | Q27: 5970.261483 | R27: 6149.369327 | S27: 6333.850407 | T27: 6523.865919 | U27: =$J27*U$3 -> 6719.581897 | V27: 6921.169354 | W27: 7128.804434 | X27: 7342.668567 | Y27: 7562.948624 | Z27: 7789.837083 | AA27: 8023.532195 | AB27: 8264.238161 | AC27: 8512.165306 | AD27: 8767.530265 | AE27: =$J27*AE$3 -> 9030.556173 | AF27: 9301.472859 | AG27: 9580.517044 | AH27: 9867.932556 | AI27: 10163.97053 | AJ27: 10468.88965 | AK27: 10782.95634 | AL27: 11106.44503 | AM27: 11439.63838 | AN27: 11782.82753 | AO27: =$J27*AO$3 -> 12136.31236 | AP27: 12500.40173 | AQ27: 12875.41378 | AR27: 13261.67619 | AS27: 13659.52648 | AT27: 14069.31227 | AU27: 14491.39164 | AV27: 14926.13339 | AW27: 15373.91739 | AX27: 15835.13491 | AY27: =$J27*AY$3 -> 16310.18896 | AZ27: 16799.49463 | BA27: 17303.47947 | BB27: 17822.58385 | BC27: 18357.26137 | BD27: 18907.97921 | BE27: 19475.21858 | BF27: 20059.47514 | BG27: 20661.2594 | BH27: 21281.09718
A28: Legal Services (SUP, Mediation, Arbitration) | H28: =SUM(K28:AO28) -> 650034.8163 | I28: ref | J28: 13000 | K28: 13000 | L28: 13390 | M28: 13791.7 | N28: 14205.451 | O28: 14631.61453 | P28: 15070.56297 | Q28: 15522.67985 | R28: 15988.36025 | S28: 16468.01106 | T28: 16962.05139 | U28: 17470.91293 | V28: 17995.04032 | W28: 18534.89153 | X28: 19090.93827 | Y28: 19663.66642 | Z28: 20253.57642 | AA28: 20861.18371 | AB28: 21487.01922 | AC28: 22131.6298 | AD28: 22795.57869 | AE28: 23479.44605 | AF28: 24183.82943 | AG28: 24909.34432 | AH28: 25656.62464 | AI28: 26426.32338 | AJ28: 27219.11309 | AK28: 28035.68648 | AL28: 28876.75707 | AM28: 29743.05978 | AN28: 30635.35158 | AO28: 31554.41213 | AP28: 32501.04449 | AQ28: 33476.07582 | AR28: 34480.3581 | AS28: 35514.76884 | AT28: 36580.21191 | AU28: 37677.61826 | AV28: 38807.94681 | AW28: 39972.18522 | AX28: 41171.35077 | AY28: 42406.4913 | AZ28: 43678.68603 | BA28: 44989.04662 | BB28: 46338.71801 | BC28: 47728.87955 | BD28: 49160.74594 | BE28: 50635.56832 | BF28: 52154.63537 | BG28: 53719.27443 | BH28: 55330.85266
A29: Consensus Planning (SUP) | I29: ref | J29: 0 | K29: 0 | L29: 0 | M29: 0 | N29: 0 | O29: 0 | P29: 0 | Q29: 0 | R29: 0 | S29: 0 | T29: 0 | U29: 0 | V29: 0 | W29: 0 | X29: 0 | Y29: 0 | Z29: 0 | AA29: 0 | AB29: 0 | AC29: 0 | AD29: 0 | AE29: 0 | AF29: 0 | AG29: 0 | AH29: 0 | AI29: 0 | AJ29: 0 | AK29: 0 | AL29: 0 | AM29: 0 | AN29: 0 | AO29: 0 | AP29: 0 | AQ29: 0 | AR29: 0 | AS29: 0 | AT29: 0 | AU29: 0 | AV29: 0 | AW29: 0 | AX29: 0 | AY29: 0 | AZ29: 0 | BA29: 0 | BB29: 0 | BC29: 0 | BD29: 0 | BE29: 0 | BF29: 0 | BG29: 0 | BH29: 0
A30: License & Permits | C30: pool and spa | F30: business license | G30: ???? | I30: ref | J30: 150 | K30: 150 | L30: 154.5 | M30: 159.135 | N30: 163.90905 | O30: 168.8263215 | P30: 173.8911111 | Q30: 179.1078445 | R30: 184.4810798 | S30: 190.0155122 | T30: 195.7159776 | U30: 201.5874569 | V30: 207.6350806 | W30: 213.864133 | X30: 220.280057 | Y30: 226.8884587 | Z30: 233.6951125 | AA30: 240.7059659 | AB30: 247.9271448 | AC30: 255.3649592 | AD30: 263.025908 | AE30: 270.9166852 | AF30: 279.0441858 | AG30: 287.4155113 | AH30: 296.0379767 | AI30: 304.919116 | AJ30: 314.0666894 | AK30: 323.4886901 | AL30: 333.1933508 | AM30: 343.1891514 | AN30: 353.4848259 | AO30: 364.0893707 | AP30: 375.0120518 | AQ30: 386.2624134 | AR30: 397.8502858 | AS30: 409.7857943 | AT30: 422.0793682 | AU30: 434.7417492 | AV30: 447.7840017 | AW30: 461.2175217 | AX30: 475.0540474 | AY30: 489.3056688 | AZ30: 503.9848389 | BA30: 519.104384 | BB30: 534.6775156 | BC30: 550.717841 | BD30: 567.2393762 | BE30: 584.2565575 | BF30: 601.7842543 | BG30: 619.8377819 | BH30: 638.4329153
A31: Fines, Penalities, Judgements | I31: ref | J31: 40 | K31: 40 | L31: 41.2 | M31: 42.436 | N31: 43.70908 | O31: 45.0203524 | P31: 46.37096297 | Q31: 47.76209186 | R31: 49.19495462 | S31: 50.67080326 | T31: 52.19092735 | U31: 53.75665517 | V31: 55.36935483 | W31: 57.03043547 | X31: 58.74134854 | Y31: 60.50358899 | Z31: 62.31869666 | AA31: 64.18825756 | AB31: 66.11390529 | AC31: 68.09732245 | AD31: 70.14024212 | AE31: 72.24444939 | AF31: 74.41178287 | AG31: 76.64413635 | AH31: 78.94346045 | AI31: 81.31176426 | AJ31: 83.75111719 | AK31: 86.2636507 | AL31: 88.85156022 | AM31: 91.51710703 | AN31: 94.26262024 | AO31: 97.09049885 | AP31: 100.0032138 | AQ31: 103.0033102 | AR31: 106.0934095 | AS31: 109.2762118 | AT31: 112.5544982 | AU31: 115.9311331 | AV31: 119.4090671 | AW31: 122.9913391 | AX31: 126.6810793 | AY31: 130.4815117 | AZ31: 134.395957 | BA31: 138.4278357 | BB31: 142.5806708 | BC31: 146.8580909 | BD31: 151.2638337 | BE31: 155.8017487 | BF31: 160.4758011 | BG31: 165.2900752 | BH31: 170.2487774
